Workbook

Sheet عبد الجواد (2)
K1: اجمالى عدد لعمالة | L1: =SUBTOTAL(9,$K$10:$K$12000) -> 752.16 | M1: يومية | X1: رصد افتتاحى | Y1: ساعة
K2: اجمالى قيمة الاعمال | L2: =SUBTOTAL(9,$M$10:$M$12000) -> 358106 | M2: =SUMIFS($K$10:$K$15000,$J$10:$J$15000,M$1,$D$10:$D$15000,$B$3) -> 749.66 | X2: =SUMIFS($K$10:$K$15000,$J$10:$J$15000,X$1) -> 0 | Y2: =SUMIFS($K$10:$K$15000,$J$10:$J$15000,Y$1) -> 0 | AE2: 01128358100 | AG2: 01021400030
B3: =+D10 -> عبد الجواد | K3: الدفعات الواصلة | L3: =SUBTOTAL(9,$X$10:$X$12000) -> 265250 | M3: =+M4/M2 -> 350 | X3: =+X4/X2 ->  | Y3: =+Y4/Y2 ->  | AG3: 01021402020
K4: المستحق للمقاول | L4: =+L2-L3 -> 92856 | M4: =SUMIFS($M$10:$M$15000,$J$10:$J$15000,M$1,$D$10:$D$15000,B3) -> 262381 | X4: =SUMIFS($M$10:$M$15000,$J$10:$J$15000,X$2) -> 0 | Y4: =SUMIFS($M$10:$M$15000,$J$10:$J$15000,Y$2) -> 0
M8: =SUM(M10:M130000) -> 358106 | N8: 0 | O8: 0 | P8: 0 | Q8: 0 | R8: 0 | S8: 0 | T8: 0 | U8: 0 | V8: 0 | W8: 0 | X8: =SUM(X10:X130000) -> 265250 | AB8: =+M8-X8 -> 92856
A9: م | B9: التاريخ | C9: اليوم | D9: اسم المقاول | E9: المحصول | F9: النوع | G9: الحوشة | H9: الشركاء | I9: الاعمال | J9: الوحدة | K9: العدد | L9: الفئة | M9: القيمة | N9: الرش | O9: التسميد | P9: التوريق | Q9: الخف | R9: الخصى | S9: تطويش | T9: 1 | U9: 1 | V9: 1 | W9: 1 | X9: الدفعات الواصلة | Y9: البيان | Z9: الإنتاج | AA9: تكلفة | AB9: الرصيد
A10: =ROW()-9 -> 1 | B10: 2025-07-23 | C10: الأربعاء | D10: عبد الجواد | E10: رصد افتتاحى | F10: رصد افتتاحى | I10: رصد افتتاحى | J10: رصد افتتاحى | K10: 0 | L10: 0 | M10: 91350 | AB10: =0+M10-X10 -> 91350
A11: 2 | B11: 2025-07-24 | C11: الخميس | D11: عبد الجواد | E11: عنب | F11: كريمسون | G11: كريمسون ح4 | I11: توريق | J11: يومية | K11: 12 | L11: 350 | M11: 4200 | AB11: =+AB10+M11-X11 -> 95550
A12: 3 | B12: 2025-07-24 | C12: الخميس | D12: عبد الجواد | E12: المحطة | F12: تعبئة | G12: تعبئة | I12: تعبئة | J12: يومية | K12: 2 | L12: 350 | M12: 700 | AB12: =+AB11+M12-X12 -> 96250
A13: 4 | B13: 2025-07-24 | C13: الخميس | D13: عبد الجواد | E13: عنب | F13: اسبيريور | G13: محلى | I13: جمع | J13: يومية | K13: 2.5 | L13: 350 | M13: 875 | AB13: 97125
A14: 5 | B14: 2025-07-25 | C14: الجمعة | D14: عبد الجواد | E14: الاستراحة | F14: الاستراحة | G14: الاستراحة مانجو | I14: حشائش | J14: يومية | K14: 11 | L14: 350 | M14: 3850 | AB14: 100975
A15: 6 | B15: 2025-07-25 | C15: الجمعة | D15: عبد الجواد | E15: المحطة | F15: تعبئة | G15: تعبئة | I15: تعبئة | J15: يومية | K15: 2 | L15: 350 | M15: 700 | AB15: 101675
A16: 7 | B16: 2025-07-26 | C16: السبت | D16: عبد الجواد | E16: المحطة | F16: تعبئة | G16: كريمسون تصدير | I16: تعبئة | J16: يومية | K16: 2 | L16: 350 | M16: 700 | AB16: 102375
A17: 8 | B17: 2025-07-26 | C17: السبت | D17: عبد الجواد | E17: عنب | F17: كريمسون | G17: كريمسون ح6 | I17: نظافة ذبابة | J17: يومية | K17: 6 | L17: 350 | M17: 2100 | AB17: 104475
A18: 9 | B18: 2025-07-26 | C18: السبت | D18: عبد الجواد | E18: الإدارة والمخازن | F18: الإدارة والمخازن | G18: الإدارة والمخازن | I18: الإدارة والمخازن | J18: يومية | K18: 1 | L18: 350 | M18: 350 | AB18: 104825
A19: 10 | B19: 2025-07-26 | C19: السبت | D19: عبد الجواد | E19: النخيل | F19: برحى | G19: برحى | I19: رش | J19: يومية | K19: 3 | L19: 350 | M19: 1050 | AB19: 105875
A20: 11 | B20: 2025-07-26 | C20: السبت | D20: عبد الجواد | E20: النخيل | F20: برحى | G20: برحى | I20: رش | J20: اضافى | K20: 0.5 | L20: 350 | M20: 175 | AB20: 106050
A21: 12 | B21: 2025-07-26 | C21: السبت | D21: عبد الجواد | E21: الاستراحة | F21: الاستراحة | G21: الاستراحة مانجو | I21: فرد خراطيم | J21: يومية | K21: 1 | L21: 350 | M21: 350 | AB21: 106400
A22: 13 | B22: 2025-07-27 | C22: الأحد | D22: عبد الجواد | E22: المحطة | F22: تعبئة | G22: تعبئة | I22: تعبئة | J22: مكافئة مالبة | L22: 1 | M22: 500 | AB22: 106900
A23: 14 | B23: 2025-07-27 | C23: الأحد | D23: عبد الجواد | E23: المحطة | F23: تعبئة | G23: كريمسون تصدير | I23: تعبئة | J23: يومية | K23: 2 | L23: 350 | M23: 700 | AB23: 107600
A24: 15 | B24: 2025-07-27 | C24: الأحد | D24: عبد الجواد | E24: عنب | F24: كريمسون | G24: كريمسون ح6 | I24: جمع | J24: يومية | K24: 5 | L24: 350 | M24: 1750 | AB24: 109350
A25: 16 | B25: 2025-07-27 | C25: الأحد | D25: عبد الجواد | E25: النخيل | F25: برحى | G25: برحى | I25: ترديم حول النخيل | J25: يومية | K25: 4 | L25: 350 | M25: 1400 | AB25: 110750
A26: 17 | B26: 2025-07-28 | C26: الإثنين | D26: عبد الجواد | E26: المحطة | F26: تعبئة | G26: كريمسون تصدير | I26: تعبئة | J26: يومية | K26: 2 | L26: 350 | M26: 700 | AB26: 111450
A27: 18 | B27: 2025-07-28 | C27: الإثنين | D27: عبد الجواد | E27: عنب | F27: كريمسون | G27: كريمسون ح6 | I27: جمع | J27: يومية | K27: 5 | L27: 350 | M27: 1750 | AB27: 113200
A28: 19 | B28: 2025-07-28 | C28: الإثنين | D28: عبد الجواد | E28: النخيل | F28: برحى | G28: برحى | I28: ترديم حول النخيل | J28: يومية | K28: 4 | L28: 350 | M28: 1400 | AB28: 114600
A29: 20 | B29: 2025-07-29 | C29: الثلاثاء | D29: عبد الجواد | E29: عنب | F29: كريمسون | G29: كريمسون ح6 | I29: جمع | J29: يومية | K29: 8 | L29: 350 | M29: 2800 | AB29: 117400
A30: 21 | B30: 2025-07-29 | C30: الثلاثاء | D30: عبد الجواد | E30: المحطة | F30: تعبئة | G30: كريمسون تصدير | I30: تعبئة | J30: يومية | K30: 2 | L30: 350 | M30: 700 | AB30: 118100
A31: 22 | B31: 2025-07-29 | C31: الثلاثاء | D31: عبد الجواد | E31: المحطة | F31: تعبئة | G31: كريمسون تصدير | I31: تعبئة | J31: مكافئة مالبة | M31: 2000 | Y31: تم تعديها من 1000 الى 2000ج | AB31: 120100
A32: 23 | B32: 2025-07-30 | C32: الأربعاء | D32: عبد الجواد | E32: دفعه فلوس | F32: دفعه فلوس | G32: دفعه فلوس | I32: دفعه فلوس | J32: وصل | L32: 0 | M32: 0 | X32: 30000 | Y32: من عهدة المكتب | AB32: 90100
A33: 24 | B33: 2025-07-30 | C33: الأربعاء | D33: عبد الجواد | E33: عنب | F33: كريمسون | G33: كريمسون ح6 | I33: جمع | J33: يومية | K33: 4 | L33: 350 | M33: 1400 | Z33: 105 | AA33: 13.33333333 | AB33: 91500
A34: 25 | B34: 2025-07-30 | C34: الأربعاء | D34: عبد الجواد | E34: النخيل | F34: برحى | G34: برحى | I34: ترديم حول النخيل | J34: يومية | K34: 4 | L34: 350 | M34: 1400 | Z34: 4.5 | AA34: 311.1111111 | AB34: 92900
A35: 26 | B35: 2025-07-30 | C35: الأربعاء | D35: عبد الجواد | E35: المحطة | F35: تعبئة | G35: كريمسون تصدير | I35: تعبئة | J35: يومية | K35: 2 | L35: 350 | M35: 700 | AB35: 93600
A36: 27 | B36: 2025-07-31 | C36: الخميس | D36: عبد الجواد | E36: رومان | F36: رومان | G36: رومان | I36: حشائش | J36: يومية | K36: 8 | L36: 350 | M36: 2800 | Z36: 15 | AA36: 186.6666667 | AB36: 96400
A37: 28 | B37: 2025-07-31 | C37: الخميس | D37: عبد الجواد | E37: المحطة | F37: تعبئة | G37: كريمسون تصدير | I37: تعبئة | J37: يومية | K37: 2 | L37: 350 | M37: 700 | AB37: 97100
A38: 29 | B38: 2025-08-01 | C38: الجمعة | D38: عبد الجواد | E38: المحطة | F38: تعبئة | G38: كريمسون تصدير | I38: تعبئة | J38: يومية | K38: 2 | L38: 350 | M38: 700 | AB38: 97800
A39: 30 | B39: 2025-08-01 | C39: الجمعة | D39: عبد الجواد | E39: رومان | F39: رومان | G39: رومان | I39: حشائش | J39: يومية | K39: 8 | L39: 350 | M39: 2800 | Z39: 18 | AA39: 155.5555556 | AB39: 100600 | AC39: 0
A40: 31 | B40: 2025-08-02 | C40: السبت | D40: عبد الجواد | E40: رومان | F40: رومان | G40: رومان | I40: حشائش | J40: يومية | K40: 12 | L40: 350 | M40: 4200 | Z40: 21 | AA40: 200 | AB40: 104800
A41: 32 | B41: 2025-08-03 | C41: الأحد | D41: عبد الجواد | E41: رومان | F41: رومان | G41: رومان | I41: توريق | J41: يومية | K41: 4 | L41: 350 | M41: 1400 | Z41: 12 | AA41: 116.6666667 | AB41: 106200
A42: 33 | B42: 2025-08-03 | C42: الأحد | D42: عبد الجواد | E42: رومان | F42: رومان | G42: رومان | I42: حشائش | J42: يومية | K42: 8 | L42: 350 | M42: 2800 | Z42: 14 | AA42: 200 | AB42: 109000
A43: 34 | B43: 2025-08-04 | C43: الإثنين | D43: عبد الجواد | E43: عنب | F43: كريمسون | G43: كريمسون ح4 | I43: جمع | J43: يومية | K43: 3 | L43: 350 | M43: 1050 | AB43: 110050
A44: 35 | B44: 2025-08-04 | C44: الإثنين | D44: عبد الجواد | E44: عنب | F44: كريمسون | G44: كريمسون ح5 | I44: جمع | J44: يومية | K44: 3.75 | L44: 350 | M44: 1312.5 | AB44: 111362.5
A45: 36 | B45: 2025-08-04 | C45: الإثنين | D45: عبد الجواد | E45: المحطة | F45: تعبئة | G45: كريمسون تصدير | I45: تعبئة | J45: يومية | K45: 2 | L45: 350 | M45: 700 | AB45: 112062.5
A46: 37 | B46: 2025-08-04 | C46: الإثنين | D46: عبد الجواد | E46: المحطة | F46: تعبئة | G46: كريمسون تصدير | I46: تعبئة | J46: يومية | K46: 1.16 | L46: 350 | M46: 406 | AB46: 112468.5
A47: 38 | B47: 2025-08-04 | C47: الإثنين | D47: عبد الجواد | E47: المحطة | F47: تعبئة | G47: كريمسون تصدير | I47: تعبئة | J47: يومية | K47: 5 | L47: 350 | M47: 1750 | AB47: 114218.5
A48: 39 | B48: 2025-08-05 | C48: الثلاثاء | D48: عبد الجواد | E48: عنب | F48: كريمسون | G48: كريمسون ح4 | I48: جمع | J48: يومية | K48: 5 | L48: 350 | M48: 1750 | AB48: 115968.5
A49: 40 | B49: 2025-08-05 | C49: الثلاثاء | D49: عبد الجواد | E49: المحطة | F49: تعبئة | G49: كريمسون تصدير | I49: تعبئة | J49: يومية | K49: 2 | L49: 350 | M49: 700 | AB49: 116668.5
A50: 41 | B50: 2025-08-05 | C50: الثلاثاء | D50: عبد الجواد | E50: المحطة | F50: تعبئة | G50: كريمسون تصدير | I50: تعبئة | J50: يومية | K50: 10 | L50: 350 | M50: 3500 | AB50: 120168.5
A51: 42 | B51: 2025-08-06 | C51: الأربعاء | D51: عبد الجواد | E51: عنب | F51: كريمسون | G51: كريمسون ح5 | I51: جمع | J51: يومية | K51: 4.5 | L51: 350 | M51: 1575 | Z51: 100 | AA51: 15.75 | AB51: 121743.5
A52: 43 | B52: 2025-08-06 | C52: الأربعاء | D52: عبد الجواد | E52: النخيل | F52: برحى | G52: برحى | I52: ترديم حول النخيل | J52: يومية | K52: 3 | L52: 350 | M52: 1050 | Z52: 8 | AA52: 131.25 | AB52: 122793.5
A53: 44 | B53: 2025-08-06 | C53: الأربعاء | D53: عبد الجواد | E53: المحطة | F53: تعبئة | G53: كريمسون تصدير | I53: تعبئة | J53: يومية | K53: 2 | L53: 350 | M53: 700 | AB53: 123493.5
A54: 45 | B54: 2025-08-07 | C54: الخميس | D54: عبد الجواد | E54: النخيل | F54: برحى | G54: برحى | I54: ترديم حول النخيل | J54: يومية | K54: 2 | L54: 350 | M54: 700 | Z54: 8 | AA54: 87.5 | AB54: 124193.5
A55: 46 | B55: 2025-08-07 | C55: الخميس | D55: عبد الجواد | E55: رومان | F55: رومان | G55: رومان | I55: توريق | J55: يومية | K55: 7 | L55: 350 | M55: 2450 | Z55: 21 | AA55: 116.6666667 | AB55: 126643.5
A56: 47 | B56: 2025-08-07 | C56: الخميس | D56: عبد الجواد | E56: المحطة | F56: تعبئة | G56: كريمسون تصدير | I56: تعبئة | J56: يومية | K56: 1 | L56: 350 | M56: 350 | AB56: 126993.5
A57: 48 | B57: 2025-08-08 | C57: الجمعة | D57: عبد الجواد | E57: النخيل | F57: برحى | G57: برحى | I57: ترديم حول النخيل | J57: يومية | K57: 8 | L57: 350 | M57: 2800 | Z57: 21 | AA57: 133.3333333 | AB57: 129793.5
A58: 49 | B58: 2025-08-08 | C58: الجمعة | D58: عبد الجواد | E58: المحطة | F58: تعبئة | G58: كريمسون تصدير | I58: تعبئة | J58: يومية | K58: 1 | L58: 350 | M58: 350 | AB58: 130143.5
A59: 50 | B59: 2025-08-09 | C59: السبت | D59: عبد الجواد | E59: الإدارة والمخازن | F59: بصل | G59: بصل | I59: بصل | J59: يومية | K59: 2.75 | L59: 350 | M59: 962.5 | AB59: 131106
A60: 51 | B60: 2025-08-09 | C60: السبت | D60: عبد الجواد | E60: عنب | F60: بلاك | I60: حشائش | J60: يومية | K60: 5 | L60: 350 | M60: 1750 | Y60: تمت التصفة حتى تاريخه | AB60: 132856
A61: 52 | B61: 2025-08-09 | C61: السبت | D61: عبد الجواد | E61: المحطة | F61: تعبئة | G61: كريمسون تصدير | I61: تعبئة | J61: يومية | K61: 1 | L61: 350 | M61: 350 | AB61: 133206
A62: 53 | B62: 2025-08-10 | C62: الأحد | D62: عبد الجواد | E62: المحطة | F62: تعبئة | G62: كريمسون تصدير | I62: تعبئة | J62: مكافئة مالبة | M62: 1000 | Y62: مكافات من الحاج | AB62: 134206
A63: 54 | B63: 2025-08-10 | C63: الأحد | D63: عبد الجواد | E63: عنب | F63: كريمسون | G63: كريمسون ح4 | I63: جمع | J63: يومية | K63: 4 | L63: 350 | M63: 1400 | Y63: عدد1 توزيع هديا +كع جمع50برنيكة | Z63: 50 | AA63: 28 | AB63: 135606
A64: 55 | B64: 2025-08-10 | C64: الأحد | D64: عبد الجواد | E64: برقوق | F64: برقوق | G64: حوشة 1 | I64: حشائش | J64: يومية | K64: 4 | L64: 350 | M64: 1400 | Z64: 60 | AA64: 23.33333333 | AB64: 137006
A65: 56 | B65: 2025-08-10 | C65: الأحد | D65: عبد الجواد | E65: المحطة | F65: تعبئة | G65: كريمسون تصدير | I65: تعبئة | J65: يومية | K65: 1 | L65: 350 | M65: 350 | AB65: 137356
A66: 57 | B66: 2025-08-11 | C66: الإثنين | D66: عبد الجواد | E66: دفعه فلوس | F66: دفعه فلوس | G66: دفعه فلوس | I66: دفعه فلوس | J66: وصل | L66: 0 | M66: 0 | X66: 5000 | Y66: تحويل ليلا من ا/ محمود | AB66: 132356
A67: 58 | B67: 2025-08-11 | C67: الإثنين | D67: عبد الجواد | E67: رومان | F67: رومان | G67: رومان | I67: جمع | J67: يومية | K67: 8 | L67: 350 | M67: 2800 | AB67: 135156
A68: 59 | B68: 2025-08-11 | C68: الإثنين | D68: عبد الجواد | E68: المحطة | F68: تعبئة | G68: كريمسون تصدير | I68: تعبئة | J68: يومية | K68: 1 | L68: 350 | M68: 350 | AB68: 135506
A69: 60 | B69: 2025-08-12 | C69: الثلاثاء | D69: عبد الجواد | E69: عنب | F69: كريمسون | G69: كريمسون ح6 | I69: جمع | J69: يومية | K69: 1 | L69: 350 | M69: 350 | AB69: 135856
A70: 61 | B70: 2025-08-12 | C70: الثلاثاء | D70: عبد الجواد | E70: المحطة | F70: تعبئة | G70: كريمسون تصدير | I70: تعبئة | J70: يومية | K70: 8 | L70: 350 | M70: 2800 | AB70: 138656
A71: 62 | B71: 2025-08-12 | C71: الثلاثاء | D71: عبد الجواد | E71: المحطة | F71: تعبئة | G71: كريمسون تصدير | I71: تعبئة | J71: يومية | K71: 1 | L71: 350 | M71: 350 | AB71: 139006
A72: 63 | B72: 2025-08-12 | C72: الثلاثاء | D72: عبد الجواد | E72: المحطة | F72: تعبئة | G72: كريمسون تصدير | I72: تعبئة | J72: يومية | K72: 7 | L72: 350 | M72: 2450 | AB72: 141456
A73: 64 | B73: 2025-08-13 | C73: الأربعاء | D73: عبد الجواد | E73: دفعه فلوس | F73: دفعه فلوس | G73: دفعه فلوس | I73: دفعه فلوس | J73: وصل | L73: 0 | M73: 0 | X73: 100000 | AB73: 41456
A74: =ROW()-9 -> 65 | B74: 2025-08-13 | C74: الأربعاء | D74: عبد الجواد | E74: عنب | F74: كريمسون | G74: كريمسون ح5 | I74: جمع | J74: يومية | K74: 1.5 | L74: 350 | M74: 525 | AB74: 41981
A75: 66 | B75: 2025-08-13 | C75: الأربعاء | D75: عبد الجواد | E75: المحطة | F75: تعبئة | G75: كريمسون تصدير | I75: تعبئة | J75: يومية | K75: 1 | L75: 350 | M75: 350 | AB75: 42331
A76: 67 | B76: 2025-08-13 | C76: الأربعاء | D76: عبد الجواد | E76: المحطة | F76: تعبئة | G76: كريمسون تصدير | I76: تعبئة | J76: يومية | K76: 8 | L76: 350 | M76: 2800 | AB76: =+AB75+M76-X76 -> 45131
A77: 68 | B77: 2025-08-13 | C77: الأربعاء | D77: عبد الجواد | E77: المحطة | F77: تعبئة | I77: تعبئة | J77: يومية | K77: 5.75 | L77: 350 | M77: 2012.5 | AB77: 47143.5
A78: 69 | B78: 2025-08-14 | C78: الخميس | D78: عبد الجواد | E78: رومان | F78: رومان | G78: رومان | I78: جمع | J78: يومية | K78: 7 | L78: 350 | M78: 2450 | Z78: 97 | AA78: 25.25773196 | AB78: 49593.5
A79: 70 | B79: 2025-08-14 | C79: الخميس | D79: عبد الجواد | E79: المحطة | F79: تعبئة | G79: كريمسون تصدير | I79: تعبئة | J79: يومية | K79: 1 | L79: 350 | M79: 350 | AB79: 49943.5
A80: 71 | B80: 2025-08-15 | C80: الجمعة | D80: عبد الجواد | E80: رومان | F80: رومان | G80: رومان | I80: جمع | J80: يومية | K80: 8 | L80: 350 | M80: 2800 | Z80: 121 | AA80: 23.14049587 | AB80: 52743.5
A81: 72 | B81: 2025-08-15 | C81: الجمعة | D81: عبد الجواد | E81: رومان | F81: رومان | G81: رومان | I81: جمع | J81: اضافى | K81: 1 | L81: 350 | M81: 350 | Z81: 15 | AA81: 23.33333333 | AB81: 53093.5
A82: 73 | B82: 2025-08-15 | C82: الجمعة | D82: عبد الجواد | E82: المحطة | F82: تعبئة | G82: كريمسون تصدير | I82: تعبئة | J82: يومية | K82: 1 | L82: 350 | M82: 350 | AB82: 53443.5
A83: 74 | B83: 2025-08-16 | C83: السبت | D83: عبد الجواد | E83: المحطة | F83: تعبئة | G83: كريمسون تصدير | I83: تعبئة | J83: يومية | K83: 1 | L83: 350 | M83: 350 | AB83: 53793.5
A84: 75 | B84: 2025-08-16 | C84: السبت | D84: عبد الجواد | E84: عنب | F84: كريمسون | I84: جمع | J84: يومية | K84: 8.5 | L84: 350 | M84: 2975 | Z84: 200 | AA84: 14.875 | AB84: 56768.5
A85: 76 | B85: 2025-08-17 | C85: الأحد | D85: عبد الجواد | E85: عنب | F85: كريمسون | G85: كريمسون ح6 | I85: جمع | J85: يومية | K85: 4 | L85: 350 | M85: 1400 | Z85: 100 | AA85: 14 | AB85: 58168.5
A86: 77 | B86: 2025-08-17 | C86: الأحد | D86: عبد الجواد | E86: ارض القشطة خالية | I86: حرق حشائش | J86: يومية | K86: 3.5 | L86: 350 | M86: 1225 | AB86: 59393.5
A87: 78 | B87: 2025-08-18 | C87: الإثنين | D87: عبد الجواد | E87: عنب | F87: كريمسون | G87: كريمسون ح6 | I87: جمع | J87: يومية | K87: 4 | L87: 350 | M87: 1400 | Z87: 100 | AA87: 14 | AB87: 60793.5
A88: 79 | B88: 2025-08-18 | C88: الإثنين | D88: عبد الجواد | E88: ارض العالمين | F88: ارض العالمين | I88: برسيم | J88: يومية | K88: 4 | L88: 350 | M88: 1400 | AB88: 62193.5
A89: 80 | B89: 2025-08-18 | C89: الإثنين | D89: عبد الجواد | E89: المحطة | I89: نظافة محطة | J89: يومية | K89: 1 | L89: 350 | M89: 350 | AB89: 62543.5
A90: 81 | B90: 2025-08-19 | C90: الثلاثاء | D90: عبد الجواد | E90: عنب | F90: كريمسون | G90: كريمسون ح6 | I90: جمع | J90: يومية | K90: 5 | L90: 350 | M90: 1750 | AB90: 64293.5
A91: 82 | B91: 2025-08-19 | C91: الثلاثاء | D91: عبد الجواد | E91: مانجو | I91: حشائش | J91: يومية | K91: 3.5 | L91: 350 | M91: 1225 | AB91: 65518.5
A92: 83 | B92: 2025-08-20 | C92: الأربعاء | D92: عبد الجواد | E92: عنب | F92: كريمسون | G92: كريمسون ح6 | I92: جمع | J92: يومية | K92: 15 | L92: 350 | M92: 5250 | AB92: 70768.5
A93: 84 | B93: 2025-08-20 | C93: الأربعاء | D93: عبد الجواد | E93: عنب | F93: كريمسون | G93: كريمسون ح6 | I93: جمع | J93: يومية | K93: 2 | L93: 350 | M93: 700 | AB93: 71468.5
A94: 85 | B94: 2025-08-21 | C94: الخميس | D94: عبد الجواد | E94: عنب | F94: كريمسون | G94: كريمسون ح6 | I94: جمع | J94: يومية | K94: 13 | L94: 350 | M94: 4550 | AB94: 76018.5
A95: 86 | B95: 2025-08-22 | C95: الجمعة | D95: عبد الجواد | E95: عنب | F95: كريمسون | G95: كريمسون ح6 | I95: جمع | J95: يومية | K95: 11 | L95: 350 | M95: 3850 | Z95: 205 | AA95: 18.7804878 | AB95: 79868.5
A96: 87 | B96: 2025-08-23 | C96: السبت | D96: عبد الجواد | E96: عنب | F96: كريمسون | G96: كريمسون ح4 | I96: جمع | J96: يومية | K96: 10 | L96: 350 | M96: 3500 | Z96: 200 | AA96: 17.5 | AB96: 83368.5
A97: 88 | B97: 2025-08-24 | C97: الأحد | D97: عبد الجواد | E97: دفعه فلوس | F97: دفعه فلوس | G97: دفعه فلوس | I97: دفعه فلوس | J97: وصل | L97: 0 | M97: 0 | X97: 20000 | AB97: 63368.5
A98: 89 | B98: 2025-08-24 | C98: الأحد | D98: عبد الجواد | E98: عنب | F98: كريمسون | G98: كريمسون ح4 | I98: جمع | J98: يومية | K98: 3.25 | L98: 350 | M98: 1137.5 | AB98: 64506
A99: 90 | B99: 2025-08-24 | C99: الأحد | D99: عبد الجواد | E99: دراجون | F99: دراجون | G99: دراجون | I99: جمع | J99: يومية | K99: 2 | L99: 350 | M99: 700 | AB99: 65206
A100: 91 | B100: 2025-08-24 | C100: الأحد | D100: عبد الجواد | E100: بونيكام | F100: بونيكام | G100: بونيكام | I100: زراعة | J100: يومية | K100: 6 | L100: 350 | M100: 2100 | AB100: 67306
A101: 92 | B101: 2025-08-25 | C101: الإثنين | D101: عبد الجواد | E101: بونيكام | F101: بونيكام | G101: بونيكام | I101: زراعة | J101: يومية | K101: 10 | L101: 350 | M101: 3500 | AB101: 70806
A102: 93 | B102: 2025-08-26 | C102: الثلاثاء | D102: عبد الجواد | E102: عنب | F102: كريمسون | G102: كريمسون ح4 | I102: جمع | J102: يومية | K102: 7 | L102: 350 | M102: 2450 | AB102: 73256
A103: 94 | B103: 2025-08-26 | C103: الثلاثاء | D103: عبد الجواد | E103: بونيكام | F103: بونيكام | G103: بونيكام | I103: زراعة | J103: يومية | K103: 3 | L103: 350 | M103: 1050 | AB103: 74306
A104: 95 | B104: 2025-08-27 | C104: الأربعاء | D104: عبد الجواد | E104: عنب | F104: كريمسون | G104: كريمسون ح4 | I104: جمع | J104: يومية | K104: 7 | L104: 350 | M104: 2450 | AB104: 76756
A105: 96 | B105: 2025-08-27 | C105: الأربعاء | D105: عبد الجواد | E105: بونيكام | F105: بونيكام | G105: بونيكام | I105: زراعة | J105: يومية | K105: 4 | L105: 350 | M105: 1400 | AB105: 78156
A106: 97 | B106: 2025-08-28 | C106: الخميس | D106: عبد الجواد | E106: عنب | F106: كريمسون | G106: كريمسون ح4 | I106: جمع | J106: يومية | K106: 7 | L106: 350 | M106: 2450 | AB106: 80606
A107: 98 | B107: 2025-08-28 | C107: الخميس | D107: عبد الجواد | E107: بونيكام | F107: بونيكام | G107: بونيكام | I107: زراعة | J107: يومية | K107: 4 | L107: 350 | M107: 1400 | AB107: 82006
A108: 99 | B108: 2025-08-29 | C108: الجمعة | D108: عبد الجواد | E108: عنب | F108: كريمسون | G108: كريمسون ح4 | I108: جمع | J108: يومية | K108: 8 | L108: 350 | M108: 2800 | Z108: 198 | AA108: 14.14141414 | AB108: 84806
A109: 100 | B109: 2025-08-29 | C109: الجمعة | D109: عبد الجواد | E109: بونيكام | F109: بونيكام | G109: بونيكام | I109: زراعة | J109: يومية | K109: 7 | L109: 350 | M109: 2450 | AB109: 87256
A110: 101 | B110: 2025-08-30 | C110: السبت | D110: عبد الجواد | E110: بونيكام | F110: بونيكام | G110: بونيكام | I110: زراعة | J110: يومية | K110: 8 | L110: 350 | M110: 2800 | AB110: 90056
A111: 102 | B111: 2025-08-31 | C111: الأحد | D111: عبد الجواد | E111: دفعه فلوس | F111: دفعه فلوس | G111: دفعه فلوس | I111: دفعه فلوس | J111: وصل | L111: 0 | M111: 0 | X111: 10000 | AB111: 80056
A112: 103 | B112: 2025-08-31 | C112: الأحد | D112: عبد الجواد | E112: تجهيزات | F112: تجهيزات | I112: تنزيل سباخ | J112: يومية | K112: 2.5 | L112: 350 | M112: 875 | AB112: 80931
A113: 104 | B113: 2025-08-31 | C113: الأحد | D113: عبد الجواد | E113: الإدارة والمخازن | J113: يومية | K113: 2 | L113: 350 | M113: 700 | AB113: 81631
A114: 105 | B114: 2025-09-01 | C114: الإثنين | D114: عبد الجواد | E114: الإدارة والمخازن | F114: الإدارة والمخازن | J114: يومية | K114: 2 | L114: 350 | M114: 700 | AB114: 82331
A115: 106 | B115: 2025-09-01 | C115: الإثنين | D115: عبد الجواد | E115: انتاج حيوانى | F115: اغنام | J115: يومية | K115: 0.5 | L115: 350 | M115: 175 | AB115: 82506
A116: 107 | B116: 2025-09-01 | C116: الإثنين | D116: عبد الجواد | E116: تجهيزات | F116: تجهيزات | J116: يومية | K116: 4.5 | L116: 350 | M116: 1575 | AB116: 84081
A117: 108 | B117: 2025-09-02 | C117: الثلاثاء | D117: عبد الجواد | E117: الإدارة والمخازن | F117: الإدارة والمخازن | J117: يومية | K117: 2 | L117: 350 | M117: 700 | AB117: 84781
A118: 109 | B118: 2025-09-02 | C118: الثلاثاء | D118: عبد الجواد | E118: تجهيزات | F118: تجهيزات | J118: يومية | K118: 3 | L118: 350 | M118: 1050 | AB118: 85831
A119: 110 | B119: 2025-09-03 | C119: الأربعاء | D119: عبد الجواد | E119: عنب | F119: اسبيريور | I119: حشائش | J119: يومية | K119: 1 | L119: 350 | M119: 350 | AB119: 86181
A120: 111 | B120: 2025-09-03 | C120: الأربعاء | D120: عبد الجواد | E120: عنب | F120: بلاك | I120: حشائش | J120: يومية | K120: 1 | L120: 350 | M120: 350 | AB120: 86531
A121: 112 | B121: 2025-09-03 | C121: الأربعاء | D121: عبد الجواد | E121: الإدارة والمخازن | F121: الإدارة والمخازن | J121: يومية | K121: 2 | L121: 350 | M121: 700 | AB121: 87231
A122: 113 | B122: 2025-09-03 | C122: الأربعاء | D122: عبد الجواد | E122: تجهيزات | F122: تجهيزات | J122: يومية | K122: 2 | L122: 350 | M122: 700 | AB122: 87931
A123: 114 | B123: 2025-09-04 | C123: الخميس | D123: عبد الجواد | E123: عنب | F123: كريمسون | I123: حشائش | J123: يومية | K123: 2 | L123: 350 | M123: 700 | AB123: 88631
A124: 115 | B124: 2025-09-04 | C124: الخميس | D124: عبد الجواد | E124: دفعه فلوس | F124: دفعه فلوس | G124: دفعه فلوس | I124: دفعه فلوس | J124: وصل | L124: 0 | M124: 0 | X124: 30000 | AB124: 58631
A125: 116 | B125: 2025-09-05 | C125: الجمعة | D125: عبد الجواد | E125: مانجو | F125: كيت | I125: حشائش | J125: يومية | K125: 1 | L125: 350 | M125: 350 | AB125: 58981
A126: 117 | B126: 2025-09-06 | C126: السبت | D126: عبد الجواد | E126: مانجو | F126: كيت | I126: حرق حشائش | J126: يومية | K126: 0.5 | L126: 350 | M126: 175 | AB126: 59156
A127: 118 | B127: 2025-09-06 | C127: السبت | D127: عبد الجواد | E127: مانجو | F127: كيت | I127: شتلة | J127: يومية | K127: 5 | L127: 350 | M127: 1750 | AB127: 60906
A128: 119 | B128: 2025-09-07 | C128: الأحد | D128: عبد الجواد | E128: مانجو | F128: كيت | I128: زراعة | J128: يومية | K128: 4 | L128: 350 | M128: 1400 | AB128: 62306
A129: 120 | B129: 2025-09-07 | C129: الأحد | D129: عبد الجواد | E129: مانجو | F129: كيت | I129: مخلفات | J129: يومية | K129: 1 | L129: 350 | M129: 350 | AB129: 62656
A130: 121 | B130: 2025-09-08 | C130: الإثنين | D130: عبد الجواد | E130: الإدارة والمخازن | F130: الإدارة والمخازن | J130: يومية | K130: 2 | L130: 350 | M130: 700 | AB130: 63356
A131: 122 | B131: 2025-09-08 | C131: الإثنين | D131: عبد الجواد | E131: مانجو | F131: كيت | I131: زراعة | J131: يومية | K131: 2 | L131: 350 | M131: 700 | AB131: 64056
A132: 123 | B132: 2025-09-08 | C132: الإثنين | D132: عبد الجواد | E132: مانجو | F132: كيت | I132: مخلفات | J132: يومية | K132: 2 | L132: 350 | M132: 700 | AB132: 64756
A133: 124 | B133: 2025-09-09 | C133: الثلاثاء | D133: عبد الجواد | E133: مانجو | F133: كيت | I133: زراعة | J133: يومية | K133: 8 | L133: 350 | M133: 2800 | AB133: 67556
A134: 125 | B134: 2025-09-10 | C134: الأربعاء | D134: عبد الجواد | E134: مانجو | F134: كيت | I134: زراعة | J134: يومية | K134: 10 | L134: 350 | M134: 3500 | AB134: 71056
A135: 126 | B135: 2025-09-11 | C135: الخميس | D135: عبد الجواد | E135: مانجو | F135: كيت | I135: زراعة | J135: يومية | K135: 8 | L135: 350 | M135: 2800 | AB135: 73856
A136: 127 | B136: 2025-09-12 | C136: الجمعة | D136: عبد الجواد | E136: مانجو | F136: كيت | I136: زراعة | J136: يومية | K136: 7 | L136: 350 | M136: 2450 | AB136: 76306
A137: 128 | B137: 2025-09-13 | C137: السبت | D137: عبد الجواد | E137: مانجو | F137: كيت | I137: زراعة | J137: يومية | K137: 7 | L137: 350 | M137: 2450 | AB137: 78756
A138: =ROW()-9 -> 129 | B138: 2025-09-12 | C138: الجمعة | D138: عبد الجواد | E138: دفعه فلوس | F138: دفعه فلوس | G138: دفعه فلوس | I138: دفعه فلوس | J138: وصل | L138: 0 | M138: 0 | X138: 10000 | AB138: 68756
A139: 130 | B139: 2025-09-12 | C139: الجمعة | D139: عبد الجواد | E139: دفعه فلوس | F139: دفعه فلوس | G139: دفعه فلوس | I139: دفعه فلوس | J139: وصل | L139: 0 | M139: 0 | X139: 250 | Y139: انوبة غاز | AB139: 68506
A140: 131 | B140: 2025-09-14 | C140: الأحد | D140: عبد الجواد | E140: الإدارة والمخازن | F140: الإدارة والمخازن | J140: يومية | K140: 2 | L140: 350 | M140: 700 | AB140: =+AB139+M140-X140 -> 69206
A141: 132 | B141: 2025-09-14 | C141: الأحد | D141: عبد الجواد | E141: مانجو | F141: كيت | I141: زراعة | J141: يومية | K141: 2.5 | L141: 350 | M141: 875 | AB141: 70081
A142: 133 | B142: 2025-09-14 | C142: الأحد | D142: عبد الجواد | E142: مانجو | F142: كيت | I142: الرى | J142: يومية | K142: 1 | L142: 350 | M142: 350 | AB142: 70431
A143: 134 | B143: 2025-09-15 | C143: الإثنين | D143: عبد الجواد | E143: مانجو | F143: كيت | I143: الرى | J143: يومية | K143: 2 | L143: 350 | M143: 700 | AB143: 71131
A144: 135 | B144: 2025-09-15 | C144: الإثنين | D144: عبد الجواد | E144: مانجو | F144: كيت | I144: حشائش | J144: يومية | K144: 124 | L144: 350 | M144: 43400 | AB144: 114531
A145: 136 | B145: 2025-09-16 | C145: الثلاثاء | D145: عبد الجواد | E145: دفعه فلوس | F145: دفعه فلوس | G145: دفعه فلوس | I145: دفعه فلوس | J145: وصل | L145: 0 | M145: 0 | X145: 50000 | AB145: 64531
A146: 137 | B146: 2025-09-16 | C146: الثلاثاء | D146: عبد الجواد | E146: مانجو | F146: كيت | I146: زراعة | J146: يومية | K146: 6 | L146: 350 | M146: 2100 | AB146: 66631
A147: 138 | B147: 2025-09-16 | C147: الثلاثاء | D147: عبد الجواد | E147: مانجو | F147: كيت | I147: الرى | J147: يومية | K147: 1 | L147: 350 | M147: 350 | AB147: 66981
A148: 139 | B148: 2025-09-17 | C148: الأربعاء | D148: عبد الجواد | E148: المانجو الجديدة | F148: تجهيزات | I148: زراعة | J148: يومية | K148: 2 | L148: 350 | M148: 700 | AB148: 67681
A149: 140 | B149: 2025-09-17 | C149: الأربعاء | D149: عبد الجواد | E149: مانجو | F149: كيت | I149: الرى | J149: يومية | K149: 5 | L149: 350 | M149: 1750 | AB149: 69431
A150: 141 | B150: 2025-09-18 | C150: الخميس | D150: عبد الجواد | E150: مانجو | F150: كيت | I150: زراعة | J150: يومية | K150: 7 | L150: 350 | M150: 2450 | AB150: 71881
A151: 142 | B151: 2025-09-19 | C151: الجمعة | D151: عبد الجواد | E151: مانجو | F151: كيت | I151: زراعة | J151: يومية | K151: 2 | L151: 350 | M151: 700 | AB151: 72581
A152: 143 | B152: 2025-09-19 | C152: الجمعة | D152: عبد الجواد | E152: عنب | F152: بلاك | I152: تنزيل سباخ | J152: يومية | K152: 5 | L152: 350 | M152: 1750 | AB152: 74331
A153: 144 | B153: 2025-09-20 | C153: السبت | D153: عبد الجواد | E153: مانجو | F153: كيت | I153: زراعة | J153: يومية | K153: 1 | L153: 350 | M153: 350 | AB153: 74681
A154: 145 | B154: 2025-09-20 | C154: السبت | D154: عبد الجواد | E154: النخيل | I154: تنزيل سباخ | J154: يومية | K154: 5 | L154: 350 | M154: 1750 | AB154: 76431
A155: 146 | B155: 2025-09-21 | C155: الأحد | D155: عبد الجواد | E155: مانجو | F155: كيت | I155: زراعة | J155: يومية | K155: 1 | L155: 350 | M155: 350 | AB155: 76781
A156: 147 | B156: 2025-09-21 | C156: الأحد | D156: عبد الجواد | E156: النخيل | I156: تنزيل سباخ | J156: يومية | K156: 5 | L156: 350 | M156: 1750 | AB156: 78531
A157: 148 | B157: 2025-09-22 | C157: الإثنين | D157: عبد الجواد | E157: النخيل | I157: تنزيل سباخ | J157: يومية | K157: 6.5 | L157: 350 | M157: 2275 | AB157: 80806
A158: 149 | B158: 2025-09-23 | C158: الثلاثاء | D158: عبد الجواد | E158: النخيل | I158: تنزيل سباخ | J158: يومية | K158: 4.5 | L158: 350 | M158: 1575 | AB158: 82381
A159: 150 | B159: 2025-09-23 | C159: الثلاثاء | D159: عبد الجواد | E159: الغنم | I159: حقن الغنم | J159: يومية | K159: 0.5 | L159: 350 | M159: 175 | AB159: 82556
A160: 151 | B160: 2025-09-24 | C160: الأربعاء | D160: عبد الجواد | E160: النخيل | I160: تنزيل سباخ | J160: يومية | K160: 6 | L160: 350 | M160: 2100 | AB160: 84656
A161: 152 | B161: 2025-09-24 | C161: الأربعاء | D161: عبد الجواد | E161: ارض العالمين | J161: يومية | K161: 1.5 | L161: 350 | M161: 525 | AB161: 85181
A162: 153 | B162: 2025-09-25 | C162: الخميس | D162: عبد الجواد | E162: النخيل | I162: تنزيل سباخ | J162: يومية | K162: 5 | L162: 350 | M162: 1750 | AB162: 86931
A163: 154 | B163: 2025-09-26 | C163: الجمعة | D163: عبد الجواد | E163: النخيل | I163: تنزيل سباخ | J163: يومية | K163: 5 | L163: 350 | M163: 1750 | AB163: 88681
A164: 155 | B164: 2025-09-27 | C164: السبت | D164: عبد الجواد | E164: النخيل | I164: تنزيل سباخ | J164: يومية | K164: 5 | L164: 350 | M164: 1750 | AB164: 90431
A165: 156 | B165: 2025-09-28 | C165: الأحد | D165: عبد الجواد | E165: الإدارة والمخازن | F165: الإدارة والمخازن | J165: يومية | K165: 2 | L165: 350 | M165: 700 | AB165: 91131
A166: 157 | B166: 2025-09-28 | C166: الأحد | D166: عبد الجواد | E166: النخيل | I166: رش | J166: يومية | K166: 1 | L166: 350 | M166: 350 | AB166: 91481
A167: 158 | B167: 2025-09-28 | C167: الأحد | D167: عبد الجواد | E167: دراجون | I167: جمع | J167: اضافى | K167: 1 | L167: 350 | M167: 350 | AB167: 91831
A168: 159 | B168: 2025-09-29 | C168: الإثنين | D168: عبد الجواد | E168: النخيل | I168: تنزيل سباخ | J168: يومية | K168: 3 | L168: 350 | M168: 1050 | AB168: 92881
A169: 160 | B169: 2025-09-30 | C169: الثلاثاء | D169: عبد الجواد | E169: دفعه فلوس | F169: دفعه فلوس | G169: دفعه فلوس | I169: دفعه فلوس | J169: وصل | L169: 0 | M169: 0 | X169: 10000 | AB169: 82881
A170: 161 | B170: 2025-09-30 | C170: الثلاثاء | D170: عبد الجواد | E170: الإدارة والمخازن | F170: الإدارة والمخازن | J170: يومية | K170: 1.5 | L170: 350 | M170: 525 | AB170: 83406
A171: 162 | B171: 2025-09-30 | C171: الثلاثاء | D171: عبد الجواد | E171: النخيل | J171: يومية | K171: 1.5 | L171: 350 | M171: 525 | AB171: 83931
A172: 163 | B172: 2025-10-01 | C172: الأربعاء | D172: عبد الجواد | E172: النخيل | I172: ترديم حول النخيل | J172: يومية | K172: 6 | L172: 350 | M172: 2100 | AB172: 86031
A173: 164 | B173: 2025-10-02 | C173: الخميس | D173: عبد الجواد | E173: النخيل | I173: ترديم حول النخيل | J173: يومية | K173: 5 | L173: 350 | M173: 1750 | AB173: 87781
A174: 165 | B174: 2025-10-03 | C174: الجمعة | D174: عبد الجواد | E174: برقوق | I174: تنزيل سباخ | J174: يومية | K174: 4.5 | L174: 350 | M174: 1575 | AB174: 89356
A175: 166 | B175: 2025-10-03 | C175: الجمعة | D175: عبد الجواد | E175: الغنم | I175: تعتيق | J175: يومية | K175: 0.5 | L175: 350 | M175: 175 | AB175: 89531
A176: 167 | B176: 2025-10-04 | C176: السبت | D176: عبد الجواد | E176: عنب | F176: بلاك | I176: تنزيل سباخ | J176: يومية | K176: 4.5 | L176: 350 | M176: 1575 | AB176: 91106
A177: 168 | B177: 2025-10-05 | C177: الأحد | D177: عبد الجواد | E177: عنب | F177: بلاك | I177: تنزيل سباخ | J177: يومية | K177: 5 | L177: 350 | M177: 1750 | AB177: 92856
B178: 2025-10-31 | AB178: 70556

Sheet متطلبات الفلوس (2)
C2: بيان بحساب العمالة اليومية حتى تاريخه | G2: 2025-11-09 | J2: 2025-08-12
B4: م | C4: البيان | F4: المستخلصات | G4: النقدية | H4: المتبقى | J4: المطلوب صرفه | K4: نسبة الصرف
B5: 1 | C5: =+list!A5 -> عبد الجواد | D5: عمالة | E5: مزرعة | F5: =+list!I5 -> 494343.5 | G5: =+list!J5 -> 448250 | H5: =+F5-G5 -> 46093.5 | J5: 100000 | K5: =+J5/H5 -> 2.169503292
C6: =+list!Z3 -> سمير فول | D6: عمالة | F6: 18460 | G6: 0 | H6: 18460
B7: 2 | C7: مرتبات شهر 10 | D7: شهر 10 | H7: 155886.6667 | J7: 0 | K7: 0
B8: 3 | J8: 100000
B10: 3 | C10: الحرباوى لودر | D10: عدد16 س *700ج | F10: 8400 | G10: 0 | H10: =+F10-G10 -> 8400 | J10: 0 | K10: 0
B11: 4 | C11: كرم تكعيبة | D11: عمل تكعيبة | F11: 29750 | G11: 5000 | H11: 24750
B12: 5 | C12: محمد عبده | D12: الابار | F12: =563530+61950+2500 -> 627980 | G12: 20000 | H12: 607980
B13: 6 | C13: باهى حشائش | D13: رش حشائش | F13: 15800 | G13: 0 | H13: 15800
B14: 7 | C14: الشيخ راضى | D14: مصنعية ودهانات | F14: 36600 | G14: 24000 | H14: 12600
B15: 8 | C15: عبد الحليم البنا | D15: بناء | F15: 30830 | G15: 29000 | H15: 1830
B16: 9 | C16: رمضان عبد الغفار | D16: شبكة الرى | F16: 93400 | G16: 66250 | H16: 27150
B17: 10 | C17: الأشقر | D17: اسمدة ومبيدات | F17: 302415 | G17: 100000 | H17: 202415
B18: 11 | C18: وائل عبد الظاهر | D18: اسمدة ومبيدات | F18: =898634-80000 -> 818634 | G18: 278190 | H18: 540444 | J18: 0 | K18: 0
C19: الاجمالى الكلى | F19: =SUM(F5:F18) -> 2476612.5 | G19: =SUM(G5:G18) -> 970690 | H19: =SUM(H5:H18) -> 1661809.167 | J19: =SUM(J5:J18) -> 200000 | K19: =+J19/H19 -> 0.1203507623

Sheet list
AF1: يناير | AG1: فبراير | AH1: مارس | AI1: أبريل | AJ1: مايو | AK1: يونيو | AL1: يوليو | AM1: أغسطس | AN1: سبتمبر | AO1: أكتوبر | AP1: نوفمبر | AQ1: ديسمبر
D2: التكاليف | AE2: =SUM(AD4:AD39) -> 119847.5
A3: المقاول | B3: الفئة | C3: المحصول | D3: النوع | E3: الحوشة | F3: الشركاء | G3: الاعمال | H3: الوحدة | I3: الاعمالى | J3: الدفعات | K3: الباقى | L3: البيان | M3: ابو عمار أسيوط | N3: عبد الجواد | O3: عمالة خالد | P3: ام ياسمين | Q3: محمود محطة | R3: اشرف محطة | S3: السائق عبدالغنى | T3: السائق سعيد صالح | U3: م رمضان عبد الغفار | V3: ايمن جابر | W3: سيف طه | X3: ام وليد | Y3: =+A16 -> الحاج يسرى | Z3: سمير فول | AD3: نوفمبر
A4: ابو عمار أسيوط | B4: 350 | C4: عنب | D4: كريمسون | E4: كريمسون ح4 | F4: الحاج حماد | G4: جمع | H4: ساعة | I4: =SUMIFS('يومية المقاولين'!$M$7:$M$11995,'يومية المقاولين'!$D$7:$D$11995,$A4) -> 136715 | J4: =SUMIFS('يومية المقاولين'!$X$7:$X$11995,'يومية المقاولين'!$D$7:$D$11995,$A4) -> 136715 | K4: =+I4-J4 -> 0 | L4: =+H4 -> ساعة | M4: 0 | N4: 0 | O4: 0 | P4: 0 | Q4: 0 | R4: 0 | S4: 0 | T4: 0 | U4: 0 | V4: 0 | W4: 0 | X4: 0 | Z4: 100 | AD4: =SUMIFS('يومية المقاولين'!$M$7:$M$110000,'يومية المقاولين'!$A$7:$A$110000,$AD$3,'يومية المقاولين'!$F$7:$F$110000,$D4) -> 0
A5: عبد الجواد | B5: 350 | C5: رومان | D5: اسبيريور | E5: كريمسون ح5 | F5: م/ على | G5: حشائش | H5: فدان | I5: =SUMIFS('يومية المقاولين'!$M$7:$M$11995,'يومية المقاولين'!$D$7:$D$11995,$A5) -> 494343.5 | J5: =SUMIFS('يومية المقاولين'!$X$7:$X$11995,'يومية المقاولين'!$D$7:$D$11995,$A5) -> 448250 | K5: =+I5-J5 -> 46093.5 | L5: =+H5 -> فدان | M5: 0 | N5: 0 | O5: 0 | P5: 0 | Q5: 0 | R5: 0 | S5: 0 | T5: 0 | U5: 0 | V5: 5000 | W5: 0 | X5: 0 | AD5: =SUMIFS('يومية المقاولين'!$M$7:$M$110000,'يومية المقاولين'!$A$7:$A$110000,$AD$3,'يومية المقاولين'!$F$7:$F$110000,$D5) -> 0
A6: عمالة خالد | B6: 350 | C6: خوخ | D6: بلاك | E6: كريمسون ح6 | G6: تقليم | H6: يومية | I6: =SUMIFS('يومية المقاولين'!$M$7:$M$11995,'يومية المقاولين'!$D$7:$D$11995,$A6) -> 101475 | J6: =SUMIFS('يومية المقاولين'!$X$7:$X$11995,'يومية المقاولين'!$D$7:$D$11995,$A6) -> 101475 | K6: 0 | L6: يومية | M6: 350 | N6: 350 | O6: 350 | P6: 350 | Q6: 350 | R6: 350 | S6: 0 | T6: 0 | U6: 0 | V6: 650 | W6: 350 | X6: 370 | Y6: 350 | Z6: 460 | AD6: =SUMIFS('يومية المقاولين'!$M$7:$M$110000,'يومية المقاولين'!$A$7:$A$110000,$AD$3,'يومية المقاولين'!$F$7:$F$110000,$D6) -> 2100
A7: ام ياسمين | B7: 350 | C7: برقوق | D7: مانجو | E7: مانجو ح 1 | G7: توريق | H7: برنيكة | I7: =SUMIFS('يومية المقاولين'!$M$7:$M$11995,'يومية المقاولين'!$D$7:$D$11995,$A7) -> 140700 | J7: =SUMIFS('يومية المقاولين'!$X$7:$X$11995,'يومية المقاولين'!$D$7:$D$11995,$A7) -> 140700 | K7: 0 | L7: برنيكة | M7: 0 | N7: 0 | O7: 0 | P7: 0 | Q7: 0 | R7: 0 | S7: 0 | T7: 0 | U7: 0 | V7: 0 | W7: 0 | X7: 0 | AD7: =SUMIFS('يومية المقاولين'!$M$7:$M$110000,'يومية المقاولين'!$A$7:$A$110000,$AD$3,'يومية المقاولين'!$F$7:$F$110000,$D7) -> 0
A8: محمود محطة | B8: 350 | C8: النخيل | D8: اغنام | E8: مانجو ح 2 | G8: رش | H8: خط | I8: =SUMIFS('يومية المقاولين'!$M$7:$M$11995,'يومية المقاولين'!$D$7:$D$11995,$A8) -> 12615 | J8: =SUMIFS('يومية المقاولين'!$X$7:$X$11995,'يومية المقاولين'!$D$7:$D$11995,$A8) -> 12615 | K8: 0 | L8: خط | M8: 0 | N8: 0 | O8: 0 | P8: 0 | Q8: 0 | R8: 0 | S8: 0 | T8: 0 | U8: 0 | V8: 0 | W8: 0 | X8: 0 | AD8: =SUMIFS('يومية المقاولين'!$M$7:$M$110000,'يومية المقاولين'!$A$7:$A$110000,$AD$3,'يومية المقاولين'!$F$7:$F$110000,$D8) -> 0
A9: اشرف محطة | B9: 350 | C9: مانجو | D9: ماعز | E9: مانجو ح 3 | G9: خصى عنقود | H9: نقلة | I9: =SUMIFS('يومية المقاولين'!$M$7:$M$11995,'يومية المقاولين'!$D$7:$D$11995,$A9) -> 116505 | J9: =SUMIFS('يومية المقاولين'!$X$7:$X$11995,'يومية المقاولين'!$D$7:$D$11995,$A9) -> 116540 | K9: -35 | L9: نقلة | M9: 0 | N9: 0 | O9: 0 | P9: 0 | Q9: 0 | R9: 0 | S9: 0 | T9: 0 | U9: 0 | V9: 0 | W9: 0 | X9: 0 | AD9: =SUMIFS('يومية المقاولين'!$M$7:$M$110000,'يومية المقاولين'!$A$7:$A$110000,$AD$3,'يومية المقاولين'!$F$7:$F$110000,$D9) -> 0
A10: السائق عبدالغنى | C10: المحطة | D10: تعبئة | E10: مانجو ح 4 | G10: خف عنقود | H10: وصل | I10: =SUMIFS('يومية المقاولين'!$M$7:$M$11995,'يومية المقاولين'!$D$7:$D$11995,$A10) -> 0 | J10: =SUMIFS('يومية المقاولين'!$X$7:$X$11995,'يومية المقاولين'!$D$7:$D$11995,$A10) -> 0 | K10: 0 | L10: وصل | M10: 0 | N10: 0 | O10: 0 | P10: 0 | Q10: 0 | R10: 0 | S10: 0 | T10: 0 | U10: 0 | V10: 0 | W10: 0 | X10: 0 | AD10: =SUMIFS('يومية المقاولين'!$M$7:$M$110000,'يومية المقاولين'!$A$7:$A$110000,$AD$3,'يومية المقاولين'!$F$7:$F$110000,$D10) -> 0
A11: السائق سعيد صالح | C11: انتاج حيوانى | D11: رصد افتتاحى | E11: مانجو ح 5 | G11: تنظيف عنقود | H11: جورة | I11: =SUMIFS('يومية المقاولين'!$M$7:$M$11995,'يومية المقاولين'!$D$7:$D$11995,$A11) -> 0 | J11: =SUMIFS('يومية المقاولين'!$X$7:$X$11995,'يومية المقاولين'!$D$7:$D$11995,$A11) -> 0 | K11: 0 | L11: جورة | M11: 0 | N11: 0 | O11: 0 | P11: 0 | Q11: 0 | R11: 0 | S11: 0 | T11: 0 | U11: 0 | V11: 0 | W11: 0 | X11: 0 | AD11: =SUMIFS('يومية المقاولين'!$M$7:$M$110000,'يومية المقاولين'!$A$7:$A$110000,$AD$3,'يومية المقاولين'!$F$7:$F$110000,$D11) -> 0
A12: م رمضان عبد الغفار | C12: لودر | E12: مانجو ح 6 | G12: لودر | H12: اضافى | I12: =SUMIFS('يومية المقاولين'!$M$7:$M$11995,'يومية المقاولين'!$D$7:$D$11995,$A12) -> 40530 | J12: =SUMIFS('يومية المقاولين'!$X$7:$X$11995,'يومية المقاولين'!$D$7:$D$11995,$A12) -> 40000 | K12: 530 | L12: اضافى | M12: 0 | N12: 350 | O12: 0 | P12: 0 | Q12: 0 | R12: 0 | S12: 0 | T12: 0 | U12: 0 | V12: 0 | W12: 0 | X12: 0 | AD12: =SUMIFS('يومية المقاولين'!$M$7:$M$110000,'يومية المقاولين'!$A$7:$A$110000,$AD$3,'يومية المقاولين'!$F$7:$F$110000,$D12) -> 0
A13: ايمن جابر | B13: 650 | C13: اتوميزر | D13: دفعه فلوس | E13: رصد افتتاحى | G13: خشب 2.3 | H13: خصم على المقاول | I13: =SUMIFS('يومية المقاولين'!$M$7:$M$11995,'يومية المقاولين'!$D$7:$D$11995,$A13) -> 357712 | J13: =SUMIFS('يومية المقاولين'!$X$7:$X$11995,'يومية المقاولين'!$D$7:$D$11995,$A13) -> 377800 | K13: -20088 | L13: خصم على المقاول | M13: 0 | N13: 0 | O13: 0 | P13: 0 | Q13: 0 | R13: 0 | S13: 0 | T13: 0 | U13: 0 | V13: 0 | W13: 0 | X13: 0 | AD13: =SUMIFS('يومية المقاولين'!$M$7:$M$110000,'يومية المقاولين'!$A$7:$A$110000,$AD$3,'يومية المقاولين'!$F$7:$F$110000,$D13) -> 0
A14: سيف طه | B14: 350 | C14: محراث | D14: الإدارة والمخازن والاستراحة | E14: محلى | G14: خشب 3.3 | H14: رصد افتتاحى | I14: =SUMIFS('يومية المقاولين'!$M$7:$M$11995,'يومية المقاولين'!$D$7:$D$11995,$A14) -> 6950 | J14: =SUMIFS('يومية المقاولين'!$X$7:$X$11995,'يومية المقاولين'!$D$7:$D$11995,$A14) -> 4850 | K14: 2100 | L14: رصد افتتاحى | M14: 0 | N14: 0 | O14: 0 | P14: 0 | Q14: 0 | R14: 0 | S14: 0 | T14: 0 | U14: 0 | V14: 0 | W14: 0 | X14: 0 | AD14: =SUMIFS('يومية المقاولين'!$M$7:$M$110000,'يومية المقاولين'!$A$7:$A$110000,$AD$3,'يومية المقاولين'!$F$7:$F$110000,$D14) -> 2450
A15: ام وليد | B15: 370 | C15: مقطورة | D15: النخيل | E15: كريمسون تصدير | G15: الوتدد | H15: مكافئة مالبة | I15: =SUMIFS('يومية المقاولين'!$M$7:$M$11995,'يومية المقاولين'!$D$7:$D$11995,$A15) -> 15560 | J15: =SUMIFS('يومية المقاولين'!$X$7:$X$11995,'يومية المقاولين'!$D$7:$D$11995,$A15) -> 15560 | K15: 0 | L15: مكافئة مالبة | M15: 0 | N15: 350 | O15: 0 | P15: 0 | Q15: 0 | R15: 0 | S15: 0 | T15: 0 | U15: 0 | V15: 0 | W15: 0 | X15: 0 | Z15: 500 | AD15: =SUMIFS('يومية المقاولين'!$M$7:$M$110000,'يومية المقاولين'!$A$7:$A$110000,$AD$3,'يومية المقاولين'!$F$7:$F$110000,$D15) -> 23975
A16: الحاج يسرى | B16: 350 | C16: بئر الرمان | D16: رومان | E16: تعبئة | G16: اعمال متنوعة | H16: مشتريات | I16: =SUMIFS('يومية المقاولين'!$M$7:$M$11995,'يومية المقاولين'!$D$7:$D$11995,$A16) -> 3000 | J16: =SUMIFS('يومية المقاولين'!$X$7:$X$11995,'يومية المقاولين'!$D$7:$D$11995,$A16) -> 6000 | K16: -3000 | L16: مشتريات | M16: 0 | N16: 0 | O16: 0 | P16: 0 | Q16: 0 | R16: 0 | S16: 0 | T16: 0 | U16: 0 | V16: 0 | W16: 0 | X16: 0 | AD16: =SUMIFS('يومية المقاولين'!$M$7:$M$110000,'يومية المقاولين'!$A$7:$A$110000,$AD$3,'يومية المقاولين'!$F$7:$F$110000,$D16) -> 1400
A17: سمير فول | C17: بئر الاستراحة (المانجو) | D17: بصل | E17: الاستراحة مانجو | G17: صيانة الابار | H17: مصنعية | I17: =SUMIFS('يومية المقاولين'!$M$7:$M$11995,'يومية المقاولين'!$D$7:$D$11995,$A17) -> 34140 | J17: =SUMIFS('يومية المقاولين'!$X$7:$X$11995,'يومية المقاولين'!$D$7:$D$11995,$A17) -> 34140 | K17: 0 | L17: مصنعية | M17: 0 | N17: 0 | O17: 0 | P17: 0 | Q17: 0 | R17: 0 | S17: 0 | T17: 0 | U17: 0 | V17: 0 | W17: 0 | X17: 0 | AD17: =SUMIFS('يومية المقاولين'!$M$7:$M$110000,'يومية المقاولين'!$A$7:$A$110000,$AD$3,'يومية المقاولين'!$F$7:$F$110000,$D17) -> 0
C18: بئر المشمش | D18: عام | E18: دفعه فلوس | G18: رصد افتتاحى | H18: تعليم | I18: =SUMIFS('يومية المقاولين'!$M$7:$M$11995,'يومية المقاولين'!$D$7:$D$11995,$A18) -> 0 | J18: =SUMIFS('يومية المقاولين'!$X$7:$X$11995,'يومية المقاولين'!$D$7:$D$11995,$A18) -> 0 | K18: 0 | L18: تعليم | M18: 0 | N18: 0 | O18: 0 | P18: 0 | Q18: 0 | R18: 0 | S18: 0 | T18: 0 | U18: 0 | V18: 0 | W18: 0 | X18: 0 | AD18: =SUMIFS('يومية المقاولين'!$M$7:$M$110000,'يومية المقاولين'!$A$7:$A$110000,$AD$3,'يومية المقاولين'!$F$7:$F$110000,$D18) -> 0
C19: بئر العنب الكريمسون | D19: موركت | E19: الإدارة والمخازن | G19: نظافة ذبابة | H19: تحويل فون كاش | I19: =SUMIFS('يومية المقاولين'!$M$7:$M$11995,'يومية المقاولين'!$D$7:$D$11995,$A19) -> 0 | J19: =SUMIFS('يومية المقاولين'!$X$7:$X$11995,'يومية المقاولين'!$D$7:$D$11995,$A19) -> 0 | K19: 0 | L19: تحويل فون كاش | M19: 0 | N19: 0 | O19: 0 | P19: 0 | Q19: 0 | R19: 0 | S19: 0 | T19: 0 | U19: 0 | V19: 0 | W19: 0 | X19: 0 | AD19: =SUMIFS('يومية المقاولين'!$M$7:$M$110000,'يومية المقاولين'!$A$7:$A$110000,$AD$3,'يومية المقاولين'!$F$7:$F$110000,$D19) -> 0
C20: رصد افتتاحى | D20: برقوق | E20: برحى | G20: تعبئة | H20: عمولة | I20: =SUMIFS('يومية المقاولين'!$M$7:$M$11995,'يومية المقاولين'!$D$7:$D$11995,$A20) -> 0 | J20: =SUMIFS('يومية المقاولين'!$X$7:$X$11995,'يومية المقاولين'!$D$7:$D$11995,$A20) -> 0 | K20: 0 | L20: عمولة | M20: 20 | AD20: =SUMIFS('يومية المقاولين'!$M$7:$M$110000,'يومية المقاولين'!$A$7:$A$110000,$AD$3,'يومية المقاولين'!$F$7:$F$110000,$D20) -> 5250
C21: كريمسون تصدير | D21: ارض العالمين | E21: رومان | G21: دفعه فلوس | H21: سيارة | I21: =SUMIFS('يومية المقاولين'!$M$7:$M$11995,'يومية المقاولين'!$D$7:$D$11995,$A21) -> 0 | J21: =SUMIFS('يومية المقاولين'!$X$7:$X$11995,'يومية المقاولين'!$D$7:$D$11995,$A21) -> 0 | K21: 0 | L21: سيارة | Z21: 1800 | AD21: =SUMIFS('يومية المقاولين'!$M$7:$M$110000,'يومية المقاولين'!$A$7:$A$110000,$AD$3,'يومية المقاولين'!$F$7:$F$110000,$D21) -> 0
C22: سباكة | D22: دراجون | E22: نقل | G22: الإدارة والمخازن والاستراحة | H22: اكل | I22: =SUMIFS('يومية المقاولين'!$M$7:$M$11995,'يومية المقاولين'!$D$7:$D$11995,$A22) -> 0 | J22: =SUMIFS('يومية المقاولين'!$X$7:$X$11995,'يومية المقاولين'!$D$7:$D$11995,$A22) -> 0 | K22: 0 | L22: اكل | Z22: 300 | AD22: =SUMIFS('يومية المقاولين'!$M$7:$M$110000,'يومية المقاولين'!$A$7:$A$110000,$AD$3,'يومية المقاولين'!$F$7:$F$110000,$D22) -> 16800
C23: دفعه فلوس | D23: بونيكام | E23: بصل | G23: فرد خراطيم | I23: =SUMIFS('يومية المقاولين'!$M$7:$M$11995,'يومية المقاولين'!$D$7:$D$11995,$A23) -> 0 | J23: =SUMIFS('يومية المقاولين'!$X$7:$X$11995,'يومية المقاولين'!$D$7:$D$11995,$A23) -> 0 | K23: 0 | L23: 0 | AD23: =SUMIFS('يومية المقاولين'!$M$7:$M$110000,'يومية المقاولين'!$A$7:$A$110000,$AD$3,'يومية المقاولين'!$F$7:$F$110000,$D23) -> 1575
C24: الإدارة والمخازن والاستراحة | D24: المانجو الجديدة | E24: عام | G24: ترديم حول النخيل | I24: =SUMIFS('يومية المقاولين'!$M$7:$M$11995,'يومية المقاولين'!$D$7:$D$11995,$A24) -> 0 | J24: =SUMIFS('يومية المقاولين'!$X$7:$X$11995,'يومية المقاولين'!$D$7:$D$11995,$A24) -> 0 | K24: 0 | L24: 0 | AD24: =SUMIFS('يومية المقاولين'!$M$7:$M$110000,'يومية المقاولين'!$A$7:$A$110000,$AD$3,'يومية المقاولين'!$F$7:$F$110000,$D24) -> 0
C25: بصل | D25: بصل | E25: حوشة 1 | G25: نقل | I25: =SUMIFS('يومية المقاولين'!$M$7:$M$11995,'يومية المقاولين'!$D$7:$D$11995,$A25) -> 0 | J25: =SUMIFS('يومية المقاولين'!$X$7:$X$11995,'يومية المقاولين'!$D$7:$D$11995,$A25) -> 0 | K25: 0 | L25: 0 | AD25: =SUMIFS('يومية المقاولين'!$M$7:$M$110000,'يومية المقاولين'!$A$7:$A$110000,$AD$3,'يومية المقاولين'!$F$7:$F$110000,$D25) -> 0
C26: مشتريات | D26: مشتريات | E26: حوشة2 | G26: بصل | I26: =SUMIFS('يومية المقاولين'!$M$7:$M$11995,'يومية المقاولين'!$D$7:$D$11995,$A26) -> 0 | J26: =SUMIFS('يومية المقاولين'!$X$7:$X$11995,'يومية المقاولين'!$D$7:$D$11995,$A26) -> 0 | K26: 0 | L26: 0 | AD26: =SUMIFS('يومية المقاولين'!$M$7:$M$110000,'يومية المقاولين'!$A$7:$A$110000,$AD$3,'يومية المقاولين'!$F$7:$F$110000,$D26) -> 0
C27: مصنعية | D27: مصنعية | E27: ارض العالمين | G27: عام | I27: =SUMIFS('يومية المقاولين'!$M$7:$M$11995,'يومية المقاولين'!$D$7:$D$11995,$A27) -> 0 | J27: =SUMIFS('يومية المقاولين'!$X$7:$X$11995,'يومية المقاولين'!$D$7:$D$11995,$A27) -> 0 | K27: 0 | L27: 0 | AD27: =SUMIFS('يومية المقاولين'!$M$7:$M$110000,'يومية المقاولين'!$A$7:$A$110000,$AD$3,'يومية المقاولين'!$F$7:$F$110000,$D27) -> 0
C28: موركت | D28: موركت | E28: دراجون | G28: مشتريات | I28: =SUMIFS('يومية المقاولين'!$M$7:$M$11995,'يومية المقاولين'!$D$7:$D$11995,$A28) -> 0 | J28: =SUMIFS('يومية المقاولين'!$X$7:$X$11995,'يومية المقاولين'!$D$7:$D$11995,$A28) -> 0 | K28: 0 | L28: 0 | AD28: =SUMIFS('يومية المقاولين'!$M$7:$M$110000,'يومية المقاولين'!$A$7:$A$110000,$AD$3,'يومية المقاولين'!$F$7:$F$110000,$D28) -> 0
C29: ارض القشطة خالية | D29: ارض القشطة خالية | E29: بونيكام | G29: سرطانات | I29: =SUMIFS('يومية المقاولين'!$M$7:$M$11995,'يومية المقاولين'!$D$7:$D$11995,$A29) -> 0 | J29: =SUMIFS('يومية المقاولين'!$X$7:$X$11995,'يومية المقاولين'!$D$7:$D$11995,$A29) -> 0 | K29: 0 | L29: 0 | AD29: =SUMIFS('يومية المقاولين'!$M$7:$M$110000,'يومية المقاولين'!$A$7:$A$110000,$AD$3,'يومية المقاولين'!$F$7:$F$110000,$D29) -> 0
C30: ارض العالمين | D30: ارض العالمين | E30: تجهيزات | G30: حرق حشائش | L30: 0 | AD30: =SUMIFS('يومية المقاولين'!$M$7:$M$110000,'يومية المقاولين'!$A$7:$A$110000,$AD$3,'يومية المقاولين'!$F$7:$F$110000,$D30) -> 0
C31: دراجون | D31: دراجون | G31: نظافة محطة | AD31: =SUMIFS('يومية المقاولين'!$M$7:$M$110000,'يومية المقاولين'!$A$7:$A$110000,$AD$3,'يومية المقاولين'!$F$7:$F$110000,$D31) -> 16800
C32: بونيكام | D32: تجهيزات | G32: برسيم | AD32: =SUMIFS('يومية المقاولين'!$M$7:$M$110000,'يومية المقاولين'!$A$7:$A$110000,$AD$3,'يومية المقاولين'!$F$7:$F$110000,#REF!) -> 0
C33: تجهيزات | D33: المانجو الجديدة | G33: زراعة | AD33: =SUMIFS('يومية المقاولين'!$M$7:$M$110000,'يومية المقاولين'!$A$7:$A$110000,$AD$3,'يومية المقاولين'!$F$7:$F$110000,$D32) -> 0
C34: المانجو الجديدة | D34: الغنم | G34: تنزيل سباخ | AD34: =SUMIFS('يومية المقاولين'!$M$7:$M$110000,'يومية المقاولين'!$A$7:$A$110000,$AD$3,'يومية المقاولين'!$F$7:$F$110000,$D33) -> 0
C35: الغنم | D35: الفول | G35: تطعيم | AD35: =SUMIFS('يومية المقاولين'!$M$7:$M$110000,'يومية المقاولين'!$A$7:$A$110000,$AD$3,'يومية المقاولين'!$F$7:$F$110000,$D34) -> 8312.5
C36: الفول | D36: سباكة | G36: شتلة | AD36: =SUMIFS('يومية المقاولين'!$M$7:$M$110000,'يومية المقاولين'!$A$7:$A$110000,$AD$3,'يومية المقاولين'!$F$7:$F$110000,$D35) -> 41185
G37: مخلفات | AD37: =SUMIFS('يومية المقاولين'!$M$7:$M$110000,'يومية المقاولين'!$A$7:$A$110000,$AD$3,'يومية المقاولين'!$F$7:$F$110000,$D36) -> 0
G38: الرى | AD38: =SUMIFS('يومية المقاولين'!$M$7:$M$110000,'يومية المقاولين'!$A$7:$A$110000,$AD$3,'يومية المقاولين'!$F$7:$F$110000,$D38) -> 0
G39: حقن الغنم | AD39: =SUMIFS('يومية المقاولين'!$M$7:$M$110000,'يومية المقاولين'!$A$7:$A$110000,$AD$3,'يومية المقاولين'!$F$7:$F$110000,$D39) -> 0
G40: تعتيق
G41: حش
G42: سباكة
G43: لم خشب مشايات
G44: انشاءات
G45: عرش
G46: سيارة
G47: فطار

Sheet متطلبات الفلوس
C2: بيان بأسماء المقاولين | G2: 2025-12-03 | J2: 2025-08-12
B4: م | C4: البيان | F4: المستخلصات | G4: النقدية | H4: المتبقى | J4: المطلوب صرفه | K4: نسبة الصرف
B5: 1 | C5: ابو عمار أسيوط | D5: عمالة | E5: مزرعة | J5: 100000 | K5: =+J5/H5 -> 
B6: 2 | C6: عبد الجواد | D6: عمالة
B7: 3 | C7: عمالة خالد | D7: عمالة
B8: 4 | C8: ام ياسمين | D8: عمالة
B9: 5 | C9: محمود محطة | D9: عمالة
B10: 6 | C10: اشرف محطة | D10: عمالة
B11: 7 | C11: ام وليد | D11: عمالة
B12: 8 | C12: الحاج يسرى | D12: عمالة
B13: 9 | C13: مقاول الخشب | D13: تقطيع خشب
B14: 10 | C14: عصام بدارت | D14: تبتين وحرث
B15: 11 | C15: باهى حشائش | D15: رش حشائش
B16: 12 | C16: الشيخ راضى | D16: مصنعية ودهانات
B17: 13 | C17: عبد الحليم البنا | D17: بناء
B18: 14 | C18: رمضان عبد الغفار | D18: شبكة الرى
B19: 15 | C19: سمير فول | D19: عمالة
B20: 16 | C20: لودر مهنا | D20: معدات
B21: 17 | C21: الحرباوى لودر | D21: معدات
J22: 100000
B24: 3 | F24: 8400 | G24: 0 | H24: =+F24-G24 -> 8400 | J24: 0 | K24: 0
B25: 4 | C25: الحاج يسرى | D25: عمل تكعيبة | F25: 29750 | G25: 5000 | H25: 24750
B26: 5 | C26: سمير فول | D26: الابار | F26: =563530+61950+2500 -> 627980 | G26: 20000 | H26: 607980
B27: 6 | C27: خميس سولار | D27: سولار | F27: =500*18.5 -> 9250 | G27: 0 | H27: 9250
B28: 7 | C28: مقاول الخشب | D28: تقطيع خشب | F28: 39720 | G28: 27000 | H28: 12720
B29: 8 | C29: عصام بدارت | D29: تبتين وحرث | F29: 28050 | G29: 19000 | H29: 9050
B30: 9 | C30: باهى حشائش | D30: رش حشائش | F30: 15800 | G30: 0 | H30: 15800
B31: 10 | C31: الشيخ راضى | D31: مصنعية ودهانات | F31: 36600 | G31: 24000 | H31: 12600
B32: 11 | C32: عبد الحليم البنا | D32: بناء | F32: 30830 | G32: 29000 | H32: 1830
B33: 12 | C33: رمضان عبد الغفار | D33: شبكة الرى | F33: 93400 | G33: 66250 | H33: 27150
B34: 13 | C34: الأشقر | D34: اسمدة ومبيدات | F34: 302415 | G34: 100000 | H34: 202415
B35: 14 | C35: وائل عبد الظاهر | D35: اسمدة ومبيدات | F35: =898634-80000 -> 818634 | G35: 278190 | H35: 540444 | J35: 0 | K35: 0
C36: الاجمالى الكلى | F36: =SUM(F5:F35) -> 2040829 | G36: =SUM(G5:G35) -> 568440 | H36: =SUM(H5:H35) -> 1472389 | J36: =SUM(J5:J35) -> 200000 | K36: =+J36/H36 -> 0.135833669

Sheet التكاليف
A1: سبتمبر | B1: =SUM(B4:B7000) -> 2 | C1: 700 | D1: 1 | E1: 350 | F1: 6 | G1: 2100 | H1: 581.5 | I1: 83190 | J1: 24 | K1: 8400 | L1: 13.5 | M1: 4725 | N1: 47.5 | O1: 16625 | P1: 0 | Q1: 0 | R1: 0 | S1: 0 | T1: 1.5 | U1: 525 | V1: 1 | W1: 350 | X1: 0 | Y1: 0 | Z1: 0 | AA1: 0 | AB1: 11.5 | AC1: 4025 | AD1: 1 | AE1: 350 | AF1: 11.5 | AG1: 4025 | AH1: 702 | AI1: =SUM(AI4:AI7000) -> 125365 | AJ1: =SUM(AH4:AH35) -> 702 | AK1: =SUM(AI4:AI35) -> 125365 | AL1: =+AI1-'يومية المقاولين'!M2 -> -1334880.5
A2: العمليات / المحصول | B2: كريمسون | D2: اسبيريور | F2: بلاك | H2: مانجو | J2: رومان | L2: الإدارة والمخازن والاستراحة | N2: النخيل | P2: 1 | R2: برقوق | T2: ارض العالمين | V2: دراجون | X2: بونيكام | Z2: بصل | AB2: الفول | AD2: الغنم | AF2: الفول | AH2: الاجمالى
B3: عدد | C3: قيمة | D3: عدد | E3: قيمة | F3: عدد | G3: قيمة | H3: عدد | I3: قيمة | J3: عدد | K3: قيمة | L3: عدد | M3: قيمة | N3: عدد | O3: قيمة | P3: عدد | Q3: قيمة | R3: عدد | S3: قيمة | T3: عدد | U3: قيمة | V3: عدد | W3: قيمة | X3: عدد | Y3: قيمة | Z3: عدد | AA3: قيمة | AB3: عدد | AC3: قيمة | AD3: عدد | AE3: قيمة | AF3: عدد | AG3: قيمة | AH3: عدد | AI3: قيمة
A4: جمع | B4: =SUMIFS('يومية المقاولين'!$K$7:$K$20000,'يومية المقاولين'!$I$7:$I$20000,$A4,'يومية المقاولين'!$F$7:$F$20000,B$2,'يومية المقاولين'!$A$7:$A$20000,$A$1) -> 0 | C4: =SUMIFS('يومية المقاولين'!$M$7:$M$20000,'يومية المقاولين'!$I$7:$I$20000,$A4,'يومية المقاولين'!$F$7:$F$20000,B$2,'يومية المقاولين'!$A$7:$A$20000,$A$1) -> 0 | D4: =SUMIFS('يومية المقاولين'!$K$7:$K$20000,'يومية المقاولين'!$I$7:$I$20000,$A4,'يومية المقاولين'!$F$7:$F$20000,D$2,'يومية المقاولين'!$A$7:$A$20000,$A$1) -> 0 | E4: =SUMIFS('يومية المقاولين'!$M$7:$M$20000,'يومية المقاولين'!$I$7:$I$20000,$A4,'يومية المقاولين'!$F$7:$F$20000,D$2,'يومية المقاولين'!$A$7:$A$20000,$A$1) -> 0 | F4: =SUMIFS('يومية المقاولين'!$K$7:$K$20000,'يومية المقاولين'!$I$7:$I$20000,$A4,'يومية المقاولين'!$F$7:$F$20000,F$2,'يومية المقاولين'!$A$7:$A$20000,$A$1) -> 0 | G4: =SUMIFS('يومية المقاولين'!$M$7:$M$20000,'يومية المقاولين'!$I$7:$I$20000,$A4,'يومية المقاولين'!$F$7:$F$20000,F$2,'يومية المقاولين'!$A$7:$A$20000,$A$1) -> 0 | H4: =SUMIFS('يومية المقاولين'!$K$7:$K$20000,'يومية المقاولين'!$I$7:$I$20000,$A4,'يومية المقاولين'!$F$7:$F$20000,H$2,'يومية المقاولين'!$A$7:$A$20000,$A$1) -> 0 | I4: =SUMIFS('يومية المقاولين'!$M$7:$M$20000,'يومية المقاولين'!$I$7:$I$20000,$A4,'يومية المقاولين'!$F$7:$F$20000,H$2,'يومية المقاولين'!$A$7:$A$20000,$A$1) -> 0 | J4: =SUMIFS('يومية المقاولين'!$K$7:$K$20000,'يومية المقاولين'!$I$7:$I$20000,$A4,'يومية المقاولين'!$F$7:$F$20000,J$2,'يومية المقاولين'!$A$7:$A$20000,$A$1) -> 24 | K4: =SUMIFS('يومية المقاولين'!$M$7:$M$20000,'يومية المقاولين'!$I$7:$I$20000,$A4,'يومية المقاولين'!$F$7:$F$20000,J$2,'يومية المقاولين'!$A$7:$A$20000,$A$1) -> 8400 | L4: =SUMIFS('يومية المقاولين'!$K$7:$K$20000,'يومية المقاولين'!$I$7:$I$20000,$A4,'يومية المقاولين'!$F$7:$F$20000,L$2,'يومية المقاولين'!$A$7:$A$20000,$A$1) -> 0 | M4: =SUMIFS('يومية المقاولين'!$M$7:$M$20000,'يومية المقاولين'!$I$7:$I$20000,$A4,'يومية المقاولين'!$F$7:$F$20000,L$2,'يومية المقاولين'!$A$7:$A$20000,$A$1) -> 0 | N4: =SUMIFS('يومية المقاولين'!$K$7:$K$20000,'يومية المقاولين'!$I$7:$I$20000,$A4,'يومية المقاولين'!$F$7:$F$20000,N$2,'يومية المقاولين'!$A$7:$A$20000,$A$1) -> 0 | O4: =SUMIFS('يومية المقاولين'!$M$7:$M$20000,'يومية المقاولين'!$I$7:$I$20000,$A4,'يومية المقاولين'!$F$7:$F$20000,N$2,'يومية المقاولين'!$A$7:$A$20000,$A$1) -> 0 | P4: =SUMIFS('يومية المقاولين'!$K$7:$K$20000,'يومية المقاولين'!$I$7:$I$20000,$A4,'يومية المقاولين'!$F$7:$F$20000,P$2,'يومية المقاولين'!$A$7:$A$20000,$A$1) -> 0 | Q4: =SUMIFS('يومية المقاولين'!$M$7:$M$20000,'يومية المقاولين'!$I$7:$I$20000,$A4,'يومية المقاولين'!$F$7:$F$20000,P$2,'يومية المقاولين'!$A$7:$A$20000,$A$1) -> 0 | R4: =SUMIFS('يومية المقاولين'!$K$7:$K$20000,'يومية المقاولين'!$I$7:$I$20000,$A4,'يومية المقاولين'!$F$7:$F$20000,R$2,'يومية المقاولين'!$A$7:$A$20000,$A$1) -> 0 | S4: =SUMIFS('يومية المقاولين'!$M$7:$M$20000,'يومية المقاولين'!$I$7:$I$20000,$A4,'يومية المقاولين'!$F$7:$F$20000,R$2,'يومية المقاولين'!$A$7:$A$20000,$A$1) -> 0 | T4: =SUMIFS('يومية المقاولين'!$K$7:$K$20000,'يومية المقاولين'!$I$7:$I$20000,$A4,'يومية المقاولين'!$F$7:$F$20000,T$2,'يومية المقاولين'!$A$7:$A$20000,$A$1) -> 0 | U4: =SUMIFS('يومية المقاولين'!$M$7:$M$20000,'يومية المقاولين'!$I$7:$I$20000,$A4,'يومية المقاولين'!$F$7:$F$20000,T$2,'يومية المقاولين'!$A$7:$A$20000,$A$1) -> 0 | V4: =SUMIFS('يومية المقاولين'!$K$7:$K$20000,'يومية المقاولين'!$I$7:$I$20000,$A4,'يومية المقاولين'!$F$7:$F$20000,V$2,'يومية المقاولين'!$A$7:$A$20000,$A$1) -> 1 | W4: =SUMIFS('يومية المقاولين'!$M$7:$M$20000,'يومية المقاولين'!$I$7:$I$20000,$A4,'يومية المقاولين'!$F$7:$F$20000,V$2,'يومية المقاولين'!$A$7:$A$20000,$A$1) -> 350 | X4: =SUMIFS('يومية المقاولين'!$K$7:$K$20000,'يومية المقاولين'!$I$7:$I$20000,$A4,'يومية المقاولين'!$F$7:$F$20000,X$2,'يومية المقاولين'!$A$7:$A$20000,$A$1) -> 0 | Y4: =SUMIFS('يومية المقاولين'!$M$7:$M$20000,'يومية المقاولين'!$I$7:$I$20000,$A4,'يومية المقاولين'!$F$7:$F$20000,X$2,'يومية المقاولين'!$A$7:$A$20000,$A$1) -> 0 | Z4: =SUMIFS('يومية المقاولين'!$K$7:$K$20000,'يومية المقاولين'!$I$7:$I$20000,$A4,'يومية المقاولين'!$F$7:$F$20000,Z$2,'يومية المقاولين'!$A$7:$A$20000,$A$1) -> 0 | AA4: =SUMIFS('يومية المقاولين'!$M$7:$M$20000,'يومية المقاولين'!$I$7:$I$20000,$A4,'يومية المقاولين'!$F$7:$F$20000,Z$2,'يومية المقاولين'!$A$7:$A$20000,$A$1) -> 0 | AB4: =SUMIFS('يومية المقاولين'!$K$7:$K$20000,'يومية المقاولين'!$I$7:$I$20000,$A4,'يومية المقاولين'!$F$7:$F$20000,AB$2,'يومية المقاولين'!$A$7:$A$20000,$A$1) -> 0 | AC4: =SUMIFS('يومية المقاولين'!$M$7:$M$20000,'يومية المقاولين'!$I$7:$I$20000,$A4,'يومية المقاولين'!$F$7:$F$20000,AB$2,'يومية المقاولين'!$A$7:$A$20000,$A$1) -> 0 | AD4: =SUMIFS('يومية المقاولين'!$K$7:$K$20000,'يومية المقاولين'!$I$7:$I$20000,$A4,'يومية المقاولين'!$F$7:$F$20000,AD$2,'يومية المقاولين'!$A$7:$A$20000,$A$1) -> 0 | AE4: =SUMIFS('يومية المقاولين'!$M$7:$M$20000,'يومية المقاولين'!$I$7:$I$20000,$A4,'يومية المقاولين'!$F$7:$F$20000,AD$2,'يومية المقاولين'!$A$7:$A$20000,$A$1) -> 0 | AF4: =SUMIFS('يومية المقاولين'!$K$7:$K$20000,'يومية المقاولين'!$I$7:$I$20000,$A4,'يومية المقاولين'!$F$7:$F$20000,AF$2,'يومية المقاولين'!$A$7:$A$20000,$A$1) -> 0 | AG4: =SUMIFS('يومية المقاولين'!$M$7:$M$20000,'يومية المقاولين'!$I$7:$I$20000,$A4,'يومية المقاولين'!$F$7:$F$20000,AF$2,'يومية المقاولين'!$A$7:$A$20000,$A$1) -> 0 | AH4: =+F4+H4+J4+L4+N4+R4+X4+AD4+AF4+V4+AB4+Z4+T4+P4+D4+B4 -> 25 | AI4: =+AG4+AE4+Y4+S4+O4+M4+K4+I4+G4+W4+AC4+AA4+U4+Q4+E4+C4 -> 8750
A5: حشائش | B5: =SUMIFS('يومية المقاولين'!$K$7:$K$20000,'يومية المقاولين'!$I$7:$I$20000,$A5,'يومية المقاولين'!$F$7:$F$20000,B$2,'يومية المقاولين'!$A$7:$A$20000,$A$1) -> 2 | C5: =SUMIFS('يومية المقاولين'!$M$7:$M$20000,'يومية المقاولين'!$I$7:$I$20000,$A5,'يومية المقاولين'!$F$7:$F$20000,B$2,'يومية المقاولين'!$A$7:$A$20000,$A$1) -> 700 | D5: =SUMIFS('يومية المقاولين'!$K$7:$K$20000,'يومية المقاولين'!$I$7:$I$20000,$A5,'يومية المقاولين'!$F$7:$F$20000,D$2,'يومية المقاولين'!$A$7:$A$20000,$A$1) -> 1 | E5: =SUMIFS('يومية المقاولين'!$M$7:$M$20000,'يومية المقاولين'!$I$7:$I$20000,$A5,'يومية المقاولين'!$F$7:$F$20000,D$2,'يومية المقاولين'!$A$7:$A$20000,$A$1) -> 350 | F5: =SUMIFS('يومية المقاولين'!$K$7:$K$20000,'يومية المقاولين'!$I$7:$I$20000,$A5,'يومية المقاولين'!$F$7:$F$20000,F$2,'يومية المقاولين'!$A$7:$A$20000,$A$1) -> 1 | G5: =SUMIFS('يومية المقاولين'!$M$7:$M$20000,'يومية المقاولين'!$I$7:$I$20000,$A5,'يومية المقاولين'!$F$7:$F$20000,F$2,'يومية المقاولين'!$A$7:$A$20000,$A$1) -> 350 | H5: =SUMIFS('يومية المقاولين'!$K$7:$K$20000,'يومية المقاولين'!$I$7:$I$20000,$A5,'يومية المقاولين'!$F$7:$F$20000,H$2,'يومية المقاولين'!$A$7:$A$20000,$A$1) -> 125.5 | I5: =SUMIFS('يومية المقاولين'!$M$7:$M$20000,'يومية المقاولين'!$I$7:$I$20000,$A5,'يومية المقاولين'!$F$7:$F$20000,H$2,'يومية المقاولين'!$A$7:$A$20000,$A$1) -> 43925 | J5: =SUMIFS('يومية المقاولين'!$K$7:$K$20000,'يومية المقاولين'!$I$7:$I$20000,$A5,'يومية المقاولين'!$F$7:$F$20000,J$2,'يومية المقاولين'!$A$7:$A$20000,$A$1) -> 0 | K5: =SUMIFS('يومية المقاولين'!$M$7:$M$20000,'يومية المقاولين'!$I$7:$I$20000,$A5,'يومية المقاولين'!$F$7:$F$20000,J$2,'يومية المقاولين'!$A$7:$A$20000,$A$1) -> 0 | L5: =SUMIFS('يومية المقاولين'!$K$7:$K$20000,'يومية المقاولين'!$I$7:$I$20000,$A5,'يومية المقاولين'!$F$7:$F$20000,L$2,'يومية المقاولين'!$A$7:$A$20000,$A$1) -> 0 | M5: =SUMIFS('يومية المقاولين'!$M$7:$M$20000,'يومية المقاولين'!$I$7:$I$20000,$A5,'يومية المقاولين'!$F$7:$F$20000,L$2,'يومية المقاولين'!$A$7:$A$20000,$A$1) -> 0 | N5: =SUMIFS('يومية المقاولين'!$K$7:$K$20000,'يومية المقاولين'!$I$7:$I$20000,$A5,'يومية المقاولين'!$F$7:$F$20000,N$2,'يومية المقاولين'!$A$7:$A$20000,$A$1) -> 0 | O5: =SUMIFS('يومية المقاولين'!$M$7:$M$20000,'يومية المقاولين'!$I$7:$I$20000,$A5,'يومية المقاولين'!$F$7:$F$20000,N$2,'يومية المقاولين'!$A$7:$A$20000,$A$1) -> 0 | P5: =SUMIFS('يومية المقاولين'!$K$7:$K$20000,'يومية المقاولين'!$I$7:$I$20000,$A5,'يومية المقاولين'!$F$7:$F$20000,P$2,'يومية المقاولين'!$A$7:$A$20000,$A$1) -> 0 | Q5: =SUMIFS('يومية المقاولين'!$M$7:$M$20000,'يومية المقاولين'!$I$7:$I$20000,$A5,'يومية المقاولين'!$F$7:$F$20000,P$2,'يومية المقاولين'!$A$7:$A$20000,$A$1) -> 0 | R5: =SUMIFS('يومية المقاولين'!$K$7:$K$20000,'يومية المقاولين'!$I$7:$I$20000,$A5,'يومية المقاولين'!$F$7:$F$20000,R$2,'يومية المقاولين'!$A$7:$A$20000,$A$1) -> 0 | S5: =SUMIFS('يومية المقاولين'!$M$7:$M$20000,'يومية المقاولين'!$I$7:$I$20000,$A5,'يومية المقاولين'!$F$7:$F$20000,R$2,'يومية المقاولين'!$A$7:$A$20000,$A$1) -> 0 | T5: =SUMIFS('يومية المقاولين'!$K$7:$K$20000,'يومية المقاولين'!$I$7:$I$20000,$A5,'يومية المقاولين'!$F$7:$F$20000,T$2,'يومية المقاولين'!$A$7:$A$20000,$A$1) -> 0 | U5: =SUMIFS('يومية المقاولين'!$M$7:$M$20000,'يومية المقاولين'!$I$7:$I$20000,$A5,'يومية المقاولين'!$F$7:$F$20000,T$2,'يومية المقاولين'!$A$7:$A$20000,$A$1) -> 0 | V5: =SUMIFS('يومية المقاولين'!$K$7:$K$20000,'يومية المقاولين'!$I$7:$I$20000,$A5,'يومية المقاولين'!$F$7:$F$20000,V$2,'يومية المقاولين'!$A$7:$A$20000,$A$1) -> 0 | W5: =SUMIFS('يومية المقاولين'!$M$7:$M$20000,'يومية المقاولين'!$I$7:$I$20000,$A5,'يومية المقاولين'!$F$7:$F$20000,V$2,'يومية المقاولين'!$A$7:$A$20000,$A$1) -> 0 | X5: =SUMIFS('يومية المقاولين'!$K$7:$K$20000,'يومية المقاولين'!$I$7:$I$20000,$A5,'يومية المقاولين'!$F$7:$F$20000,X$2,'يومية المقاولين'!$A$7:$A$20000,$A$1) -> 0 | Y5: =SUMIFS('يومية المقاولين'!$M$7:$M$20000,'يومية المقاولين'!$I$7:$I$20000,$A5,'يومية المقاولين'!$F$7:$F$20000,X$2,'يومية المقاولين'!$A$7:$A$20000,$A$1) -> 0 | Z5: =SUMIFS('يومية المقاولين'!$K$7:$K$20000,'يومية المقاولين'!$I$7:$I$20000,$A5,'يومية المقاولين'!$F$7:$F$20000,Z$2,'يومية المقاولين'!$A$7:$A$20000,$A$1) -> 0 | AA5: =SUMIFS('يومية المقاولين'!$M$7:$M$20000,'يومية المقاولين'!$I$7:$I$20000,$A5,'يومية المقاولين'!$F$7:$F$20000,Z$2,'يومية المقاولين'!$A$7:$A$20000,$A$1) -> 0 | AB5: =SUMIFS('يومية المقاولين'!$K$7:$K$20000,'يومية المقاولين'!$I$7:$I$20000,$A5,'يومية المقاولين'!$F$7:$F$20000,AB$2,'يومية المقاولين'!$A$7:$A$20000,$A$1) -> 0 | AC5: =SUMIFS('يومية المقاولين'!$M$7:$M$20000,'يومية المقاولين'!$I$7:$I$20000,$A5,'يومية المقاولين'!$F$7:$F$20000,AB$2,'يومية المقاولين'!$A$7:$A$20000,$A$1) -> 0 | AD5: =SUMIFS('يومية المقاولين'!$K$7:$K$20000,'يومية المقاولين'!$I$7:$I$20000,$A5,'يومية المقاولين'!$F$7:$F$20000,AD$2,'يومية المقاولين'!$A$7:$A$20000,$A$1) -> 0 | AE5: =SUMIFS('يومية المقاولين'!$M$7:$M$20000,'يومية المقاولين'!$I$7:$I$20000,$A5,'يومية المقاولين'!$F$7:$F$20000,AD$2,'يومية المقاولين'!$A$7:$A$20000,$A$1) -> 0 | AF5: =SUMIFS('يومية المقاولين'!$K$7:$K$20000,'يومية المقاولين'!$I$7:$I$20000,$A5,'يومية المقاولين'!$F$7:$F$20000,AF$2,'يومية المقاولين'!$A$7:$A$20000,$A$1) -> 0 | AG5: =SUMIFS('يومية المقاولين'!$M$7:$M$20000,'يومية المقاولين'!$I$7:$I$20000,$A5,'يومية المقاولين'!$F$7:$F$20000,AF$2,'يومية المقاولين'!$A$7:$A$20000,$A$1) -> 0 | AH5: =+F5+H5+J5+L5+N5+R5+X5+AD5+AF5+V5+AB5+Z5+T5+P5+D5+B5 -> 129.5 | AI5: =+AG5+AE5+Y5+S5+O5+M5+K5+I5+G5+W5+AC5+AA5+U5+Q5+E5+C5 -> 45325
A6: تقليم | B6: =SUMIFS('يومية المقاولين'!$K$7:$K$20000,'يومية المقاولين'!$I$7:$I$20000,$A6,'يومية المقاولين'!$F$7:$F$20000,B$2,'يومية المقاولين'!$A$7:$A$20000,$A$1) -> 0 | C6: =SUMIFS('يومية المقاولين'!$M$7:$M$20000,'يومية المقاولين'!$I$7:$I$20000,$A6,'يومية المقاولين'!$F$7:$F$20000,B$2,'يومية المقاولين'!$A$7:$A$20000,$A$1) -> 0 | D6: =SUMIFS('يومية المقاولين'!$K$7:$K$20000,'يومية المقاولين'!$I$7:$I$20000,$A6,'يومية المقاولين'!$F$7:$F$20000,D$2,'يومية المقاولين'!$A$7:$A$20000,$A$1) -> 0 | E6: =SUMIFS('يومية المقاولين'!$M$7:$M$20000,'يومية المقاولين'!$I$7:$I$20000,$A6,'يومية المقاولين'!$F$7:$F$20000,D$2,'يومية المقاولين'!$A$7:$A$20000,$A$1) -> 0 | F6: =SUMIFS('يومية المقاولين'!$K$7:$K$20000,'يومية المقاولين'!$I$7:$I$20000,$A6,'يومية المقاولين'!$F$7:$F$20000,F$2,'يومية المقاولين'!$A$7:$A$20000,$A$1) -> 0 | G6: =SUMIFS('يومية المقاولين'!$M$7:$M$20000,'يومية المقاولين'!$I$7:$I$20000,$A6,'يومية المقاولين'!$F$7:$F$20000,F$2,'يومية المقاولين'!$A$7:$A$20000,$A$1) -> 0 | H6: =SUMIFS('يومية المقاولين'!$K$7:$K$20000,'يومية المقاولين'!$I$7:$I$20000,$A6,'يومية المقاولين'!$F$7:$F$20000,H$2,'يومية المقاولين'!$A$7:$A$20000,$A$1) -> 0 | I6: =SUMIFS('يومية المقاولين'!$M$7:$M$20000,'يومية المقاولين'!$I$7:$I$20000,$A6,'يومية المقاولين'!$F$7:$F$20000,H$2,'يومية المقاولين'!$A$7:$A$20000,$A$1) -> 0 | J6: =SUMIFS('يومية المقاولين'!$K$7:$K$20000,'يومية المقاولين'!$I$7:$I$20000,$A6,'يومية المقاولين'!$F$7:$F$20000,J$2,'يومية المقاولين'!$A$7:$A$20000,$A$1) -> 0 | K6: =SUMIFS('يومية المقاولين'!$M$7:$M$20000,'يومية المقاولين'!$I$7:$I$20000,$A6,'يومية المقاولين'!$F$7:$F$20000,J$2,'يومية المقاولين'!$A$7:$A$20000,$A$1) -> 0 | L6: =SUMIFS('يومية المقاولين'!$K$7:$K$20000,'يومية المقاولين'!$I$7:$I$20000,$A6,'يومية المقاولين'!$F$7:$F$20000,L$2,'يومية المقاولين'!$A$7:$A$20000,$A$1) -> 0 | M6: =SUMIFS('يومية المقاولين'!$M$7:$M$20000,'يومية المقاولين'!$I$7:$I$20000,$A6,'يومية المقاولين'!$F$7:$F$20000,L$2,'يومية المقاولين'!$A$7:$A$20000,$A$1) -> 0 | N6: =SUMIFS('يومية المقاولين'!$K$7:$K$20000,'يومية المقاولين'!$I$7:$I$20000,$A6,'يومية المقاولين'!$F$7:$F$20000,N$2,'يومية المقاولين'!$A$7:$A$20000,$A$1) -> 0 | O6: =SUMIFS('يومية المقاولين'!$M$7:$M$20000,'يومية المقاولين'!$I$7:$I$20000,$A6,'يومية المقاولين'!$F$7:$F$20000,N$2,'يومية المقاولين'!$A$7:$A$20000,$A$1) -> 0 | P6: =SUMIFS('يومية المقاولين'!$K$7:$K$20000,'يومية المقاولين'!$I$7:$I$20000,$A6,'يومية المقاولين'!$F$7:$F$20000,P$2,'يومية المقاولين'!$A$7:$A$20000,$A$1) -> 0 | Q6: =SUMIFS('يومية المقاولين'!$M$7:$M$20000,'يومية المقاولين'!$I$7:$I$20000,$A6,'يومية المقاولين'!$F$7:$F$20000,P$2,'يومية المقاولين'!$A$7:$A$20000,$A$1) -> 0 | R6: =SUMIFS('يومية المقاولين'!$K$7:$K$20000,'يومية المقاولين'!$I$7:$I$20000,$A6,'يومية المقاولين'!$F$7:$F$20000,R$2,'يومية المقاولين'!$A$7:$A$20000,$A$1) -> 0 | S6: =SUMIFS('يومية المقاولين'!$M$7:$M$20000,'يومية المقاولين'!$I$7:$I$20000,$A6,'يومية المقاولين'!$F$7:$F$20000,R$2,'يومية المقاولين'!$A$7:$A$20000,$A$1) -> 0 | T6: =SUMIFS('يومية المقاولين'!$K$7:$K$20000,'يومية المقاولين'!$I$7:$I$20000,$A6,'يومية المقاولين'!$F$7:$F$20000,T$2,'يومية المقاولين'!$A$7:$A$20000,$A$1) -> 0 | U6: =SUMIFS('يومية المقاولين'!$M$7:$M$20000,'يومية المقاولين'!$I$7:$I$20000,$A6,'يومية المقاولين'!$F$7:$F$20000,T$2,'يومية المقاولين'!$A$7:$A$20000,$A$1) -> 0 | V6: =SUMIFS('يومية المقاولين'!$K$7:$K$20000,'يومية المقاولين'!$I$7:$I$20000,$A6,'يومية المقاولين'!$F$7:$F$20000,V$2,'يومية المقاولين'!$A$7:$A$20000,$A$1) -> 0 | W6: =SUMIFS('يومية المقاولين'!$M$7:$M$20000,'يومية المقاولين'!$I$7:$I$20000,$A6,'يومية المقاولين'!$F$7:$F$20000,V$2,'يومية المقاولين'!$A$7:$A$20000,$A$1) -> 0 | X6: =SUMIFS('يومية المقاولين'!$K$7:$K$20000,'يومية المقاولين'!$I$7:$I$20000,$A6,'يومية المقاولين'!$F$7:$F$20000,X$2,'يومية المقاولين'!$A$7:$A$20000,$A$1) -> 0 | Y6: =SUMIFS('يومية المقاولين'!$M$7:$M$20000,'يومية المقاولين'!$I$7:$I$20000,$A6,'يومية المقاولين'!$F$7:$F$20000,X$2,'يومية المقاولين'!$A$7:$A$20000,$A$1) -> 0 | Z6: =SUMIFS('يومية المقاولين'!$K$7:$K$20000,'يومية المقاولين'!$I$7:$I$20000,$A6,'يومية المقاولين'!$F$7:$F$20000,Z$2,'يومية المقاولين'!$A$7:$A$20000,$A$1) -> 0 | AA6: =SUMIFS('يومية المقاولين'!$M$7:$M$20000,'يومية المقاولين'!$I$7:$I$20000,$A6,'يومية المقاولين'!$F$7:$F$20000,Z$2,'يومية المقاولين'!$A$7:$A$20000,$A$1) -> 0 | AB6: =SUMIFS('يومية المقاولين'!$K$7:$K$20000,'يومية المقاولين'!$I$7:$I$20000,$A6,'يومية المقاولين'!$F$7:$F$20000,AB$2,'يومية المقاولين'!$A$7:$A$20000,$A$1) -> 0 | AC6: =SUMIFS('يومية المقاولين'!$M$7:$M$20000,'يومية المقاولين'!$I$7:$I$20000,$A6,'يومية المقاولين'!$F$7:$F$20000,AB$2,'يومية المقاولين'!$A$7:$A$20000,$A$1) -> 0 | AD6: =SUMIFS('يومية المقاولين'!$K$7:$K$20000,'يومية المقاولين'!$I$7:$I$20000,$A6,'يومية المقاولين'!$F$7:$F$20000,AD$2,'يومية المقاولين'!$A$7:$A$20000,$A$1) -> 0 | AE6: =SUMIFS('يومية المقاولين'!$M$7:$M$20000,'يومية المقاولين'!$I$7:$I$20000,$A6,'يومية المقاولين'!$F$7:$F$20000,AD$2,'يومية المقاولين'!$A$7:$A$20000,$A$1) -> 0 | AF6: =SUMIFS('يومية المقاولين'!$K$7:$K$20000,'يومية المقاولين'!$I$7:$I$20000,$A6,'يومية المقاولين'!$F$7:$F$20000,AF$2,'يومية المقاولين'!$A$7:$A$20000,$A$1) -> 0 | AG6: =SUMIFS('يومية المقاولين'!$M$7:$M$20000,'يومية المقاولين'!$I$7:$I$20000,$A6,'يومية المقاولين'!$F$7:$F$20000,AF$2,'يومية المقاولين'!$A$7:$A$20000,$A$1) -> 0 | AH6: 0 | AI6: 0
A7: توريق | B7: =SUMIFS('يومية المقاولين'!$K$7:$K$20000,'يومية المقاولين'!$I$7:$I$20000,$A7,'يومية المقاولين'!$F$7:$F$20000,B$2,'يومية المقاولين'!$A$7:$A$20000,$A$1) -> 0 | C7: =SUMIFS('يومية المقاولين'!$M$7:$M$20000,'يومية المقاولين'!$I$7:$I$20000,$A7,'يومية المقاولين'!$F$7:$F$20000,B$2,'يومية المقاولين'!$A$7:$A$20000,$A$1) -> 0 | D7: =SUMIFS('يومية المقاولين'!$K$7:$K$20000,'يومية المقاولين'!$I$7:$I$20000,$A7,'يومية المقاولين'!$F$7:$F$20000,D$2,'يومية المقاولين'!$A$7:$A$20000,$A$1) -> 0 | E7: =SUMIFS('يومية المقاولين'!$M$7:$M$20000,'يومية المقاولين'!$I$7:$I$20000,$A7,'يومية المقاولين'!$F$7:$F$20000,D$2,'يومية المقاولين'!$A$7:$A$20000,$A$1) -> 0 | F7: =SUMIFS('يومية المقاولين'!$K$7:$K$20000,'يومية المقاولين'!$I$7:$I$20000,$A7,'يومية المقاولين'!$F$7:$F$20000,F$2,'يومية المقاولين'!$A$7:$A$20000,$A$1) -> 0 | G7: =SUMIFS('يومية المقاولين'!$M$7:$M$20000,'يومية المقاولين'!$I$7:$I$20000,$A7,'يومية المقاولين'!$F$7:$F$20000,F$2,'يومية المقاولين'!$A$7:$A$20000,$A$1) -> 0 | H7: =SUMIFS('يومية المقاولين'!$K$7:$K$20000,'يومية المقاولين'!$I$7:$I$20000,$A7,'يومية المقاولين'!$F$7:$F$20000,H$2,'يومية المقاولين'!$A$7:$A$20000,$A$1) -> 0 | I7: =SUMIFS('يومية المقاولين'!$M$7:$M$20000,'يومية المقاولين'!$I$7:$I$20000,$A7,'يومية المقاولين'!$F$7:$F$20000,H$2,'يومية المقاولين'!$A$7:$A$20000,$A$1) -> 0 | J7: =SUMIFS('يومية المقاولين'!$K$7:$K$20000,'يومية المقاولين'!$I$7:$I$20000,$A7,'يومية المقاولين'!$F$7:$F$20000,J$2,'يومية المقاولين'!$A$7:$A$20000,$A$1) -> 0 | K7: =SUMIFS('يومية المقاولين'!$M$7:$M$20000,'يومية المقاولين'!$I$7:$I$20000,$A7,'يومية المقاولين'!$F$7:$F$20000,J$2,'يومية المقاولين'!$A$7:$A$20000,$A$1) -> 0 | L7: =SUMIFS('يومية المقاولين'!$K$7:$K$20000,'يومية المقاولين'!$I$7:$I$20000,$A7,'يومية المقاولين'!$F$7:$F$20000,L$2,'يومية المقاولين'!$A$7:$A$20000,$A$1) -> 0 | M7: =SUMIFS('يومية المقاولين'!$M$7:$M$20000,'يومية المقاولين'!$I$7:$I$20000,$A7,'يومية المقاولين'!$F$7:$F$20000,L$2,'يومية المقاولين'!$A$7:$A$20000,$A$1) -> 0 | N7: =SUMIFS('يومية المقاولين'!$K$7:$K$20000,'يومية المقاولين'!$I$7:$I$20000,$A7,'يومية المقاولين'!$F$7:$F$20000,N$2,'يومية المقاولين'!$A$7:$A$20000,$A$1) -> 0 | O7: =SUMIFS('يومية المقاولين'!$M$7:$M$20000,'يومية المقاولين'!$I$7:$I$20000,$A7,'يومية المقاولين'!$F$7:$F$20000,N$2,'يومية المقاولين'!$A$7:$A$20000,$A$1) -> 0 | P7: =SUMIFS('يومية المقاولين'!$K$7:$K$20000,'يومية المقاولين'!$I$7:$I$20000,$A7,'يومية المقاولين'!$F$7:$F$20000,P$2,'يومية المقاولين'!$A$7:$A$20000,$A$1) -> 0 | Q7: =SUMIFS('يومية المقاولين'!$M$7:$M$20000,'يومية المقاولين'!$I$7:$I$20000,$A7,'يومية المقاولين'!$F$7:$F$20000,P$2,'يومية المقاولين'!$A$7:$A$20000,$A$1) -> 0 | R7: =SUMIFS('يومية المقاولين'!$K$7:$K$20000,'يومية المقاولين'!$I$7:$I$20000,$A7,'يومية المقاولين'!$F$7:$F$20000,R$2,'يومية المقاولين'!$A$7:$A$20000,$A$1) -> 0 | S7: =SUMIFS('يومية المقاولين'!$M$7:$M$20000,'يومية المقاولين'!$I$7:$I$20000,$A7,'يومية المقاولين'!$F$7:$F$20000,R$2,'يومية المقاولين'!$A$7:$A$20000,$A$1) -> 0 | T7: =SUMIFS('يومية المقاولين'!$K$7:$K$20000,'يومية المقاولين'!$I$7:$I$20000,$A7,'يومية المقاولين'!$F$7:$F$20000,T$2,'يومية المقاولين'!$A$7:$A$20000,$A$1) -> 0 | U7: =SUMIFS('يومية المقاولين'!$M$7:$M$20000,'يومية المقاولين'!$I$7:$I$20000,$A7,'يومية المقاولين'!$F$7:$F$20000,T$2,'يومية المقاولين'!$A$7:$A$20000,$A$1) -> 0 | V7: =SUMIFS('يومية المقاولين'!$K$7:$K$20000,'يومية المقاولين'!$I$7:$I$20000,$A7,'يومية المقاولين'!$F$7:$F$20000,V$2,'يومية المقاولين'!$A$7:$A$20000,$A$1) -> 0 | W7: =SUMIFS('يومية المقاولين'!$M$7:$M$20000,'يومية المقاولين'!$I$7:$I$20000,$A7,'يومية المقاولين'!$F$7:$F$20000,V$2,'يومية المقاولين'!$A$7:$A$20000,$A$1) -> 0 | X7: =SUMIFS('يومية المقاولين'!$K$7:$K$20000,'يومية المقاولين'!$I$7:$I$20000,$A7,'يومية المقاولين'!$F$7:$F$20000,X$2,'يومية المقاولين'!$A$7:$A$20000,$A$1) -> 0 | Y7: =SUMIFS('يومية المقاولين'!$M$7:$M$20000,'يومية المقاولين'!$I$7:$I$20000,$A7,'يومية المقاولين'!$F$7:$F$20000,X$2,'يومية المقاولين'!$A$7:$A$20000,$A$1) -> 0 | Z7: =SUMIFS('يومية المقاولين'!$K$7:$K$20000,'يومية المقاولين'!$I$7:$I$20000,$A7,'يومية المقاولين'!$F$7:$F$20000,Z$2,'يومية المقاولين'!$A$7:$A$20000,$A$1) -> 0 | AA7: =SUMIFS('يومية المقاولين'!$M$7:$M$20000,'يومية المقاولين'!$I$7:$I$20000,$A7,'يومية المقاولين'!$F$7:$F$20000,Z$2,'يومية المقاولين'!$A$7:$A$20000,$A$1) -> 0 | AB7: =SUMIFS('يومية المقاولين'!$K$7:$K$20000,'يومية المقاولين'!$I$7:$I$20000,$A7,'يومية المقاولين'!$F$7:$F$20000,AB$2,'يومية المقاولين'!$A$7:$A$20000,$A$1) -> 0 | AC7: =SUMIFS('يومية المقاولين'!$M$7:$M$20000,'يومية المقاولين'!$I$7:$I$20000,$A7,'يومية المقاولين'!$F$7:$F$20000,AB$2,'يومية المقاولين'!$A$7:$A$20000,$A$1) -> 0 | AD7: =SUMIFS('يومية المقاولين'!$K$7:$K$20000,'يومية المقاولين'!$I$7:$I$20000,$A7,'يومية المقاولين'!$F$7:$F$20000,AD$2,'يومية المقاولين'!$A$7:$A$20000,$A$1) -> 0 | AE7: =SUMIFS('يومية المقاولين'!$M$7:$M$20000,'يومية المقاولين'!$I$7:$I$20000,$A7,'يومية المقاولين'!$F$7:$F$20000,AD$2,'يومية المقاولين'!$A$7:$A$20000,$A$1) -> 0 | AF7: =SUMIFS('يومية المقاولين'!$K$7:$K$20000,'يومية المقاولين'!$I$7:$I$20000,$A7,'يومية المقاولين'!$F$7:$F$20000,AF$2,'يومية المقاولين'!$A$7:$A$20000,$A$1) -> 0 | AG7: =SUMIFS('يومية المقاولين'!$M$7:$M$20000,'يومية المقاولين'!$I$7:$I$20000,$A7,'يومية المقاولين'!$F$7:$F$20000,AF$2,'يومية المقاولين'!$A$7:$A$20000,$A$1) -> 0 | AH7: 0 | AI7: 0
A8: رش | B8: =SUMIFS('يومية المقاولين'!$K$7:$K$20000,'يومية المقاولين'!$I$7:$I$20000,$A8,'يومية المقاولين'!$F$7:$F$20000,B$2,'يومية المقاولين'!$A$7:$A$20000,$A$1) -> 0 | C8: =SUMIFS('يومية المقاولين'!$M$7:$M$20000,'يومية المقاولين'!$I$7:$I$20000,$A8,'يومية المقاولين'!$F$7:$F$20000,B$2,'يومية المقاولين'!$A$7:$A$20000,$A$1) -> 0 | D8: =SUMIFS('يومية المقاولين'!$K$7:$K$20000,'يومية المقاولين'!$I$7:$I$20000,$A8,'يومية المقاولين'!$F$7:$F$20000,D$2,'يومية المقاولين'!$A$7:$A$20000,$A$1) -> 0 | E8: =SUMIFS('يومية المقاولين'!$M$7:$M$20000,'يومية المقاولين'!$I$7:$I$20000,$A8,'يومية المقاولين'!$F$7:$F$20000,D$2,'يومية المقاولين'!$A$7:$A$20000,$A$1) -> 0 | F8: =SUMIFS('يومية المقاولين'!$K$7:$K$20000,'يومية المقاولين'!$I$7:$I$20000,$A8,'يومية المقاولين'!$F$7:$F$20000,F$2,'يومية المقاولين'!$A$7:$A$20000,$A$1) -> 0 | G8: =SUMIFS('يومية المقاولين'!$M$7:$M$20000,'يومية المقاولين'!$I$7:$I$20000,$A8,'يومية المقاولين'!$F$7:$F$20000,F$2,'يومية المقاولين'!$A$7:$A$20000,$A$1) -> 0 | H8: =SUMIFS('يومية المقاولين'!$K$7:$K$20000,'يومية المقاولين'!$I$7:$I$20000,$A8,'يومية المقاولين'!$F$7:$F$20000,H$2,'يومية المقاولين'!$A$7:$A$20000,$A$1) -> 0 | I8: =SUMIFS('يومية المقاولين'!$M$7:$M$20000,'يومية المقاولين'!$I$7:$I$20000,$A8,'يومية المقاولين'!$F$7:$F$20000,H$2,'يومية المقاولين'!$A$7:$A$20000,$A$1) -> 0 | J8: =SUMIFS('يومية المقاولين'!$K$7:$K$20000,'يومية المقاولين'!$I$7:$I$20000,$A8,'يومية المقاولين'!$F$7:$F$20000,J$2,'يومية المقاولين'!$A$7:$A$20000,$A$1) -> 0 | K8: =SUMIFS('يومية المقاولين'!$M$7:$M$20000,'يومية المقاولين'!$I$7:$I$20000,$A8,'يومية المقاولين'!$F$7:$F$20000,J$2,'يومية المقاولين'!$A$7:$A$20000,$A$1) -> 0 | L8: =SUMIFS('يومية المقاولين'!$K$7:$K$20000,'يومية المقاولين'!$I$7:$I$20000,$A8,'يومية المقاولين'!$F$7:$F$20000,L$2,'يومية المقاولين'!$A$7:$A$20000,$A$1) -> 0 | M8: =SUMIFS('يومية المقاولين'!$M$7:$M$20000,'يومية المقاولين'!$I$7:$I$20000,$A8,'يومية المقاولين'!$F$7:$F$20000,L$2,'يومية المقاولين'!$A$7:$A$20000,$A$1) -> 0 | N8: =SUMIFS('يومية المقاولين'!$K$7:$K$20000,'يومية المقاولين'!$I$7:$I$20000,$A8,'يومية المقاولين'!$F$7:$F$20000,N$2,'يومية المقاولين'!$A$7:$A$20000,$A$1) -> 1 | O8: =SUMIFS('يومية المقاولين'!$M$7:$M$20000,'يومية المقاولين'!$I$7:$I$20000,$A8,'يومية المقاولين'!$F$7:$F$20000,N$2,'يومية المقاولين'!$A$7:$A$20000,$A$1) -> 350 | P8: =SUMIFS('يومية المقاولين'!$K$7:$K$20000,'يومية المقاولين'!$I$7:$I$20000,$A8,'يومية المقاولين'!$F$7:$F$20000,P$2,'يومية المقاولين'!$A$7:$A$20000,$A$1) -> 0 | Q8: =SUMIFS('يومية المقاولين'!$M$7:$M$20000,'يومية المقاولين'!$I$7:$I$20000,$A8,'يومية المقاولين'!$F$7:$F$20000,P$2,'يومية المقاولين'!$A$7:$A$20000,$A$1) -> 0 | R8: =SUMIFS('يومية المقاولين'!$K$7:$K$20000,'يومية المقاولين'!$I$7:$I$20000,$A8,'يومية المقاولين'!$F$7:$F$20000,R$2,'يومية المقاولين'!$A$7:$A$20000,$A$1) -> 0 | S8: =SUMIFS('يومية المقاولين'!$M$7:$M$20000,'يومية المقاولين'!$I$7:$I$20000,$A8,'يومية المقاولين'!$F$7:$F$20000,R$2,'يومية المقاولين'!$A$7:$A$20000,$A$1) -> 0 | T8: =SUMIFS('يومية المقاولين'!$K$7:$K$20000,'يومية المقاولين'!$I$7:$I$20000,$A8,'يومية المقاولين'!$F$7:$F$20000,T$2,'يومية المقاولين'!$A$7:$A$20000,$A$1) -> 0 | U8: =SUMIFS('يومية المقاولين'!$M$7:$M$20000,'يومية المقاولين'!$I$7:$I$20000,$A8,'يومية المقاولين'!$F$7:$F$20000,T$2,'يومية المقاولين'!$A$7:$A$20000,$A$1) -> 0 | V8: =SUMIFS('يومية المقاولين'!$K$7:$K$20000,'يومية المقاولين'!$I$7:$I$20000,$A8,'يومية المقاولين'!$F$7:$F$20000,V$2,'يومية المقاولين'!$A$7:$A$20000,$A$1) -> 0 | W8: =SUMIFS('يومية المقاولين'!$M$7:$M$20000,'يومية المقاولين'!$I$7:$I$20000,$A8,'يومية المقاولين'!$F$7:$F$20000,V$2,'يومية المقاولين'!$A$7:$A$20000,$A$1) -> 0 | X8: =SUMIFS('يومية المقاولين'!$K$7:$K$20000,'يومية المقاولين'!$I$7:$I$20000,$A8,'يومية المقاولين'!$F$7:$F$20000,X$2,'يومية المقاولين'!$A$7:$A$20000,$A$1) -> 0 | Y8: =SUMIFS('يومية المقاولين'!$M$7:$M$20000,'يومية المقاولين'!$I$7:$I$20000,$A8,'يومية المقاولين'!$F$7:$F$20000,X$2,'يومية المقاولين'!$A$7:$A$20000,$A$1) -> 0 | Z8: =SUMIFS('يومية المقاولين'!$K$7:$K$20000,'يومية المقاولين'!$I$7:$I$20000,$A8,'يومية المقاولين'!$F$7:$F$20000,Z$2,'يومية المقاولين'!$A$7:$A$20000,$A$1) -> 0 | AA8: =SUMIFS('يومية المقاولين'!$M$7:$M$20000,'يومية المقاولين'!$I$7:$I$20000,$A8,'يومية المقاولين'!$F$7:$F$20000,Z$2,'يومية المقاولين'!$A$7:$A$20000,$A$1) -> 0 | AB8: =SUMIFS('يومية المقاولين'!$K$7:$K$20000,'يومية المقاولين'!$I$7:$I$20000,$A8,'يومية المقاولين'!$F$7:$F$20000,AB$2,'يومية المقاولين'!$A$7:$A$20000,$A$1) -> 0 | AC8: =SUMIFS('يومية المقاولين'!$M$7:$M$20000,'يومية المقاولين'!$I$7:$I$20000,$A8,'يومية المقاولين'!$F$7:$F$20000,AB$2,'يومية المقاولين'!$A$7:$A$20000,$A$1) -> 0 | AD8: =SUMIFS('يومية المقاولين'!$K$7:$K$20000,'يومية المقاولين'!$I$7:$I$20000,$A8,'يومية المقاولين'!$F$7:$F$20000,AD$2,'يومية المقاولين'!$A$7:$A$20000,$A$1) -> 0 | AE8: =SUMIFS('يومية المقاولين'!$M$7:$M$20000,'يومية المقاولين'!$I$7:$I$20000,$A8,'يومية المقاولين'!$F$7:$F$20000,AD$2,'يومية المقاولين'!$A$7:$A$20000,$A$1) -> 0 | AF8: =SUMIFS('يومية المقاولين'!$K$7:$K$20000,'يومية المقاولين'!$I$7:$I$20000,$A8,'يومية المقاولين'!$F$7:$F$20000,AF$2,'يومية المقاولين'!$A$7:$A$20000,$A$1) -> 0 | AG8: =SUMIFS('يومية المقاولين'!$M$7:$M$20000,'يومية المقاولين'!$I$7:$I$20000,$A8,'يومية المقاولين'!$F$7:$F$20000,AF$2,'يومية المقاولين'!$A$7:$A$20000,$A$1) -> 0 | AH8: 1 | AI8: 350
A9: خف وخصى عنقود | B9: =SUMIFS('يومية المقاولين'!$K$7:$K$20000,'يومية المقاولين'!$I$7:$I$20000,$A9,'يومية المقاولين'!$F$7:$F$20000,B$2,'يومية المقاولين'!$A$7:$A$20000,$A$1) -> 0 | C9: =SUMIFS('يومية المقاولين'!$M$7:$M$20000,'يومية المقاولين'!$I$7:$I$20000,$A9,'يومية المقاولين'!$F$7:$F$20000,B$2,'يومية المقاولين'!$A$7:$A$20000,$A$1) -> 0 | D9: =SUMIFS('يومية المقاولين'!$K$7:$K$20000,'يومية المقاولين'!$I$7:$I$20000,$A9,'يومية المقاولين'!$F$7:$F$20000,D$2,'يومية المقاولين'!$A$7:$A$20000,$A$1) -> 0 | E9: =SUMIFS('يومية المقاولين'!$M$7:$M$20000,'يومية المقاولين'!$I$7:$I$20000,$A9,'يومية المقاولين'!$F$7:$F$20000,D$2,'يومية المقاولين'!$A$7:$A$20000,$A$1) -> 0 | F9: =SUMIFS('يومية المقاولين'!$K$7:$K$20000,'يومية المقاولين'!$I$7:$I$20000,$A9,'يومية المقاولين'!$F$7:$F$20000,F$2,'يومية المقاولين'!$A$7:$A$20000,$A$1) -> 0 | G9: =SUMIFS('يومية المقاولين'!$M$7:$M$20000,'يومية المقاولين'!$I$7:$I$20000,$A9,'يومية المقاولين'!$F$7:$F$20000,F$2,'يومية المقاولين'!$A$7:$A$20000,$A$1) -> 0 | H9: =SUMIFS('يومية المقاولين'!$K$7:$K$20000,'يومية المقاولين'!$I$7:$I$20000,$A9,'يومية المقاولين'!$F$7:$F$20000,H$2,'يومية المقاولين'!$A$7:$A$20000,$A$1) -> 0 | I9: =SUMIFS('يومية المقاولين'!$M$7:$M$20000,'يومية المقاولين'!$I$7:$I$20000,$A9,'يومية المقاولين'!$F$7:$F$20000,H$2,'يومية المقاولين'!$A$7:$A$20000,$A$1) -> 0 | J9: =SUMIFS('يومية المقاولين'!$K$7:$K$20000,'يومية المقاولين'!$I$7:$I$20000,$A9,'يومية المقاولين'!$F$7:$F$20000,J$2,'يومية المقاولين'!$A$7:$A$20000,$A$1) -> 0 | K9: =SUMIFS('يومية المقاولين'!$M$7:$M$20000,'يومية المقاولين'!$I$7:$I$20000,$A9,'يومية المقاولين'!$F$7:$F$20000,J$2,'يومية المقاولين'!$A$7:$A$20000,$A$1) -> 0 | L9: =SUMIFS('يومية المقاولين'!$K$7:$K$20000,'يومية المقاولين'!$I$7:$I$20000,$A9,'يومية المقاولين'!$F$7:$F$20000,L$2,'يومية المقاولين'!$A$7:$A$20000,$A$1) -> 0 | M9: =SUMIFS('يومية المقاولين'!$M$7:$M$20000,'يومية المقاولين'!$I$7:$I$20000,$A9,'يومية المقاولين'!$F$7:$F$20000,L$2,'يومية المقاولين'!$A$7:$A$20000,$A$1) -> 0 | N9: =SUMIFS('يومية المقاولين'!$K$7:$K$20000,'يومية المقاولين'!$I$7:$I$20000,$A9,'يومية المقاولين'!$F$7:$F$20000,N$2,'يومية المقاولين'!$A$7:$A$20000,$A$1) -> 0 | O9: =SUMIFS('يومية المقاولين'!$M$7:$M$20000,'يومية المقاولين'!$I$7:$I$20000,$A9,'يومية المقاولين'!$F$7:$F$20000,N$2,'يومية المقاولين'!$A$7:$A$20000,$A$1) -> 0 | P9: =SUMIFS('يومية المقاولين'!$K$7:$K$20000,'يومية المقاولين'!$I$7:$I$20000,$A9,'يومية المقاولين'!$F$7:$F$20000,P$2,'يومية المقاولين'!$A$7:$A$20000,$A$1) -> 0 | Q9: =SUMIFS('يومية المقاولين'!$M$7:$M$20000,'يومية المقاولين'!$I$7:$I$20000,$A9,'يومية المقاولين'!$F$7:$F$20000,P$2,'يومية المقاولين'!$A$7:$A$20000,$A$1) -> 0 | R9: =SUMIFS('يومية المقاولين'!$K$7:$K$20000,'يومية المقاولين'!$I$7:$I$20000,$A9,'يومية المقاولين'!$F$7:$F$20000,R$2,'يومية المقاولين'!$A$7:$A$20000,$A$1) -> 0 | S9: =SUMIFS('يومية المقاولين'!$M$7:$M$20000,'يومية المقاولين'!$I$7:$I$20000,$A9,'يومية المقاولين'!$F$7:$F$20000,R$2,'يومية المقاولين'!$A$7:$A$20000,$A$1) -> 0 | T9: =SUMIFS('يومية المقاولين'!$K$7:$K$20000,'يومية المقاولين'!$I$7:$I$20000,$A9,'يومية المقاولين'!$F$7:$F$20000,T$2,'يومية المقاولين'!$A$7:$A$20000,$A$1) -> 0 | U9: =SUMIFS('يومية المقاولين'!$M$7:$M$20000,'يومية المقاولين'!$I$7:$I$20000,$A9,'يومية المقاولين'!$F$7:$F$20000,T$2,'يومية المقاولين'!$A$7:$A$20000,$A$1) -> 0 | V9: =SUMIFS('يومية المقاولين'!$K$7:$K$20000,'يومية المقاولين'!$I$7:$I$20000,$A9,'يومية المقاولين'!$F$7:$F$20000,V$2,'يومية المقاولين'!$A$7:$A$20000,$A$1) -> 0 | W9: =SUMIFS('يومية المقاولين'!$M$7:$M$20000,'يومية المقاولين'!$I$7:$I$20000,$A9,'يومية المقاولين'!$F$7:$F$20000,V$2,'يومية المقاولين'!$A$7:$A$20000,$A$1) -> 0 | X9: =SUMIFS('يومية المقاولين'!$K$7:$K$20000,'يومية المقاولين'!$I$7:$I$20000,$A9,'يومية المقاولين'!$F$7:$F$20000,X$2,'يومية المقاولين'!$A$7:$A$20000,$A$1) -> 0 | Y9: =SUMIFS('يومية المقاولين'!$M$7:$M$20000,'يومية المقاولين'!$I$7:$I$20000,$A9,'يومية المقاولين'!$F$7:$F$20000,X$2,'يومية المقاولين'!$A$7:$A$20000,$A$1) -> 0 | Z9: =SUMIFS('يومية المقاولين'!$K$7:$K$20000,'يومية المقاولين'!$I$7:$I$20000,$A9,'يومية المقاولين'!$F$7:$F$20000,Z$2,'يومية المقاولين'!$A$7:$A$20000,$A$1) -> 0 | AA9: =SUMIFS('يومية المقاولين'!$M$7:$M$20000,'يومية المقاولين'!$I$7:$I$20000,$A9,'يومية المقاولين'!$F$7:$F$20000,Z$2,'يومية المقاولين'!$A$7:$A$20000,$A$1) -> 0 | AB9: =SUMIFS('يومية المقاولين'!$K$7:$K$20000,'يومية المقاولين'!$I$7:$I$20000,$A9,'يومية المقاولين'!$F$7:$F$20000,AB$2,'يومية المقاولين'!$A$7:$A$20000,$A$1) -> 0 | AC9: =SUMIFS('يومية المقاولين'!$M$7:$M$20000,'يومية المقاولين'!$I$7:$I$20000,$A9,'يومية المقاولين'!$F$7:$F$20000,AB$2,'يومية المقاولين'!$A$7:$A$20000,$A$1) -> 0 | AD9: =SUMIFS('يومية المقاولين'!$K$7:$K$20000,'يومية المقاولين'!$I$7:$I$20000,$A9,'يومية المقاولين'!$F$7:$F$20000,AD$2,'يومية المقاولين'!$A$7:$A$20000,$A$1) -> 0 | AE9: =SUMIFS('يومية المقاولين'!$M$7:$M$20000,'يومية المقاولين'!$I$7:$I$20000,$A9,'يومية المقاولين'!$F$7:$F$20000,AD$2,'يومية المقاولين'!$A$7:$A$20000,$A$1) -> 0 | AF9: =SUMIFS('يومية المقاولين'!$K$7:$K$20000,'يومية المقاولين'!$I$7:$I$20000,$A9,'يومية المقاولين'!$F$7:$F$20000,AF$2,'يومية المقاولين'!$A$7:$A$20000,$A$1) -> 0 | AG9: =SUMIFS('يومية المقاولين'!$M$7:$M$20000,'يومية المقاولين'!$I$7:$I$20000,$A9,'يومية المقاولين'!$F$7:$F$20000,AF$2,'يومية المقاولين'!$A$7:$A$20000,$A$1) -> 0 | AH9: 0 | AI9: 0
A10: تعبئة وتغليف | B10: =SUMIFS('يومية المقاولين'!$K$7:$K$20000,'يومية المقاولين'!$I$7:$I$20000,$A10,'يومية المقاولين'!$F$7:$F$20000,B$2,'يومية المقاولين'!$A$7:$A$20000,$A$1) -> 0 | C10: =SUMIFS('يومية المقاولين'!$M$7:$M$20000,'يومية المقاولين'!$I$7:$I$20000,$A10,'يومية المقاولين'!$F$7:$F$20000,B$2,'يومية المقاولين'!$A$7:$A$20000,$A$1) -> 0 | D10: =SUMIFS('يومية المقاولين'!$K$7:$K$20000,'يومية المقاولين'!$I$7:$I$20000,$A10,'يومية المقاولين'!$F$7:$F$20000,D$2,'يومية المقاولين'!$A$7:$A$20000,$A$1) -> 0 | E10: =SUMIFS('يومية المقاولين'!$M$7:$M$20000,'يومية المقاولين'!$I$7:$I$20000,$A10,'يومية المقاولين'!$F$7:$F$20000,D$2,'يومية المقاولين'!$A$7:$A$20000,$A$1) -> 0 | F10: =SUMIFS('يومية المقاولين'!$K$7:$K$20000,'يومية المقاولين'!$I$7:$I$20000,$A10,'يومية المقاولين'!$F$7:$F$20000,F$2,'يومية المقاولين'!$A$7:$A$20000,$A$1) -> 0 | G10: =SUMIFS('يومية المقاولين'!$M$7:$M$20000,'يومية المقاولين'!$I$7:$I$20000,$A10,'يومية المقاولين'!$F$7:$F$20000,F$2,'يومية المقاولين'!$A$7:$A$20000,$A$1) -> 0 | H10: =SUMIFS('يومية المقاولين'!$K$7:$K$20000,'يومية المقاولين'!$I$7:$I$20000,$A10,'يومية المقاولين'!$F$7:$F$20000,H$2,'يومية المقاولين'!$A$7:$A$20000,$A$1) -> 0 | I10: =SUMIFS('يومية المقاولين'!$M$7:$M$20000,'يومية المقاولين'!$I$7:$I$20000,$A10,'يومية المقاولين'!$F$7:$F$20000,H$2,'يومية المقاولين'!$A$7:$A$20000,$A$1) -> 0 | J10: =SUMIFS('يومية المقاولين'!$K$7:$K$20000,'يومية المقاولين'!$I$7:$I$20000,$A10,'يومية المقاولين'!$F$7:$F$20000,J$2,'يومية المقاولين'!$A$7:$A$20000,$A$1) -> 0 | K10: =SUMIFS('يومية المقاولين'!$M$7:$M$20000,'يومية المقاولين'!$I$7:$I$20000,$A10,'يومية المقاولين'!$F$7:$F$20000,J$2,'يومية المقاولين'!$A$7:$A$20000,$A$1) -> 0 | L10: =SUMIFS('يومية المقاولين'!$K$7:$K$20000,'يومية المقاولين'!$I$7:$I$20000,$A10,'يومية المقاولين'!$F$7:$F$20000,L$2,'يومية المقاولين'!$A$7:$A$20000,$A$1) -> 0 | M10: =SUMIFS('يومية المقاولين'!$M$7:$M$20000,'يومية المقاولين'!$I$7:$I$20000,$A10,'يومية المقاولين'!$F$7:$F$20000,L$2,'يومية المقاولين'!$A$7:$A$20000,$A$1) -> 0 | N10: =SUMIFS('يومية المقاولين'!$K$7:$K$20000,'يومية المقاولين'!$I$7:$I$20000,$A10,'يومية المقاولين'!$F$7:$F$20000,N$2,'يومية المقاولين'!$A$7:$A$20000,$A$1) -> 0 | O10: =SUMIFS('يومية المقاولين'!$M$7:$M$20000,'يومية المقاولين'!$I$7:$I$20000,$A10,'يومية المقاولين'!$F$7:$F$20000,N$2,'يومية المقاولين'!$A$7:$A$20000,$A$1) -> 0 | P10: =SUMIFS('يومية المقاولين'!$K$7:$K$20000,'يومية المقاولين'!$I$7:$I$20000,$A10,'يومية المقاولين'!$F$7:$F$20000,P$2,'يومية المقاولين'!$A$7:$A$20000,$A$1) -> 0 | Q10: =SUMIFS('يومية المقاولين'!$M$7:$M$20000,'يومية المقاولين'!$I$7:$I$20000,$A10,'يومية المقاولين'!$F$7:$F$20000,P$2,'يومية المقاولين'!$A$7:$A$20000,$A$1) -> 0 | R10: =SUMIFS('يومية المقاولين'!$K$7:$K$20000,'يومية المقاولين'!$I$7:$I$20000,$A10,'يومية المقاولين'!$F$7:$F$20000,R$2,'يومية المقاولين'!$A$7:$A$20000,$A$1) -> 0 | S10: =SUMIFS('يومية المقاولين'!$M$7:$M$20000,'يومية المقاولين'!$I$7:$I$20000,$A10,'يومية المقاولين'!$F$7:$F$20000,R$2,'يومية المقاولين'!$A$7:$A$20000,$A$1) -> 0 | T10: =SUMIFS('يومية المقاولين'!$K$7:$K$20000,'يومية المقاولين'!$I$7:$I$20000,$A10,'يومية المقاولين'!$F$7:$F$20000,T$2,'يومية المقاولين'!$A$7:$A$20000,$A$1) -> 0 | U10: =SUMIFS('يومية المقاولين'!$M$7:$M$20000,'يومية المقاولين'!$I$7:$I$20000,$A10,'يومية المقاولين'!$F$7:$F$20000,T$2,'يومية المقاولين'!$A$7:$A$20000,$A$1) -> 0 | V10: =SUMIFS('يومية المقاولين'!$K$7:$K$20000,'يومية المقاولين'!$I$7:$I$20000,$A10,'يومية المقاولين'!$F$7:$F$20000,V$2,'يومية المقاولين'!$A$7:$A$20000,$A$1) -> 0 | W10: =SUMIFS('يومية المقاولين'!$M$7:$M$20000,'يومية المقاولين'!$I$7:$I$20000,$A10,'يومية المقاولين'!$F$7:$F$20000,V$2,'يومية المقاولين'!$A$7:$A$20000,$A$1) -> 0 | X10: =SUMIFS('يومية المقاولين'!$K$7:$K$20000,'يومية المقاولين'!$I$7:$I$20000,$A10,'يومية المقاولين'!$F$7:$F$20000,X$2,'يومية المقاولين'!$A$7:$A$20000,$A$1) -> 0 | Y10: =SUMIFS('يومية المقاولين'!$M$7:$M$20000,'يومية المقاولين'!$I$7:$I$20000,$A10,'يومية المقاولين'!$F$7:$F$20000,X$2,'يومية المقاولين'!$A$7:$A$20000,$A$1) -> 0 | Z10: =SUMIFS('يومية المقاولين'!$K$7:$K$20000,'يومية المقاولين'!$I$7:$I$20000,$A10,'يومية المقاولين'!$F$7:$F$20000,Z$2,'يومية المقاولين'!$A$7:$A$20000,$A$1) -> 0 | AA10: =SUMIFS('يومية المقاولين'!$M$7:$M$20000,'يومية المقاولين'!$I$7:$I$20000,$A10,'يومية المقاولين'!$F$7:$F$20000,Z$2,'يومية المقاولين'!$A$7:$A$20000,$A$1) -> 0 | AB10: =SUMIFS('يومية المقاولين'!$K$7:$K$20000,'يومية المقاولين'!$I$7:$I$20000,$A10,'يومية المقاولين'!$F$7:$F$20000,AB$2,'يومية المقاولين'!$A$7:$A$20000,$A$1) -> 0 | AC10: =SUMIFS('يومية المقاولين'!$M$7:$M$20000,'يومية المقاولين'!$I$7:$I$20000,$A10,'يومية المقاولين'!$F$7:$F$20000,AB$2,'يومية المقاولين'!$A$7:$A$20000,$A$1) -> 0 | AD10: =SUMIFS('يومية المقاولين'!$K$7:$K$20000,'يومية المقاولين'!$I$7:$I$20000,$A10,'يومية المقاولين'!$F$7:$F$20000,AD$2,'يومية المقاولين'!$A$7:$A$20000,$A$1) -> 0 | AE10: =SUMIFS('يومية المقاولين'!$M$7:$M$20000,'يومية المقاولين'!$I$7:$I$20000,$A10,'يومية المقاولين'!$F$7:$F$20000,AD$2,'يومية المقاولين'!$A$7:$A$20000,$A$1) -> 0 | AF10: =SUMIFS('يومية المقاولين'!$K$7:$K$20000,'يومية المقاولين'!$I$7:$I$20000,$A10,'يومية المقاولين'!$F$7:$F$20000,AF$2,'يومية المقاولين'!$A$7:$A$20000,$A$1) -> 0 | AG10: =SUMIFS('يومية المقاولين'!$M$7:$M$20000,'يومية المقاولين'!$I$7:$I$20000,$A10,'يومية المقاولين'!$F$7:$F$20000,AF$2,'يومية المقاولين'!$A$7:$A$20000,$A$1) -> 0 | AH10: 0 | AI10: 0
A11: الإدارة والمخازن والاستراحة | B11: =SUMIFS('يومية المقاولين'!$K$7:$K$20000,'يومية المقاولين'!$I$7:$I$20000,$A11,'يومية المقاولين'!$F$7:$F$20000,B$2,'يومية المقاولين'!$A$7:$A$20000,$A$1) -> 0 | C11: =SUMIFS('يومية المقاولين'!$M$7:$M$20000,'يومية المقاولين'!$I$7:$I$20000,$A11,'يومية المقاولين'!$F$7:$F$20000,B$2,'يومية المقاولين'!$A$7:$A$20000,$A$1) -> 0 | D11: =SUMIFS('يومية المقاولين'!$K$7:$K$20000,'يومية المقاولين'!$I$7:$I$20000,$A11,'يومية المقاولين'!$F$7:$F$20000,D$2,'يومية المقاولين'!$A$7:$A$20000,$A$1) -> 0 | E11: =SUMIFS('يومية المقاولين'!$M$7:$M$20000,'يومية المقاولين'!$I$7:$I$20000,$A11,'يومية المقاولين'!$F$7:$F$20000,D$2,'يومية المقاولين'!$A$7:$A$20000,$A$1) -> 0 | F11: =SUMIFS('يومية المقاولين'!$K$7:$K$20000,'يومية المقاولين'!$I$7:$I$20000,$A11,'يومية المقاولين'!$F$7:$F$20000,F$2,'يومية المقاولين'!$A$7:$A$20000,$A$1) -> 0 | G11: =SUMIFS('يومية المقاولين'!$M$7:$M$20000,'يومية المقاولين'!$I$7:$I$20000,$A11,'يومية المقاولين'!$F$7:$F$20000,F$2,'يومية المقاولين'!$A$7:$A$20000,$A$1) -> 0 | H11: =SUMIFS('يومية المقاولين'!$K$7:$K$20000,'يومية المقاولين'!$I$7:$I$20000,$A11,'يومية المقاولين'!$F$7:$F$20000,H$2,'يومية المقاولين'!$A$7:$A$20000,$A$1) -> 0 | I11: =SUMIFS('يومية المقاولين'!$M$7:$M$20000,'يومية المقاولين'!$I$7:$I$20000,$A11,'يومية المقاولين'!$F$7:$F$20000,H$2,'يومية المقاولين'!$A$7:$A$20000,$A$1) -> 0 | J11: =SUMIFS('يومية المقاولين'!$K$7:$K$20000,'يومية المقاولين'!$I$7:$I$20000,$A11,'يومية المقاولين'!$F$7:$F$20000,J$2,'يومية المقاولين'!$A$7:$A$20000,$A$1) -> 0 | K11: =SUMIFS('يومية المقاولين'!$M$7:$M$20000,'يومية المقاولين'!$I$7:$I$20000,$A11,'يومية المقاولين'!$F$7:$F$20000,J$2,'يومية المقاولين'!$A$7:$A$20000,$A$1) -> 0 | L11: =SUMIFS('يومية المقاولين'!$K$7:$K$20000,'يومية المقاولين'!$I$7:$I$20000,$A11,'يومية المقاولين'!$F$7:$F$20000,L$2,'يومية المقاولين'!$A$7:$A$20000,$A$1) -> 0 | M11: =SUMIFS('يومية المقاولين'!$M$7:$M$20000,'يومية المقاولين'!$I$7:$I$20000,$A11,'يومية المقاولين'!$F$7:$F$20000,L$2,'يومية المقاولين'!$A$7:$A$20000,$A$1) -> 0 | N11: =SUMIFS('يومية المقاولين'!$K$7:$K$20000,'يومية المقاولين'!$I$7:$I$20000,$A11,'يومية المقاولين'!$F$7:$F$20000,N$2,'يومية المقاولين'!$A$7:$A$20000,$A$1) -> 0 | O11: =SUMIFS('يومية المقاولين'!$M$7:$M$20000,'يومية المقاولين'!$I$7:$I$20000,$A11,'يومية المقاولين'!$F$7:$F$20000,N$2,'يومية المقاولين'!$A$7:$A$20000,$A$1) -> 0 | P11: =SUMIFS('يومية المقاولين'!$K$7:$K$20000,'يومية المقاولين'!$I$7:$I$20000,$A11,'يومية المقاولين'!$F$7:$F$20000,P$2,'يومية المقاولين'!$A$7:$A$20000,$A$1) -> 0 | Q11: =SUMIFS('يومية المقاولين'!$M$7:$M$20000,'يومية المقاولين'!$I$7:$I$20000,$A11,'يومية المقاولين'!$F$7:$F$20000,P$2,'يومية المقاولين'!$A$7:$A$20000,$A$1) -> 0 | R11: =SUMIFS('يومية المقاولين'!$K$7:$K$20000,'يومية المقاولين'!$I$7:$I$20000,$A11,'يومية المقاولين'!$F$7:$F$20000,R$2,'يومية المقاولين'!$A$7:$A$20000,$A$1) -> 0 | S11: =SUMIFS('يومية المقاولين'!$M$7:$M$20000,'يومية المقاولين'!$I$7:$I$20000,$A11,'يومية المقاولين'!$F$7:$F$20000,R$2,'يومية المقاولين'!$A$7:$A$20000,$A$1) -> 0 | T11: =SUMIFS('يومية المقاولين'!$K$7:$K$20000,'يومية المقاولين'!$I$7:$I$20000,$A11,'يومية المقاولين'!$F$7:$F$20000,T$2,'يومية المقاولين'!$A$7:$A$20000,$A$1) -> 0 | U11: =SUMIFS('يومية المقاولين'!$M$7:$M$20000,'يومية المقاولين'!$I$7:$I$20000,$A11,'يومية المقاولين'!$F$7:$F$20000,T$2,'يومية المقاولين'!$A$7:$A$20000,$A$1) -> 0 | V11: =SUMIFS('يومية المقاولين'!$K$7:$K$20000,'يومية المقاولين'!$I$7:$I$20000,$A11,'يومية المقاولين'!$F$7:$F$20000,V$2,'يومية المقاولين'!$A$7:$A$20000,$A$1) -> 0 | W11: =SUMIFS('يومية المقاولين'!$M$7:$M$20000,'يومية المقاولين'!$I$7:$I$20000,$A11,'يومية المقاولين'!$F$7:$F$20000,V$2,'يومية المقاولين'!$A$7:$A$20000,$A$1) -> 0 | X11: =SUMIFS('يومية المقاولين'!$K$7:$K$20000,'يومية المقاولين'!$I$7:$I$20000,$A11,'يومية المقاولين'!$F$7:$F$20000,X$2,'يومية المقاولين'!$A$7:$A$20000,$A$1) -> 0 | Y11: =SUMIFS('يومية المقاولين'!$M$7:$M$20000,'يومية المقاولين'!$I$7:$I$20000,$A11,'يومية المقاولين'!$F$7:$F$20000,X$2,'يومية المقاولين'!$A$7:$A$20000,$A$1) -> 0 | Z11: =SUMIFS('يومية المقاولين'!$K$7:$K$20000,'يومية المقاولين'!$I$7:$I$20000,$A11,'يومية المقاولين'!$F$7:$F$20000,Z$2,'يومية المقاولين'!$A$7:$A$20000,$A$1) -> 0 | AA11: =SUMIFS('يومية المقاولين'!$M$7:$M$20000,'يومية المقاولين'!$I$7:$I$20000,$A11,'يومية المقاولين'!$F$7:$F$20000,Z$2,'يومية المقاولين'!$A$7:$A$20000,$A$1) -> 0 | AB11: =SUMIFS('يومية المقاولين'!$K$7:$K$20000,'يومية المقاولين'!$I$7:$I$20000,$A11,'يومية المقاولين'!$F$7:$F$20000,AB$2,'يومية المقاولين'!$A$7:$A$20000,$A$1) -> 0 | AC11: =SUMIFS('يومية المقاولين'!$M$7:$M$20000,'يومية المقاولين'!$I$7:$I$20000,$A11,'يومية المقاولين'!$F$7:$F$20000,AB$2,'يومية المقاولين'!$A$7:$A$20000,$A$1) -> 0 | AD11: =SUMIFS('يومية المقاولين'!$K$7:$K$20000,'يومية المقاولين'!$I$7:$I$20000,$A11,'يومية المقاولين'!$F$7:$F$20000,AD$2,'يومية المقاولين'!$A$7:$A$20000,$A$1) -> 0 | AE11: =SUMIFS('يومية المقاولين'!$M$7:$M$20000,'يومية المقاولين'!$I$7:$I$20000,$A11,'يومية المقاولين'!$F$7:$F$20000,AD$2,'يومية المقاولين'!$A$7:$A$20000,$A$1) -> 0 | AF11: =SUMIFS('يومية المقاولين'!$K$7:$K$20000,'يومية المقاولين'!$I$7:$I$20000,$A11,'يومية المقاولين'!$F$7:$F$20000,AF$2,'يومية المقاولين'!$A$7:$A$20000,$A$1) -> 0 | AG11: =SUMIFS('يومية المقاولين'!$M$7:$M$20000,'يومية المقاولين'!$I$7:$I$20000,$A11,'يومية المقاولين'!$F$7:$F$20000,AF$2,'يومية المقاولين'!$A$7:$A$20000,$A$1) -> 0 | AH11: 0 | AI11: 0
A12: تقطيع خشب | B12: =SUMIFS('يومية المقاولين'!$K$7:$K$20000,'يومية المقاولين'!$I$7:$I$20000,$A12,'يومية المقاولين'!$F$7:$F$20000,B$2,'يومية المقاولين'!$A$7:$A$20000,$A$1) -> 0 | C12: =SUMIFS('يومية المقاولين'!$M$7:$M$20000,'يومية المقاولين'!$I$7:$I$20000,$A12,'يومية المقاولين'!$F$7:$F$20000,B$2,'يومية المقاولين'!$A$7:$A$20000,$A$1) -> 0 | D12: =SUMIFS('يومية المقاولين'!$K$7:$K$20000,'يومية المقاولين'!$I$7:$I$20000,$A12,'يومية المقاولين'!$F$7:$F$20000,D$2,'يومية المقاولين'!$A$7:$A$20000,$A$1) -> 0 | E12: =SUMIFS('يومية المقاولين'!$M$7:$M$20000,'يومية المقاولين'!$I$7:$I$20000,$A12,'يومية المقاولين'!$F$7:$F$20000,D$2,'يومية المقاولين'!$A$7:$A$20000,$A$1) -> 0 | F12: =SUMIFS('يومية المقاولين'!$K$7:$K$20000,'يومية المقاولين'!$I$7:$I$20000,$A12,'يومية المقاولين'!$F$7:$F$20000,F$2,'يومية المقاولين'!$A$7:$A$20000,$A$1) -> 0 | G12: =SUMIFS('يومية المقاولين'!$M$7:$M$20000,'يومية المقاولين'!$I$7:$I$20000,$A12,'يومية المقاولين'!$F$7:$F$20000,F$2,'يومية المقاولين'!$A$7:$A$20000,$A$1) -> 0 | H12: =SUMIFS('يومية المقاولين'!$K$7:$K$20000,'يومية المقاولين'!$I$7:$I$20000,$A12,'يومية المقاولين'!$F$7:$F$20000,H$2,'يومية المقاولين'!$A$7:$A$20000,$A$1) -> 0 | I12: =SUMIFS('يومية المقاولين'!$M$7:$M$20000,'يومية المقاولين'!$I$7:$I$20000,$A12,'يومية المقاولين'!$F$7:$F$20000,H$2,'يومية المقاولين'!$A$7:$A$20000,$A$1) -> 0 | J12: =SUMIFS('يومية المقاولين'!$K$7:$K$20000,'يومية المقاولين'!$I$7:$I$20000,$A12,'يومية المقاولين'!$F$7:$F$20000,J$2,'يومية المقاولين'!$A$7:$A$20000,$A$1) -> 0 | K12: =SUMIFS('يومية المقاولين'!$M$7:$M$20000,'يومية المقاولين'!$I$7:$I$20000,$A12,'يومية المقاولين'!$F$7:$F$20000,J$2,'يومية المقاولين'!$A$7:$A$20000,$A$1) -> 0 | L12: =SUMIFS('يومية المقاولين'!$K$7:$K$20000,'يومية المقاولين'!$I$7:$I$20000,$A12,'يومية المقاولين'!$F$7:$F$20000,L$2,'يومية المقاولين'!$A$7:$A$20000,$A$1) -> 0 | M12: =SUMIFS('يومية المقاولين'!$M$7:$M$20000,'يومية المقاولين'!$I$7:$I$20000,$A12,'يومية المقاولين'!$F$7:$F$20000,L$2,'يومية المقاولين'!$A$7:$A$20000,$A$1) -> 0 | N12: =SUMIFS('يومية المقاولين'!$K$7:$K$20000,'يومية المقاولين'!$I$7:$I$20000,$A12,'يومية المقاولين'!$F$7:$F$20000,N$2,'يومية المقاولين'!$A$7:$A$20000,$A$1) -> 0 | O12: =SUMIFS('يومية المقاولين'!$M$7:$M$20000,'يومية المقاولين'!$I$7:$I$20000,$A12,'يومية المقاولين'!$F$7:$F$20000,N$2,'يومية المقاولين'!$A$7:$A$20000,$A$1) -> 0 | P12: =SUMIFS('يومية المقاولين'!$K$7:$K$20000,'يومية المقاولين'!$I$7:$I$20000,$A12,'يومية المقاولين'!$F$7:$F$20000,P$2,'يومية المقاولين'!$A$7:$A$20000,$A$1) -> 0 | Q12: =SUMIFS('يومية المقاولين'!$M$7:$M$20000,'يومية المقاولين'!$I$7:$I$20000,$A12,'يومية المقاولين'!$F$7:$F$20000,P$2,'يومية المقاولين'!$A$7:$A$20000,$A$1) -> 0 | R12: =SUMIFS('يومية المقاولين'!$K$7:$K$20000,'يومية المقاولين'!$I$7:$I$20000,$A12,'يومية المقاولين'!$F$7:$F$20000,R$2,'يومية المقاولين'!$A$7:$A$20000,$A$1) -> 0 | S12: =SUMIFS('يومية المقاولين'!$M$7:$M$20000,'يومية المقاولين'!$I$7:$I$20000,$A12,'يومية المقاولين'!$F$7:$F$20000,R$2,'يومية المقاولين'!$A$7:$A$20000,$A$1) -> 0 | T12: =SUMIFS('يومية المقاولين'!$K$7:$K$20000,'يومية المقاولين'!$I$7:$I$20000,$A12,'يومية المقاولين'!$F$7:$F$20000,T$2,'يومية المقاولين'!$A$7:$A$20000,$A$1) -> 0 | U12: =SUMIFS('يومية المقاولين'!$M$7:$M$20000,'يومية المقاولين'!$I$7:$I$20000,$A12,'يومية المقاولين'!$F$7:$F$20000,T$2,'يومية المقاولين'!$A$7:$A$20000,$A$1) -> 0 | V12: =SUMIFS('يومية المقاولين'!$K$7:$K$20000,'يومية المقاولين'!$I$7:$I$20000,$A12,'يومية المقاولين'!$F$7:$F$20000,V$2,'يومية المقاولين'!$A$7:$A$20000,$A$1) -> 0 | W12: =SUMIFS('يومية المقاولين'!$M$7:$M$20000,'يومية المقاولين'!$I$7:$I$20000,$A12,'يومية المقاولين'!$F$7:$F$20000,V$2,'يومية المقاولين'!$A$7:$A$20000,$A$1) -> 0 | X12: =SUMIFS('يومية المقاولين'!$K$7:$K$20000,'يومية المقاولين'!$I$7:$I$20000,$A12,'يومية المقاولين'!$F$7:$F$20000,X$2,'يومية المقاولين'!$A$7:$A$20000,$A$1) -> 0 | Y12: =SUMIFS('يومية المقاولين'!$M$7:$M$20000,'يومية المقاولين'!$I$7:$I$20000,$A12,'يومية المقاولين'!$F$7:$F$20000,X$2,'يومية المقاولين'!$A$7:$A$20000,$A$1) -> 0 | Z12: =SUMIFS('يومية المقاولين'!$K$7:$K$20000,'يومية المقاولين'!$I$7:$I$20000,$A12,'يومية المقاولين'!$F$7:$F$20000,Z$2,'يومية المقاولين'!$A$7:$A$20000,$A$1) -> 0 | AA12: =SUMIFS('يومية المقاولين'!$M$7:$M$20000,'يومية المقاولين'!$I$7:$I$20000,$A12,'يومية المقاولين'!$F$7:$F$20000,Z$2,'يومية المقاولين'!$A$7:$A$20000,$A$1) -> 0 | AB12: =SUMIFS('يومية المقاولين'!$K$7:$K$20000,'يومية المقاولين'!$I$7:$I$20000,$A12,'يومية المقاولين'!$F$7:$F$20000,AB$2,'يومية المقاولين'!$A$7:$A$20000,$A$1) -> 0 | AC12: =SUMIFS('يومية المقاولين'!$M$7:$M$20000,'يومية المقاولين'!$I$7:$I$20000,$A12,'يومية المقاولين'!$F$7:$F$20000,AB$2,'يومية المقاولين'!$A$7:$A$20000,$A$1) -> 0 | AD12: =SUMIFS('يومية المقاولين'!$K$7:$K$20000,'يومية المقاولين'!$I$7:$I$20000,$A12,'يومية المقاولين'!$F$7:$F$20000,AD$2,'يومية المقاولين'!$A$7:$A$20000,$A$1) -> 0 | AE12: =SUMIFS('يومية المقاولين'!$M$7:$M$20000,'يومية المقاولين'!$I$7:$I$20000,$A12,'يومية المقاولين'!$F$7:$F$20000,AD$2,'يومية المقاولين'!$A$7:$A$20000,$A$1) -> 0 | AF12: =SUMIFS('يومية المقاولين'!$K$7:$K$20000,'يومية المقاولين'!$I$7:$I$20000,$A12,'يومية المقاولين'!$F$7:$F$20000,AF$2,'يومية المقاولين'!$A$7:$A$20000,$A$1) -> 0 | AG12: =SUMIFS('يومية المقاولين'!$M$7:$M$20000,'يومية المقاولين'!$I$7:$I$20000,$A12,'يومية المقاولين'!$F$7:$F$20000,AF$2,'يومية المقاولين'!$A$7:$A$20000,$A$1) -> 0 | AH12: 0 | AI12: 0
A13: صيانة شبكة | B13: =SUMIFS('يومية المقاولين'!$K$7:$K$20000,'يومية المقاولين'!$I$7:$I$20000,$A13,'يومية المقاولين'!$F$7:$F$20000,B$2,'يومية المقاولين'!$A$7:$A$20000,$A$1) -> 0 | C13: =SUMIFS('يومية المقاولين'!$M$7:$M$20000,'يومية المقاولين'!$I$7:$I$20000,$A13,'يومية المقاولين'!$F$7:$F$20000,B$2,'يومية المقاولين'!$A$7:$A$20000,$A$1) -> 0 | D13: =SUMIFS('يومية المقاولين'!$K$7:$K$20000,'يومية المقاولين'!$I$7:$I$20000,$A13,'يومية المقاولين'!$F$7:$F$20000,D$2,'يومية المقاولين'!$A$7:$A$20000,$A$1) -> 0 | E13: =SUMIFS('يومية المقاولين'!$M$7:$M$20000,'يومية المقاولين'!$I$7:$I$20000,$A13,'يومية المقاولين'!$F$7:$F$20000,D$2,'يومية المقاولين'!$A$7:$A$20000,$A$1) -> 0 | F13: =SUMIFS('يومية المقاولين'!$K$7:$K$20000,'يومية المقاولين'!$I$7:$I$20000,$A13,'يومية المقاولين'!$F$7:$F$20000,F$2,'يومية المقاولين'!$A$7:$A$20000,$A$1) -> 0 | G13: =SUMIFS('يومية المقاولين'!$M$7:$M$20000,'يومية المقاولين'!$I$7:$I$20000,$A13,'يومية المقاولين'!$F$7:$F$20000,F$2,'يومية المقاولين'!$A$7:$A$20000,$A$1) -> 0 | H13: =SUMIFS('يومية المقاولين'!$K$7:$K$20000,'يومية المقاولين'!$I$7:$I$20000,$A13,'يومية المقاولين'!$F$7:$F$20000,H$2,'يومية المقاولين'!$A$7:$A$20000,$A$1) -> 0 | I13: =SUMIFS('يومية المقاولين'!$M$7:$M$20000,'يومية المقاولين'!$I$7:$I$20000,$A13,'يومية المقاولين'!$F$7:$F$20000,H$2,'يومية المقاولين'!$A$7:$A$20000,$A$1) -> 0 | J13: =SUMIFS('يومية المقاولين'!$K$7:$K$20000,'يومية المقاولين'!$I$7:$I$20000,$A13,'يومية المقاولين'!$F$7:$F$20000,J$2,'يومية المقاولين'!$A$7:$A$20000,$A$1) -> 0 | K13: =SUMIFS('يومية المقاولين'!$M$7:$M$20000,'يومية المقاولين'!$I$7:$I$20000,$A13,'يومية المقاولين'!$F$7:$F$20000,J$2,'يومية المقاولين'!$A$7:$A$20000,$A$1) -> 0 | L13: =SUMIFS('يومية المقاولين'!$K$7:$K$20000,'يومية المقاولين'!$I$7:$I$20000,$A13,'يومية المقاولين'!$F$7:$F$20000,L$2,'يومية المقاولين'!$A$7:$A$20000,$A$1) -> 0 | M13: =SUMIFS('يومية المقاولين'!$M$7:$M$20000,'يومية المقاولين'!$I$7:$I$20000,$A13,'يومية المقاولين'!$F$7:$F$20000,L$2,'يومية المقاولين'!$A$7:$A$20000,$A$1) -> 0 | N13: =SUMIFS('يومية المقاولين'!$K$7:$K$20000,'يومية المقاولين'!$I$7:$I$20000,$A13,'يومية المقاولين'!$F$7:$F$20000,N$2,'يومية المقاولين'!$A$7:$A$20000,$A$1) -> 0 | O13: =SUMIFS('يومية المقاولين'!$M$7:$M$20000,'يومية المقاولين'!$I$7:$I$20000,$A13,'يومية المقاولين'!$F$7:$F$20000,N$2,'يومية المقاولين'!$A$7:$A$20000,$A$1) -> 0 | P13: =SUMIFS('يومية المقاولين'!$K$7:$K$20000,'يومية المقاولين'!$I$7:$I$20000,$A13,'يومية المقاولين'!$F$7:$F$20000,P$2,'يومية المقاولين'!$A$7:$A$20000,$A$1) -> 0 | Q13: =SUMIFS('يومية المقاولين'!$M$7:$M$20000,'يومية المقاولين'!$I$7:$I$20000,$A13,'يومية المقاولين'!$F$7:$F$20000,P$2,'يومية المقاولين'!$A$7:$A$20000,$A$1) -> 0 | R13: =SUMIFS('يومية المقاولين'!$K$7:$K$20000,'يومية المقاولين'!$I$7:$I$20000,$A13,'يومية المقاولين'!$F$7:$F$20000,R$2,'يومية المقاولين'!$A$7:$A$20000,$A$1) -> 0 | S13: =SUMIFS('يومية المقاولين'!$M$7:$M$20000,'يومية المقاولين'!$I$7:$I$20000,$A13,'يومية المقاولين'!$F$7:$F$20000,R$2,'يومية المقاولين'!$A$7:$A$20000,$A$1) -> 0 | T13: =SUMIFS('يومية المقاولين'!$K$7:$K$20000,'يومية المقاولين'!$I$7:$I$20000,$A13,'يومية المقاولين'!$F$7:$F$20000,T$2,'يومية المقاولين'!$A$7:$A$20000,$A$1) -> 0 | U13: =SUMIFS('يومية المقاولين'!$M$7:$M$20000,'يومية المقاولين'!$I$7:$I$20000,$A13,'يومية المقاولين'!$F$7:$F$20000,T$2,'يومية المقاولين'!$A$7:$A$20000,$A$1) -> 0 | V13: =SUMIFS('يومية المقاولين'!$K$7:$K$20000,'يومية المقاولين'!$I$7:$I$20000,$A13,'يومية المقاولين'!$F$7:$F$20000,V$2,'يومية المقاولين'!$A$7:$A$20000,$A$1) -> 0 | W13: =SUMIFS('يومية المقاولين'!$M$7:$M$20000,'يومية المقاولين'!$I$7:$I$20000,$A13,'يومية المقاولين'!$F$7:$F$20000,V$2,'يومية المقاولين'!$A$7:$A$20000,$A$1) -> 0 | X13: =SUMIFS('يومية المقاولين'!$K$7:$K$20000,'يومية المقاولين'!$I$7:$I$20000,$A13,'يومية المقاولين'!$F$7:$F$20000,X$2,'يومية المقاولين'!$A$7:$A$20000,$A$1) -> 0 | Y13: =SUMIFS('يومية المقاولين'!$M$7:$M$20000,'يومية المقاولين'!$I$7:$I$20000,$A13,'يومية المقاولين'!$F$7:$F$20000,X$2,'يومية المقاولين'!$A$7:$A$20000,$A$1) -> 0 | Z13: =SUMIFS('يومية المقاولين'!$K$7:$K$20000,'يومية المقاولين'!$I$7:$I$20000,$A13,'يومية المقاولين'!$F$7:$F$20000,Z$2,'يومية المقاولين'!$A$7:$A$20000,$A$1) -> 0 | AA13: =SUMIFS('يومية المقاولين'!$M$7:$M$20000,'يومية المقاولين'!$I$7:$I$20000,$A13,'يومية المقاولين'!$F$7:$F$20000,Z$2,'يومية المقاولين'!$A$7:$A$20000,$A$1) -> 0 | AB13: =SUMIFS('يومية المقاولين'!$K$7:$K$20000,'يومية المقاولين'!$I$7:$I$20000,$A13,'يومية المقاولين'!$F$7:$F$20000,AB$2,'يومية المقاولين'!$A$7:$A$20000,$A$1) -> 0 | AC13: =SUMIFS('يومية المقاولين'!$M$7:$M$20000,'يومية المقاولين'!$I$7:$I$20000,$A13,'يومية المقاولين'!$F$7:$F$20000,AB$2,'يومية المقاولين'!$A$7:$A$20000,$A$1) -> 0 | AD13: =SUMIFS('يومية المقاولين'!$K$7:$K$20000,'يومية المقاولين'!$I$7:$I$20000,$A13,'يومية المقاولين'!$F$7:$F$20000,AD$2,'يومية المقاولين'!$A$7:$A$20000,$A$1) -> 0 | AE13: =SUMIFS('يومية المقاولين'!$M$7:$M$20000,'يومية المقاولين'!$I$7:$I$20000,$A13,'يومية المقاولين'!$F$7:$F$20000,AD$2,'يومية المقاولين'!$A$7:$A$20000,$A$1) -> 0 | AF13: =SUMIFS('يومية المقاولين'!$K$7:$K$20000,'يومية المقاولين'!$I$7:$I$20000,$A13,'يومية المقاولين'!$F$7:$F$20000,AF$2,'يومية المقاولين'!$A$7:$A$20000,$A$1) -> 0 | AG13: =SUMIFS('يومية المقاولين'!$M$7:$M$20000,'يومية المقاولين'!$I$7:$I$20000,$A13,'يومية المقاولين'!$F$7:$F$20000,AF$2,'يومية المقاولين'!$A$7:$A$20000,$A$1) -> 0 | AH13: 0 | AI13: 0
A14: ترديم حول النخيل | B14: =SUMIFS('يومية المقاولين'!$K$7:$K$20000,'يومية المقاولين'!$I$7:$I$20000,$A14,'يومية المقاولين'!$F$7:$F$20000,B$2,'يومية المقاولين'!$A$7:$A$20000,$A$1) -> 0 | C14: =SUMIFS('يومية المقاولين'!$M$7:$M$20000,'يومية المقاولين'!$I$7:$I$20000,$A14,'يومية المقاولين'!$F$7:$F$20000,B$2,'يومية المقاولين'!$A$7:$A$20000,$A$1) -> 0 | D14: =SUMIFS('يومية المقاولين'!$K$7:$K$20000,'يومية المقاولين'!$I$7:$I$20000,$A14,'يومية المقاولين'!$F$7:$F$20000,D$2,'يومية المقاولين'!$A$7:$A$20000,$A$1) -> 0 | E14: =SUMIFS('يومية المقاولين'!$M$7:$M$20000,'يومية المقاولين'!$I$7:$I$20000,$A14,'يومية المقاولين'!$F$7:$F$20000,D$2,'يومية المقاولين'!$A$7:$A$20000,$A$1) -> 0 | F14: =SUMIFS('يومية المقاولين'!$K$7:$K$20000,'يومية المقاولين'!$I$7:$I$20000,$A14,'يومية المقاولين'!$F$7:$F$20000,F$2,'يومية المقاولين'!$A$7:$A$20000,$A$1) -> 0 | G14: =SUMIFS('يومية المقاولين'!$M$7:$M$20000,'يومية المقاولين'!$I$7:$I$20000,$A14,'يومية المقاولين'!$F$7:$F$20000,F$2,'يومية المقاولين'!$A$7:$A$20000,$A$1) -> 0 | H14: =SUMIFS('يومية المقاولين'!$K$7:$K$20000,'يومية المقاولين'!$I$7:$I$20000,$A14,'يومية المقاولين'!$F$7:$F$20000,H$2,'يومية المقاولين'!$A$7:$A$20000,$A$1) -> 0 | I14: =SUMIFS('يومية المقاولين'!$M$7:$M$20000,'يومية المقاولين'!$I$7:$I$20000,$A14,'يومية المقاولين'!$F$7:$F$20000,H$2,'يومية المقاولين'!$A$7:$A$20000,$A$1) -> 0 | J14: =SUMIFS('يومية المقاولين'!$K$7:$K$20000,'يومية المقاولين'!$I$7:$I$20000,$A14,'يومية المقاولين'!$F$7:$F$20000,J$2,'يومية المقاولين'!$A$7:$A$20000,$A$1) -> 0 | K14: =SUMIFS('يومية المقاولين'!$M$7:$M$20000,'يومية المقاولين'!$I$7:$I$20000,$A14,'يومية المقاولين'!$F$7:$F$20000,J$2,'يومية المقاولين'!$A$7:$A$20000,$A$1) -> 0 | L14: =SUMIFS('يومية المقاولين'!$K$7:$K$20000,'يومية المقاولين'!$I$7:$I$20000,$A14,'يومية المقاولين'!$F$7:$F$20000,L$2,'يومية المقاولين'!$A$7:$A$20000,$A$1) -> 0 | M14: =SUMIFS('يومية المقاولين'!$M$7:$M$20000,'يومية المقاولين'!$I$7:$I$20000,$A14,'يومية المقاولين'!$F$7:$F$20000,L$2,'يومية المقاولين'!$A$7:$A$20000,$A$1) -> 0 | N14: =SUMIFS('يومية المقاولين'!$K$7:$K$20000,'يومية المقاولين'!$I$7:$I$20000,$A14,'يومية المقاولين'!$F$7:$F$20000,N$2,'يومية المقاولين'!$A$7:$A$20000,$A$1) -> 0 | O14: =SUMIFS('يومية المقاولين'!$M$7:$M$20000,'يومية المقاولين'!$I$7:$I$20000,$A14,'يومية المقاولين'!$F$7:$F$20000,N$2,'يومية المقاولين'!$A$7:$A$20000,$A$1) -> 0 | P14: =SUMIFS('يومية المقاولين'!$K$7:$K$20000,'يومية المقاولين'!$I$7:$I$20000,$A14,'يومية المقاولين'!$F$7:$F$20000,P$2,'يومية المقاولين'!$A$7:$A$20000,$A$1) -> 0 | Q14: =SUMIFS('يومية المقاولين'!$M$7:$M$20000,'يومية المقاولين'!$I$7:$I$20000,$A14,'يومية المقاولين'!$F$7:$F$20000,P$2,'يومية المقاولين'!$A$7:$A$20000,$A$1) -> 0 | R14: =SUMIFS('يومية المقاولين'!$K$7:$K$20000,'يومية المقاولين'!$I$7:$I$20000,$A14,'يومية المقاولين'!$F$7:$F$20000,R$2,'يومية المقاولين'!$A$7:$A$20000,$A$1) -> 0 | S14: =SUMIFS('يومية المقاولين'!$M$7:$M$20000,'يومية المقاولين'!$I$7:$I$20000,$A14,'يومية المقاولين'!$F$7:$F$20000,R$2,'يومية المقاولين'!$A$7:$A$20000,$A$1) -> 0 | T14: =SUMIFS('يومية المقاولين'!$K$7:$K$20000,'يومية المقاولين'!$I$7:$I$20000,$A14,'يومية المقاولين'!$F$7:$F$20000,T$2,'يومية المقاولين'!$A$7:$A$20000,$A$1) -> 0 | U14: =SUMIFS('يومية المقاولين'!$M$7:$M$20000,'يومية المقاولين'!$I$7:$I$20000,$A14,'يومية المقاولين'!$F$7:$F$20000,T$2,'يومية المقاولين'!$A$7:$A$20000,$A$1) -> 0 | V14: =SUMIFS('يومية المقاولين'!$K$7:$K$20000,'يومية المقاولين'!$I$7:$I$20000,$A14,'يومية المقاولين'!$F$7:$F$20000,V$2,'يومية المقاولين'!$A$7:$A$20000,$A$1) -> 0 | W14: =SUMIFS('يومية المقاولين'!$M$7:$M$20000,'يومية المقاولين'!$I$7:$I$20000,$A14,'يومية المقاولين'!$F$7:$F$20000,V$2,'يومية المقاولين'!$A$7:$A$20000,$A$1) -> 0 | X14: =SUMIFS('يومية المقاولين'!$K$7:$K$20000,'يومية المقاولين'!$I$7:$I$20000,$A14,'يومية المقاولين'!$F$7:$F$20000,X$2,'يومية المقاولين'!$A$7:$A$20000,$A$1) -> 0 | Y14: =SUMIFS('يومية المقاولين'!$M$7:$M$20000,'يومية المقاولين'!$I$7:$I$20000,$A14,'يومية المقاولين'!$F$7:$F$20000,X$2,'يومية المقاولين'!$A$7:$A$20000,$A$1) -> 0 | Z14: =SUMIFS('يومية المقاولين'!$K$7:$K$20000,'يومية المقاولين'!$I$7:$I$20000,$A14,'يومية المقاولين'!$F$7:$F$20000,Z$2,'يومية المقاولين'!$A$7:$A$20000,$A$1) -> 0 | AA14: =SUMIFS('يومية المقاولين'!$M$7:$M$20000,'يومية المقاولين'!$I$7:$I$20000,$A14,'يومية المقاولين'!$F$7:$F$20000,Z$2,'يومية المقاولين'!$A$7:$A$20000,$A$1) -> 0 | AB14: =SUMIFS('يومية المقاولين'!$K$7:$K$20000,'يومية المقاولين'!$I$7:$I$20000,$A14,'يومية المقاولين'!$F$7:$F$20000,AB$2,'يومية المقاولين'!$A$7:$A$20000,$A$1) -> 0 | AC14: =SUMIFS('يومية المقاولين'!$M$7:$M$20000,'يومية المقاولين'!$I$7:$I$20000,$A14,'يومية المقاولين'!$F$7:$F$20000,AB$2,'يومية المقاولين'!$A$7:$A$20000,$A$1) -> 0 | AD14: =SUMIFS('يومية المقاولين'!$K$7:$K$20000,'يومية المقاولين'!$I$7:$I$20000,$A14,'يومية المقاولين'!$F$7:$F$20000,AD$2,'يومية المقاولين'!$A$7:$A$20000,$A$1) -> 0 | AE14: =SUMIFS('يومية المقاولين'!$M$7:$M$20000,'يومية المقاولين'!$I$7:$I$20000,$A14,'يومية المقاولين'!$F$7:$F$20000,AD$2,'يومية المقاولين'!$A$7:$A$20000,$A$1) -> 0 | AF14: =SUMIFS('يومية المقاولين'!$K$7:$K$20000,'يومية المقاولين'!$I$7:$I$20000,$A14,'يومية المقاولين'!$F$7:$F$20000,AF$2,'يومية المقاولين'!$A$7:$A$20000,$A$1) -> 0 | AG14: =SUMIFS('يومية المقاولين'!$M$7:$M$20000,'يومية المقاولين'!$I$7:$I$20000,$A14,'يومية المقاولين'!$F$7:$F$20000,AF$2,'يومية المقاولين'!$A$7:$A$20000,$A$1) -> 0 | AH14: 0 | AI14: 0
A15: نقل | B15: =SUMIFS('يومية المقاولين'!$K$7:$K$20000,'يومية المقاولين'!$I$7:$I$20000,$A15,'يومية المقاولين'!$F$7:$F$20000,B$2,'يومية المقاولين'!$A$7:$A$20000,$A$1) -> 0 | C15: =SUMIFS('يومية المقاولين'!$M$7:$M$20000,'يومية المقاولين'!$I$7:$I$20000,$A15,'يومية المقاولين'!$F$7:$F$20000,B$2,'يومية المقاولين'!$A$7:$A$20000,$A$1) -> 0 | D15: =SUMIFS('يومية المقاولين'!$K$7:$K$20000,'يومية المقاولين'!$I$7:$I$20000,$A15,'يومية المقاولين'!$F$7:$F$20000,D$2,'يومية المقاولين'!$A$7:$A$20000,$A$1) -> 0 | E15: =SUMIFS('يومية المقاولين'!$M$7:$M$20000,'يومية المقاولين'!$I$7:$I$20000,$A15,'يومية المقاولين'!$F$7:$F$20000,D$2,'يومية المقاولين'!$A$7:$A$20000,$A$1) -> 0 | F15: =SUMIFS('يومية المقاولين'!$K$7:$K$20000,'يومية المقاولين'!$I$7:$I$20000,$A15,'يومية المقاولين'!$F$7:$F$20000,F$2,'يومية المقاولين'!$A$7:$A$20000,$A$1) -> 0 | G15: =SUMIFS('يومية المقاولين'!$M$7:$M$20000,'يومية المقاولين'!$I$7:$I$20000,$A15,'يومية المقاولين'!$F$7:$F$20000,F$2,'يومية المقاولين'!$A$7:$A$20000,$A$1) -> 0 | H15: =SUMIFS('يومية المقاولين'!$K$7:$K$20000,'يومية المقاولين'!$I$7:$I$20000,$A15,'يومية المقاولين'!$F$7:$F$20000,H$2,'يومية المقاولين'!$A$7:$A$20000,$A$1) -> 0 | I15: =SUMIFS('يومية المقاولين'!$M$7:$M$20000,'يومية المقاولين'!$I$7:$I$20000,$A15,'يومية المقاولين'!$F$7:$F$20000,H$2,'يومية المقاولين'!$A$7:$A$20000,$A$1) -> 0 | J15: =SUMIFS('يومية المقاولين'!$K$7:$K$20000,'يومية المقاولين'!$I$7:$I$20000,$A15,'يومية المقاولين'!$F$7:$F$20000,J$2,'يومية المقاولين'!$A$7:$A$20000,$A$1) -> 0 | K15: =SUMIFS('يومية المقاولين'!$M$7:$M$20000,'يومية المقاولين'!$I$7:$I$20000,$A15,'يومية المقاولين'!$F$7:$F$20000,J$2,'يومية المقاولين'!$A$7:$A$20000,$A$1) -> 0 | L15: =SUMIFS('يومية المقاولين'!$K$7:$K$20000,'يومية المقاولين'!$I$7:$I$20000,$A15,'يومية المقاولين'!$F$7:$F$20000,L$2,'يومية المقاولين'!$A$7:$A$20000,$A$1) -> 0 | M15: =SUMIFS('يومية المقاولين'!$M$7:$M$20000,'يومية المقاولين'!$I$7:$I$20000,$A15,'يومية المقاولين'!$F$7:$F$20000,L$2,'يومية المقاولين'!$A$7:$A$20000,$A$1) -> 0 | N15: =SUMIFS('يومية المقاولين'!$K$7:$K$20000,'يومية المقاولين'!$I$7:$I$20000,$A15,'يومية المقاولين'!$F$7:$F$20000,N$2,'يومية المقاولين'!$A$7:$A$20000,$A$1) -> 0 | O15: =SUMIFS('يومية المقاولين'!$M$7:$M$20000,'يومية المقاولين'!$I$7:$I$20000,$A15,'يومية المقاولين'!$F$7:$F$20000,N$2,'يومية المقاولين'!$A$7:$A$20000,$A$1) -> 0 | P15: =SUMIFS('يومية المقاولين'!$K$7:$K$20000,'يومية المقاولين'!$I$7:$I$20000,$A15,'يومية المقاولين'!$F$7:$F$20000,P$2,'يومية المقاولين'!$A$7:$A$20000,$A$1) -> 0 | Q15: =SUMIFS('يومية المقاولين'!$M$7:$M$20000,'يومية المقاولين'!$I$7:$I$20000,$A15,'يومية المقاولين'!$F$7:$F$20000,P$2,'يومية المقاولين'!$A$7:$A$20000,$A$1) -> 0 | R15: =SUMIFS('يومية المقاولين'!$K$7:$K$20000,'يومية المقاولين'!$I$7:$I$20000,$A15,'يومية المقاولين'!$F$7:$F$20000,R$2,'يومية المقاولين'!$A$7:$A$20000,$A$1) -> 0 | S15: =SUMIFS('يومية المقاولين'!$M$7:$M$20000,'يومية المقاولين'!$I$7:$I$20000,$A15,'يومية المقاولين'!$F$7:$F$20000,R$2,'يومية المقاولين'!$A$7:$A$20000,$A$1) -> 0 | T15: =SUMIFS('يومية المقاولين'!$K$7:$K$20000,'يومية المقاولين'!$I$7:$I$20000,$A15,'يومية المقاولين'!$F$7:$F$20000,T$2,'يومية المقاولين'!$A$7:$A$20000,$A$1) -> 0 | U15: =SUMIFS('يومية المقاولين'!$M$7:$M$20000,'يومية المقاولين'!$I$7:$I$20000,$A15,'يومية المقاولين'!$F$7:$F$20000,T$2,'يومية المقاولين'!$A$7:$A$20000,$A$1) -> 0 | V15: =SUMIFS('يومية المقاولين'!$K$7:$K$20000,'يومية المقاولين'!$I$7:$I$20000,$A15,'يومية المقاولين'!$F$7:$F$20000,V$2,'يومية المقاولين'!$A$7:$A$20000,$A$1) -> 0 | W15: =SUMIFS('يومية المقاولين'!$M$7:$M$20000,'يومية المقاولين'!$I$7:$I$20000,$A15,'يومية المقاولين'!$F$7:$F$20000,V$2,'يومية المقاولين'!$A$7:$A$20000,$A$1) -> 0 | X15: =SUMIFS('يومية المقاولين'!$K$7:$K$20000,'يومية المقاولين'!$I$7:$I$20000,$A15,'يومية المقاولين'!$F$7:$F$20000,X$2,'يومية المقاولين'!$A$7:$A$20000,$A$1) -> 0 | Y15: =SUMIFS('يومية المقاولين'!$M$7:$M$20000,'يومية المقاولين'!$I$7:$I$20000,$A15,'يومية المقاولين'!$F$7:$F$20000,X$2,'يومية المقاولين'!$A$7:$A$20000,$A$1) -> 0 | Z15: =SUMIFS('يومية المقاولين'!$K$7:$K$20000,'يومية المقاولين'!$I$7:$I$20000,$A15,'يومية المقاولين'!$F$7:$F$20000,Z$2,'يومية المقاولين'!$A$7:$A$20000,$A$1) -> 0 | AA15: =SUMIFS('يومية المقاولين'!$M$7:$M$20000,'يومية المقاولين'!$I$7:$I$20000,$A15,'يومية المقاولين'!$F$7:$F$20000,Z$2,'يومية المقاولين'!$A$7:$A$20000,$A$1) -> 0 | AB15: =SUMIFS('يومية المقاولين'!$K$7:$K$20000,'يومية المقاولين'!$I$7:$I$20000,$A15,'يومية المقاولين'!$F$7:$F$20000,AB$2,'يومية المقاولين'!$A$7:$A$20000,$A$1) -> 0 | AC15: =SUMIFS('يومية المقاولين'!$M$7:$M$20000,'يومية المقاولين'!$I$7:$I$20000,$A15,'يومية المقاولين'!$F$7:$F$20000,AB$2,'يومية المقاولين'!$A$7:$A$20000,$A$1) -> 0 | AD15: =SUMIFS('يومية المقاولين'!$K$7:$K$20000,'يومية المقاولين'!$I$7:$I$20000,$A15,'يومية المقاولين'!$F$7:$F$20000,AD$2,'يومية المقاولين'!$A$7:$A$20000,$A$1) -> 0 | AE15: =SUMIFS('يومية المقاولين'!$M$7:$M$20000,'يومية المقاولين'!$I$7:$I$20000,$A15,'يومية المقاولين'!$F$7:$F$20000,AD$2,'يومية المقاولين'!$A$7:$A$20000,$A$1) -> 0 | AF15: =SUMIFS('يومية المقاولين'!$K$7:$K$20000,'يومية المقاولين'!$I$7:$I$20000,$A15,'يومية المقاولين'!$F$7:$F$20000,AF$2,'يومية المقاولين'!$A$7:$A$20000,$A$1) -> 0 | AG15: =SUMIFS('يومية المقاولين'!$M$7:$M$20000,'يومية المقاولين'!$I$7:$I$20000,$A15,'يومية المقاولين'!$F$7:$F$20000,AF$2,'يومية المقاولين'!$A$7:$A$20000,$A$1) -> 0 | AH15: 0 | AI15: 0
A16: سرطانات | B16: =SUMIFS('يومية المقاولين'!$K$7:$K$20000,'يومية المقاولين'!$I$7:$I$20000,$A16,'يومية المقاولين'!$F$7:$F$20000,B$2,'يومية المقاولين'!$A$7:$A$20000,$A$1) -> 0 | C16: =SUMIFS('يومية المقاولين'!$M$7:$M$20000,'يومية المقاولين'!$I$7:$I$20000,$A16,'يومية المقاولين'!$F$7:$F$20000,B$2,'يومية المقاولين'!$A$7:$A$20000,$A$1) -> 0 | D16: =SUMIFS('يومية المقاولين'!$K$7:$K$20000,'يومية المقاولين'!$I$7:$I$20000,$A16,'يومية المقاولين'!$F$7:$F$20000,D$2,'يومية المقاولين'!$A$7:$A$20000,$A$1) -> 0 | E16: =SUMIFS('يومية المقاولين'!$M$7:$M$20000,'يومية المقاولين'!$I$7:$I$20000,$A16,'يومية المقاولين'!$F$7:$F$20000,D$2,'يومية المقاولين'!$A$7:$A$20000,$A$1) -> 0 | F16: =SUMIFS('يومية المقاولين'!$K$7:$K$20000,'يومية المقاولين'!$I$7:$I$20000,$A16,'يومية المقاولين'!$F$7:$F$20000,F$2,'يومية المقاولين'!$A$7:$A$20000,$A$1) -> 0 | G16: =SUMIFS('يومية المقاولين'!$M$7:$M$20000,'يومية المقاولين'!$I$7:$I$20000,$A16,'يومية المقاولين'!$F$7:$F$20000,F$2,'يومية المقاولين'!$A$7:$A$20000,$A$1) -> 0 | H16: =SUMIFS('يومية المقاولين'!$K$7:$K$20000,'يومية المقاولين'!$I$7:$I$20000,$A16,'يومية المقاولين'!$F$7:$F$20000,H$2,'يومية المقاولين'!$A$7:$A$20000,$A$1) -> 0 | I16: =SUMIFS('يومية المقاولين'!$M$7:$M$20000,'يومية المقاولين'!$I$7:$I$20000,$A16,'يومية المقاولين'!$F$7:$F$20000,H$2,'يومية المقاولين'!$A$7:$A$20000,$A$1) -> 0 | J16: =SUMIFS('يومية المقاولين'!$K$7:$K$20000,'يومية المقاولين'!$I$7:$I$20000,$A16,'يومية المقاولين'!$F$7:$F$20000,J$2,'يومية المقاولين'!$A$7:$A$20000,$A$1) -> 0 | K16: =SUMIFS('يومية المقاولين'!$M$7:$M$20000,'يومية المقاولين'!$I$7:$I$20000,$A16,'يومية المقاولين'!$F$7:$F$20000,J$2,'يومية المقاولين'!$A$7:$A$20000,$A$1) -> 0 | L16: =SUMIFS('يومية المقاولين'!$K$7:$K$20000,'يومية المقاولين'!$I$7:$I$20000,$A16,'يومية المقاولين'!$F$7:$F$20000,L$2,'يومية المقاولين'!$A$7:$A$20000,$A$1) -> 0 | M16: =SUMIFS('يومية المقاولين'!$M$7:$M$20000,'يومية المقاولين'!$I$7:$I$20000,$A16,'يومية المقاولين'!$F$7:$F$20000,L$2,'يومية المقاولين'!$A$7:$A$20000,$A$1) -> 0 | N16: =SUMIFS('يومية المقاولين'!$K$7:$K$20000,'يومية المقاولين'!$I$7:$I$20000,$A16,'يومية المقاولين'!$F$7:$F$20000,N$2,'يومية المقاولين'!$A$7:$A$20000,$A$1) -> 0 | O16: =SUMIFS('يومية المقاولين'!$M$7:$M$20000,'يومية المقاولين'!$I$7:$I$20000,$A16,'يومية المقاولين'!$F$7:$F$20000,N$2,'يومية المقاولين'!$A$7:$A$20000,$A$1) -> 0 | P16: =SUMIFS('يومية المقاولين'!$K$7:$K$20000,'يومية المقاولين'!$I$7:$I$20000,$A16,'يومية المقاولين'!$F$7:$F$20000,P$2,'يومية المقاولين'!$A$7:$A$20000,$A$1) -> 0 | Q16: =SUMIFS('يومية المقاولين'!$M$7:$M$20000,'يومية المقاولين'!$I$7:$I$20000,$A16,'يومية المقاولين'!$F$7:$F$20000,P$2,'يومية المقاولين'!$A$7:$A$20000,$A$1) -> 0 | R16: =SUMIFS('يومية المقاولين'!$K$7:$K$20000,'يومية المقاولين'!$I$7:$I$20000,$A16,'يومية المقاولين'!$F$7:$F$20000,R$2,'يومية المقاولين'!$A$7:$A$20000,$A$1) -> 0 | S16: =SUMIFS('يومية المقاولين'!$M$7:$M$20000,'يومية المقاولين'!$I$7:$I$20000,$A16,'يومية المقاولين'!$F$7:$F$20000,R$2,'يومية المقاولين'!$A$7:$A$20000,$A$1) -> 0 | T16: =SUMIFS('يومية المقاولين'!$K$7:$K$20000,'يومية المقاولين'!$I$7:$I$20000,$A16,'يومية المقاولين'!$F$7:$F$20000,T$2,'يومية المقاولين'!$A$7:$A$20000,$A$1) -> 0 | U16: =SUMIFS('يومية المقاولين'!$M$7:$M$20000,'يومية المقاولين'!$I$7:$I$20000,$A16,'يومية المقاولين'!$F$7:$F$20000,T$2,'يومية المقاولين'!$A$7:$A$20000,$A$1) -> 0 | V16: =SUMIFS('يومية المقاولين'!$K$7:$K$20000,'يومية المقاولين'!$I$7:$I$20000,$A16,'يومية المقاولين'!$F$7:$F$20000,V$2,'يومية المقاولين'!$A$7:$A$20000,$A$1) -> 0 | W16: =SUMIFS('يومية المقاولين'!$M$7:$M$20000,'يومية المقاولين'!$I$7:$I$20000,$A16,'يومية المقاولين'!$F$7:$F$20000,V$2,'يومية المقاولين'!$A$7:$A$20000,$A$1) -> 0 | X16: =SUMIFS('يومية المقاولين'!$K$7:$K$20000,'يومية المقاولين'!$I$7:$I$20000,$A16,'يومية المقاولين'!$F$7:$F$20000,X$2,'يومية المقاولين'!$A$7:$A$20000,$A$1) -> 0 | Y16: =SUMIFS('يومية المقاولين'!$M$7:$M$20000,'يومية المقاولين'!$I$7:$I$20000,$A16,'يومية المقاولين'!$F$7:$F$20000,X$2,'يومية المقاولين'!$A$7:$A$20000,$A$1) -> 0 | Z16: =SUMIFS('يومية المقاولين'!$K$7:$K$20000,'يومية المقاولين'!$I$7:$I$20000,$A16,'يومية المقاولين'!$F$7:$F$20000,Z$2,'يومية المقاولين'!$A$7:$A$20000,$A$1) -> 0 | AA16: =SUMIFS('يومية المقاولين'!$M$7:$M$20000,'يومية المقاولين'!$I$7:$I$20000,$A16,'يومية المقاولين'!$F$7:$F$20000,Z$2,'يومية المقاولين'!$A$7:$A$20000,$A$1) -> 0 | AB16: =SUMIFS('يومية المقاولين'!$K$7:$K$20000,'يومية المقاولين'!$I$7:$I$20000,$A16,'يومية المقاولين'!$F$7:$F$20000,AB$2,'يومية المقاولين'!$A$7:$A$20000,$A$1) -> 0 | AC16: =SUMIFS('يومية المقاولين'!$M$7:$M$20000,'يومية المقاولين'!$I$7:$I$20000,$A16,'يومية المقاولين'!$F$7:$F$20000,AB$2,'يومية المقاولين'!$A$7:$A$20000,$A$1) -> 0 | AD16: =SUMIFS('يومية المقاولين'!$K$7:$K$20000,'يومية المقاولين'!$I$7:$I$20000,$A16,'يومية المقاولين'!$F$7:$F$20000,AD$2,'يومية المقاولين'!$A$7:$A$20000,$A$1) -> 0 | AE16: =SUMIFS('يومية المقاولين'!$M$7:$M$20000,'يومية المقاولين'!$I$7:$I$20000,$A16,'يومية المقاولين'!$F$7:$F$20000,AD$2,'يومية المقاولين'!$A$7:$A$20000,$A$1) -> 0 | AF16: =SUMIFS('يومية المقاولين'!$K$7:$K$20000,'يومية المقاولين'!$I$7:$I$20000,$A16,'يومية المقاولين'!$F$7:$F$20000,AF$2,'يومية المقاولين'!$A$7:$A$20000,$A$1) -> 0 | AG16: =SUMIFS('يومية المقاولين'!$M$7:$M$20000,'يومية المقاولين'!$I$7:$I$20000,$A16,'يومية المقاولين'!$F$7:$F$20000,AF$2,'يومية المقاولين'!$A$7:$A$20000,$A$1) -> 0 | AH16: 0 | AI16: 0
A17: برسيم | B17: =SUMIFS('يومية المقاولين'!$K$7:$K$20000,'يومية المقاولين'!$I$7:$I$20000,$A17,'يومية المقاولين'!$F$7:$F$20000,B$2,'يومية المقاولين'!$A$7:$A$20000,$A$1) -> 0 | C17: =SUMIFS('يومية المقاولين'!$M$7:$M$20000,'يومية المقاولين'!$I$7:$I$20000,$A17,'يومية المقاولين'!$F$7:$F$20000,B$2,'يومية المقاولين'!$A$7:$A$20000,$A$1) -> 0 | D17: =SUMIFS('يومية المقاولين'!$K$7:$K$20000,'يومية المقاولين'!$I$7:$I$20000,$A17,'يومية المقاولين'!$F$7:$F$20000,D$2,'يومية المقاولين'!$A$7:$A$20000,$A$1) -> 0 | E17: =SUMIFS('يومية المقاولين'!$M$7:$M$20000,'يومية المقاولين'!$I$7:$I$20000,$A17,'يومية المقاولين'!$F$7:$F$20000,D$2,'يومية المقاولين'!$A$7:$A$20000,$A$1) -> 0 | F17: =SUMIFS('يومية المقاولين'!$K$7:$K$20000,'يومية المقاولين'!$I$7:$I$20000,$A17,'يومية المقاولين'!$F$7:$F$20000,F$2,'يومية المقاولين'!$A$7:$A$20000,$A$1) -> 0 | G17: =SUMIFS('يومية المقاولين'!$M$7:$M$20000,'يومية المقاولين'!$I$7:$I$20000,$A17,'يومية المقاولين'!$F$7:$F$20000,F$2,'يومية المقاولين'!$A$7:$A$20000,$A$1) -> 0 | H17: =SUMIFS('يومية المقاولين'!$K$7:$K$20000,'يومية المقاولين'!$I$7:$I$20000,$A17,'يومية المقاولين'!$F$7:$F$20000,H$2,'يومية المقاولين'!$A$7:$A$20000,$A$1) -> 0 | I17: =SUMIFS('يومية المقاولين'!$M$7:$M$20000,'يومية المقاولين'!$I$7:$I$20000,$A17,'يومية المقاولين'!$F$7:$F$20000,H$2,'يومية المقاولين'!$A$7:$A$20000,$A$1) -> 0 | J17: =SUMIFS('يومية المقاولين'!$K$7:$K$20000,'يومية المقاولين'!$I$7:$I$20000,$A17,'يومية المقاولين'!$F$7:$F$20000,J$2,'يومية المقاولين'!$A$7:$A$20000,$A$1) -> 0 | K17: =SUMIFS('يومية المقاولين'!$M$7:$M$20000,'يومية المقاولين'!$I$7:$I$20000,$A17,'يومية المقاولين'!$F$7:$F$20000,J$2,'يومية المقاولين'!$A$7:$A$20000,$A$1) -> 0 | L17: =SUMIFS('يومية المقاولين'!$K$7:$K$20000,'يومية المقاولين'!$I$7:$I$20000,$A17,'يومية المقاولين'!$F$7:$F$20000,L$2,'يومية المقاولين'!$A$7:$A$20000,$A$1) -> 0 | M17: =SUMIFS('يومية المقاولين'!$M$7:$M$20000,'يومية المقاولين'!$I$7:$I$20000,$A17,'يومية المقاولين'!$F$7:$F$20000,L$2,'يومية المقاولين'!$A$7:$A$20000,$A$1) -> 0 | N17: =SUMIFS('يومية المقاولين'!$K$7:$K$20000,'يومية المقاولين'!$I$7:$I$20000,$A17,'يومية المقاولين'!$F$7:$F$20000,N$2,'يومية المقاولين'!$A$7:$A$20000,$A$1) -> 0 | O17: =SUMIFS('يومية المقاولين'!$M$7:$M$20000,'يومية المقاولين'!$I$7:$I$20000,$A17,'يومية المقاولين'!$F$7:$F$20000,N$2,'يومية المقاولين'!$A$7:$A$20000,$A$1) -> 0 | P17: =SUMIFS('يومية المقاولين'!$K$7:$K$20000,'يومية المقاولين'!$I$7:$I$20000,$A17,'يومية المقاولين'!$F$7:$F$20000,P$2,'يومية المقاولين'!$A$7:$A$20000,$A$1) -> 0 | Q17: =SUMIFS('يومية المقاولين'!$M$7:$M$20000,'يومية المقاولين'!$I$7:$I$20000,$A17,'يومية المقاولين'!$F$7:$F$20000,P$2,'يومية المقاولين'!$A$7:$A$20000,$A$1) -> 0 | R17: =SUMIFS('يومية المقاولين'!$K$7:$K$20000,'يومية المقاولين'!$I$7:$I$20000,$A17,'يومية المقاولين'!$F$7:$F$20000,R$2,'يومية المقاولين'!$A$7:$A$20000,$A$1) -> 0 | S17: =SUMIFS('يومية المقاولين'!$M$7:$M$20000,'يومية المقاولين'!$I$7:$I$20000,$A17,'يومية المقاولين'!$F$7:$F$20000,R$2,'يومية المقاولين'!$A$7:$A$20000,$A$1) -> 0 | T17: =SUMIFS('يومية المقاولين'!$K$7:$K$20000,'يومية المقاولين'!$I$7:$I$20000,$A17,'يومية المقاولين'!$F$7:$F$20000,T$2,'يومية المقاولين'!$A$7:$A$20000,$A$1) -> 1.5 | U17: =SUMIFS('يومية المقاولين'!$M$7:$M$20000,'يومية المقاولين'!$I$7:$I$20000,$A17,'يومية المقاولين'!$F$7:$F$20000,T$2,'يومية المقاولين'!$A$7:$A$20000,$A$1) -> 525 | V17: =SUMIFS('يومية المقاولين'!$K$7:$K$20000,'يومية المقاولين'!$I$7:$I$20000,$A17,'يومية المقاولين'!$F$7:$F$20000,V$2,'يومية المقاولين'!$A$7:$A$20000,$A$1) -> 0 | W17: =SUMIFS('يومية المقاولين'!$M$7:$M$20000,'يومية المقاولين'!$I$7:$I$20000,$A17,'يومية المقاولين'!$F$7:$F$20000,V$2,'يومية المقاولين'!$A$7:$A$20000,$A$1) -> 0 | X17: =SUMIFS('يومية المقاولين'!$K$7:$K$20000,'يومية المقاولين'!$I$7:$I$20000,$A17,'يومية المقاولين'!$F$7:$F$20000,X$2,'يومية المقاولين'!$A$7:$A$20000,$A$1) -> 0 | Y17: =SUMIFS('يومية المقاولين'!$M$7:$M$20000,'يومية المقاولين'!$I$7:$I$20000,$A17,'يومية المقاولين'!$F$7:$F$20000,X$2,'يومية المقاولين'!$A$7:$A$20000,$A$1) -> 0 | Z17: =SUMIFS('يومية المقاولين'!$K$7:$K$20000,'يومية المقاولين'!$I$7:$I$20000,$A17,'يومية المقاولين'!$F$7:$F$20000,Z$2,'يومية المقاولين'!$A$7:$A$20000,$A$1) -> 0 | AA17: =SUMIFS('يومية المقاولين'!$M$7:$M$20000,'يومية المقاولين'!$I$7:$I$20000,$A17,'يومية المقاولين'!$F$7:$F$20000,Z$2,'يومية المقاولين'!$A$7:$A$20000,$A$1) -> 0 | AB17: =SUMIFS('يومية المقاولين'!$K$7:$K$20000,'يومية المقاولين'!$I$7:$I$20000,$A17,'يومية المقاولين'!$F$7:$F$20000,AB$2,'يومية المقاولين'!$A$7:$A$20000,$A$1) -> 0 | AC17: =SUMIFS('يومية المقاولين'!$M$7:$M$20000,'يومية المقاولين'!$I$7:$I$20000,$A17,'يومية المقاولين'!$F$7:$F$20000,AB$2,'يومية المقاولين'!$A$7:$A$20000,$A$1) -> 0 | AD17: =SUMIFS('يومية المقاولين'!$K$7:$K$20000,'يومية المقاولين'!$I$7:$I$20000,$A17,'يومية المقاولين'!$F$7:$F$20000,AD$2,'يومية المقاولين'!$A$7:$A$20000,$A$1) -> 0 | AE17: =SUMIFS('يومية المقاولين'!$M$7:$M$20000,'يومية المقاولين'!$I$7:$I$20000,$A17,'يومية المقاولين'!$F$7:$F$20000,AD$2,'يومية المقاولين'!$A$7:$A$20000,$A$1) -> 0 | AF17: =SUMIFS('يومية المقاولين'!$K$7:$K$20000,'يومية المقاولين'!$I$7:$I$20000,$A17,'يومية المقاولين'!$F$7:$F$20000,AF$2,'يومية المقاولين'!$A$7:$A$20000,$A$1) -> 0 | AG17: =SUMIFS('يومية المقاولين'!$M$7:$M$20000,'يومية المقاولين'!$I$7:$I$20000,$A17,'يومية المقاولين'!$F$7:$F$20000,AF$2,'يومية المقاولين'!$A$7:$A$20000,$A$1) -> 0 | AH17: 1.5 | AI17: 525
A18: زراعة | B18: =SUMIFS('يومية المقاولين'!$K$7:$K$20000,'يومية المقاولين'!$I$7:$I$20000,$A18,'يومية المقاولين'!$F$7:$F$20000,B$2,'يومية المقاولين'!$A$7:$A$20000,$A$1) -> 0 | C18: =SUMIFS('يومية المقاولين'!$M$7:$M$20000,'يومية المقاولين'!$I$7:$I$20000,$A18,'يومية المقاولين'!$F$7:$F$20000,B$2,'يومية المقاولين'!$A$7:$A$20000,$A$1) -> 0 | D18: =SUMIFS('يومية المقاولين'!$K$7:$K$20000,'يومية المقاولين'!$I$7:$I$20000,$A18,'يومية المقاولين'!$F$7:$F$20000,D$2,'يومية المقاولين'!$A$7:$A$20000,$A$1) -> 0 | E18: =SUMIFS('يومية المقاولين'!$M$7:$M$20000,'يومية المقاولين'!$I$7:$I$20000,$A18,'يومية المقاولين'!$F$7:$F$20000,D$2,'يومية المقاولين'!$A$7:$A$20000,$A$1) -> 0 | F18: =SUMIFS('يومية المقاولين'!$K$7:$K$20000,'يومية المقاولين'!$I$7:$I$20000,$A18,'يومية المقاولين'!$F$7:$F$20000,F$2,'يومية المقاولين'!$A$7:$A$20000,$A$1) -> 0 | G18: =SUMIFS('يومية المقاولين'!$M$7:$M$20000,'يومية المقاولين'!$I$7:$I$20000,$A18,'يومية المقاولين'!$F$7:$F$20000,F$2,'يومية المقاولين'!$A$7:$A$20000,$A$1) -> 0 | H18: =SUMIFS('يومية المقاولين'!$K$7:$K$20000,'يومية المقاولين'!$I$7:$I$20000,$A18,'يومية المقاولين'!$F$7:$F$20000,H$2,'يومية المقاولين'!$A$7:$A$20000,$A$1) -> 65.5 | I18: =SUMIFS('يومية المقاولين'!$M$7:$M$20000,'يومية المقاولين'!$I$7:$I$20000,$A18,'يومية المقاولين'!$F$7:$F$20000,H$2,'يومية المقاولين'!$A$7:$A$20000,$A$1) -> 22925 | J18: =SUMIFS('يومية المقاولين'!$K$7:$K$20000,'يومية المقاولين'!$I$7:$I$20000,$A18,'يومية المقاولين'!$F$7:$F$20000,J$2,'يومية المقاولين'!$A$7:$A$20000,$A$1) -> 0 | K18: =SUMIFS('يومية المقاولين'!$M$7:$M$20000,'يومية المقاولين'!$I$7:$I$20000,$A18,'يومية المقاولين'!$F$7:$F$20000,J$2,'يومية المقاولين'!$A$7:$A$20000,$A$1) -> 0 | L18: =SUMIFS('يومية المقاولين'!$K$7:$K$20000,'يومية المقاولين'!$I$7:$I$20000,$A18,'يومية المقاولين'!$F$7:$F$20000,L$2,'يومية المقاولين'!$A$7:$A$20000,$A$1) -> 0 | M18: =SUMIFS('يومية المقاولين'!$M$7:$M$20000,'يومية المقاولين'!$I$7:$I$20000,$A18,'يومية المقاولين'!$F$7:$F$20000,L$2,'يومية المقاولين'!$A$7:$A$20000,$A$1) -> 0 | N18: =SUMIFS('يومية المقاولين'!$K$7:$K$20000,'يومية المقاولين'!$I$7:$I$20000,$A18,'يومية المقاولين'!$F$7:$F$20000,N$2,'يومية المقاولين'!$A$7:$A$20000,$A$1) -> 0 | O18: =SUMIFS('يومية المقاولين'!$M$7:$M$20000,'يومية المقاولين'!$I$7:$I$20000,$A18,'يومية المقاولين'!$F$7:$F$20000,N$2,'يومية المقاولين'!$A$7:$A$20000,$A$1) -> 0 | P18: =SUMIFS('يومية المقاولين'!$K$7:$K$20000,'يومية المقاولين'!$I$7:$I$20000,$A18,'يومية المقاولين'!$F$7:$F$20000,P$2,'يومية المقاولين'!$A$7:$A$20000,$A$1) -> 0 | Q18: =SUMIFS('يومية المقاولين'!$M$7:$M$20000,'يومية المقاولين'!$I$7:$I$20000,$A18,'يومية المقاولين'!$F$7:$F$20000,P$2,'يومية المقاولين'!$A$7:$A$20000,$A$1) -> 0 | R18: =SUMIFS('يومية المقاولين'!$K$7:$K$20000,'يومية المقاولين'!$I$7:$I$20000,$A18,'يومية المقاولين'!$F$7:$F$20000,R$2,'يومية المقاولين'!$A$7:$A$20000,$A$1) -> 0 | S18: =SUMIFS('يومية المقاولين'!$M$7:$M$20000,'يومية المقاولين'!$I$7:$I$20000,$A18,'يومية المقاولين'!$F$7:$F$20000,R$2,'يومية المقاولين'!$A$7:$A$20000,$A$1) -> 0 | T18: =SUMIFS('يومية المقاولين'!$K$7:$K$20000,'يومية المقاولين'!$I$7:$I$20000,$A18,'يومية المقاولين'!$F$7:$F$20000,T$2,'يومية المقاولين'!$A$7:$A$20000,$A$1) -> 0 | U18: =SUMIFS('يومية المقاولين'!$M$7:$M$20000,'يومية المقاولين'!$I$7:$I$20000,$A18,'يومية المقاولين'!$F$7:$F$20000,T$2,'يومية المقاولين'!$A$7:$A$20000,$A$1) -> 0 | V18: =SUMIFS('يومية المقاولين'!$K$7:$K$20000,'يومية المقاولين'!$I$7:$I$20000,$A18,'يومية المقاولين'!$F$7:$F$20000,V$2,'يومية المقاولين'!$A$7:$A$20000,$A$1) -> 0 | W18: =SUMIFS('يومية المقاولين'!$M$7:$M$20000,'يومية المقاولين'!$I$7:$I$20000,$A18,'يومية المقاولين'!$F$7:$F$20000,V$2,'يومية المقاولين'!$A$7:$A$20000,$A$1) -> 0 | X18: =SUMIFS('يومية المقاولين'!$K$7:$K$20000,'يومية المقاولين'!$I$7:$I$20000,$A18,'يومية المقاولين'!$F$7:$F$20000,X$2,'يومية المقاولين'!$A$7:$A$20000,$A$1) -> 0 | Y18: =SUMIFS('يومية المقاولين'!$M$7:$M$20000,'يومية المقاولين'!$I$7:$I$20000,$A18,'يومية المقاولين'!$F$7:$F$20000,X$2,'يومية المقاولين'!$A$7:$A$20000,$A$1) -> 0 | Z18: =SUMIFS('يومية المقاولين'!$K$7:$K$20000,'يومية المقاولين'!$I$7:$I$20000,$A18,'يومية المقاولين'!$F$7:$F$20000,Z$2,'يومية المقاولين'!$A$7:$A$20000,$A$1) -> 0 | AA18: =SUMIFS('يومية المقاولين'!$M$7:$M$20000,'يومية المقاولين'!$I$7:$I$20000,$A18,'يومية المقاولين'!$F$7:$F$20000,Z$2,'يومية المقاولين'!$A$7:$A$20000,$A$1) -> 0 | AB18: =SUMIFS('يومية المقاولين'!$K$7:$K$20000,'يومية المقاولين'!$I$7:$I$20000,$A18,'يومية المقاولين'!$F$7:$F$20000,AB$2,'يومية المقاولين'!$A$7:$A$20000,$A$1) -> 2 | AC18: =SUMIFS('يومية المقاولين'!$M$7:$M$20000,'يومية المقاولين'!$I$7:$I$20000,$A18,'يومية المقاولين'!$F$7:$F$20000,AB$2,'يومية المقاولين'!$A$7:$A$20000,$A$1) -> 700 | AD18: =SUMIFS('يومية المقاولين'!$K$7:$K$20000,'يومية المقاولين'!$I$7:$I$20000,$A18,'يومية المقاولين'!$F$7:$F$20000,AD$2,'يومية المقاولين'!$A$7:$A$20000,$A$1) -> 0 | AE18: =SUMIFS('يومية المقاولين'!$M$7:$M$20000,'يومية المقاولين'!$I$7:$I$20000,$A18,'يومية المقاولين'!$F$7:$F$20000,AD$2,'يومية المقاولين'!$A$7:$A$20000,$A$1) -> 0 | AF18: =SUMIFS('يومية المقاولين'!$K$7:$K$20000,'يومية المقاولين'!$I$7:$I$20000,$A18,'يومية المقاولين'!$F$7:$F$20000,AF$2,'يومية المقاولين'!$A$7:$A$20000,$A$1) -> 2 | AG18: =SUMIFS('يومية المقاولين'!$M$7:$M$20000,'يومية المقاولين'!$I$7:$I$20000,$A18,'يومية المقاولين'!$F$7:$F$20000,AF$2,'يومية المقاولين'!$A$7:$A$20000,$A$1) -> 700 | AH18: 69.5 | AI18: 24325
A19: تنزيل سباخ | B19: =SUMIFS('يومية المقاولين'!$K$7:$K$20000,'يومية المقاولين'!$I$7:$I$20000,$A19,'يومية المقاولين'!$F$7:$F$20000,B$2,'يومية المقاولين'!$A$7:$A$20000,$A$1) -> 0 | C19: =SUMIFS('يومية المقاولين'!$M$7:$M$20000,'يومية المقاولين'!$I$7:$I$20000,$A19,'يومية المقاولين'!$F$7:$F$20000,B$2,'يومية المقاولين'!$A$7:$A$20000,$A$1) -> 0 | D19: =SUMIFS('يومية المقاولين'!$K$7:$K$20000,'يومية المقاولين'!$I$7:$I$20000,$A19,'يومية المقاولين'!$F$7:$F$20000,D$2,'يومية المقاولين'!$A$7:$A$20000,$A$1) -> 0 | E19: =SUMIFS('يومية المقاولين'!$M$7:$M$20000,'يومية المقاولين'!$I$7:$I$20000,$A19,'يومية المقاولين'!$F$7:$F$20000,D$2,'يومية المقاولين'!$A$7:$A$20000,$A$1) -> 0 | F19: =SUMIFS('يومية المقاولين'!$K$7:$K$20000,'يومية المقاولين'!$I$7:$I$20000,$A19,'يومية المقاولين'!$F$7:$F$20000,F$2,'يومية المقاولين'!$A$7:$A$20000,$A$1) -> 5 | G19: =SUMIFS('يومية المقاولين'!$M$7:$M$20000,'يومية المقاولين'!$I$7:$I$20000,$A19,'يومية المقاولين'!$F$7:$F$20000,F$2,'يومية المقاولين'!$A$7:$A$20000,$A$1) -> 1750 | H19: =SUMIFS('يومية المقاولين'!$K$7:$K$20000,'يومية المقاولين'!$I$7:$I$20000,$A19,'يومية المقاولين'!$F$7:$F$20000,H$2,'يومية المقاولين'!$A$7:$A$20000,$A$1) -> 0 | I19: =SUMIFS('يومية المقاولين'!$M$7:$M$20000,'يومية المقاولين'!$I$7:$I$20000,$A19,'يومية المقاولين'!$F$7:$F$20000,H$2,'يومية المقاولين'!$A$7:$A$20000,$A$1) -> 0 | J19: =SUMIFS('يومية المقاولين'!$K$7:$K$20000,'يومية المقاولين'!$I$7:$I$20000,$A19,'يومية المقاولين'!$F$7:$F$20000,J$2,'يومية المقاولين'!$A$7:$A$20000,$A$1) -> 0 | K19: =SUMIFS('يومية المقاولين'!$M$7:$M$20000,'يومية المقاولين'!$I$7:$I$20000,$A19,'يومية المقاولين'!$F$7:$F$20000,J$2,'يومية المقاولين'!$A$7:$A$20000,$A$1) -> 0 | L19: =SUMIFS('يومية المقاولين'!$K$7:$K$20000,'يومية المقاولين'!$I$7:$I$20000,$A19,'يومية المقاولين'!$F$7:$F$20000,L$2,'يومية المقاولين'!$A$7:$A$20000,$A$1) -> 0 | M19: =SUMIFS('يومية المقاولين'!$M$7:$M$20000,'يومية المقاولين'!$I$7:$I$20000,$A19,'يومية المقاولين'!$F$7:$F$20000,L$2,'يومية المقاولين'!$A$7:$A$20000,$A$1) -> 0 | N19: =SUMIFS('يومية المقاولين'!$K$7:$K$20000,'يومية المقاولين'!$I$7:$I$20000,$A19,'يومية المقاولين'!$F$7:$F$20000,N$2,'يومية المقاولين'!$A$7:$A$20000,$A$1) -> 46.5 | O19: =SUMIFS('يومية المقاولين'!$M$7:$M$20000,'يومية المقاولين'!$I$7:$I$20000,$A19,'يومية المقاولين'!$F$7:$F$20000,N$2,'يومية المقاولين'!$A$7:$A$20000,$A$1) -> 16275 | P19: =SUMIFS('يومية المقاولين'!$K$7:$K$20000,'يومية المقاولين'!$I$7:$I$20000,$A19,'يومية المقاولين'!$F$7:$F$20000,P$2,'يومية المقاولين'!$A$7:$A$20000,$A$1) -> 0 | Q19: =SUMIFS('يومية المقاولين'!$M$7:$M$20000,'يومية المقاولين'!$I$7:$I$20000,$A19,'يومية المقاولين'!$F$7:$F$20000,P$2,'يومية المقاولين'!$A$7:$A$20000,$A$1) -> 0 | R19: =SUMIFS('يومية المقاولين'!$K$7:$K$20000,'يومية المقاولين'!$I$7:$I$20000,$A19,'يومية المقاولين'!$F$7:$F$20000,R$2,'يومية المقاولين'!$A$7:$A$20000,$A$1) -> 0 | S19: =SUMIFS('يومية المقاولين'!$M$7:$M$20000,'يومية المقاولين'!$I$7:$I$20000,$A19,'يومية المقاولين'!$F$7:$F$20000,R$2,'يومية المقاولين'!$A$7:$A$20000,$A$1) -> 0 | T19: =SUMIFS('يومية المقاولين'!$K$7:$K$20000,'يومية المقاولين'!$I$7:$I$20000,$A19,'يومية المقاولين'!$F$7:$F$20000,T$2,'يومية المقاولين'!$A$7:$A$20000,$A$1) -> 0 | U19: =SUMIFS('يومية المقاولين'!$M$7:$M$20000,'يومية المقاولين'!$I$7:$I$20000,$A19,'يومية المقاولين'!$F$7:$F$20000,T$2,'يومية المقاولين'!$A$7:$A$20000,$A$1) -> 0 | V19: =SUMIFS('يومية المقاولين'!$K$7:$K$20000,'يومية المقاولين'!$I$7:$I$20000,$A19,'يومية المقاولين'!$F$7:$F$20000,V$2,'يومية المقاولين'!$A$7:$A$20000,$A$1) -> 0 | W19: =SUMIFS('يومية المقاولين'!$M$7:$M$20000,'يومية المقاولين'!$I$7:$I$20000,$A19,'يومية المقاولين'!$F$7:$F$20000,V$2,'يومية المقاولين'!$A$7:$A$20000,$A$1) -> 0 | X19: =SUMIFS('يومية المقاولين'!$K$7:$K$20000,'يومية المقاولين'!$I$7:$I$20000,$A19,'يومية المقاولين'!$F$7:$F$20000,X$2,'يومية المقاولين'!$A$7:$A$20000,$A$1) -> 0 | Y19: =SUMIFS('يومية المقاولين'!$M$7:$M$20000,'يومية المقاولين'!$I$7:$I$20000,$A19,'يومية المقاولين'!$F$7:$F$20000,X$2,'يومية المقاولين'!$A$7:$A$20000,$A$1) -> 0 | Z19: =SUMIFS('يومية المقاولين'!$K$7:$K$20000,'يومية المقاولين'!$I$7:$I$20000,$A19,'يومية المقاولين'!$F$7:$F$20000,Z$2,'يومية المقاولين'!$A$7:$A$20000,$A$1) -> 0 | AA19: =SUMIFS('يومية المقاولين'!$M$7:$M$20000,'يومية المقاولين'!$I$7:$I$20000,$A19,'يومية المقاولين'!$F$7:$F$20000,Z$2,'يومية المقاولين'!$A$7:$A$20000,$A$1) -> 0 | AB19: =SUMIFS('يومية المقاولين'!$K$7:$K$20000,'يومية المقاولين'!$I$7:$I$20000,$A19,'يومية المقاولين'!$F$7:$F$20000,AB$2,'يومية المقاولين'!$A$7:$A$20000,$A$1) -> 0 | AC19: =SUMIFS('يومية المقاولين'!$M$7:$M$20000,'يومية المقاولين'!$I$7:$I$20000,$A19,'يومية المقاولين'!$F$7:$F$20000,AB$2,'يومية المقاولين'!$A$7:$A$20000,$A$1) -> 0 | AD19: =SUMIFS('يومية المقاولين'!$K$7:$K$20000,'يومية المقاولين'!$I$7:$I$20000,$A19,'يومية المقاولين'!$F$7:$F$20000,AD$2,'يومية المقاولين'!$A$7:$A$20000,$A$1) -> 0 | AE19: =SUMIFS('يومية المقاولين'!$M$7:$M$20000,'يومية المقاولين'!$I$7:$I$20000,$A19,'يومية المقاولين'!$F$7:$F$20000,AD$2,'يومية المقاولين'!$A$7:$A$20000,$A$1) -> 0 | AF19: =SUMIFS('يومية المقاولين'!$K$7:$K$20000,'يومية المقاولين'!$I$7:$I$20000,$A19,'يومية المقاولين'!$F$7:$F$20000,AF$2,'يومية المقاولين'!$A$7:$A$20000,$A$1) -> 0 | AG19: =SUMIFS('يومية المقاولين'!$M$7:$M$20000,'يومية المقاولين'!$I$7:$I$20000,$A19,'يومية المقاولين'!$F$7:$F$20000,AF$2,'يومية المقاولين'!$A$7:$A$20000,$A$1) -> 0 | AH19: 51.5 | AI19: 18025
A20: تطعيم | B20: =SUMIFS('يومية المقاولين'!$K$7:$K$20000,'يومية المقاولين'!$I$7:$I$20000,$A20,'يومية المقاولين'!$F$7:$F$20000,B$2,'يومية المقاولين'!$A$7:$A$20000,$A$1) -> 0 | C20: =SUMIFS('يومية المقاولين'!$M$7:$M$20000,'يومية المقاولين'!$I$7:$I$20000,$A20,'يومية المقاولين'!$F$7:$F$20000,B$2,'يومية المقاولين'!$A$7:$A$20000,$A$1) -> 0 | D20: =SUMIFS('يومية المقاولين'!$K$7:$K$20000,'يومية المقاولين'!$I$7:$I$20000,$A20,'يومية المقاولين'!$F$7:$F$20000,D$2,'يومية المقاولين'!$A$7:$A$20000,$A$1) -> 0 | E20: =SUMIFS('يومية المقاولين'!$M$7:$M$20000,'يومية المقاولين'!$I$7:$I$20000,$A20,'يومية المقاولين'!$F$7:$F$20000,D$2,'يومية المقاولين'!$A$7:$A$20000,$A$1) -> 0 | F20: =SUMIFS('يومية المقاولين'!$K$7:$K$20000,'يومية المقاولين'!$I$7:$I$20000,$A20,'يومية المقاولين'!$F$7:$F$20000,F$2,'يومية المقاولين'!$A$7:$A$20000,$A$1) -> 0 | G20: =SUMIFS('يومية المقاولين'!$M$7:$M$20000,'يومية المقاولين'!$I$7:$I$20000,$A20,'يومية المقاولين'!$F$7:$F$20000,F$2,'يومية المقاولين'!$A$7:$A$20000,$A$1) -> 0 | H20: =SUMIFS('يومية المقاولين'!$K$7:$K$20000,'يومية المقاولين'!$I$7:$I$20000,$A20,'يومية المقاولين'!$F$7:$F$20000,H$2,'يومية المقاولين'!$A$7:$A$20000,$A$1) -> 4 | I20: =SUMIFS('يومية المقاولين'!$M$7:$M$20000,'يومية المقاولين'!$I$7:$I$20000,$A20,'يومية المقاولين'!$F$7:$F$20000,H$2,'يومية المقاولين'!$A$7:$A$20000,$A$1) -> 3000 | J20: =SUMIFS('يومية المقاولين'!$K$7:$K$20000,'يومية المقاولين'!$I$7:$I$20000,$A20,'يومية المقاولين'!$F$7:$F$20000,J$2,'يومية المقاولين'!$A$7:$A$20000,$A$1) -> 0 | K20: =SUMIFS('يومية المقاولين'!$M$7:$M$20000,'يومية المقاولين'!$I$7:$I$20000,$A20,'يومية المقاولين'!$F$7:$F$20000,J$2,'يومية المقاولين'!$A$7:$A$20000,$A$1) -> 0 | L20: =SUMIFS('يومية المقاولين'!$K$7:$K$20000,'يومية المقاولين'!$I$7:$I$20000,$A20,'يومية المقاولين'!$F$7:$F$20000,L$2,'يومية المقاولين'!$A$7:$A$20000,$A$1) -> 0 | M20: =SUMIFS('يومية المقاولين'!$M$7:$M$20000,'يومية المقاولين'!$I$7:$I$20000,$A20,'يومية المقاولين'!$F$7:$F$20000,L$2,'يومية المقاولين'!$A$7:$A$20000,$A$1) -> 0 | N20: =SUMIFS('يومية المقاولين'!$K$7:$K$20000,'يومية المقاولين'!$I$7:$I$20000,$A20,'يومية المقاولين'!$F$7:$F$20000,N$2,'يومية المقاولين'!$A$7:$A$20000,$A$1) -> 0 | O20: =SUMIFS('يومية المقاولين'!$M$7:$M$20000,'يومية المقاولين'!$I$7:$I$20000,$A20,'يومية المقاولين'!$F$7:$F$20000,N$2,'يومية المقاولين'!$A$7:$A$20000,$A$1) -> 0 | P20: =SUMIFS('يومية المقاولين'!$K$7:$K$20000,'يومية المقاولين'!$I$7:$I$20000,$A20,'يومية المقاولين'!$F$7:$F$20000,P$2,'يومية المقاولين'!$A$7:$A$20000,$A$1) -> 0 | Q20: =SUMIFS('يومية المقاولين'!$M$7:$M$20000,'يومية المقاولين'!$I$7:$I$20000,$A20,'يومية المقاولين'!$F$7:$F$20000,P$2,'يومية المقاولين'!$A$7:$A$20000,$A$1) -> 0 | R20: =SUMIFS('يومية المقاولين'!$K$7:$K$20000,'يومية المقاولين'!$I$7:$I$20000,$A20,'يومية المقاولين'!$F$7:$F$20000,R$2,'يومية المقاولين'!$A$7:$A$20000,$A$1) -> 0 | S20: =SUMIFS('يومية المقاولين'!$M$7:$M$20000,'يومية المقاولين'!$I$7:$I$20000,$A20,'يومية المقاولين'!$F$7:$F$20000,R$2,'يومية المقاولين'!$A$7:$A$20000,$A$1) -> 0 | T20: =SUMIFS('يومية المقاولين'!$K$7:$K$20000,'يومية المقاولين'!$I$7:$I$20000,$A20,'يومية المقاولين'!$F$7:$F$20000,T$2,'يومية المقاولين'!$A$7:$A$20000,$A$1) -> 0 | U20: =SUMIFS('يومية المقاولين'!$M$7:$M$20000,'يومية المقاولين'!$I$7:$I$20000,$A20,'يومية المقاولين'!$F$7:$F$20000,T$2,'يومية المقاولين'!$A$7:$A$20000,$A$1) -> 0 | V20: =SUMIFS('يومية المقاولين'!$K$7:$K$20000,'يومية المقاولين'!$I$7:$I$20000,$A20,'يومية المقاولين'!$F$7:$F$20000,V$2,'يومية المقاولين'!$A$7:$A$20000,$A$1) -> 0 | W20: =SUMIFS('يومية المقاولين'!$M$7:$M$20000,'يومية المقاولين'!$I$7:$I$20000,$A20,'يومية المقاولين'!$F$7:$F$20000,V$2,'يومية المقاولين'!$A$7:$A$20000,$A$1) -> 0 | X20: =SUMIFS('يومية المقاولين'!$K$7:$K$20000,'يومية المقاولين'!$I$7:$I$20000,$A20,'يومية المقاولين'!$F$7:$F$20000,X$2,'يومية المقاولين'!$A$7:$A$20000,$A$1) -> 0 | Y20: =SUMIFS('يومية المقاولين'!$M$7:$M$20000,'يومية المقاولين'!$I$7:$I$20000,$A20,'يومية المقاولين'!$F$7:$F$20000,X$2,'يومية المقاولين'!$A$7:$A$20000,$A$1) -> 0 | Z20: =SUMIFS('يومية المقاولين'!$K$7:$K$20000,'يومية المقاولين'!$I$7:$I$20000,$A20,'يومية المقاولين'!$F$7:$F$20000,Z$2,'يومية المقاولين'!$A$7:$A$20000,$A$1) -> 0 | AA20: =SUMIFS('يومية المقاولين'!$M$7:$M$20000,'يومية المقاولين'!$I$7:$I$20000,$A20,'يومية المقاولين'!$F$7:$F$20000,Z$2,'يومية المقاولين'!$A$7:$A$20000,$A$1) -> 0 | AB20: =SUMIFS('يومية المقاولين'!$K$7:$K$20000,'يومية المقاولين'!$I$7:$I$20000,$A20,'يومية المقاولين'!$F$7:$F$20000,AB$2,'يومية المقاولين'!$A$7:$A$20000,$A$1) -> 0 | AC20: =SUMIFS('يومية المقاولين'!$M$7:$M$20000,'يومية المقاولين'!$I$7:$I$20000,$A20,'يومية المقاولين'!$F$7:$F$20000,AB$2,'يومية المقاولين'!$A$7:$A$20000,$A$1) -> 0 | AD20: =SUMIFS('يومية المقاولين'!$K$7:$K$20000,'يومية المقاولين'!$I$7:$I$20000,$A20,'يومية المقاولين'!$F$7:$F$20000,AD$2,'يومية المقاولين'!$A$7:$A$20000,$A$1) -> 0 | AE20: =SUMIFS('يومية المقاولين'!$M$7:$M$20000,'يومية المقاولين'!$I$7:$I$20000,$A20,'يومية المقاولين'!$F$7:$F$20000,AD$2,'يومية المقاولين'!$A$7:$A$20000,$A$1) -> 0 | AF20: =SUMIFS('يومية المقاولين'!$K$7:$K$20000,'يومية المقاولين'!$I$7:$I$20000,$A20,'يومية المقاولين'!$F$7:$F$20000,AF$2,'يومية المقاولين'!$A$7:$A$20000,$A$1) -> 0 | AG20: =SUMIFS('يومية المقاولين'!$M$7:$M$20000,'يومية المقاولين'!$I$7:$I$20000,$A20,'يومية المقاولين'!$F$7:$F$20000,AF$2,'يومية المقاولين'!$A$7:$A$20000,$A$1) -> 0 | AH20: 4 | AI20: 3000
A21: شتلة | B21: =SUMIFS('يومية المقاولين'!$K$7:$K$20000,'يومية المقاولين'!$I$7:$I$20000,$A21,'يومية المقاولين'!$F$7:$F$20000,B$2,'يومية المقاولين'!$A$7:$A$20000,$A$1) -> 0 | C21: =SUMIFS('يومية المقاولين'!$M$7:$M$20000,'يومية المقاولين'!$I$7:$I$20000,$A21,'يومية المقاولين'!$F$7:$F$20000,B$2,'يومية المقاولين'!$A$7:$A$20000,$A$1) -> 0 | D21: =SUMIFS('يومية المقاولين'!$K$7:$K$20000,'يومية المقاولين'!$I$7:$I$20000,$A21,'يومية المقاولين'!$F$7:$F$20000,D$2,'يومية المقاولين'!$A$7:$A$20000,$A$1) -> 0 | E21: =SUMIFS('يومية المقاولين'!$M$7:$M$20000,'يومية المقاولين'!$I$7:$I$20000,$A21,'يومية المقاولين'!$F$7:$F$20000,D$2,'يومية المقاولين'!$A$7:$A$20000,$A$1) -> 0 | F21: =SUMIFS('يومية المقاولين'!$K$7:$K$20000,'يومية المقاولين'!$I$7:$I$20000,$A21,'يومية المقاولين'!$F$7:$F$20000,F$2,'يومية المقاولين'!$A$7:$A$20000,$A$1) -> 0 | G21: =SUMIFS('يومية المقاولين'!$M$7:$M$20000,'يومية المقاولين'!$I$7:$I$20000,$A21,'يومية المقاولين'!$F$7:$F$20000,F$2,'يومية المقاولين'!$A$7:$A$20000,$A$1) -> 0 | H21: =SUMIFS('يومية المقاولين'!$K$7:$K$20000,'يومية المقاولين'!$I$7:$I$20000,$A21,'يومية المقاولين'!$F$7:$F$20000,H$2,'يومية المقاولين'!$A$7:$A$20000,$A$1) -> 5 | I21: =SUMIFS('يومية المقاولين'!$M$7:$M$20000,'يومية المقاولين'!$I$7:$I$20000,$A21,'يومية المقاولين'!$F$7:$F$20000,H$2,'يومية المقاولين'!$A$7:$A$20000,$A$1) -> 1750 | J21: =SUMIFS('يومية المقاولين'!$K$7:$K$20000,'يومية المقاولين'!$I$7:$I$20000,$A21,'يومية المقاولين'!$F$7:$F$20000,J$2,'يومية المقاولين'!$A$7:$A$20000,$A$1) -> 0 | K21: =SUMIFS('يومية المقاولين'!$M$7:$M$20000,'يومية المقاولين'!$I$7:$I$20000,$A21,'يومية المقاولين'!$F$7:$F$20000,J$2,'يومية المقاولين'!$A$7:$A$20000,$A$1) -> 0 | L21: =SUMIFS('يومية المقاولين'!$K$7:$K$20000,'يومية المقاولين'!$I$7:$I$20000,$A21,'يومية المقاولين'!$F$7:$F$20000,L$2,'يومية المقاولين'!$A$7:$A$20000,$A$1) -> 0 | M21: =SUMIFS('يومية المقاولين'!$M$7:$M$20000,'يومية المقاولين'!$I$7:$I$20000,$A21,'يومية المقاولين'!$F$7:$F$20000,L$2,'يومية المقاولين'!$A$7:$A$20000,$A$1) -> 0 | N21: =SUMIFS('يومية المقاولين'!$K$7:$K$20000,'يومية المقاولين'!$I$7:$I$20000,$A21,'يومية المقاولين'!$F$7:$F$20000,N$2,'يومية المقاولين'!$A$7:$A$20000,$A$1) -> 0 | O21: =SUMIFS('يومية المقاولين'!$M$7:$M$20000,'يومية المقاولين'!$I$7:$I$20000,$A21,'يومية المقاولين'!$F$7:$F$20000,N$2,'يومية المقاولين'!$A$7:$A$20000,$A$1) -> 0 | P21: =SUMIFS('يومية المقاولين'!$K$7:$K$20000,'يومية المقاولين'!$I$7:$I$20000,$A21,'يومية المقاولين'!$F$7:$F$20000,P$2,'يومية المقاولين'!$A$7:$A$20000,$A$1) -> 0 | Q21: =SUMIFS('يومية المقاولين'!$M$7:$M$20000,'يومية المقاولين'!$I$7:$I$20000,$A21,'يومية المقاولين'!$F$7:$F$20000,P$2,'يومية المقاولين'!$A$7:$A$20000,$A$1) -> 0 | R21: =SUMIFS('يومية المقاولين'!$K$7:$K$20000,'يومية المقاولين'!$I$7:$I$20000,$A21,'يومية المقاولين'!$F$7:$F$20000,R$2,'يومية المقاولين'!$A$7:$A$20000,$A$1) -> 0 | S21: =SUMIFS('يومية المقاولين'!$M$7:$M$20000,'يومية المقاولين'!$I$7:$I$20000,$A21,'يومية المقاولين'!$F$7:$F$20000,R$2,'يومية المقاولين'!$A$7:$A$20000,$A$1) -> 0 | T21: =SUMIFS('يومية المقاولين'!$K$7:$K$20000,'يومية المقاولين'!$I$7:$I$20000,$A21,'يومية المقاولين'!$F$7:$F$20000,T$2,'يومية المقاولين'!$A$7:$A$20000,$A$1) -> 0 | U21: =SUMIFS('يومية المقاولين'!$M$7:$M$20000,'يومية المقاولين'!$I$7:$I$20000,$A21,'يومية المقاولين'!$F$7:$F$20000,T$2,'يومية المقاولين'!$A$7:$A$20000,$A$1) -> 0 | V21: =SUMIFS('يومية المقاولين'!$K$7:$K$20000,'يومية المقاولين'!$I$7:$I$20000,$A21,'يومية المقاولين'!$F$7:$F$20000,V$2,'يومية المقاولين'!$A$7:$A$20000,$A$1) -> 0 | W21: =SUMIFS('يومية المقاولين'!$M$7:$M$20000,'يومية المقاولين'!$I$7:$I$20000,$A21,'يومية المقاولين'!$F$7:$F$20000,V$2,'يومية المقاولين'!$A$7:$A$20000,$A$1) -> 0 | X21: =SUMIFS('يومية المقاولين'!$K$7:$K$20000,'يومية المقاولين'!$I$7:$I$20000,$A21,'يومية المقاولين'!$F$7:$F$20000,X$2,'يومية المقاولين'!$A$7:$A$20000,$A$1) -> 0 | Y21: =SUMIFS('يومية المقاولين'!$M$7:$M$20000,'يومية المقاولين'!$I$7:$I$20000,$A21,'يومية المقاولين'!$F$7:$F$20000,X$2,'يومية المقاولين'!$A$7:$A$20000,$A$1) -> 0 | Z21: =SUMIFS('يومية المقاولين'!$K$7:$K$20000,'يومية المقاولين'!$I$7:$I$20000,$A21,'يومية المقاولين'!$F$7:$F$20000,Z$2,'يومية المقاولين'!$A$7:$A$20000,$A$1) -> 0 | AA21: =SUMIFS('يومية المقاولين'!$M$7:$M$20000,'يومية المقاولين'!$I$7:$I$20000,$A21,'يومية المقاولين'!$F$7:$F$20000,Z$2,'يومية المقاولين'!$A$7:$A$20000,$A$1) -> 0 | AB21: =SUMIFS('يومية المقاولين'!$K$7:$K$20000,'يومية المقاولين'!$I$7:$I$20000,$A21,'يومية المقاولين'!$F$7:$F$20000,AB$2,'يومية المقاولين'!$A$7:$A$20000,$A$1) -> 0 | AC21: =SUMIFS('يومية المقاولين'!$M$7:$M$20000,'يومية المقاولين'!$I$7:$I$20000,$A21,'يومية المقاولين'!$F$7:$F$20000,AB$2,'يومية المقاولين'!$A$7:$A$20000,$A$1) -> 0 | AD21: =SUMIFS('يومية المقاولين'!$K$7:$K$20000,'يومية المقاولين'!$I$7:$I$20000,$A21,'يومية المقاولين'!$F$7:$F$20000,AD$2,'يومية المقاولين'!$A$7:$A$20000,$A$1) -> 0 | AE21: =SUMIFS('يومية المقاولين'!$M$7:$M$20000,'يومية المقاولين'!$I$7:$I$20000,$A21,'يومية المقاولين'!$F$7:$F$20000,AD$2,'يومية المقاولين'!$A$7:$A$20000,$A$1) -> 0 | AF21: =SUMIFS('يومية المقاولين'!$K$7:$K$20000,'يومية المقاولين'!$I$7:$I$20000,$A21,'يومية المقاولين'!$F$7:$F$20000,AF$2,'يومية المقاولين'!$A$7:$A$20000,$A$1) -> 0 | AG21: =SUMIFS('يومية المقاولين'!$M$7:$M$20000,'يومية المقاولين'!$I$7:$I$20000,$A21,'يومية المقاولين'!$F$7:$F$20000,AF$2,'يومية المقاولين'!$A$7:$A$20000,$A$1) -> 0 | AH21: 5 | AI21: 1750
A22: مخلفات | B22: =SUMIFS('يومية المقاولين'!$K$7:$K$20000,'يومية المقاولين'!$I$7:$I$20000,$A22,'يومية المقاولين'!$F$7:$F$20000,B$2,'يومية المقاولين'!$A$7:$A$20000,$A$1) -> 0 | C22: =SUMIFS('يومية المقاولين'!$M$7:$M$20000,'يومية المقاولين'!$I$7:$I$20000,$A22,'يومية المقاولين'!$F$7:$F$20000,B$2,'يومية المقاولين'!$A$7:$A$20000,$A$1) -> 0 | D22: =SUMIFS('يومية المقاولين'!$K$7:$K$20000,'يومية المقاولين'!$I$7:$I$20000,$A22,'يومية المقاولين'!$F$7:$F$20000,D$2,'يومية المقاولين'!$A$7:$A$20000,$A$1) -> 0 | E22: =SUMIFS('يومية المقاولين'!$M$7:$M$20000,'يومية المقاولين'!$I$7:$I$20000,$A22,'يومية المقاولين'!$F$7:$F$20000,D$2,'يومية المقاولين'!$A$7:$A$20000,$A$1) -> 0 | F22: =SUMIFS('يومية المقاولين'!$K$7:$K$20000,'يومية المقاولين'!$I$7:$I$20000,$A22,'يومية المقاولين'!$F$7:$F$20000,F$2,'يومية المقاولين'!$A$7:$A$20000,$A$1) -> 0 | G22: =SUMIFS('يومية المقاولين'!$M$7:$M$20000,'يومية المقاولين'!$I$7:$I$20000,$A22,'يومية المقاولين'!$F$7:$F$20000,F$2,'يومية المقاولين'!$A$7:$A$20000,$A$1) -> 0 | H22: =SUMIFS('يومية المقاولين'!$K$7:$K$20000,'يومية المقاولين'!$I$7:$I$20000,$A22,'يومية المقاولين'!$F$7:$F$20000,H$2,'يومية المقاولين'!$A$7:$A$20000,$A$1) -> 3 | I22: =SUMIFS('يومية المقاولين'!$M$7:$M$20000,'يومية المقاولين'!$I$7:$I$20000,$A22,'يومية المقاولين'!$F$7:$F$20000,H$2,'يومية المقاولين'!$A$7:$A$20000,$A$1) -> 1050 | J22: =SUMIFS('يومية المقاولين'!$K$7:$K$20000,'يومية المقاولين'!$I$7:$I$20000,$A22,'يومية المقاولين'!$F$7:$F$20000,J$2,'يومية المقاولين'!$A$7:$A$20000,$A$1) -> 0 | K22: =SUMIFS('يومية المقاولين'!$M$7:$M$20000,'يومية المقاولين'!$I$7:$I$20000,$A22,'يومية المقاولين'!$F$7:$F$20000,J$2,'يومية المقاولين'!$A$7:$A$20000,$A$1) -> 0 | L22: =SUMIFS('يومية المقاولين'!$K$7:$K$20000,'يومية المقاولين'!$I$7:$I$20000,$A22,'يومية المقاولين'!$F$7:$F$20000,L$2,'يومية المقاولين'!$A$7:$A$20000,$A$1) -> 0 | M22: =SUMIFS('يومية المقاولين'!$M$7:$M$20000,'يومية المقاولين'!$I$7:$I$20000,$A22,'يومية المقاولين'!$F$7:$F$20000,L$2,'يومية المقاولين'!$A$7:$A$20000,$A$1) -> 0 | N22: =SUMIFS('يومية المقاولين'!$K$7:$K$20000,'يومية المقاولين'!$I$7:$I$20000,$A22,'يومية المقاولين'!$F$7:$F$20000,N$2,'يومية المقاولين'!$A$7:$A$20000,$A$1) -> 0 | O22: =SUMIFS('يومية المقاولين'!$M$7:$M$20000,'يومية المقاولين'!$I$7:$I$20000,$A22,'يومية المقاولين'!$F$7:$F$20000,N$2,'يومية المقاولين'!$A$7:$A$20000,$A$1) -> 0 | P22: =SUMIFS('يومية المقاولين'!$K$7:$K$20000,'يومية المقاولين'!$I$7:$I$20000,$A22,'يومية المقاولين'!$F$7:$F$20000,P$2,'يومية المقاولين'!$A$7:$A$20000,$A$1) -> 0 | Q22: =SUMIFS('يومية المقاولين'!$M$7:$M$20000,'يومية المقاولين'!$I$7:$I$20000,$A22,'يومية المقاولين'!$F$7:$F$20000,P$2,'يومية المقاولين'!$A$7:$A$20000,$A$1) -> 0 | R22: =SUMIFS('يومية المقاولين'!$K$7:$K$20000,'يومية المقاولين'!$I$7:$I$20000,$A22,'يومية المقاولين'!$F$7:$F$20000,R$2,'يومية المقاولين'!$A$7:$A$20000,$A$1) -> 0 | S22: =SUMIFS('يومية المقاولين'!$M$7:$M$20000,'يومية المقاولين'!$I$7:$I$20000,$A22,'يومية المقاولين'!$F$7:$F$20000,R$2,'يومية المقاولين'!$A$7:$A$20000,$A$1) -> 0 | T22: =SUMIFS('يومية المقاولين'!$K$7:$K$20000,'يومية المقاولين'!$I$7:$I$20000,$A22,'يومية المقاولين'!$F$7:$F$20000,T$2,'يومية المقاولين'!$A$7:$A$20000,$A$1) -> 0 | U22: =SUMIFS('يومية المقاولين'!$M$7:$M$20000,'يومية المقاولين'!$I$7:$I$20000,$A22,'يومية المقاولين'!$F$7:$F$20000,T$2,'يومية المقاولين'!$A$7:$A$20000,$A$1) -> 0 | V22: =SUMIFS('يومية المقاولين'!$K$7:$K$20000,'يومية المقاولين'!$I$7:$I$20000,$A22,'يومية المقاولين'!$F$7:$F$20000,V$2,'يومية المقاولين'!$A$7:$A$20000,$A$1) -> 0 | W22: =SUMIFS('يومية المقاولين'!$M$7:$M$20000,'يومية المقاولين'!$I$7:$I$20000,$A22,'يومية المقاولين'!$F$7:$F$20000,V$2,'يومية المقاولين'!$A$7:$A$20000,$A$1) -> 0 | X22: =SUMIFS('يومية المقاولين'!$K$7:$K$20000,'يومية المقاولين'!$I$7:$I$20000,$A22,'يومية المقاولين'!$F$7:$F$20000,X$2,'يومية المقاولين'!$A$7:$A$20000,$A$1) -> 0 | Y22: =SUMIFS('يومية المقاولين'!$M$7:$M$20000,'يومية المقاولين'!$I$7:$I$20000,$A22,'يومية المقاولين'!$F$7:$F$20000,X$2,'يومية المقاولين'!$A$7:$A$20000,$A$1) -> 0 | Z22: =SUMIFS('يومية المقاولين'!$K$7:$K$20000,'يومية المقاولين'!$I$7:$I$20000,$A22,'يومية المقاولين'!$F$7:$F$20000,Z$2,'يومية المقاولين'!$A$7:$A$20000,$A$1) -> 0 | AA22: =SUMIFS('يومية المقاولين'!$M$7:$M$20000,'يومية المقاولين'!$I$7:$I$20000,$A22,'يومية المقاولين'!$F$7:$F$20000,Z$2,'يومية المقاولين'!$A$7:$A$20000,$A$1) -> 0 | AB22: =SUMIFS('يومية المقاولين'!$K$7:$K$20000,'يومية المقاولين'!$I$7:$I$20000,$A22,'يومية المقاولين'!$F$7:$F$20000,AB$2,'يومية المقاولين'!$A$7:$A$20000,$A$1) -> 0 | AC22: =SUMIFS('يومية المقاولين'!$M$7:$M$20000,'يومية المقاولين'!$I$7:$I$20000,$A22,'يومية المقاولين'!$F$7:$F$20000,AB$2,'يومية المقاولين'!$A$7:$A$20000,$A$1) -> 0 | AD22: =SUMIFS('يومية المقاولين'!$K$7:$K$20000,'يومية المقاولين'!$I$7:$I$20000,$A22,'يومية المقاولين'!$F$7:$F$20000,AD$2,'يومية المقاولين'!$A$7:$A$20000,$A$1) -> 0 | AE22: =SUMIFS('يومية المقاولين'!$M$7:$M$20000,'يومية المقاولين'!$I$7:$I$20000,$A22,'يومية المقاولين'!$F$7:$F$20000,AD$2,'يومية المقاولين'!$A$7:$A$20000,$A$1) -> 0 | AF22: =SUMIFS('يومية المقاولين'!$K$7:$K$20000,'يومية المقاولين'!$I$7:$I$20000,$A22,'يومية المقاولين'!$F$7:$F$20000,AF$2,'يومية المقاولين'!$A$7:$A$20000,$A$1) -> 0 | AG22: =SUMIFS('يومية المقاولين'!$M$7:$M$20000,'يومية المقاولين'!$I$7:$I$20000,$A22,'يومية المقاولين'!$F$7:$F$20000,AF$2,'يومية المقاولين'!$A$7:$A$20000,$A$1) -> 0 | AH22: 3 | AI22: 1050
A23: حقن الغنم | B23: =SUMIFS('يومية المقاولين'!$K$7:$K$20000,'يومية المقاولين'!$I$7:$I$20000,$A23,'يومية المقاولين'!$F$7:$F$20000,B$2,'يومية المقاولين'!$A$7:$A$20000,$A$1) -> 0 | C23: =SUMIFS('يومية المقاولين'!$M$7:$M$20000,'يومية المقاولين'!$I$7:$I$20000,$A23,'يومية المقاولين'!$F$7:$F$20000,B$2,'يومية المقاولين'!$A$7:$A$20000,$A$1) -> 0 | D23: =SUMIFS('يومية المقاولين'!$K$7:$K$20000,'يومية المقاولين'!$I$7:$I$20000,$A23,'يومية المقاولين'!$F$7:$F$20000,D$2,'يومية المقاولين'!$A$7:$A$20000,$A$1) -> 0 | E23: =SUMIFS('يومية المقاولين'!$M$7:$M$20000,'يومية المقاولين'!$I$7:$I$20000,$A23,'يومية المقاولين'!$F$7:$F$20000,D$2,'يومية المقاولين'!$A$7:$A$20000,$A$1) -> 0 | F23: =SUMIFS('يومية المقاولين'!$K$7:$K$20000,'يومية المقاولين'!$I$7:$I$20000,$A23,'يومية المقاولين'!$F$7:$F$20000,F$2,'يومية المقاولين'!$A$7:$A$20000,$A$1) -> 0 | G23: =SUMIFS('يومية المقاولين'!$M$7:$M$20000,'يومية المقاولين'!$I$7:$I$20000,$A23,'يومية المقاولين'!$F$7:$F$20000,F$2,'يومية المقاولين'!$A$7:$A$20000,$A$1) -> 0 | H23: =SUMIFS('يومية المقاولين'!$K$7:$K$20000,'يومية المقاولين'!$I$7:$I$20000,$A23,'يومية المقاولين'!$F$7:$F$20000,H$2,'يومية المقاولين'!$A$7:$A$20000,$A$1) -> 0 | I23: =SUMIFS('يومية المقاولين'!$M$7:$M$20000,'يومية المقاولين'!$I$7:$I$20000,$A23,'يومية المقاولين'!$F$7:$F$20000,H$2,'يومية المقاولين'!$A$7:$A$20000,$A$1) -> 0 | J23: =SUMIFS('يومية المقاولين'!$K$7:$K$20000,'يومية المقاولين'!$I$7:$I$20000,$A23,'يومية المقاولين'!$F$7:$F$20000,J$2,'يومية المقاولين'!$A$7:$A$20000,$A$1) -> 0 | K23: =SUMIFS('يومية المقاولين'!$M$7:$M$20000,'يومية المقاولين'!$I$7:$I$20000,$A23,'يومية المقاولين'!$F$7:$F$20000,J$2,'يومية المقاولين'!$A$7:$A$20000,$A$1) -> 0 | L23: =SUMIFS('يومية المقاولين'!$K$7:$K$20000,'يومية المقاولين'!$I$7:$I$20000,$A23,'يومية المقاولين'!$F$7:$F$20000,L$2,'يومية المقاولين'!$A$7:$A$20000,$A$1) -> 0 | M23: =SUMIFS('يومية المقاولين'!$M$7:$M$20000,'يومية المقاولين'!$I$7:$I$20000,$A23,'يومية المقاولين'!$F$7:$F$20000,L$2,'يومية المقاولين'!$A$7:$A$20000,$A$1) -> 0 | N23: =SUMIFS('يومية المقاولين'!$K$7:$K$20000,'يومية المقاولين'!$I$7:$I$20000,$A23,'يومية المقاولين'!$F$7:$F$20000,N$2,'يومية المقاولين'!$A$7:$A$20000,$A$1) -> 0 | O23: =SUMIFS('يومية المقاولين'!$M$7:$M$20000,'يومية المقاولين'!$I$7:$I$20000,$A23,'يومية المقاولين'!$F$7:$F$20000,N$2,'يومية المقاولين'!$A$7:$A$20000,$A$1) -> 0 | P23: =SUMIFS('يومية المقاولين'!$K$7:$K$20000,'يومية المقاولين'!$I$7:$I$20000,$A23,'يومية المقاولين'!$F$7:$F$20000,P$2,'يومية المقاولين'!$A$7:$A$20000,$A$1) -> 0 | Q23: =SUMIFS('يومية المقاولين'!$M$7:$M$20000,'يومية المقاولين'!$I$7:$I$20000,$A23,'يومية المقاولين'!$F$7:$F$20000,P$2,'يومية المقاولين'!$A$7:$A$20000,$A$1) -> 0 | R23: =SUMIFS('يومية المقاولين'!$K$7:$K$20000,'يومية المقاولين'!$I$7:$I$20000,$A23,'يومية المقاولين'!$F$7:$F$20000,R$2,'يومية المقاولين'!$A$7:$A$20000,$A$1) -> 0 | S23: =SUMIFS('يومية المقاولين'!$M$7:$M$20000,'يومية المقاولين'!$I$7:$I$20000,$A23,'يومية المقاولين'!$F$7:$F$20000,R$2,'يومية المقاولين'!$A$7:$A$20000,$A$1) -> 0 | T23: =SUMIFS('يومية المقاولين'!$K$7:$K$20000,'يومية المقاولين'!$I$7:$I$20000,$A23,'يومية المقاولين'!$F$7:$F$20000,T$2,'يومية المقاولين'!$A$7:$A$20000,$A$1) -> 0 | U23: =SUMIFS('يومية المقاولين'!$M$7:$M$20000,'يومية المقاولين'!$I$7:$I$20000,$A23,'يومية المقاولين'!$F$7:$F$20000,T$2,'يومية المقاولين'!$A$7:$A$20000,$A$1) -> 0 | V23: =SUMIFS('يومية المقاولين'!$K$7:$K$20000,'يومية المقاولين'!$I$7:$I$20000,$A23,'يومية المقاولين'!$F$7:$F$20000,V$2,'يومية المقاولين'!$A$7:$A$20000,$A$1) -> 0 | W23: =SUMIFS('يومية المقاولين'!$M$7:$M$20000,'يومية المقاولين'!$I$7:$I$20000,$A23,'يومية المقاولين'!$F$7:$F$20000,V$2,'يومية المقاولين'!$A$7:$A$20000,$A$1) -> 0 | X23: =SUMIFS('يومية المقاولين'!$K$7:$K$20000,'يومية المقاولين'!$I$7:$I$20000,$A23,'يومية المقاولين'!$F$7:$F$20000,X$2,'يومية المقاولين'!$A$7:$A$20000,$A$1) -> 0 | Y23: =SUMIFS('يومية المقاولين'!$M$7:$M$20000,'يومية المقاولين'!$I$7:$I$20000,$A23,'يومية المقاولين'!$F$7:$F$20000,X$2,'يومية المقاولين'!$A$7:$A$20000,$A$1) -> 0 | Z23: =SUMIFS('يومية المقاولين'!$K$7:$K$20000,'يومية المقاولين'!$I$7:$I$20000,$A23,'يومية المقاولين'!$F$7:$F$20000,Z$2,'يومية المقاولين'!$A$7:$A$20000,$A$1) -> 0 | AA23: =SUMIFS('يومية المقاولين'!$M$7:$M$20000,'يومية المقاولين'!$I$7:$I$20000,$A23,'يومية المقاولين'!$F$7:$F$20000,Z$2,'يومية المقاولين'!$A$7:$A$20000,$A$1) -> 0 | AB23: =SUMIFS('يومية المقاولين'!$K$7:$K$20000,'يومية المقاولين'!$I$7:$I$20000,$A23,'يومية المقاولين'!$F$7:$F$20000,AB$2,'يومية المقاولين'!$A$7:$A$20000,$A$1) -> 0 | AC23: =SUMIFS('يومية المقاولين'!$M$7:$M$20000,'يومية المقاولين'!$I$7:$I$20000,$A23,'يومية المقاولين'!$F$7:$F$20000,AB$2,'يومية المقاولين'!$A$7:$A$20000,$A$1) -> 0 | AD23: =SUMIFS('يومية المقاولين'!$K$7:$K$20000,'يومية المقاولين'!$I$7:$I$20000,$A23,'يومية المقاولين'!$F$7:$F$20000,AD$2,'يومية المقاولين'!$A$7:$A$20000,$A$1) -> 0.5 | AE23: =SUMIFS('يومية المقاولين'!$M$7:$M$20000,'يومية المقاولين'!$I$7:$I$20000,$A23,'يومية المقاولين'!$F$7:$F$20000,AD$2,'يومية المقاولين'!$A$7:$A$20000,$A$1) -> 175 | AF23: =SUMIFS('يومية المقاولين'!$K$7:$K$20000,'يومية المقاولين'!$I$7:$I$20000,$A23,'يومية المقاولين'!$F$7:$F$20000,AF$2,'يومية المقاولين'!$A$7:$A$20000,$A$1) -> 0 | AG23: =SUMIFS('يومية المقاولين'!$M$7:$M$20000,'يومية المقاولين'!$I$7:$I$20000,$A23,'يومية المقاولين'!$F$7:$F$20000,AF$2,'يومية المقاولين'!$A$7:$A$20000,$A$1) -> 0 | AH23: 0.5 | AI23: 175
A24: لم خشب مشايات | B24: =SUMIFS('يومية المقاولين'!$K$7:$K$20000,'يومية المقاولين'!$I$7:$I$20000,$A24,'يومية المقاولين'!$F$7:$F$20000,B$2,'يومية المقاولين'!$A$7:$A$20000,$A$1) -> 0 | C24: =SUMIFS('يومية المقاولين'!$M$7:$M$20000,'يومية المقاولين'!$I$7:$I$20000,$A24,'يومية المقاولين'!$F$7:$F$20000,B$2,'يومية المقاولين'!$A$7:$A$20000,$A$1) -> 0 | D24: =SUMIFS('يومية المقاولين'!$K$7:$K$20000,'يومية المقاولين'!$I$7:$I$20000,$A24,'يومية المقاولين'!$F$7:$F$20000,D$2,'يومية المقاولين'!$A$7:$A$20000,$A$1) -> 0 | E24: =SUMIFS('يومية المقاولين'!$M$7:$M$20000,'يومية المقاولين'!$I$7:$I$20000,$A24,'يومية المقاولين'!$F$7:$F$20000,D$2,'يومية المقاولين'!$A$7:$A$20000,$A$1) -> 0 | F24: =SUMIFS('يومية المقاولين'!$K$7:$K$20000,'يومية المقاولين'!$I$7:$I$20000,$A24,'يومية المقاولين'!$F$7:$F$20000,F$2,'يومية المقاولين'!$A$7:$A$20000,$A$1) -> 0 | G24: =SUMIFS('يومية المقاولين'!$M$7:$M$20000,'يومية المقاولين'!$I$7:$I$20000,$A24,'يومية المقاولين'!$F$7:$F$20000,F$2,'يومية المقاولين'!$A$7:$A$20000,$A$1) -> 0 | H24: =SUMIFS('يومية المقاولين'!$K$7:$K$20000,'يومية المقاولين'!$I$7:$I$20000,$A24,'يومية المقاولين'!$F$7:$F$20000,H$2,'يومية المقاولين'!$A$7:$A$20000,$A$1) -> 0 | I24: =SUMIFS('يومية المقاولين'!$M$7:$M$20000,'يومية المقاولين'!$I$7:$I$20000,$A24,'يومية المقاولين'!$F$7:$F$20000,H$2,'يومية المقاولين'!$A$7:$A$20000,$A$1) -> 0 | J24: =SUMIFS('يومية المقاولين'!$K$7:$K$20000,'يومية المقاولين'!$I$7:$I$20000,$A24,'يومية المقاولين'!$F$7:$F$20000,J$2,'يومية المقاولين'!$A$7:$A$20000,$A$1) -> 0 | K24: =SUMIFS('يومية المقاولين'!$M$7:$M$20000,'يومية المقاولين'!$I$7:$I$20000,$A24,'يومية المقاولين'!$F$7:$F$20000,J$2,'يومية المقاولين'!$A$7:$A$20000,$A$1) -> 0 | L24: =SUMIFS('يومية المقاولين'!$K$7:$K$20000,'يومية المقاولين'!$I$7:$I$20000,$A24,'يومية المقاولين'!$F$7:$F$20000,L$2,'يومية المقاولين'!$A$7:$A$20000,$A$1) -> 0 | M24: =SUMIFS('يومية المقاولين'!$M$7:$M$20000,'يومية المقاولين'!$I$7:$I$20000,$A24,'يومية المقاولين'!$F$7:$F$20000,L$2,'يومية المقاولين'!$A$7:$A$20000,$A$1) -> 0 | N24: =SUMIFS('يومية المقاولين'!$K$7:$K$20000,'يومية المقاولين'!$I$7:$I$20000,$A24,'يومية المقاولين'!$F$7:$F$20000,N$2,'يومية المقاولين'!$A$7:$A$20000,$A$1) -> 0 | O24: =SUMIFS('يومية المقاولين'!$M$7:$M$20000,'يومية المقاولين'!$I$7:$I$20000,$A24,'يومية المقاولين'!$F$7:$F$20000,N$2,'يومية المقاولين'!$A$7:$A$20000,$A$1) -> 0 | P24: =SUMIFS('يومية المقاولين'!$K$7:$K$20000,'يومية المقاولين'!$I$7:$I$20000,$A24,'يومية المقاولين'!$F$7:$F$20000,P$2,'يومية المقاولين'!$A$7:$A$20000,$A$1) -> 0 | Q24: =SUMIFS('يومية المقاولين'!$M$7:$M$20000,'يومية المقاولين'!$I$7:$I$20000,$A24,'يومية المقاولين'!$F$7:$F$20000,P$2,'يومية المقاولين'!$A$7:$A$20000,$A$1) -> 0 | R24: =SUMIFS('يومية المقاولين'!$K$7:$K$20000,'يومية المقاولين'!$I$7:$I$20000,$A24,'يومية المقاولين'!$F$7:$F$20000,R$2,'يومية المقاولين'!$A$7:$A$20000,$A$1) -> 0 | S24: =SUMIFS('يومية المقاولين'!$M$7:$M$20000,'يومية المقاولين'!$I$7:$I$20000,$A24,'يومية المقاولين'!$F$7:$F$20000,R$2,'يومية المقاولين'!$A$7:$A$20000,$A$1) -> 0 | T24: =SUMIFS('يومية المقاولين'!$K$7:$K$20000,'يومية المقاولين'!$I$7:$I$20000,$A24,'يومية المقاولين'!$F$7:$F$20000,T$2,'يومية المقاولين'!$A$7:$A$20000,$A$1) -> 0 | U24: =SUMIFS('يومية المقاولين'!$M$7:$M$20000,'يومية المقاولين'!$I$7:$I$20000,$A24,'يومية المقاولين'!$F$7:$F$20000,T$2,'يومية المقاولين'!$A$7:$A$20000,$A$1) -> 0 | V24: =SUMIFS('يومية المقاولين'!$K$7:$K$20000,'يومية المقاولين'!$I$7:$I$20000,$A24,'يومية المقاولين'!$F$7:$F$20000,V$2,'يومية المقاولين'!$A$7:$A$20000,$A$1) -> 0 | W24: =SUMIFS('يومية المقاولين'!$M$7:$M$20000,'يومية المقاولين'!$I$7:$I$20000,$A24,'يومية المقاولين'!$F$7:$F$20000,V$2,'يومية المقاولين'!$A$7:$A$20000,$A$1) -> 0 | X24: =SUMIFS('يومية المقاولين'!$K$7:$K$20000,'يومية المقاولين'!$I$7:$I$20000,$A24,'يومية المقاولين'!$F$7:$F$20000,X$2,'يومية المقاولين'!$A$7:$A$20000,$A$1) -> 0 | Y24: =SUMIFS('يومية المقاولين'!$M$7:$M$20000,'يومية المقاولين'!$I$7:$I$20000,$A24,'يومية المقاولين'!$F$7:$F$20000,X$2,'يومية المقاولين'!$A$7:$A$20000,$A$1) -> 0 | Z24: =SUMIFS('يومية المقاولين'!$K$7:$K$20000,'يومية المقاولين'!$I$7:$I$20000,$A24,'يومية المقاولين'!$F$7:$F$20000,Z$2,'يومية المقاولين'!$A$7:$A$20000,$A$1) -> 0 | AA24: =SUMIFS('يومية المقاولين'!$M$7:$M$20000,'يومية المقاولين'!$I$7:$I$20000,$A24,'يومية المقاولين'!$F$7:$F$20000,Z$2,'يومية المقاولين'!$A$7:$A$20000,$A$1) -> 0 | AB24: =SUMIFS('يومية المقاولين'!$K$7:$K$20000,'يومية المقاولين'!$I$7:$I$20000,$A24,'يومية المقاولين'!$F$7:$F$20000,AB$2,'يومية المقاولين'!$A$7:$A$20000,$A$1) -> 0 | AC24: =SUMIFS('يومية المقاولين'!$M$7:$M$20000,'يومية المقاولين'!$I$7:$I$20000,$A24,'يومية المقاولين'!$F$7:$F$20000,AB$2,'يومية المقاولين'!$A$7:$A$20000,$A$1) -> 0 | AD24: =SUMIFS('يومية المقاولين'!$K$7:$K$20000,'يومية المقاولين'!$I$7:$I$20000,$A24,'يومية المقاولين'!$F$7:$F$20000,AD$2,'يومية المقاولين'!$A$7:$A$20000,$A$1) -> 0 | AE24: =SUMIFS('يومية المقاولين'!$M$7:$M$20000,'يومية المقاولين'!$I$7:$I$20000,$A24,'يومية المقاولين'!$F$7:$F$20000,AD$2,'يومية المقاولين'!$A$7:$A$20000,$A$1) -> 0 | AF24: =SUMIFS('يومية المقاولين'!$K$7:$K$20000,'يومية المقاولين'!$I$7:$I$20000,$A24,'يومية المقاولين'!$F$7:$F$20000,AF$2,'يومية المقاولين'!$A$7:$A$20000,$A$1) -> 0 | AG24: =SUMIFS('يومية المقاولين'!$M$7:$M$20000,'يومية المقاولين'!$I$7:$I$20000,$A24,'يومية المقاولين'!$F$7:$F$20000,AF$2,'يومية المقاولين'!$A$7:$A$20000,$A$1) -> 0 | AH24: 0 | AI24: 0
A25: تعتيق | B25: =SUMIFS('يومية المقاولين'!$K$7:$K$20000,'يومية المقاولين'!$I$7:$I$20000,$A25,'يومية المقاولين'!$F$7:$F$20000,B$2,'يومية المقاولين'!$A$7:$A$20000,$A$1) -> 0 | C25: =SUMIFS('يومية المقاولين'!$M$7:$M$20000,'يومية المقاولين'!$I$7:$I$20000,$A25,'يومية المقاولين'!$F$7:$F$20000,B$2,'يومية المقاولين'!$A$7:$A$20000,$A$1) -> 0 | D25: =SUMIFS('يومية المقاولين'!$K$7:$K$20000,'يومية المقاولين'!$I$7:$I$20000,$A25,'يومية المقاولين'!$F$7:$F$20000,D$2,'يومية المقاولين'!$A$7:$A$20000,$A$1) -> 0 | E25: =SUMIFS('يومية المقاولين'!$M$7:$M$20000,'يومية المقاولين'!$I$7:$I$20000,$A25,'يومية المقاولين'!$F$7:$F$20000,D$2,'يومية المقاولين'!$A$7:$A$20000,$A$1) -> 0 | F25: =SUMIFS('يومية المقاولين'!$K$7:$K$20000,'يومية المقاولين'!$I$7:$I$20000,$A25,'يومية المقاولين'!$F$7:$F$20000,F$2,'يومية المقاولين'!$A$7:$A$20000,$A$1) -> 0 | G25: =SUMIFS('يومية المقاولين'!$M$7:$M$20000,'يومية المقاولين'!$I$7:$I$20000,$A25,'يومية المقاولين'!$F$7:$F$20000,F$2,'يومية المقاولين'!$A$7:$A$20000,$A$1) -> 0 | H25: =SUMIFS('يومية المقاولين'!$K$7:$K$20000,'يومية المقاولين'!$I$7:$I$20000,$A25,'يومية المقاولين'!$F$7:$F$20000,H$2,'يومية المقاولين'!$A$7:$A$20000,$A$1) -> 0 | I25: =SUMIFS('يومية المقاولين'!$M$7:$M$20000,'يومية المقاولين'!$I$7:$I$20000,$A25,'يومية المقاولين'!$F$7:$F$20000,H$2,'يومية المقاولين'!$A$7:$A$20000,$A$1) -> 0 | J25: =SUMIFS('يومية المقاولين'!$K$7:$K$20000,'يومية المقاولين'!$I$7:$I$20000,$A25,'يومية المقاولين'!$F$7:$F$20000,J$2,'يومية المقاولين'!$A$7:$A$20000,$A$1) -> 0 | K25: =SUMIFS('يومية المقاولين'!$M$7:$M$20000,'يومية المقاولين'!$I$7:$I$20000,$A25,'يومية المقاولين'!$F$7:$F$20000,J$2,'يومية المقاولين'!$A$7:$A$20000,$A$1) -> 0 | L25: =SUMIFS('يومية المقاولين'!$K$7:$K$20000,'يومية المقاولين'!$I$7:$I$20000,$A25,'يومية المقاولين'!$F$7:$F$20000,L$2,'يومية المقاولين'!$A$7:$A$20000,$A$1) -> 0 | M25: =SUMIFS('يومية المقاولين'!$M$7:$M$20000,'يومية المقاولين'!$I$7:$I$20000,$A25,'يومية المقاولين'!$F$7:$F$20000,L$2,'يومية المقاولين'!$A$7:$A$20000,$A$1) -> 0 | N25: =SUMIFS('يومية المقاولين'!$K$7:$K$20000,'يومية المقاولين'!$I$7:$I$20000,$A25,'يومية المقاولين'!$F$7:$F$20000,N$2,'يومية المقاولين'!$A$7:$A$20000,$A$1) -> 0 | O25: =SUMIFS('يومية المقاولين'!$M$7:$M$20000,'يومية المقاولين'!$I$7:$I$20000,$A25,'يومية المقاولين'!$F$7:$F$20000,N$2,'يومية المقاولين'!$A$7:$A$20000,$A$1) -> 0 | P25: =SUMIFS('يومية المقاولين'!$K$7:$K$20000,'يومية المقاولين'!$I$7:$I$20000,$A25,'يومية المقاولين'!$F$7:$F$20000,P$2,'يومية المقاولين'!$A$7:$A$20000,$A$1) -> 0 | Q25: =SUMIFS('يومية المقاولين'!$M$7:$M$20000,'يومية المقاولين'!$I$7:$I$20000,$A25,'يومية المقاولين'!$F$7:$F$20000,P$2,'يومية المقاولين'!$A$7:$A$20000,$A$1) -> 0 | R25: =SUMIFS('يومية المقاولين'!$K$7:$K$20000,'يومية المقاولين'!$I$7:$I$20000,$A25,'يومية المقاولين'!$F$7:$F$20000,R$2,'يومية المقاولين'!$A$7:$A$20000,$A$1) -> 0 | S25: =SUMIFS('يومية المقاولين'!$M$7:$M$20000,'يومية المقاولين'!$I$7:$I$20000,$A25,'يومية المقاولين'!$F$7:$F$20000,R$2,'يومية المقاولين'!$A$7:$A$20000,$A$1) -> 0 | T25: =SUMIFS('يومية المقاولين'!$K$7:$K$20000,'يومية المقاولين'!$I$7:$I$20000,$A25,'يومية المقاولين'!$F$7:$F$20000,T$2,'يومية المقاولين'!$A$7:$A$20000,$A$1) -> 0 | U25: =SUMIFS('يومية المقاولين'!$M$7:$M$20000,'يومية المقاولين'!$I$7:$I$20000,$A25,'يومية المقاولين'!$F$7:$F$20000,T$2,'يومية المقاولين'!$A$7:$A$20000,$A$1) -> 0 | V25: =SUMIFS('يومية المقاولين'!$K$7:$K$20000,'يومية المقاولين'!$I$7:$I$20000,$A25,'يومية المقاولين'!$F$7:$F$20000,V$2,'يومية المقاولين'!$A$7:$A$20000,$A$1) -> 0 | W25: =SUMIFS('يومية المقاولين'!$M$7:$M$20000,'يومية المقاولين'!$I$7:$I$20000,$A25,'يومية المقاولين'!$F$7:$F$20000,V$2,'يومية المقاولين'!$A$7:$A$20000,$A$1) -> 0 | X25: =SUMIFS('يومية المقاولين'!$K$7:$K$20000,'يومية المقاولين'!$I$7:$I$20000,$A25,'يومية المقاولين'!$F$7:$F$20000,X$2,'يومية المقاولين'!$A$7:$A$20000,$A$1) -> 0 | Y25: =SUMIFS('يومية المقاولين'!$M$7:$M$20000,'يومية المقاولين'!$I$7:$I$20000,$A25,'يومية المقاولين'!$F$7:$F$20000,X$2,'يومية المقاولين'!$A$7:$A$20000,$A$1) -> 0 | Z25: =SUMIFS('يومية المقاولين'!$K$7:$K$20000,'يومية المقاولين'!$I$7:$I$20000,$A25,'يومية المقاولين'!$F$7:$F$20000,Z$2,'يومية المقاولين'!$A$7:$A$20000,$A$1) -> 0 | AA25: =SUMIFS('يومية المقاولين'!$M$7:$M$20000,'يومية المقاولين'!$I$7:$I$20000,$A25,'يومية المقاولين'!$F$7:$F$20000,Z$2,'يومية المقاولين'!$A$7:$A$20000,$A$1) -> 0 | AB25: =SUMIFS('يومية المقاولين'!$K$7:$K$20000,'يومية المقاولين'!$I$7:$I$20000,$A25,'يومية المقاولين'!$F$7:$F$20000,AB$2,'يومية المقاولين'!$A$7:$A$20000,$A$1) -> 0 | AC25: =SUMIFS('يومية المقاولين'!$M$7:$M$20000,'يومية المقاولين'!$I$7:$I$20000,$A25,'يومية المقاولين'!$F$7:$F$20000,AB$2,'يومية المقاولين'!$A$7:$A$20000,$A$1) -> 0 | AD25: =SUMIFS('يومية المقاولين'!$K$7:$K$20000,'يومية المقاولين'!$I$7:$I$20000,$A25,'يومية المقاولين'!$F$7:$F$20000,AD$2,'يومية المقاولين'!$A$7:$A$20000,$A$1) -> 0 | AE25: =SUMIFS('يومية المقاولين'!$M$7:$M$20000,'يومية المقاولين'!$I$7:$I$20000,$A25,'يومية المقاولين'!$F$7:$F$20000,AD$2,'يومية المقاولين'!$A$7:$A$20000,$A$1) -> 0 | AF25: =SUMIFS('يومية المقاولين'!$K$7:$K$20000,'يومية المقاولين'!$I$7:$I$20000,$A25,'يومية المقاولين'!$F$7:$F$20000,AF$2,'يومية المقاولين'!$A$7:$A$20000,$A$1) -> 0 | AG25: =SUMIFS('يومية المقاولين'!$M$7:$M$20000,'يومية المقاولين'!$I$7:$I$20000,$A25,'يومية المقاولين'!$F$7:$F$20000,AF$2,'يومية المقاولين'!$A$7:$A$20000,$A$1) -> 0 | AH25: 0 | AI25: 0
A26: الرى | B26: =SUMIFS('يومية المقاولين'!$K$7:$K$20000,'يومية المقاولين'!$I$7:$I$20000,$A26,'يومية المقاولين'!$F$7:$F$20000,B$2,'يومية المقاولين'!$A$7:$A$20000,$A$1) -> 0 | C26: =SUMIFS('يومية المقاولين'!$M$7:$M$20000,'يومية المقاولين'!$I$7:$I$20000,$A26,'يومية المقاولين'!$F$7:$F$20000,B$2,'يومية المقاولين'!$A$7:$A$20000,$A$1) -> 0 | D26: =SUMIFS('يومية المقاولين'!$K$7:$K$20000,'يومية المقاولين'!$I$7:$I$20000,$A26,'يومية المقاولين'!$F$7:$F$20000,D$2,'يومية المقاولين'!$A$7:$A$20000,$A$1) -> 0 | E26: =SUMIFS('يومية المقاولين'!$M$7:$M$20000,'يومية المقاولين'!$I$7:$I$20000,$A26,'يومية المقاولين'!$F$7:$F$20000,D$2,'يومية المقاولين'!$A$7:$A$20000,$A$1) -> 0 | F26: =SUMIFS('يومية المقاولين'!$K$7:$K$20000,'يومية المقاولين'!$I$7:$I$20000,$A26,'يومية المقاولين'!$F$7:$F$20000,F$2,'يومية المقاولين'!$A$7:$A$20000,$A$1) -> 0 | G26: =SUMIFS('يومية المقاولين'!$M$7:$M$20000,'يومية المقاولين'!$I$7:$I$20000,$A26,'يومية المقاولين'!$F$7:$F$20000,F$2,'يومية المقاولين'!$A$7:$A$20000,$A$1) -> 0 | H26: =SUMIFS('يومية المقاولين'!$K$7:$K$20000,'يومية المقاولين'!$I$7:$I$20000,$A26,'يومية المقاولين'!$F$7:$F$20000,H$2,'يومية المقاولين'!$A$7:$A$20000,$A$1) -> 9 | I26: =SUMIFS('يومية المقاولين'!$M$7:$M$20000,'يومية المقاولين'!$I$7:$I$20000,$A26,'يومية المقاولين'!$F$7:$F$20000,H$2,'يومية المقاولين'!$A$7:$A$20000,$A$1) -> 3150 | J26: =SUMIFS('يومية المقاولين'!$K$7:$K$20000,'يومية المقاولين'!$I$7:$I$20000,$A26,'يومية المقاولين'!$F$7:$F$20000,J$2,'يومية المقاولين'!$A$7:$A$20000,$A$1) -> 0 | K26: =SUMIFS('يومية المقاولين'!$M$7:$M$20000,'يومية المقاولين'!$I$7:$I$20000,$A26,'يومية المقاولين'!$F$7:$F$20000,J$2,'يومية المقاولين'!$A$7:$A$20000,$A$1) -> 0 | L26: =SUMIFS('يومية المقاولين'!$K$7:$K$20000,'يومية المقاولين'!$I$7:$I$20000,$A26,'يومية المقاولين'!$F$7:$F$20000,L$2,'يومية المقاولين'!$A$7:$A$20000,$A$1) -> 0 | M26: =SUMIFS('يومية المقاولين'!$M$7:$M$20000,'يومية المقاولين'!$I$7:$I$20000,$A26,'يومية المقاولين'!$F$7:$F$20000,L$2,'يومية المقاولين'!$A$7:$A$20000,$A$1) -> 0 | N26: =SUMIFS('يومية المقاولين'!$K$7:$K$20000,'يومية المقاولين'!$I$7:$I$20000,$A26,'يومية المقاولين'!$F$7:$F$20000,N$2,'يومية المقاولين'!$A$7:$A$20000,$A$1) -> 0 | O26: =SUMIFS('يومية المقاولين'!$M$7:$M$20000,'يومية المقاولين'!$I$7:$I$20000,$A26,'يومية المقاولين'!$F$7:$F$20000,N$2,'يومية المقاولين'!$A$7:$A$20000,$A$1) -> 0 | P26: =SUMIFS('يومية المقاولين'!$K$7:$K$20000,'يومية المقاولين'!$I$7:$I$20000,$A26,'يومية المقاولين'!$F$7:$F$20000,P$2,'يومية المقاولين'!$A$7:$A$20000,$A$1) -> 0 | Q26: =SUMIFS('يومية المقاولين'!$M$7:$M$20000,'يومية المقاولين'!$I$7:$I$20000,$A26,'يومية المقاولين'!$F$7:$F$20000,P$2,'يومية المقاولين'!$A$7:$A$20000,$A$1) -> 0 | R26: =SUMIFS('يومية المقاولين'!$K$7:$K$20000,'يومية المقاولين'!$I$7:$I$20000,$A26,'يومية المقاولين'!$F$7:$F$20000,R$2,'يومية المقاولين'!$A$7:$A$20000,$A$1) -> 0 | S26: =SUMIFS('يومية المقاولين'!$M$7:$M$20000,'يومية المقاولين'!$I$7:$I$20000,$A26,'يومية المقاولين'!$F$7:$F$20000,R$2,'يومية المقاولين'!$A$7:$A$20000,$A$1) -> 0 | T26: =SUMIFS('يومية المقاولين'!$K$7:$K$20000,'يومية المقاولين'!$I$7:$I$20000,$A26,'يومية المقاولين'!$F$7:$F$20000,T$2,'يومية المقاولين'!$A$7:$A$20000,$A$1) -> 0 | U26: =SUMIFS('يومية المقاولين'!$M$7:$M$20000,'يومية المقاولين'!$I$7:$I$20000,$A26,'يومية المقاولين'!$F$7:$F$20000,T$2,'يومية المقاولين'!$A$7:$A$20000,$A$1) -> 0 | V26: =SUMIFS('يومية المقاولين'!$K$7:$K$20000,'يومية المقاولين'!$I$7:$I$20000,$A26,'يومية المقاولين'!$F$7:$F$20000,V$2,'يومية المقاولين'!$A$7:$A$20000,$A$1) -> 0 | W26: =SUMIFS('يومية المقاولين'!$M$7:$M$20000,'يومية المقاولين'!$I$7:$I$20000,$A26,'يومية المقاولين'!$F$7:$F$20000,V$2,'يومية المقاولين'!$A$7:$A$20000,$A$1) -> 0 | X26: =SUMIFS('يومية المقاولين'!$K$7:$K$20000,'يومية المقاولين'!$I$7:$I$20000,$A26,'يومية المقاولين'!$F$7:$F$20000,X$2,'يومية المقاولين'!$A$7:$A$20000,$A$1) -> 0 | Y26: =SUMIFS('يومية المقاولين'!$M$7:$M$20000,'يومية المقاولين'!$I$7:$I$20000,$A26,'يومية المقاولين'!$F$7:$F$20000,X$2,'يومية المقاولين'!$A$7:$A$20000,$A$1) -> 0 | Z26: =SUMIFS('يومية المقاولين'!$K$7:$K$20000,'يومية المقاولين'!$I$7:$I$20000,$A26,'يومية المقاولين'!$F$7:$F$20000,Z$2,'يومية المقاولين'!$A$7:$A$20000,$A$1) -> 0 | AA26: =SUMIFS('يومية المقاولين'!$M$7:$M$20000,'يومية المقاولين'!$I$7:$I$20000,$A26,'يومية المقاولين'!$F$7:$F$20000,Z$2,'يومية المقاولين'!$A$7:$A$20000,$A$1) -> 0 | AB26: =SUMIFS('يومية المقاولين'!$K$7:$K$20000,'يومية المقاولين'!$I$7:$I$20000,$A26,'يومية المقاولين'!$F$7:$F$20000,AB$2,'يومية المقاولين'!$A$7:$A$20000,$A$1) -> 0 | AC26: =SUMIFS('يومية المقاولين'!$M$7:$M$20000,'يومية المقاولين'!$I$7:$I$20000,$A26,'يومية المقاولين'!$F$7:$F$20000,AB$2,'يومية المقاولين'!$A$7:$A$20000,$A$1) -> 0 | AD26: =SUMIFS('يومية المقاولين'!$K$7:$K$20000,'يومية المقاولين'!$I$7:$I$20000,$A26,'يومية المقاولين'!$F$7:$F$20000,AD$2,'يومية المقاولين'!$A$7:$A$20000,$A$1) -> 0 | AE26: =SUMIFS('يومية المقاولين'!$M$7:$M$20000,'يومية المقاولين'!$I$7:$I$20000,$A26,'يومية المقاولين'!$F$7:$F$20000,AD$2,'يومية المقاولين'!$A$7:$A$20000,$A$1) -> 0 | AF26: =SUMIFS('يومية المقاولين'!$K$7:$K$20000,'يومية المقاولين'!$I$7:$I$20000,$A26,'يومية المقاولين'!$F$7:$F$20000,AF$2,'يومية المقاولين'!$A$7:$A$20000,$A$1) -> 0 | AG26: =SUMIFS('يومية المقاولين'!$M$7:$M$20000,'يومية المقاولين'!$I$7:$I$20000,$A26,'يومية المقاولين'!$F$7:$F$20000,AF$2,'يومية المقاولين'!$A$7:$A$20000,$A$1) -> 0 | AH26: 9 | AI26: 3150
A27: انشاءات | B27: =SUMIFS('يومية المقاولين'!$K$7:$K$20000,'يومية المقاولين'!$I$7:$I$20000,$A27,'يومية المقاولين'!$F$7:$F$20000,B$2,'يومية المقاولين'!$A$7:$A$20000,$A$1) -> 0 | C27: =SUMIFS('يومية المقاولين'!$M$7:$M$20000,'يومية المقاولين'!$I$7:$I$20000,$A27,'يومية المقاولين'!$F$7:$F$20000,B$2,'يومية المقاولين'!$A$7:$A$20000,$A$1) -> 0 | D27: =SUMIFS('يومية المقاولين'!$K$7:$K$20000,'يومية المقاولين'!$I$7:$I$20000,$A27,'يومية المقاولين'!$F$7:$F$20000,D$2,'يومية المقاولين'!$A$7:$A$20000,$A$1) -> 0 | E27: =SUMIFS('يومية المقاولين'!$M$7:$M$20000,'يومية المقاولين'!$I$7:$I$20000,$A27,'يومية المقاولين'!$F$7:$F$20000,D$2,'يومية المقاولين'!$A$7:$A$20000,$A$1) -> 0 | F27: =SUMIFS('يومية المقاولين'!$K$7:$K$20000,'يومية المقاولين'!$I$7:$I$20000,$A27,'يومية المقاولين'!$F$7:$F$20000,F$2,'يومية المقاولين'!$A$7:$A$20000,$A$1) -> 0 | G27: =SUMIFS('يومية المقاولين'!$M$7:$M$20000,'يومية المقاولين'!$I$7:$I$20000,$A27,'يومية المقاولين'!$F$7:$F$20000,F$2,'يومية المقاولين'!$A$7:$A$20000,$A$1) -> 0 | H27: =SUMIFS('يومية المقاولين'!$K$7:$K$20000,'يومية المقاولين'!$I$7:$I$20000,$A27,'يومية المقاولين'!$F$7:$F$20000,H$2,'يومية المقاولين'!$A$7:$A$20000,$A$1) -> 0 | I27: =SUMIFS('يومية المقاولين'!$M$7:$M$20000,'يومية المقاولين'!$I$7:$I$20000,$A27,'يومية المقاولين'!$F$7:$F$20000,H$2,'يومية المقاولين'!$A$7:$A$20000,$A$1) -> 0 | J27: =SUMIFS('يومية المقاولين'!$K$7:$K$20000,'يومية المقاولين'!$I$7:$I$20000,$A27,'يومية المقاولين'!$F$7:$F$20000,J$2,'يومية المقاولين'!$A$7:$A$20000,$A$1) -> 0 | K27: =SUMIFS('يومية المقاولين'!$M$7:$M$20000,'يومية المقاولين'!$I$7:$I$20000,$A27,'يومية المقاولين'!$F$7:$F$20000,J$2,'يومية المقاولين'!$A$7:$A$20000,$A$1) -> 0 | L27: =SUMIFS('يومية المقاولين'!$K$7:$K$20000,'يومية المقاولين'!$I$7:$I$20000,$A27,'يومية المقاولين'!$F$7:$F$20000,L$2,'يومية المقاولين'!$A$7:$A$20000,$A$1) -> 0 | M27: =SUMIFS('يومية المقاولين'!$M$7:$M$20000,'يومية المقاولين'!$I$7:$I$20000,$A27,'يومية المقاولين'!$F$7:$F$20000,L$2,'يومية المقاولين'!$A$7:$A$20000,$A$1) -> 0 | N27: =SUMIFS('يومية المقاولين'!$K$7:$K$20000,'يومية المقاولين'!$I$7:$I$20000,$A27,'يومية المقاولين'!$F$7:$F$20000,N$2,'يومية المقاولين'!$A$7:$A$20000,$A$1) -> 0 | O27: =SUMIFS('يومية المقاولين'!$M$7:$M$20000,'يومية المقاولين'!$I$7:$I$20000,$A27,'يومية المقاولين'!$F$7:$F$20000,N$2,'يومية المقاولين'!$A$7:$A$20000,$A$1) -> 0 | P27: =SUMIFS('يومية المقاولين'!$K$7:$K$20000,'يومية المقاولين'!$I$7:$I$20000,$A27,'يومية المقاولين'!$F$7:$F$20000,P$2,'يومية المقاولين'!$A$7:$A$20000,$A$1) -> 0 | Q27: =SUMIFS('يومية المقاولين'!$M$7:$M$20000,'يومية المقاولين'!$I$7:$I$20000,$A27,'يومية المقاولين'!$F$7:$F$20000,P$2,'يومية المقاولين'!$A$7:$A$20000,$A$1) -> 0 | R27: =SUMIFS('يومية المقاولين'!$K$7:$K$20000,'يومية المقاولين'!$I$7:$I$20000,$A27,'يومية المقاولين'!$F$7:$F$20000,R$2,'يومية المقاولين'!$A$7:$A$20000,$A$1) -> 0 | S27: =SUMIFS('يومية المقاولين'!$M$7:$M$20000,'يومية المقاولين'!$I$7:$I$20000,$A27,'يومية المقاولين'!$F$7:$F$20000,R$2,'يومية المقاولين'!$A$7:$A$20000,$A$1) -> 0 | T27: =SUMIFS('يومية المقاولين'!$K$7:$K$20000,'يومية المقاولين'!$I$7:$I$20000,$A27,'يومية المقاولين'!$F$7:$F$20000,T$2,'يومية المقاولين'!$A$7:$A$20000,$A$1) -> 0 | U27: =SUMIFS('يومية المقاولين'!$M$7:$M$20000,'يومية المقاولين'!$I$7:$I$20000,$A27,'يومية المقاولين'!$F$7:$F$20000,T$2,'يومية المقاولين'!$A$7:$A$20000,$A$1) -> 0 | V27: =SUMIFS('يومية المقاولين'!$K$7:$K$20000,'يومية المقاولين'!$I$7:$I$20000,$A27,'يومية المقاولين'!$F$7:$F$20000,V$2,'يومية المقاولين'!$A$7:$A$20000,$A$1) -> 0 | W27: =SUMIFS('يومية المقاولين'!$M$7:$M$20000,'يومية المقاولين'!$I$7:$I$20000,$A27,'يومية المقاولين'!$F$7:$F$20000,V$2,'يومية المقاولين'!$A$7:$A$20000,$A$1) -> 0 | X27: =SUMIFS('يومية المقاولين'!$K$7:$K$20000,'يومية المقاولين'!$I$7:$I$20000,$A27,'يومية المقاولين'!$F$7:$F$20000,X$2,'يومية المقاولين'!$A$7:$A$20000,$A$1) -> 0 | Y27: =SUMIFS('يومية المقاولين'!$M$7:$M$20000,'يومية المقاولين'!$I$7:$I$20000,$A27,'يومية المقاولين'!$F$7:$F$20000,X$2,'يومية المقاولين'!$A$7:$A$20000,$A$1) -> 0 | Z27: =SUMIFS('يومية المقاولين'!$K$7:$K$20000,'يومية المقاولين'!$I$7:$I$20000,$A27,'يومية المقاولين'!$F$7:$F$20000,Z$2,'يومية المقاولين'!$A$7:$A$20000,$A$1) -> 0 | AA27: =SUMIFS('يومية المقاولين'!$M$7:$M$20000,'يومية المقاولين'!$I$7:$I$20000,$A27,'يومية المقاولين'!$F$7:$F$20000,Z$2,'يومية المقاولين'!$A$7:$A$20000,$A$1) -> 0 | AB27: =SUMIFS('يومية المقاولين'!$K$7:$K$20000,'يومية المقاولين'!$I$7:$I$20000,$A27,'يومية المقاولين'!$F$7:$F$20000,AB$2,'يومية المقاولين'!$A$7:$A$20000,$A$1) -> 0 | AC27: =SUMIFS('يومية المقاولين'!$M$7:$M$20000,'يومية المقاولين'!$I$7:$I$20000,$A27,'يومية المقاولين'!$F$7:$F$20000,AB$2,'يومية المقاولين'!$A$7:$A$20000,$A$1) -> 0 | AD27: =SUMIFS('يومية المقاولين'!$K$7:$K$20000,'يومية المقاولين'!$I$7:$I$20000,$A27,'يومية المقاولين'!$F$7:$F$20000,AD$2,'يومية المقاولين'!$A$7:$A$20000,$A$1) -> 0 | AE27: =SUMIFS('يومية المقاولين'!$M$7:$M$20000,'يومية المقاولين'!$I$7:$I$20000,$A27,'يومية المقاولين'!$F$7:$F$20000,AD$2,'يومية المقاولين'!$A$7:$A$20000,$A$1) -> 0 | AF27: =SUMIFS('يومية المقاولين'!$K$7:$K$20000,'يومية المقاولين'!$I$7:$I$20000,$A27,'يومية المقاولين'!$F$7:$F$20000,AF$2,'يومية المقاولين'!$A$7:$A$20000,$A$1) -> 0 | AG27: =SUMIFS('يومية المقاولين'!$M$7:$M$20000,'يومية المقاولين'!$I$7:$I$20000,$A27,'يومية المقاولين'!$F$7:$F$20000,AF$2,'يومية المقاولين'!$A$7:$A$20000,$A$1) -> 0 | AH27: 0 | AI27: 0
A28: حش | B28: =SUMIFS('يومية المقاولين'!$K$7:$K$20000,'يومية المقاولين'!$I$7:$I$20000,$A28,'يومية المقاولين'!$F$7:$F$20000,B$2,'يومية المقاولين'!$A$7:$A$20000,$A$1) -> 0 | C28: =SUMIFS('يومية المقاولين'!$M$7:$M$20000,'يومية المقاولين'!$I$7:$I$20000,$A28,'يومية المقاولين'!$F$7:$F$20000,B$2,'يومية المقاولين'!$A$7:$A$20000,$A$1) -> 0 | D28: =SUMIFS('يومية المقاولين'!$K$7:$K$20000,'يومية المقاولين'!$I$7:$I$20000,$A28,'يومية المقاولين'!$F$7:$F$20000,D$2,'يومية المقاولين'!$A$7:$A$20000,$A$1) -> 0 | E28: =SUMIFS('يومية المقاولين'!$M$7:$M$20000,'يومية المقاولين'!$I$7:$I$20000,$A28,'يومية المقاولين'!$F$7:$F$20000,D$2,'يومية المقاولين'!$A$7:$A$20000,$A$1) -> 0 | F28: =SUMIFS('يومية المقاولين'!$K$7:$K$20000,'يومية المقاولين'!$I$7:$I$20000,$A28,'يومية المقاولين'!$F$7:$F$20000,F$2,'يومية المقاولين'!$A$7:$A$20000,$A$1) -> 0 | G28: =SUMIFS('يومية المقاولين'!$M$7:$M$20000,'يومية المقاولين'!$I$7:$I$20000,$A28,'يومية المقاولين'!$F$7:$F$20000,F$2,'يومية المقاولين'!$A$7:$A$20000,$A$1) -> 0 | H28: =SUMIFS('يومية المقاولين'!$K$7:$K$20000,'يومية المقاولين'!$I$7:$I$20000,$A28,'يومية المقاولين'!$F$7:$F$20000,H$2,'يومية المقاولين'!$A$7:$A$20000,$A$1) -> 0 | I28: =SUMIFS('يومية المقاولين'!$M$7:$M$20000,'يومية المقاولين'!$I$7:$I$20000,$A28,'يومية المقاولين'!$F$7:$F$20000,H$2,'يومية المقاولين'!$A$7:$A$20000,$A$1) -> 0 | J28: =SUMIFS('يومية المقاولين'!$K$7:$K$20000,'يومية المقاولين'!$I$7:$I$20000,$A28,'يومية المقاولين'!$F$7:$F$20000,J$2,'يومية المقاولين'!$A$7:$A$20000,$A$1) -> 0 | K28: =SUMIFS('يومية المقاولين'!$M$7:$M$20000,'يومية المقاولين'!$I$7:$I$20000,$A28,'يومية المقاولين'!$F$7:$F$20000,J$2,'يومية المقاولين'!$A$7:$A$20000,$A$1) -> 0 | L28: =SUMIFS('يومية المقاولين'!$K$7:$K$20000,'يومية المقاولين'!$I$7:$I$20000,$A28,'يومية المقاولين'!$F$7:$F$20000,L$2,'يومية المقاولين'!$A$7:$A$20000,$A$1) -> 0 | M28: =SUMIFS('يومية المقاولين'!$M$7:$M$20000,'يومية المقاولين'!$I$7:$I$20000,$A28,'يومية المقاولين'!$F$7:$F$20000,L$2,'يومية المقاولين'!$A$7:$A$20000,$A$1) -> 0 | N28: =SUMIFS('يومية المقاولين'!$K$7:$K$20000,'يومية المقاولين'!$I$7:$I$20000,$A28,'يومية المقاولين'!$F$7:$F$20000,N$2,'يومية المقاولين'!$A$7:$A$20000,$A$1) -> 0 | O28: =SUMIFS('يومية المقاولين'!$M$7:$M$20000,'يومية المقاولين'!$I$7:$I$20000,$A28,'يومية المقاولين'!$F$7:$F$20000,N$2,'يومية المقاولين'!$A$7:$A$20000,$A$1) -> 0 | P28: =SUMIFS('يومية المقاولين'!$K$7:$K$20000,'يومية المقاولين'!$I$7:$I$20000,$A28,'يومية المقاولين'!$F$7:$F$20000,P$2,'يومية المقاولين'!$A$7:$A$20000,$A$1) -> 0 | Q28: =SUMIFS('يومية المقاولين'!$M$7:$M$20000,'يومية المقاولين'!$I$7:$I$20000,$A28,'يومية المقاولين'!$F$7:$F$20000,P$2,'يومية المقاولين'!$A$7:$A$20000,$A$1) -> 0 | R28: =SUMIFS('يومية المقاولين'!$K$7:$K$20000,'يومية المقاولين'!$I$7:$I$20000,$A28,'يومية المقاولين'!$F$7:$F$20000,R$2,'يومية المقاولين'!$A$7:$A$20000,$A$1) -> 0 | S28: =SUMIFS('يومية المقاولين'!$M$7:$M$20000,'يومية المقاولين'!$I$7:$I$20000,$A28,'يومية المقاولين'!$F$7:$F$20000,R$2,'يومية المقاولين'!$A$7:$A$20000,$A$1) -> 0 | T28: =SUMIFS('يومية المقاولين'!$K$7:$K$20000,'يومية المقاولين'!$I$7:$I$20000,$A28,'يومية المقاولين'!$F$7:$F$20000,T$2,'يومية المقاولين'!$A$7:$A$20000,$A$1) -> 0 | U28: =SUMIFS('يومية المقاولين'!$M$7:$M$20000,'يومية المقاولين'!$I$7:$I$20000,$A28,'يومية المقاولين'!$F$7:$F$20000,T$2,'يومية المقاولين'!$A$7:$A$20000,$A$1) -> 0 | V28: =SUMIFS('يومية المقاولين'!$K$7:$K$20000,'يومية المقاولين'!$I$7:$I$20000,$A28,'يومية المقاولين'!$F$7:$F$20000,V$2,'يومية المقاولين'!$A$7:$A$20000,$A$1) -> 0 | W28: =SUMIFS('يومية المقاولين'!$M$7:$M$20000,'يومية المقاولين'!$I$7:$I$20000,$A28,'يومية المقاولين'!$F$7:$F$20000,V$2,'يومية المقاولين'!$A$7:$A$20000,$A$1) -> 0 | X28: =SUMIFS('يومية المقاولين'!$K$7:$K$20000,'يومية المقاولين'!$I$7:$I$20000,$A28,'يومية المقاولين'!$F$7:$F$20000,X$2,'يومية المقاولين'!$A$7:$A$20000,$A$1) -> 0 | Y28: =SUMIFS('يومية المقاولين'!$M$7:$M$20000,'يومية المقاولين'!$I$7:$I$20000,$A28,'يومية المقاولين'!$F$7:$F$20000,X$2,'يومية المقاولين'!$A$7:$A$20000,$A$1) -> 0 | Z28: =SUMIFS('يومية المقاولين'!$K$7:$K$20000,'يومية المقاولين'!$I$7:$I$20000,$A28,'يومية المقاولين'!$F$7:$F$20000,Z$2,'يومية المقاولين'!$A$7:$A$20000,$A$1) -> 0 | AA28: =SUMIFS('يومية المقاولين'!$M$7:$M$20000,'يومية المقاولين'!$I$7:$I$20000,$A28,'يومية المقاولين'!$F$7:$F$20000,Z$2,'يومية المقاولين'!$A$7:$A$20000,$A$1) -> 0 | AB28: =SUMIFS('يومية المقاولين'!$K$7:$K$20000,'يومية المقاولين'!$I$7:$I$20000,$A28,'يومية المقاولين'!$F$7:$F$20000,AB$2,'يومية المقاولين'!$A$7:$A$20000,$A$1) -> 0 | AC28: =SUMIFS('يومية المقاولين'!$M$7:$M$20000,'يومية المقاولين'!$I$7:$I$20000,$A28,'يومية المقاولين'!$F$7:$F$20000,AB$2,'يومية المقاولين'!$A$7:$A$20000,$A$1) -> 0 | AD28: =SUMIFS('يومية المقاولين'!$K$7:$K$20000,'يومية المقاولين'!$I$7:$I$20000,$A28,'يومية المقاولين'!$F$7:$F$20000,AD$2,'يومية المقاولين'!$A$7:$A$20000,$A$1) -> 0 | AE28: =SUMIFS('يومية المقاولين'!$M$7:$M$20000,'يومية المقاولين'!$I$7:$I$20000,$A28,'يومية المقاولين'!$F$7:$F$20000,AD$2,'يومية المقاولين'!$A$7:$A$20000,$A$1) -> 0 | AF28: =SUMIFS('يومية المقاولين'!$K$7:$K$20000,'يومية المقاولين'!$I$7:$I$20000,$A28,'يومية المقاولين'!$F$7:$F$20000,AF$2,'يومية المقاولين'!$A$7:$A$20000,$A$1) -> 0 | AG28: =SUMIFS('يومية المقاولين'!$M$7:$M$20000,'يومية المقاولين'!$I$7:$I$20000,$A28,'يومية المقاولين'!$F$7:$F$20000,AF$2,'يومية المقاولين'!$A$7:$A$20000,$A$1) -> 0 | AH28: 0 | AI28: 0
A29: عرش | B29: =SUMIFS('يومية المقاولين'!$K$7:$K$20000,'يومية المقاولين'!$I$7:$I$20000,$A29,'يومية المقاولين'!$F$7:$F$20000,B$2,'يومية المقاولين'!$A$7:$A$20000,$A$1) -> 0 | C29: =SUMIFS('يومية المقاولين'!$M$7:$M$20000,'يومية المقاولين'!$I$7:$I$20000,$A29,'يومية المقاولين'!$F$7:$F$20000,B$2,'يومية المقاولين'!$A$7:$A$20000,$A$1) -> 0 | D29: =SUMIFS('يومية المقاولين'!$K$7:$K$20000,'يومية المقاولين'!$I$7:$I$20000,$A29,'يومية المقاولين'!$F$7:$F$20000,D$2,'يومية المقاولين'!$A$7:$A$20000,$A$1) -> 0 | E29: =SUMIFS('يومية المقاولين'!$M$7:$M$20000,'يومية المقاولين'!$I$7:$I$20000,$A29,'يومية المقاولين'!$F$7:$F$20000,D$2,'يومية المقاولين'!$A$7:$A$20000,$A$1) -> 0 | F29: =SUMIFS('يومية المقاولين'!$K$7:$K$20000,'يومية المقاولين'!$I$7:$I$20000,$A29,'يومية المقاولين'!$F$7:$F$20000,F$2,'يومية المقاولين'!$A$7:$A$20000,$A$1) -> 0 | G29: =SUMIFS('يومية المقاولين'!$M$7:$M$20000,'يومية المقاولين'!$I$7:$I$20000,$A29,'يومية المقاولين'!$F$7:$F$20000,F$2,'يومية المقاولين'!$A$7:$A$20000,$A$1) -> 0 | H29: =SUMIFS('يومية المقاولين'!$K$7:$K$20000,'يومية المقاولين'!$I$7:$I$20000,$A29,'يومية المقاولين'!$F$7:$F$20000,H$2,'يومية المقاولين'!$A$7:$A$20000,$A$1) -> 0 | I29: =SUMIFS('يومية المقاولين'!$M$7:$M$20000,'يومية المقاولين'!$I$7:$I$20000,$A29,'يومية المقاولين'!$F$7:$F$20000,H$2,'يومية المقاولين'!$A$7:$A$20000,$A$1) -> 0 | J29: =SUMIFS('يومية المقاولين'!$K$7:$K$20000,'يومية المقاولين'!$I$7:$I$20000,$A29,'يومية المقاولين'!$F$7:$F$20000,J$2,'يومية المقاولين'!$A$7:$A$20000,$A$1) -> 0 | K29: =SUMIFS('يومية المقاولين'!$M$7:$M$20000,'يومية المقاولين'!$I$7:$I$20000,$A29,'يومية المقاولين'!$F$7:$F$20000,J$2,'يومية المقاولين'!$A$7:$A$20000,$A$1) -> 0 | L29: =SUMIFS('يومية المقاولين'!$K$7:$K$20000,'يومية المقاولين'!$I$7:$I$20000,$A29,'يومية المقاولين'!$F$7:$F$20000,L$2,'يومية المقاولين'!$A$7:$A$20000,$A$1) -> 0 | M29: =SUMIFS('يومية المقاولين'!$M$7:$M$20000,'يومية المقاولين'!$I$7:$I$20000,$A29,'يومية المقاولين'!$F$7:$F$20000,L$2,'يومية المقاولين'!$A$7:$A$20000,$A$1) -> 0 | N29: =SUMIFS('يومية المقاولين'!$K$7:$K$20000,'يومية المقاولين'!$I$7:$I$20000,$A29,'يومية المقاولين'!$F$7:$F$20000,N$2,'يومية المقاولين'!$A$7:$A$20000,$A$1) -> 0 | O29: =SUMIFS('يومية المقاولين'!$M$7:$M$20000,'يومية المقاولين'!$I$7:$I$20000,$A29,'يومية المقاولين'!$F$7:$F$20000,N$2,'يومية المقاولين'!$A$7:$A$20000,$A$1) -> 0 | P29: =SUMIFS('يومية المقاولين'!$K$7:$K$20000,'يومية المقاولين'!$I$7:$I$20000,$A29,'يومية المقاولين'!$F$7:$F$20000,P$2,'يومية المقاولين'!$A$7:$A$20000,$A$1) -> 0 | Q29: =SUMIFS('يومية المقاولين'!$M$7:$M$20000,'يومية المقاولين'!$I$7:$I$20000,$A29,'يومية المقاولين'!$F$7:$F$20000,P$2,'يومية المقاولين'!$A$7:$A$20000,$A$1) -> 0 | R29: =SUMIFS('يومية المقاولين'!$K$7:$K$20000,'يومية المقاولين'!$I$7:$I$20000,$A29,'يومية المقاولين'!$F$7:$F$20000,R$2,'يومية المقاولين'!$A$7:$A$20000,$A$1) -> 0 | S29: =SUMIFS('يومية المقاولين'!$M$7:$M$20000,'يومية المقاولين'!$I$7:$I$20000,$A29,'يومية المقاولين'!$F$7:$F$20000,R$2,'يومية المقاولين'!$A$7:$A$20000,$A$1) -> 0 | T29: =SUMIFS('يومية المقاولين'!$K$7:$K$20000,'يومية المقاولين'!$I$7:$I$20000,$A29,'يومية المقاولين'!$F$7:$F$20000,T$2,'يومية المقاولين'!$A$7:$A$20000,$A$1) -> 0 | U29: =SUMIFS('يومية المقاولين'!$M$7:$M$20000,'يومية المقاولين'!$I$7:$I$20000,$A29,'يومية المقاولين'!$F$7:$F$20000,T$2,'يومية المقاولين'!$A$7:$A$20000,$A$1) -> 0 | V29: =SUMIFS('يومية المقاولين'!$K$7:$K$20000,'يومية المقاولين'!$I$7:$I$20000,$A29,'يومية المقاولين'!$F$7:$F$20000,V$2,'يومية المقاولين'!$A$7:$A$20000,$A$1) -> 0 | W29: =SUMIFS('يومية المقاولين'!$M$7:$M$20000,'يومية المقاولين'!$I$7:$I$20000,$A29,'يومية المقاولين'!$F$7:$F$20000,V$2,'يومية المقاولين'!$A$7:$A$20000,$A$1) -> 0 | X29: =SUMIFS('يومية المقاولين'!$K$7:$K$20000,'يومية المقاولين'!$I$7:$I$20000,$A29,'يومية المقاولين'!$F$7:$F$20000,X$2,'يومية المقاولين'!$A$7:$A$20000,$A$1) -> 0 | Y29: =SUMIFS('يومية المقاولين'!$M$7:$M$20000,'يومية المقاولين'!$I$7:$I$20000,$A29,'يومية المقاولين'!$F$7:$F$20000,X$2,'يومية المقاولين'!$A$7:$A$20000,$A$1) -> 0 | Z29: =SUMIFS('يومية المقاولين'!$K$7:$K$20000,'يومية المقاولين'!$I$7:$I$20000,$A29,'يومية المقاولين'!$F$7:$F$20000,Z$2,'يومية المقاولين'!$A$7:$A$20000,$A$1) -> 0 | AA29: =SUMIFS('يومية المقاولين'!$M$7:$M$20000,'يومية المقاولين'!$I$7:$I$20000,$A29,'يومية المقاولين'!$F$7:$F$20000,Z$2,'يومية المقاولين'!$A$7:$A$20000,$A$1) -> 0 | AB29: =SUMIFS('يومية المقاولين'!$K$7:$K$20000,'يومية المقاولين'!$I$7:$I$20000,$A29,'يومية المقاولين'!$F$7:$F$20000,AB$2,'يومية المقاولين'!$A$7:$A$20000,$A$1) -> 0 | AC29: =SUMIFS('يومية المقاولين'!$M$7:$M$20000,'يومية المقاولين'!$I$7:$I$20000,$A29,'يومية المقاولين'!$F$7:$F$20000,AB$2,'يومية المقاولين'!$A$7:$A$20000,$A$1) -> 0 | AD29: =SUMIFS('يومية المقاولين'!$K$7:$K$20000,'يومية المقاولين'!$I$7:$I$20000,$A29,'يومية المقاولين'!$F$7:$F$20000,AD$2,'يومية المقاولين'!$A$7:$A$20000,$A$1) -> 0 | AE29: =SUMIFS('يومية المقاولين'!$M$7:$M$20000,'يومية المقاولين'!$I$7:$I$20000,$A29,'يومية المقاولين'!$F$7:$F$20000,AD$2,'يومية المقاولين'!$A$7:$A$20000,$A$1) -> 0 | AF29: =SUMIFS('يومية المقاولين'!$K$7:$K$20000,'يومية المقاولين'!$I$7:$I$20000,$A29,'يومية المقاولين'!$F$7:$F$20000,AF$2,'يومية المقاولين'!$A$7:$A$20000,$A$1) -> 0 | AG29: =SUMIFS('يومية المقاولين'!$M$7:$M$20000,'يومية المقاولين'!$I$7:$I$20000,$A29,'يومية المقاولين'!$F$7:$F$20000,AF$2,'يومية المقاولين'!$A$7:$A$20000,$A$1) -> 0 | AH29: 0 | AI29: 0
A30: سيارة | B30: =SUMIFS('يومية المقاولين'!$K$7:$K$20000,'يومية المقاولين'!$I$7:$I$20000,$A30,'يومية المقاولين'!$F$7:$F$20000,B$2,'يومية المقاولين'!$A$7:$A$20000,$A$1) -> 0 | C30: =SUMIFS('يومية المقاولين'!$M$7:$M$20000,'يومية المقاولين'!$I$7:$I$20000,$A30,'يومية المقاولين'!$F$7:$F$20000,B$2,'يومية المقاولين'!$A$7:$A$20000,$A$1) -> 0 | D30: =SUMIFS('يومية المقاولين'!$K$7:$K$20000,'يومية المقاولين'!$I$7:$I$20000,$A30,'يومية المقاولين'!$F$7:$F$20000,D$2,'يومية المقاولين'!$A$7:$A$20000,$A$1) -> 0 | E30: =SUMIFS('يومية المقاولين'!$M$7:$M$20000,'يومية المقاولين'!$I$7:$I$20000,$A30,'يومية المقاولين'!$F$7:$F$20000,D$2,'يومية المقاولين'!$A$7:$A$20000,$A$1) -> 0 | F30: =SUMIFS('يومية المقاولين'!$K$7:$K$20000,'يومية المقاولين'!$I$7:$I$20000,$A30,'يومية المقاولين'!$F$7:$F$20000,F$2,'يومية المقاولين'!$A$7:$A$20000,$A$1) -> 0 | G30: =SUMIFS('يومية المقاولين'!$M$7:$M$20000,'يومية المقاولين'!$I$7:$I$20000,$A30,'يومية المقاولين'!$F$7:$F$20000,F$2,'يومية المقاولين'!$A$7:$A$20000,$A$1) -> 0 | H30: =SUMIFS('يومية المقاولين'!$K$7:$K$20000,'يومية المقاولين'!$I$7:$I$20000,$A30,'يومية المقاولين'!$F$7:$F$20000,H$2,'يومية المقاولين'!$A$7:$A$20000,$A$1) -> 0 | I30: =SUMIFS('يومية المقاولين'!$M$7:$M$20000,'يومية المقاولين'!$I$7:$I$20000,$A30,'يومية المقاولين'!$F$7:$F$20000,H$2,'يومية المقاولين'!$A$7:$A$20000,$A$1) -> 0 | J30: =SUMIFS('يومية المقاولين'!$K$7:$K$20000,'يومية المقاولين'!$I$7:$I$20000,$A30,'يومية المقاولين'!$F$7:$F$20000,J$2,'يومية المقاولين'!$A$7:$A$20000,$A$1) -> 0 | K30: =SUMIFS('يومية المقاولين'!$M$7:$M$20000,'يومية المقاولين'!$I$7:$I$20000,$A30,'يومية المقاولين'!$F$7:$F$20000,J$2,'يومية المقاولين'!$A$7:$A$20000,$A$1) -> 0 | L30: =SUMIFS('يومية المقاولين'!$K$7:$K$20000,'يومية المقاولين'!$I$7:$I$20000,$A30,'يومية المقاولين'!$F$7:$F$20000,L$2,'يومية المقاولين'!$A$7:$A$20000,$A$1) -> 0 | M30: =SUMIFS('يومية المقاولين'!$M$7:$M$20000,'يومية المقاولين'!$I$7:$I$20000,$A30,'يومية المقاولين'!$F$7:$F$20000,L$2,'يومية المقاولين'!$A$7:$A$20000,$A$1) -> 0 | N30: =SUMIFS('يومية المقاولين'!$K$7:$K$20000,'يومية المقاولين'!$I$7:$I$20000,$A30,'يومية المقاولين'!$F$7:$F$20000,N$2,'يومية المقاولين'!$A$7:$A$20000,$A$1) -> 0 | O30: =SUMIFS('يومية المقاولين'!$M$7:$M$20000,'يومية المقاولين'!$I$7:$I$20000,$A30,'يومية المقاولين'!$F$7:$F$20000,N$2,'يومية المقاولين'!$A$7:$A$20000,$A$1) -> 0 | P30: =SUMIFS('يومية المقاولين'!$K$7:$K$20000,'يومية المقاولين'!$I$7:$I$20000,$A30,'يومية المقاولين'!$F$7:$F$20000,P$2,'يومية المقاولين'!$A$7:$A$20000,$A$1) -> 0 | Q30: =SUMIFS('يومية المقاولين'!$M$7:$M$20000,'يومية المقاولين'!$I$7:$I$20000,$A30,'يومية المقاولين'!$F$7:$F$20000,P$2,'يومية المقاولين'!$A$7:$A$20000,$A$1) -> 0 | R30: =SUMIFS('يومية المقاولين'!$K$7:$K$20000,'يومية المقاولين'!$I$7:$I$20000,$A30,'يومية المقاولين'!$F$7:$F$20000,R$2,'يومية المقاولين'!$A$7:$A$20000,$A$1) -> 0 | S30: =SUMIFS('يومية المقاولين'!$M$7:$M$20000,'يومية المقاولين'!$I$7:$I$20000,$A30,'يومية المقاولين'!$F$7:$F$20000,R$2,'يومية المقاولين'!$A$7:$A$20000,$A$1) -> 0 | T30: =SUMIFS('يومية المقاولين'!$K$7:$K$20000,'يومية المقاولين'!$I$7:$I$20000,$A30,'يومية المقاولين'!$F$7:$F$20000,T$2,'يومية المقاولين'!$A$7:$A$20000,$A$1) -> 0 | U30: =SUMIFS('يومية المقاولين'!$M$7:$M$20000,'يومية المقاولين'!$I$7:$I$20000,$A30,'يومية المقاولين'!$F$7:$F$20000,T$2,'يومية المقاولين'!$A$7:$A$20000,$A$1) -> 0 | V30: =SUMIFS('يومية المقاولين'!$K$7:$K$20000,'يومية المقاولين'!$I$7:$I$20000,$A30,'يومية المقاولين'!$F$7:$F$20000,V$2,'يومية المقاولين'!$A$7:$A$20000,$A$1) -> 0 | W30: =SUMIFS('يومية المقاولين'!$M$7:$M$20000,'يومية المقاولين'!$I$7:$I$20000,$A30,'يومية المقاولين'!$F$7:$F$20000,V$2,'يومية المقاولين'!$A$7:$A$20000,$A$1) -> 0 | X30: =SUMIFS('يومية المقاولين'!$K$7:$K$20000,'يومية المقاولين'!$I$7:$I$20000,$A30,'يومية المقاولين'!$F$7:$F$20000,X$2,'يومية المقاولين'!$A$7:$A$20000,$A$1) -> 0 | Y30: =SUMIFS('يومية المقاولين'!$M$7:$M$20000,'يومية المقاولين'!$I$7:$I$20000,$A30,'يومية المقاولين'!$F$7:$F$20000,X$2,'يومية المقاولين'!$A$7:$A$20000,$A$1) -> 0 | Z30: =SUMIFS('يومية المقاولين'!$K$7:$K$20000,'يومية المقاولين'!$I$7:$I$20000,$A30,'يومية المقاولين'!$F$7:$F$20000,Z$2,'يومية المقاولين'!$A$7:$A$20000,$A$1) -> 0 | AA30: =SUMIFS('يومية المقاولين'!$M$7:$M$20000,'يومية المقاولين'!$I$7:$I$20000,$A30,'يومية المقاولين'!$F$7:$F$20000,Z$2,'يومية المقاولين'!$A$7:$A$20000,$A$1) -> 0 | AB30: =SUMIFS('يومية المقاولين'!$K$7:$K$20000,'يومية المقاولين'!$I$7:$I$20000,$A30,'يومية المقاولين'!$F$7:$F$20000,AB$2,'يومية المقاولين'!$A$7:$A$20000,$A$1) -> 0 | AC30: =SUMIFS('يومية المقاولين'!$M$7:$M$20000,'يومية المقاولين'!$I$7:$I$20000,$A30,'يومية المقاولين'!$F$7:$F$20000,AB$2,'يومية المقاولين'!$A$7:$A$20000,$A$1) -> 0 | AD30: =SUMIFS('يومية المقاولين'!$K$7:$K$20000,'يومية المقاولين'!$I$7:$I$20000,$A30,'يومية المقاولين'!$F$7:$F$20000,AD$2,'يومية المقاولين'!$A$7:$A$20000,$A$1) -> 0 | AE30: =SUMIFS('يومية المقاولين'!$M$7:$M$20000,'يومية المقاولين'!$I$7:$I$20000,$A30,'يومية المقاولين'!$F$7:$F$20000,AD$2,'يومية المقاولين'!$A$7:$A$20000,$A$1) -> 0 | AF30: =SUMIFS('يومية المقاولين'!$K$7:$K$20000,'يومية المقاولين'!$I$7:$I$20000,$A30,'يومية المقاولين'!$F$7:$F$20000,AF$2,'يومية المقاولين'!$A$7:$A$20000,$A$1) -> 0 | AG30: =SUMIFS('يومية المقاولين'!$M$7:$M$20000,'يومية المقاولين'!$I$7:$I$20000,$A30,'يومية المقاولين'!$F$7:$F$20000,AF$2,'يومية المقاولين'!$A$7:$A$20000,$A$1) -> 0 | AH30: 0 | AI30: 0
A31: فطار | B31: =SUMIFS('يومية المقاولين'!$K$7:$K$20000,'يومية المقاولين'!$I$7:$I$20000,$A31,'يومية المقاولين'!$F$7:$F$20000,B$2,'يومية المقاولين'!$A$7:$A$20000,$A$1) -> 0 | C31: =SUMIFS('يومية المقاولين'!$M$7:$M$20000,'يومية المقاولين'!$I$7:$I$20000,$A31,'يومية المقاولين'!$F$7:$F$20000,B$2,'يومية المقاولين'!$A$7:$A$20000,$A$1) -> 0 | D31: =SUMIFS('يومية المقاولين'!$K$7:$K$20000,'يومية المقاولين'!$I$7:$I$20000,$A31,'يومية المقاولين'!$F$7:$F$20000,D$2,'يومية المقاولين'!$A$7:$A$20000,$A$1) -> 0 | E31: =SUMIFS('يومية المقاولين'!$M$7:$M$20000,'يومية المقاولين'!$I$7:$I$20000,$A31,'يومية المقاولين'!$F$7:$F$20000,D$2,'يومية المقاولين'!$A$7:$A$20000,$A$1) -> 0 | F31: =SUMIFS('يومية المقاولين'!$K$7:$K$20000,'يومية المقاولين'!$I$7:$I$20000,$A31,'يومية المقاولين'!$F$7:$F$20000,F$2,'يومية المقاولين'!$A$7:$A$20000,$A$1) -> 0 | G31: =SUMIFS('يومية المقاولين'!$M$7:$M$20000,'يومية المقاولين'!$I$7:$I$20000,$A31,'يومية المقاولين'!$F$7:$F$20000,F$2,'يومية المقاولين'!$A$7:$A$20000,$A$1) -> 0 | H31: =SUMIFS('يومية المقاولين'!$K$7:$K$20000,'يومية المقاولين'!$I$7:$I$20000,$A31,'يومية المقاولين'!$F$7:$F$20000,H$2,'يومية المقاولين'!$A$7:$A$20000,$A$1) -> 0 | I31: =SUMIFS('يومية المقاولين'!$M$7:$M$20000,'يومية المقاولين'!$I$7:$I$20000,$A31,'يومية المقاولين'!$F$7:$F$20000,H$2,'يومية المقاولين'!$A$7:$A$20000,$A$1) -> 0 | J31: =SUMIFS('يومية المقاولين'!$K$7:$K$20000,'يومية المقاولين'!$I$7:$I$20000,$A31,'يومية المقاولين'!$F$7:$F$20000,J$2,'يومية المقاولين'!$A$7:$A$20000,$A$1) -> 0 | K31: =SUMIFS('يومية المقاولين'!$M$7:$M$20000,'يومية المقاولين'!$I$7:$I$20000,$A31,'يومية المقاولين'!$F$7:$F$20000,J$2,'يومية المقاولين'!$A$7:$A$20000,$A$1) -> 0 | L31: =SUMIFS('يومية المقاولين'!$K$7:$K$20000,'يومية المقاولين'!$I$7:$I$20000,$A31,'يومية المقاولين'!$F$7:$F$20000,L$2,'يومية المقاولين'!$A$7:$A$20000,$A$1) -> 0 | M31: =SUMIFS('يومية المقاولين'!$M$7:$M$20000,'يومية المقاولين'!$I$7:$I$20000,$A31,'يومية المقاولين'!$F$7:$F$20000,L$2,'يومية المقاولين'!$A$7:$A$20000,$A$1) -> 0 | N31: =SUMIFS('يومية المقاولين'!$K$7:$K$20000,'يومية المقاولين'!$I$7:$I$20000,$A31,'يومية المقاولين'!$F$7:$F$20000,N$2,'يومية المقاولين'!$A$7:$A$20000,$A$1) -> 0 | O31: =SUMIFS('يومية المقاولين'!$M$7:$M$20000,'يومية المقاولين'!$I$7:$I$20000,$A31,'يومية المقاولين'!$F$7:$F$20000,N$2,'يومية المقاولين'!$A$7:$A$20000,$A$1) -> 0 | P31: =SUMIFS('يومية المقاولين'!$K$7:$K$20000,'يومية المقاولين'!$I$7:$I$20000,$A31,'يومية المقاولين'!$F$7:$F$20000,P$2,'يومية المقاولين'!$A$7:$A$20000,$A$1) -> 0 | Q31: =SUMIFS('يومية المقاولين'!$M$7:$M$20000,'يومية المقاولين'!$I$7:$I$20000,$A31,'يومية المقاولين'!$F$7:$F$20000,P$2,'يومية المقاولين'!$A$7:$A$20000,$A$1) -> 0 | R31: =SUMIFS('يومية المقاولين'!$K$7:$K$20000,'يومية المقاولين'!$I$7:$I$20000,$A31,'يومية المقاولين'!$F$7:$F$20000,R$2,'يومية المقاولين'!$A$7:$A$20000,$A$1) -> 0 | S31: =SUMIFS('يومية المقاولين'!$M$7:$M$20000,'يومية المقاولين'!$I$7:$I$20000,$A31,'يومية المقاولين'!$F$7:$F$20000,R$2,'يومية المقاولين'!$A$7:$A$20000,$A$1) -> 0 | T31: =SUMIFS('يومية المقاولين'!$K$7:$K$20000,'يومية المقاولين'!$I$7:$I$20000,$A31,'يومية المقاولين'!$F$7:$F$20000,T$2,'يومية المقاولين'!$A$7:$A$20000,$A$1) -> 0 | U31: =SUMIFS('يومية المقاولين'!$M$7:$M$20000,'يومية المقاولين'!$I$7:$I$20000,$A31,'يومية المقاولين'!$F$7:$F$20000,T$2,'يومية المقاولين'!$A$7:$A$20000,$A$1) -> 0 | V31: =SUMIFS('يومية المقاولين'!$K$7:$K$20000,'يومية المقاولين'!$I$7:$I$20000,$A31,'يومية المقاولين'!$F$7:$F$20000,V$2,'يومية المقاولين'!$A$7:$A$20000,$A$1) -> 0 | W31: =SUMIFS('يومية المقاولين'!$M$7:$M$20000,'يومية المقاولين'!$I$7:$I$20000,$A31,'يومية المقاولين'!$F$7:$F$20000,V$2,'يومية المقاولين'!$A$7:$A$20000,$A$1) -> 0 | X31: =SUMIFS('يومية المقاولين'!$K$7:$K$20000,'يومية المقاولين'!$I$7:$I$20000,$A31,'يومية المقاولين'!$F$7:$F$20000,X$2,'يومية المقاولين'!$A$7:$A$20000,$A$1) -> 0 | Y31: =SUMIFS('يومية المقاولين'!$M$7:$M$20000,'يومية المقاولين'!$I$7:$I$20000,$A31,'يومية المقاولين'!$F$7:$F$20000,X$2,'يومية المقاولين'!$A$7:$A$20000,$A$1) -> 0 | Z31: =SUMIFS('يومية المقاولين'!$K$7:$K$20000,'يومية المقاولين'!$I$7:$I$20000,$A31,'يومية المقاولين'!$F$7:$F$20000,Z$2,'يومية المقاولين'!$A$7:$A$20000,$A$1) -> 0 | AA31: =SUMIFS('يومية المقاولين'!$M$7:$M$20000,'يومية المقاولين'!$I$7:$I$20000,$A31,'يومية المقاولين'!$F$7:$F$20000,Z$2,'يومية المقاولين'!$A$7:$A$20000,$A$1) -> 0 | AB31: =SUMIFS('يومية المقاولين'!$K$7:$K$20000,'يومية المقاولين'!$I$7:$I$20000,$A31,'يومية المقاولين'!$F$7:$F$20000,AB$2,'يومية المقاولين'!$A$7:$A$20000,$A$1) -> 0 | AC31: =SUMIFS('يومية المقاولين'!$M$7:$M$20000,'يومية المقاولين'!$I$7:$I$20000,$A31,'يومية المقاولين'!$F$7:$F$20000,AB$2,'يومية المقاولين'!$A$7:$A$20000,$A$1) -> 0 | AD31: =SUMIFS('يومية المقاولين'!$K$7:$K$20000,'يومية المقاولين'!$I$7:$I$20000,$A31,'يومية المقاولين'!$F$7:$F$20000,AD$2,'يومية المقاولين'!$A$7:$A$20000,$A$1) -> 0 | AE31: =SUMIFS('يومية المقاولين'!$M$7:$M$20000,'يومية المقاولين'!$I$7:$I$20000,$A31,'يومية المقاولين'!$F$7:$F$20000,AD$2,'يومية المقاولين'!$A$7:$A$20000,$A$1) -> 0 | AF31: =SUMIFS('يومية المقاولين'!$K$7:$K$20000,'يومية المقاولين'!$I$7:$I$20000,$A31,'يومية المقاولين'!$F$7:$F$20000,AF$2,'يومية المقاولين'!$A$7:$A$20000,$A$1) -> 0 | AG31: =SUMIFS('يومية المقاولين'!$M$7:$M$20000,'يومية المقاولين'!$I$7:$I$20000,$A31,'يومية المقاولين'!$F$7:$F$20000,AF$2,'يومية المقاولين'!$A$7:$A$20000,$A$1) -> 0 | AH31: 0 | AI31: 0
A32: اعمال متنوعة | B32: =SUMIFS('يومية المقاولين'!$K$7:$K$20000,'يومية المقاولين'!$I$7:$I$20000,$A32,'يومية المقاولين'!$F$7:$F$20000,B$2,'يومية المقاولين'!$A$7:$A$20000,$A$1) -> 0 | C32: =SUMIFS('يومية المقاولين'!$M$7:$M$20000,'يومية المقاولين'!$I$7:$I$20000,$A32,'يومية المقاولين'!$F$7:$F$20000,B$2,'يومية المقاولين'!$A$7:$A$20000,$A$1) -> 0 | D32: =SUMIFS('يومية المقاولين'!$K$7:$K$20000,'يومية المقاولين'!$I$7:$I$20000,$A32,'يومية المقاولين'!$F$7:$F$20000,D$2,'يومية المقاولين'!$A$7:$A$20000,$A$1) -> 0 | E32: =SUMIFS('يومية المقاولين'!$M$7:$M$20000,'يومية المقاولين'!$I$7:$I$20000,$A32,'يومية المقاولين'!$F$7:$F$20000,D$2,'يومية المقاولين'!$A$7:$A$20000,$A$1) -> 0 | F32: =SUMIFS('يومية المقاولين'!$K$7:$K$20000,'يومية المقاولين'!$I$7:$I$20000,$A32,'يومية المقاولين'!$F$7:$F$20000,F$2,'يومية المقاولين'!$A$7:$A$20000,$A$1) -> 0 | G32: =SUMIFS('يومية المقاولين'!$M$7:$M$20000,'يومية المقاولين'!$I$7:$I$20000,$A32,'يومية المقاولين'!$F$7:$F$20000,F$2,'يومية المقاولين'!$A$7:$A$20000,$A$1) -> 0 | H32: =SUMIFS('يومية المقاولين'!$K$7:$K$20000,'يومية المقاولين'!$I$7:$I$20000,$A32,'يومية المقاولين'!$F$7:$F$20000,H$2,'يومية المقاولين'!$A$7:$A$20000,$A$1) -> 369.5 | I32: =SUMIFS('يومية المقاولين'!$M$7:$M$20000,'يومية المقاولين'!$I$7:$I$20000,$A32,'يومية المقاولين'!$F$7:$F$20000,H$2,'يومية المقاولين'!$A$7:$A$20000,$A$1) -> 7390 | J32: =SUMIFS('يومية المقاولين'!$K$7:$K$20000,'يومية المقاولين'!$I$7:$I$20000,$A32,'يومية المقاولين'!$F$7:$F$20000,J$2,'يومية المقاولين'!$A$7:$A$20000,$A$1) -> 0 | K32: =SUMIFS('يومية المقاولين'!$M$7:$M$20000,'يومية المقاولين'!$I$7:$I$20000,$A32,'يومية المقاولين'!$F$7:$F$20000,J$2,'يومية المقاولين'!$A$7:$A$20000,$A$1) -> 0 | L32: =SUMIFS('يومية المقاولين'!$K$7:$K$20000,'يومية المقاولين'!$I$7:$I$20000,$A32,'يومية المقاولين'!$F$7:$F$20000,L$2,'يومية المقاولين'!$A$7:$A$20000,$A$1) -> 13.5 | M32: =SUMIFS('يومية المقاولين'!$M$7:$M$20000,'يومية المقاولين'!$I$7:$I$20000,$A32,'يومية المقاولين'!$F$7:$F$20000,L$2,'يومية المقاولين'!$A$7:$A$20000,$A$1) -> 4725 | N32: =SUMIFS('يومية المقاولين'!$K$7:$K$20000,'يومية المقاولين'!$I$7:$I$20000,$A32,'يومية المقاولين'!$F$7:$F$20000,N$2,'يومية المقاولين'!$A$7:$A$20000,$A$1) -> 0 | O32: =SUMIFS('يومية المقاولين'!$M$7:$M$20000,'يومية المقاولين'!$I$7:$I$20000,$A32,'يومية المقاولين'!$F$7:$F$20000,N$2,'يومية المقاولين'!$A$7:$A$20000,$A$1) -> 0 | P32: =SUMIFS('يومية المقاولين'!$K$7:$K$20000,'يومية المقاولين'!$I$7:$I$20000,$A32,'يومية المقاولين'!$F$7:$F$20000,P$2,'يومية المقاولين'!$A$7:$A$20000,$A$1) -> 0 | Q32: =SUMIFS('يومية المقاولين'!$M$7:$M$20000,'يومية المقاولين'!$I$7:$I$20000,$A32,'يومية المقاولين'!$F$7:$F$20000,P$2,'يومية المقاولين'!$A$7:$A$20000,$A$1) -> 0 | R32: =SUMIFS('يومية المقاولين'!$K$7:$K$20000,'يومية المقاولين'!$I$7:$I$20000,$A32,'يومية المقاولين'!$F$7:$F$20000,R$2,'يومية المقاولين'!$A$7:$A$20000,$A$1) -> 0 | S32: =SUMIFS('يومية المقاولين'!$M$7:$M$20000,'يومية المقاولين'!$I$7:$I$20000,$A32,'يومية المقاولين'!$F$7:$F$20000,R$2,'يومية المقاولين'!$A$7:$A$20000,$A$1) -> 0 | T32: =SUMIFS('يومية المقاولين'!$K$7:$K$20000,'يومية المقاولين'!$I$7:$I$20000,$A32,'يومية المقاولين'!$F$7:$F$20000,T$2,'يومية المقاولين'!$A$7:$A$20000,$A$1) -> 0 | U32: =SUMIFS('يومية المقاولين'!$M$7:$M$20000,'يومية المقاولين'!$I$7:$I$20000,$A32,'يومية المقاولين'!$F$7:$F$20000,T$2,'يومية المقاولين'!$A$7:$A$20000,$A$1) -> 0 | V32: =SUMIFS('يومية المقاولين'!$K$7:$K$20000,'يومية المقاولين'!$I$7:$I$20000,$A32,'يومية المقاولين'!$F$7:$F$20000,V$2,'يومية المقاولين'!$A$7:$A$20000,$A$1) -> 0 | W32: =SUMIFS('يومية المقاولين'!$M$7:$M$20000,'يومية المقاولين'!$I$7:$I$20000,$A32,'يومية المقاولين'!$F$7:$F$20000,V$2,'يومية المقاولين'!$A$7:$A$20000,$A$1) -> 0 | X32: =SUMIFS('يومية المقاولين'!$K$7:$K$20000,'يومية المقاولين'!$I$7:$I$20000,$A32,'يومية المقاولين'!$F$7:$F$20000,X$2,'يومية المقاولين'!$A$7:$A$20000,$A$1) -> 0 | Y32: =SUMIFS('يومية المقاولين'!$M$7:$M$20000,'يومية المقاولين'!$I$7:$I$20000,$A32,'يومية المقاولين'!$F$7:$F$20000,X$2,'يومية المقاولين'!$A$7:$A$20000,$A$1) -> 0 | Z32: =SUMIFS('يومية المقاولين'!$K$7:$K$20000,'يومية المقاولين'!$I$7:$I$20000,$A32,'يومية المقاولين'!$F$7:$F$20000,Z$2,'يومية المقاولين'!$A$7:$A$20000,$A$1) -> 0 | AA32: =SUMIFS('يومية المقاولين'!$M$7:$M$20000,'يومية المقاولين'!$I$7:$I$20000,$A32,'يومية المقاولين'!$F$7:$F$20000,Z$2,'يومية المقاولين'!$A$7:$A$20000,$A$1) -> 0 | AB32: =SUMIFS('يومية المقاولين'!$K$7:$K$20000,'يومية المقاولين'!$I$7:$I$20000,$A32,'يومية المقاولين'!$F$7:$F$20000,AB$2,'يومية المقاولين'!$A$7:$A$20000,$A$1) -> 9.5 | AC32: =SUMIFS('يومية المقاولين'!$M$7:$M$20000,'يومية المقاولين'!$I$7:$I$20000,$A32,'يومية المقاولين'!$F$7:$F$20000,AB$2,'يومية المقاولين'!$A$7:$A$20000,$A$1) -> 3325 | AD32: =SUMIFS('يومية المقاولين'!$K$7:$K$20000,'يومية المقاولين'!$I$7:$I$20000,$A32,'يومية المقاولين'!$F$7:$F$20000,AD$2,'يومية المقاولين'!$A$7:$A$20000,$A$1) -> 0.5 | AE32: =SUMIFS('يومية المقاولين'!$M$7:$M$20000,'يومية المقاولين'!$I$7:$I$20000,$A32,'يومية المقاولين'!$F$7:$F$20000,AD$2,'يومية المقاولين'!$A$7:$A$20000,$A$1) -> 175 | AF32: =SUMIFS('يومية المقاولين'!$K$7:$K$20000,'يومية المقاولين'!$I$7:$I$20000,$A32,'يومية المقاولين'!$F$7:$F$20000,AF$2,'يومية المقاولين'!$A$7:$A$20000,$A$1) -> 9.5 | AG32: =SUMIFS('يومية المقاولين'!$M$7:$M$20000,'يومية المقاولين'!$I$7:$I$20000,$A32,'يومية المقاولين'!$F$7:$F$20000,AF$2,'يومية المقاولين'!$A$7:$A$20000,$A$1) -> 3325 | AH32: 402.5 | AI32: 18940

Sheet Report2026
B2: اسم المقاول | C2: المحصول | D2: النوع | E2: الحوشة | F2: الشركاء | G2: الاعمال | H2: الوحدة | I2: التاريخ | J2: التاريخ | K2: اجمالى عدد لعمالة | L2: =SUBTOTAL(9,$K$9:$K$11949) -> 159.75 | M2: يومية | N2: يومية | O2: يومية | X2: اضافى | Y2: مكافئة مالبة | Z2: مكافئة مالبة
B3: عبد الجواد | I3: =">="&C5 -> >=45978 | J3: ="<="&C6 -> <=45991 | K3: اجمالى قيمة الاعمال | L3: =SUBTOTAL(9,$M$9:$M$11949) -> 55912.5 | M3: =SUMIFS($K$9:$K$14949,$J$9:$J$14949,M$2,$D$9:$D$14949,$B$3) -> 159.75 | X3: =SUMIFS($K$9:$K$14949,$J$9:$J$14949,X$2) -> 0 | Y3: =SUMIFS($K$9:$K$14949,$J$9:$J$14949,Y$2) -> 0 | Z3: =SUMIFS($K$9:$K$14949,$J$9:$J$14949,Z$2) -> 0
K4: الدفعات الواصلة | L4: =SUBTOTAL(9,$N$9:$N$11949) -> 20000 | M4: =+M5/M3 -> 350 | X4: =+X5/X3 ->  | Y4: =+Y5/Y3 ->  | Z4: =+Z5/Z3 ->  | AD4: =+F4&"_"&L6 -> _عبد الجواد
A5: 0 | B5: بداية تاريخ | C5: 2025-11-17 | E5: =TEXT(C5,"dddd") -> الإثنين | K5: المستحق للمقاول | L5: =+L3-L4 -> 35912.5 | M5: =SUMIFS($M$9:$M$14949,$J$9:$J$14949,M$2) -> 55912.5 | X5: =SUMIFS($M$9:$M$14949,$J$9:$J$14949,X$2) -> 0 | Y5: =SUMIFS($M$9:$M$14949,$J$9:$J$14949,Y$2) -> 0 | Z5: =SUMIFS($M$9:$M$14949,$J$9:$J$14949,Z$2) -> 0
B6: نهاية التاريخ | C6: 2025-11-30 | E6: =TEXT(C6,"dddd") -> الأحد | K6: تقرير المقاول | L6: =+B3 -> عبد الجواد | AD6: 13550
K7: =SUBTOTAL(9,K9:K491949)-X3 -> 159.75 | M7: =SUBTOTAL(9,M9:M491949) -> 55912.5 | N7: =SUBTOTAL(9,N9:N491949) -> 20000 | O7: =+M7-N7 -> 35912.5 | X7: =SUBTOTAL(9,X9:X491949) -> 0
B8: التاريخ | C8: اليوم | D8: اسم المقاول | E8: المحصول | F8: النوع | G8: الحوشة | H8: الشركاء | I8: الاعمال | J8: الوحدة | K8: العدد | L8: الفئة | M8: القيمة | N8: الدفعات الواصلة | O8: البيان | P8: الإنتاج | Q8: تكلفة | R8: الرصيد
B9: 2025-11-17 | C9: الإثنين | D9: عبد الجواد | E9: الغنم | F9: الغنم | I9: اعمال متنوعة | J9: يومية | K9: 6 | L9: 350 | M9: 2100 | R9: 32831
B10: 2025-11-17 | C10: الإثنين | D10: عبد الجواد | E10: الفول | F10: الفول | I10: رش | J10: يومية | K10: 4 | L10: 350 | M10: 1400 | R10: 34231
B11: 2025-11-17 | C11: الإثنين | D11: عبد الجواد | E11: الإدارة والمخازن | F11: الإدارة والمخازن والاستراحة | I11: الإدارة والمخازن والاستراحة | J11: يومية | K11: 2 | L11: 350 | M11: 700 | R11: 34931
B12: 2025-11-18 | C12: الثلاثاء | D12: عبد الجواد | E12: الغنم | F12: الغنم | I12: اعمال متنوعة | J12: يومية | K12: 6 | L12: 350 | M12: 2100 | R12: 37031
B13: 2025-11-18 | C13: الثلاثاء | D13: عبد الجواد | E13: الفول | F13: الفول | I13: رش | J13: يومية | K13: 4 | L13: 350 | M13: 1400 | R13: 38431
B14: 2025-11-18 | C14: الثلاثاء | D14: عبد الجواد | E14: الإدارة والمخازن | F14: الإدارة والمخازن والاستراحة | I14: الإدارة والمخازن والاستراحة | J14: يومية | K14: 2 | L14: 350 | M14: 700 | R14: 39131
B15: 2025-11-19 | C15: الأربعاء | D15: عبد الجواد | E15: الفول | F15: الفول | I15: رش | J15: يومية | K15: 2 | L15: 350 | M15: 700 | R15: 39831
B16: 2025-11-19 | C16: الأربعاء | D16: عبد الجواد | E16: النخيل | F16: النخيل | I16: تنزيل سباخ | J16: يومية | K16: 9 | L16: 350 | M16: 3150 | R16: 42981
B17: 2025-11-20 | C17: الخميس | D17: عبد الجواد | E17: النخيل | F17: النخيل | I17: تنزيل سباخ | J17: يومية | K17: 6 | L17: 350 | M17: 2100 | R17: 45081
B18: 2025-11-20 | C18: الخميس | D18: عبد الجواد | E18: بونيكام | F18: بونيكام | I18: حشائش | J18: يومية | K18: 4.5 | L18: 350 | M18: 1575 | R18: 46656
B19: 2025-11-21 | C19: الجمعة | D19: عبد الجواد | E19: الفول | F19: الفول | I19: رش | J19: يومية | K19: 2 | L19: 350 | M19: 700 | R19: 47356
B20: 2025-11-21 | C20: الجمعة | D20: عبد الجواد | E20: الغنم | F20: الغنم | I20: اعمال متنوعة | J20: يومية | K20: 1 | L20: 350 | M20: 350 | R20: 47706
B21: 2025-11-21 | C21: الجمعة | D21: عبد الجواد | E21: النخيل | F21: النخيل | I21: تنزيل سباخ | J21: يومية | K21: 8 | L21: 350 | M21: 2800 | R21: 50506
B22: 2025-11-22 | C22: السبت | D22: عبد الجواد | E22: النخيل | F22: النخيل | I22: تنزيل سباخ | J22: يومية | K22: 11 | L22: 350 | M22: 3850 | R22: 54356
B23: 2025-11-23 | C23: الأحد | D23: عبد الجواد | E23: دراجون | F23: دراجون | I23: تقليم | J23: يومية | K23: 5 | L23: 350 | M23: 1750 | R23: 56106
B24: 2025-11-23 | C24: الأحد | D24: عبد الجواد | E24: النخيل | F24: النخيل | I24: تنزيل سباخ | J24: يومية | K24: 6 | L24: 350 | M24: 2100 | R24: 58206
B25: 2025-11-24 | C25: الإثنين | D25: عبد الجواد | E25: دراجون | F25: دراجون | I25: تقليم | J25: يومية | K25: 11 | L25: 350 | M25: 3850 | R25: 62056
B26: 2025-11-25 | C26: الثلاثاء | D26: عبد الجواد | E26: النخيل | F26: النخيل | I26: تنزيل سباخ | J26: يومية | K26: 2 | L26: 350 | M26: 700 | R26: 62756
B27: 2025-11-25 | C27: الثلاثاء | D27: عبد الجواد | E27: دراجون | F27: دراجون | I27: تقليم | J27: يومية | K27: 11 | L27: 350 | M27: 3850 | R27: 66606
B28: 2025-11-26 | C28: الأربعاء | D28: عبد الجواد | E28: النخيل | F28: النخيل | I28: فرد خراطيم | J28: يومية | K28: 2 | L28: 350 | M28: 700 | R28: 67306
B29: 2025-11-26 | C29: الأربعاء | D29: عبد الجواد | E29: النخيل | F29: النخيل | I29: تنزيل سباخ | J29: يومية | K29: 2 | L29: 350 | M29: 700 | R29: 68006
B30: 2025-11-26 | C30: الأربعاء | D30: عبد الجواد | E30: الفول | F30: الفول | I30: رش | J30: يومية | K30: 2 | L30: 350 | M30: 700 | R30: 68706
B31: 2025-11-26 | C31: الأربعاء | D31: عبد الجواد | E31: دراجون | F31: دراجون | I31: تقليم | J31: يومية | K31: 7 | L31: 350 | M31: 2450 | R31: 71156
B32: 2025-11-27 | C32: الخميس | D32: عبد الجواد | E32: النخيل | F32: النخيل | I32: تنزيل سباخ | J32: يومية | K32: 8 | L32: 350 | M32: 2800 | R32: 73956
B33: 2025-11-27 | C33: الخميس | D33: عبد الجواد | E33: الفول | F33: الفول | I33: رش | J33: يومية | K33: 2 | L33: 350 | M33: 700 | R33: 74656
B34: 2025-11-27 | C34: الخميس | D34: عبد الجواد | E34: دراجون | F34: دراجون | I34: تقليم | J34: يومية | K34: 2 | L34: 350 | M34: 700 | R34: 75356
B35: 2025-11-28 | C35: الجمعة | D35: عبد الجواد | E35: النخيل | F35: النخيل | I35: تنزيل سباخ | J35: يومية | K35: 5 | L35: 350 | M35: 1750 | R35: 77106
B36: 2025-11-28 | C36: الجمعة | D36: عبد الجواد | E36: الفول | F36: الفول | I36: رش | J36: يومية | K36: 2 | L36: 350 | M36: 700 | R36: 77806
B37: 2025-11-28 | C37: الجمعة | D37: عبد الجواد | E37: دراجون | F37: دراجون | I37: تقليم | J37: يومية | K37: 2 | L37: 350 | M37: 700 | R37: 78506
B38: 2025-11-28 | C38: الجمعة | D38: عبد الجواد | E38: دفعه فلوس | F38: دفعه فلوس | G38: دفعه فلوس | I38: دفعه فلوس | J38: وصل | K38: 0 | L38: 0 | M38: 0 | N38: 20000 | R38: 58506
B39: 2025-11-29 | C39: السبت | D39: عبد الجواد | E39: الغنم | F39: الغنم | I39: اعمال متنوعة | J39: يومية | K39: 1.75 | L39: 350 | M39: 612.5 | R39: 59118.5
B40: 2025-11-29 | C40: السبت | D40: عبد الجواد | E40: النخيل | F40: النخيل | I40: تنزيل سباخ | J40: يومية | K40: 7.5 | L40: 350 | M40: 2625 | R40: 61743.5
B41: 2025-11-29 | C41: السبت | D41: عبد الجواد | E41: الفول | F41: الفول | I41: رش | J41: يومية | K41: 2 | L41: 350 | M41: 700 | R41: 62443.5
B42: 2025-11-30 | C42: الأحد | D42: عبد الجواد | E42: دراجون | F42: دراجون | I42: تقليم | J42: يومية | K42: 9 | L42: 350 | M42: 3150 | R42: 65593.5
B43: 2025-11-30 | C43: الأحد | D43: عبد الجواد | E43: النخيل | F43: النخيل | I43: تنزيل سباخ | J43: يومية | K43: 2 | L43: 350 | M43: 700 | R43: 66293.5
B44: 2025-11-30 | C44: الأحد | D44: عبد الجواد | E44: الغنم | F44: الغنم | I44: اعمال متنوعة | J44: يومية | K44: 1 | L44: 350 | M44: 350 | R44: 66643.5

Sheet يومية المقاولين
C1: 0 | D1: =SUBTOTAL(9,D7:D129992) -> 0 | E1: =SUBTOTAL(9,E7:E129992) -> 0 | G1: =SUBTOTAL(9,G7:G129992) -> 0 | I1: =SUBTOTAL(9,I7:I129992) -> 0 | L1: =SUBTOTAL(9,M7:M129992) -> 1460245.5 | O1: =SUBTOTAL(9,O7:O129992) -> 0 | W1: =SUBTOTAL(9,W7:W129992) -> 0 | Y1: =SUBTOTAL(9,Y7:Y129992) -> 0 | Z1: 0.2232
K2: =SUBTOTAL(9,K7:K491986) -> 4025.41 | M2: =SUBTOTAL(9,M7:M491986) -> 1460245.5 | X2: =SUBTOTAL(9,X5:X491986) -> 1434645 | Y2: =+M2-X2 -> 25600.5
B3: بيان يومى تفصيلى المقاولين والمزرعة 2025
E4: الاجمالى الكلى
A6: الشهر | B6: التاريخ | C6: اليوم | D6: اسم المقاول | E6: المحصول | F6: النوع | G6: الحوشة | H6: الشركاء | I6: الاعمال | J6: الوحدة | K6: العدد | L6: الفئة | M6: القيمة | N6: الرش | O6: التسميد | P6: التوريق | Q6: الخف | R6: الخصى | S6: تطويش | T6: 1 | U6: 1 | V6: 1 | W6: 1 | X6: الدفعات الواصلة | Y6: البيان | Z6: الإنتاج | AA6: تكلفة | AB6: الرصيد
A7: =TEXT(B7,"MMMM") -> يونيو | B7: 2025-06-15 | C7: =IF(B7<>"",TEXT(B7,"dddd"),"") -> الأحد | D7: ابو عمار أسيوط | E7: مانجو | F7: مانجو | H7: الحاج حماد | I7: اعمال متنوعة | J7: يومية | K7: 6 | L7: 350 | M7: 2100 | X7: 2000 | Y7: من احمد عماد في السكن | AB7: =SUMPRODUCT($M$7:M7-$X$7:X7,--($D$7:D7=D7)) -> 100
A8: يونيو | B8: 2025-06-16 | C8: الإثنين | D8: ابو عمار أسيوط | E8: مانجو | F8: مانجو | H8: الحاج حماد | I8: اعمال متنوعة | J8: يومية | K8: 6 | L8: 350 | M8: 2100 | AB8: =SUMPRODUCT($M$7:M8-$X$7:X8,--($D$7:D8=D8)) -> 2200
A9: يونيو | B9: 2025-06-17 | C9: الثلاثاء | D9: ابو عمار أسيوط | E9: مانجو | F9: مانجو | H9: الحاج حماد | I9: اعمال متنوعة | J9: يومية | K9: 6 | L9: 350 | M9: 2100 | AB9: =SUMPRODUCT($M$7:M9-$X$7:X9,--($D$7:D9=D9)) -> 4300
A10: يونيو | B10: 2025-06-18 | C10: الأربعاء | D10: ابو عمار أسيوط | E10: مانجو | F10: مانجو | H10: الحاج حماد | I10: اعمال متنوعة | J10: يومية | K10: 6 | L10: 350 | M10: 2100 | AB10: =SUMPRODUCT($M$7:M10-$X$7:X10,--($D$7:D10=D10)) -> 6400
A11: يونيو | B11: 2025-06-19 | C11: الخميس | D11: ابو عمار أسيوط | E11: مانجو | F11: مانجو | H11: الحاج حماد | I11: اعمال متنوعة | J11: يومية | K11: 6 | L11: 350 | M11: 2100 | AB11: =SUMPRODUCT($M$7:M11-$X$7:X11,--($D$7:D11=D11)) -> 8500
A12: يونيو | B12: 2025-06-20 | C12: الجمعة | D12: ابو عمار أسيوط | E12: عنب | F12: بلاك | H12: الحاج حماد | I12: اعمال متنوعة | J12: يومية | K12: 6 | L12: 350 | M12: 2100 | AB12: =SUMPRODUCT($M$7:M12-$X$7:X12,--($D$7:D12=D12)) -> 10600
A13: يونيو | B13: 2025-06-21 | C13: السبت | D13: ابو عمار أسيوط | E13: عنب | F13: بلاك | H13: الحاج حماد | I13: اعمال متنوعة | J13: يومية | K13: 2 | L13: 350 | M13: 700 | X13: 1000 | Y13: من الحاج حماد | AB13: =SUMPRODUCT($M$7:M13-$X$7:X13,--($D$7:D13=D13)) -> 10300
A14: يونيو | B14: 2025-06-21 | C14: السبت | D14: ابو عمار أسيوط | E14: مانجو | F14: مانجو | H14: الحاج حماد | I14: اعمال متنوعة | J14: يومية | K14: 4 | L14: 350 | M14: 1400 | AB14: =SUMPRODUCT($M$7:M14-$X$7:X14,--($D$7:D14=D14)) -> 11700
A15: يونيو | B15: 2025-06-22 | C15: الأحد | D15: ابو عمار أسيوط | E15: مانجو | F15: مانجو | H15: الحاج حماد | I15: اعمال متنوعة | J15: يومية | K15: 6 | L15: 350 | M15: 2100 | AB15: =SUMPRODUCT($M$7:M15-$X$7:X15,--($D$7:D15=D15)) -> 13800
A16: يونيو | B16: 2025-06-22 | C16: الأحد | D16: ايمن جابر | E16: رصد افتتاحى | F16: عام | J16: رصد افتتاحى | L16: 650 | M16: 189687 | AB16: =SUMPRODUCT($M$7:M16-$X$7:X16,--($D$7:D16=D16)) -> 189687
A17: يونيو | B17: 2025-06-23 | C17: الإثنين | D17: ابو عمار أسيوط | E17: مانجو | F17: مانجو | H17: الحاج حماد | I17: اعمال متنوعة | J17: يومية | K17: 6 | L17: 350 | M17: 2100 | X17: 1000 | Y17: من احمد عماد في السكن | AB17: =SUMPRODUCT($M$7:M17-$X$7:X17,--($D$7:D17=D17)) -> 14900
A18: يونيو | B18: 2025-06-24 | C18: الثلاثاء | D18: ابو عمار أسيوط | E18: مانجو | F18: مانجو | H18: الحاج حماد | I18: اعمال متنوعة | J18: يومية | K18: 6 | L18: 350 | M18: 2100 | AB18: =SUMPRODUCT($M$7:M18-$X$7:X18,--($D$7:D18=D18)) -> 17000
A19: يونيو | B19: 2025-06-25 | C19: الأربعاء | D19: ابو عمار أسيوط | E19: مانجو | F19: مانجو | H19: الحاج حماد | I19: اعمال متنوعة | J19: يومية | K19: 4 | L19: 350 | M19: 1400 | AB19: =SUMPRODUCT($M$7:M19-$X$7:X19,--($D$7:D19=D19)) -> 18400
A20: يونيو | B20: 2025-06-26 | C20: الخميس | D20: ابو عمار أسيوط | E20: مانجو | F20: مانجو | H20: الحاج حماد | I20: اعمال متنوعة | J20: يومية | K20: 6 | L20: 350 | M20: 2100 | X20: 2000 | Y20: من احمد عماد في السكن | AB20: =SUMPRODUCT($M$7:M20-$X$7:X20,--($D$7:D20=D20)) -> 18500
A21: يونيو | B21: 2025-06-27 | C21: الجمعة | D21: ابو عمار أسيوط | E21: مانجو | F21: مانجو | H21: الحاج حماد | I21: اعمال متنوعة | J21: يومية | K21: 6 | L21: 350 | M21: 2100 | AB21: =SUMPRODUCT($M$7:M21-$X$7:X21,--($D$7:D21=D21)) -> 20600
A22: يونيو | B22: 2025-06-28 | C22: السبت | D22: ابو عمار أسيوط | E22: مانجو | F22: مانجو | H22: الحاج حماد | I22: اعمال متنوعة | J22: يومية | K22: 6 | L22: 350 | M22: 2100 | AB22: =SUMPRODUCT($M$7:M22-$X$7:X22,--($D$7:D22=D22)) -> 22700
A23: يونيو | B23: 2025-06-29 | C23: الأحد | D23: ابو عمار أسيوط | E23: مانجو | F23: مانجو | H23: الحاج حماد | I23: اعمال متنوعة | J23: يومية | K23: 5 | L23: 350 | M23: 1750 | X23: 1500 | Y23: من الحاج حماد | AB23: =SUMPRODUCT($M$7:M23-$X$7:X23,--($D$7:D23=D23)) -> 22950
A24: يونيو | B24: 2025-06-30 | C24: الإثنين | D24: ابو عمار أسيوط | E24: مانجو | F24: مانجو | H24: الحاج حماد | I24: اعمال متنوعة | J24: يومية | K24: 6 | L24: 350 | M24: 2100 | AB24: =SUMPRODUCT($M$7:M24-$X$7:X24,--($D$7:D24=D24)) -> 25050
A25: يوليو | B25: 2025-07-01 | C25: الثلاثاء | D25: ابو عمار أسيوط | E25: مانجو | F25: مانجو | H25: الحاج حماد | I25: اعمال متنوعة | J25: يومية | K25: 6 | L25: 350 | M25: 2100 | AB25: =SUMPRODUCT($M$7:M25-$X$7:X25,--($D$7:D25=D25)) -> 27150
A26: يوليو | B26: 2025-07-01 | C26: الثلاثاء | D26: م رمضان عبد الغفار | E26: رصد افتتاحى | F26: عام | J26: رصد افتتاحى | M26: 30000 | AB26: =SUMPRODUCT($M$7:M26-$X$7:X26,--($D$7:D26=D26)) -> 30000
A27: يوليو | B27: 2025-07-02 | C27: الأربعاء | D27: ابو عمار أسيوط | E27: مانجو | F27: مانجو | H27: الحاج حماد | I27: اعمال متنوعة | J27: يومية | K27: 6 | L27: 350 | M27: 2100 | AB27: =SUMPRODUCT($M$7:M27-$X$7:X27,--($D$7:D27=D27)) -> 29250
A28: يوليو | B28: 2025-07-03 | C28: الخميس | D28: ابو عمار أسيوط | E28: مانجو | F28: مانجو | H28: الحاج حماد | I28: اعمال متنوعة | J28: يومية | K28: 5.5 | L28: 350 | M28: 1925 | AB28: =SUMPRODUCT($M$7:M28-$X$7:X28,--($D$7:D28=D28)) -> 31175
A29: يوليو | B29: 2025-07-04 | C29: الجمعة | D29: ابو عمار أسيوط | E29: مانجو | F29: مانجو | H29: الحاج حماد | I29: اعمال متنوعة | J29: يومية | K29: 2 | L29: 350 | M29: 700 | AB29: =SUMPRODUCT($M$7:M29-$X$7:X29,--($D$7:D29=D29)) -> 31875
A30: يوليو | B30: 2025-07-05 | C30: السبت | D30: ابو عمار أسيوط | E30: مانجو | F30: مانجو | H30: الحاج حماد | I30: اعمال متنوعة | J30: يومية | K30: 2 | L30: 350 | M30: 700 | AB30: =SUMPRODUCT($M$7:M30-$X$7:X30,--($D$7:D30=D30)) -> 32575
A31: يوليو | B31: 2025-07-06 | C31: الأحد | D31: ابو عمار أسيوط | E31: مانجو | F31: مانجو | H31: الحاج حماد | I31: اعمال متنوعة | J31: يومية | K31: 5 | L31: 350 | M31: 1750 | AB31: =SUMPRODUCT($M$7:M31-$X$7:X31,--($D$7:D31=D31)) -> 34325
A32: يوليو | B32: 2025-07-07 | C32: الإثنين | D32: ابو عمار أسيوط | E32: مانجو | F32: مانجو | H32: الحاج حماد | I32: اعمال متنوعة | J32: يومية | K32: 5 | L32: 350 | M32: 1750 | AB32: =SUMPRODUCT($M$7:M32-$X$7:X32,--($D$7:D32=D32)) -> 36075
A33: يوليو | B33: 2025-07-07 | C33: الإثنين | D33: اشرف محطة | E33: رصد افتتاحى | F33: عام | J33: رصد افتتاحى | L33: 350 | M33: 15160 | AB33: =SUMPRODUCT($M$7:M33-$X$7:X33,--($D$7:D33=D33)) -> 15160
A34: يوليو | B34: 2025-07-08 | C34: الثلاثاء | D34: ابو عمار أسيوط | E34: مانجو | F34: مانجو | H34: الحاج حماد | I34: اعمال متنوعة | J34: يومية | K34: 5 | L34: 350 | M34: 1750 | X34: 1000 | Y34: من م/ محمود حماد | AB34: =SUMPRODUCT($M$7:M34-$X$7:X34,--($D$7:D34=D34)) -> 36825
A35: يوليو | B35: 2025-07-09 | C35: الأربعاء | D35: ابو عمار أسيوط | E35: مانجو | F35: مانجو | H35: الحاج حماد | I35: اعمال متنوعة | J35: يومية | K35: 4 | L35: 350 | M35: 1400 | X35: 1000 | Y35: من م/ محمود حماد | AB35: =SUMPRODUCT($M$7:M35-$X$7:X35,--($D$7:D35=D35)) -> 37225
A36: يوليو | B36: 2025-07-10 | C36: الخميس | D36: ابو عمار أسيوط | E36: مانجو | F36: مانجو | H36: الحاج حماد | I36: اعمال متنوعة | J36: يومية | K36: 4 | L36: 350 | M36: 1400 | AB36: =SUMPRODUCT($M$7:M36-$X$7:X36,--($D$7:D36=D36)) -> 38625
A37: يوليو | B37: 2025-07-11 | C37: الجمعة | D37: ابو عمار أسيوط | E37: مانجو | F37: مانجو | H37: الحاج حماد | I37: اعمال متنوعة | J37: يومية | K37: 4 | L37: 350 | M37: 1400 | AB37: =SUMPRODUCT($M$7:M37-$X$7:X37,--($D$7:D37=D37)) -> 40025
A38: يوليو | B38: 2025-07-12 | C38: السبت | D38: ابو عمار أسيوط | E38: مانجو | F38: مانجو | H38: الحاج حماد | I38: اعمال متنوعة | J38: يومية | K38: 4 | L38: 350 | M38: 1400 | AB38: =SUMPRODUCT($M$7:M38-$X$7:X38,--($D$7:D38=D38)) -> 41425
A39: يوليو | B39: 2025-07-13 | C39: الأحد | D39: ابو عمار أسيوط | E39: مانجو | F39: مانجو | H39: الحاج حماد | I39: اعمال متنوعة | J39: يومية | K39: 4 | L39: 350 | M39: 1400 | X39: 15000 | Y39: من م/ محمود حماد | AB39: =SUMPRODUCT($M$7:M39-$X$7:X39,--($D$7:D39=D39)) -> 27825
A40: يوليو | B40: 2025-07-14 | C40: الإثنين | D40: ابو عمار أسيوط | E40: مانجو | F40: مانجو | H40: الحاج حماد | I40: اعمال متنوعة | J40: يومية | K40: 4 | L40: 350 | M40: 1400 | AB40: =SUMPRODUCT($M$7:M40-$X$7:X40,--($D$7:D40=D40)) -> 29225
A41: يوليو | B41: 2025-07-15 | C41: الثلاثاء | D41: ابو عمار أسيوط | E41: مانجو | F41: مانجو | H41: الحاج حماد | I41: اعمال متنوعة | J41: يومية | K41: 4 | L41: 350 | M41: 1400 | AB41: =SUMPRODUCT($M$7:M41-$X$7:X41,--($D$7:D41=D41)) -> 30625
A42: يوليو | B42: 2025-07-15 | C42: الثلاثاء | D42: م رمضان عبد الغفار | E42: مشتريات | J42: مشتريات | M42: 780 | Y42: لازق+بلية اتوميزر | AB42: =SUMPRODUCT($M$7:M42-$X$7:X42,--($D$7:D42=D42)) -> 30780
A43: يوليو | B43: 2025-07-15 | C43: الثلاثاء | D43: م رمضان عبد الغفار | E43: مصنعية | J43: مصنعية | M43: 1500 | Y43: مصنعية | AB43: =SUMPRODUCT($M$7:M43-$X$7:X43,--($D$7:D43=D43)) -> 32280
A44: يوليو | B44: 2025-07-15 | C44: الثلاثاء | D44: م رمضان عبد الغفار | E44: موركت | F44: موركت | J44: تعليم | M44: 5250 | Y44: عدد21 فدان+250ج | AB44: =SUMPRODUCT($M$7:M44-$X$7:X44,--($D$7:D44=D44)) -> 37530
A45: يوليو | B45: 2025-07-16 | C45: الأربعاء | D45: ابو عمار أسيوط | E45: مانجو | F45: مانجو | H45: الحاج حماد | I45: اعمال متنوعة | J45: يومية | K45: 5 | L45: 350 | M45: 1750 | AB45: =SUMPRODUCT($M$7:M45-$X$7:X45,--($D$7:D45=D45)) -> 32375
A46: يوليو | B46: 2025-07-17 | C46: الخميس | D46: ابو عمار أسيوط | E46: مانجو | F46: مانجو | H46: الحاج حماد | I46: اعمال متنوعة | J46: يومية | K46: 5 | L46: 350 | M46: 1750 | X46: 500 | Y46: من م/ محمود حماد بالمزرعة | AB46: =SUMPRODUCT($M$7:M46-$X$7:X46,--($D$7:D46=D46)) -> 33625
A47: يوليو | B47: 2025-07-18 | C47: الجمعة | D47: ابو عمار أسيوط | E47: مانجو | F47: مانجو | H47: الحاج حماد | I47: اعمال متنوعة | J47: يومية | K47: 5 | L47: 350 | M47: 1750 | X47: 9500 | Y47: تحويل م/ محمود حماد | AB47: =SUMPRODUCT($M$7:M47-$X$7:X47,--($D$7:D47=D47)) -> 25875
A48: يوليو | B48: 2025-07-19 | C48: السبت | D48: ابو عمار أسيوط | E48: مانجو | F48: مانجو | H48: الحاج حماد | I48: اعمال متنوعة | J48: يومية | K48: 5 | L48: 350 | M48: 1750 | AB48: =SUMPRODUCT($M$7:M48-$X$7:X48,--($D$7:D48=D48)) -> 27625
A49: يوليو | B49: 2025-07-19 | C49: السبت | D49: ام ياسمين | E49: عنب | F49: كريمسون | G49: كريمسون ح4 | I49: جمع | J49: يومية | K49: 42 | L49: 350 | M49: 14700 | AB49: =SUMPRODUCT($M$7:M49-$X$7:X49,--($D$7:D49=D49)) -> 14700
A50: يوليو | B50: 2025-07-19 | C50: السبت | D50: محمود محطة | E50: المحطة | F50: تعبئة | G50: كريمسون تصدير | I50: تعبئة | J50: يومية | K50: 16.5 | L50: 350 | M50: 5775 | AB50: =SUMPRODUCT($M$7:M50-$X$7:X50,--($D$7:D50=D50)) -> 5775
A51: يوليو | B51: 2025-07-19 | C51: السبت | D51: السائق سعيد صالح | E51: عنب | F51: كريمسون | G51: نقل | I51: نقل | J51: يومية | K51: 1 | L51: 0 | M51: 0 | Y51: حضور الساعة 10 ص | AB51: =SUMPRODUCT($M$7:M51-$X$7:X51,--($D$7:D51=D51)) -> 0
A52: يوليو | B52: 2025-07-20 | C52: الأحد | D52: ابو عمار أسيوط | E52: مانجو | F52: مانجو | H52: الحاج حماد | I52: اعمال متنوعة | J52: يومية | K52: 3 | L52: 350 | M52: 1050 | X52: 1000 | Y52: من م/ محمود حماد بالمزرعة | AB52: =SUMPRODUCT($M$7:M52-$X$7:X52,--($D$7:D52=D52)) -> 27675
A53: يوليو | B53: 2025-07-20 | C53: الأحد | D53: عمالة خالد | E53: عنب | F53: كريمسون | G53: كريمسون ح4 | I53: جمع | J53: يومية | K53: 25 | L53: 350 | M53: 8750 | AB53: =SUMPRODUCT($M$7:M53-$X$7:X53,--($D$7:D53=D53)) -> 8750
A54: يوليو | B54: 2025-07-20 | C54: الأحد | D54: ام ياسمين | E54: عنب | F54: كريمسون | G54: كريمسون ح4 | I54: جمع | J54: يومية | K54: 40 | L54: 350 | M54: 14000 | AB54: =SUMPRODUCT($M$7:M54-$X$7:X54,--($D$7:D54=D54)) -> 28700
A55: يوليو | B55: 2025-07-20 | C55: الأحد | D55: محمود محطة | E55: المحطة | F55: تعبئة | G55: كريمسون تصدير | I55: تعبئة | J55: يومية | K55: 19 | L55: 360 | M55: 6840 | AB55: =SUMPRODUCT($M$7:M55-$X$7:X55,--($D$7:D55=D55)) -> 12615
A56: يوليو | B56: 2025-07-20 | C56: الأحد | D56: السائق سعيد صالح | E56: عنب | F56: كريمسون | G56: نقل | I56: نقل | J56: يومية | K56: 1 | L56: 0 | M56: 0 | AB56: =SUMPRODUCT($M$7:M56-$X$7:X56,--($D$7:D56=D56)) -> 0
A57: يوليو | B57: 2025-07-21 | C57: الإثنين | D57: ابو عمار أسيوط | E57: مانجو | F57: مانجو | H57: الحاج حماد | I57: اعمال متنوعة | J57: يومية | K57: 3 | L57: 350 | M57: 1050 | AB57: =SUMPRODUCT($M$7:M57-$X$7:X57,--($D$7:D57=D57)) -> 28725
A58: يوليو | B58: 2025-07-21 | C58: الإثنين | D58: عمالة خالد | E58: عنب | F58: كريمسون | G58: كريمسون ح5 | I58: جمع | J58: يومية | K58: 24 | L58: 350 | M58: 8400 | AB58: =SUMPRODUCT($M$7:M58-$X$7:X58,--($D$7:D58=D58)) -> 17150
A59: يوليو | B59: 2025-07-21 | C59: الإثنين | D59: ام ياسمين | E59: عنب | F59: كريمسون | G59: كريمسون ح5 | I59: جمع | J59: يومية | K59: 39 | L59: 350 | M59: 13650 | AB59: =SUMPRODUCT($M$7:M59-$X$7:X59,--($D$7:D59=D59)) -> 42350
A60: يوليو | B60: 2025-07-21 | C60: الإثنين | D60: اشرف محطة | E60: المحطة | F60: تعبئة | G60: كريمسون تصدير | I60: تعبئة | J60: يومية | K60: 20 | L60: 350 | M60: 7000 | AB60: =SUMPRODUCT($M$7:M60-$X$7:X60,--($D$7:D60=D60)) -> 22160
A61: يوليو | B61: 2025-07-21 | C61: الإثنين | D61: اشرف محطة | E61: المحطة | F61: تعبئة | G61: كريمسون تصدير | I61: تعبئة | J61: ساعة | K61: 30 | L61: 40 | M61: 1200 | AB61: =SUMPRODUCT($M$7:M61-$X$7:X61,--($D$7:D61=D61)) -> 23360
A62: يوليو | B62: 2025-07-21 | C62: الإثنين | D62: السائق سعيد صالح | E62: عنب | F62: كريمسون | G62: نقل | I62: نقل | J62: يومية | K62: 1 | L62: 0 | M62: 0 | AB62: =SUMPRODUCT($M$7:M62-$X$7:X62,--($D$7:D62=D62)) -> 0
A63: يوليو | B63: 2025-07-22 | C63: الثلاثاء | D63: عمالة خالد | E63: عنب | F63: كريمسون | G63: كريمسون ح6 | I63: جمع | J63: يومية | K63: 25 | L63: 350 | M63: 8750 | AB63: =SUMPRODUCT($M$7:M63-$X$7:X63,--($D$7:D63=D63)) -> 25900
A64: يوليو | B64: 2025-07-22 | C64: الثلاثاء | D64: ام ياسمين | E64: عنب | F64: كريمسون | G64: كريمسون ح5 | I64: جمع | J64: يومية | K64: 38 | L64: 350 | M64: 13300 | AB64: =SUMPRODUCT($M$7:M64-$X$7:X64,--($D$7:D64=D64)) -> 55650
A65: يوليو | B65: 2025-07-22 | C65: الثلاثاء | D65: اشرف محطة | E65: المحطة | F65: تعبئة | G65: كريمسون تصدير | I65: تعبئة | J65: يومية | K65: 29.5 | L65: 350 | M65: 10325 | AB65: =SUMPRODUCT($M$7:M65-$X$7:X65,--($D$7:D65=D65)) -> 33685
A66: يوليو | B66: 2025-07-22 | C66: الثلاثاء | D66: اشرف محطة | E66: المحطة | F66: تعبئة | G66: كريمسون تصدير | I66: تعبئة | J66: ساعة | K66: 142 | L66: 40 | M66: 5680 | AB66: =SUMPRODUCT($M$7:M66-$X$7:X66,--($D$7:D66=D66)) -> 39365
A67: يوليو | B67: 2025-07-22 | C67: الثلاثاء | D67: ابو عمار أسيوط | E67: مانجو | F67: مانجو | H67: الحاج حماد | I67: اعمال متنوعة | J67: يومية | K67: 3 | L67: 350 | M67: 1050 | AB67: =SUMPRODUCT($M$7:M67-$X$7:X67,--($D$7:D67=D67)) -> 29775
A68: يوليو | B68: 2025-07-22 | C68: الثلاثاء | D68: السائق سعيد صالح | E68: عنب | F68: كريمسون | G68: نقل | I68: نقل | J68: يومية | K68: 1 | L68: 0 | M68: 0 | AB68: =SUMPRODUCT($M$7:M68-$X$7:X68,--($D$7:D68=D68)) -> 0
A69: يوليو | B69: 2025-07-23 | C69: الأربعاء | D69: عبد الجواد | E69: رصد افتتاحى | F69: رصد افتتاحى | I69: رصد افتتاحى | J69: رصد افتتاحى | K69: 0 | L69: 0 | M69: 91350 | AB69: =SUMPRODUCT($M$7:M69-$X$7:X69,--($D$7:D69=D69)) -> 91350
A70: يوليو | B70: 2025-07-23 | C70: الأربعاء | D70: ام ياسمين | E70: عنب | F70: كريمسون | G70: كريمسون ح6 | I70: جمع | J70: يومية | K70: 28 | L70: 350 | M70: 9800 | AB70: =SUMPRODUCT($M$7:M70-$X$7:X70,--($D$7:D70=D70)) -> 65450
A71: =TEXT(B71,"MMMM") -> يوليو | B71: 2025-07-23 | C71: =IF(B71<>"",TEXT(B71,"dddd"),"") -> الأربعاء | D71: اشرف محطة | E71: المحطة | F71: تعبئة | G71: كريمسون تصدير | I71: تعبئة | J71: يومية | K71: 19 | L71: 350 | M71: 6650 | AB71: =SUMPRODUCT($M$7:M71-$X$7:X71,--($D$7:D71=D71)) -> 46015
A72: يوليو | B72: 2025-07-23 | C72: الأربعاء | D72: اشرف محطة | E72: المحطة | F72: تعبئة | G72: كريمسون تصدير | I72: تعبئة | J72: ساعة | K72: 30 | L72: 40 | M72: 1200 | AB72: =SUMPRODUCT($M$7:M72-$X$7:X72,--($D$7:D72=D72)) -> 47215
A73: يوليو | B73: 2025-07-23 | C73: الأربعاء | D73: ابو عمار أسيوط | E73: مانجو | F73: مانجو | H73: الحاج حماد | I73: اعمال متنوعة | J73: يومية | K73: 4 | L73: 350 | M73: 1400 | AB73: =SUMPRODUCT($M$7:M73-$X$7:X73,--($D$7:D73=D73)) -> 31175
A74: يوليو | B74: 2025-07-24 | C74: الخميس | D74: عبد الجواد | E74: عنب | F74: كريمسون | G74: كريمسون ح4 | I74: توريق | J74: يومية | K74: 12 | L74: 350 | M74: 4200 | AB74: =SUMPRODUCT($M$7:M74-$X$7:X74,--($D$7:D74=D74)) -> 95550
A75: يوليو | B75: 2025-07-24 | C75: الخميس | D75: عبد الجواد | E75: المحطة | F75: تعبئة | G75: تعبئة | I75: تعبئة | J75: يومية | K75: 2 | L75: 350 | M75: 700 | AB75: =SUMPRODUCT($M$7:M75-$X$7:X75,--($D$7:D75=D75)) -> 96250
A76: يوليو | B76: 2025-07-24 | C76: الخميس | D76: عبد الجواد | E76: عنب | F76: اسبيريور | G76: محلى | I76: جمع | J76: يومية | K76: 2.5 | L76: 350 | M76: 875 | AB76: =SUMPRODUCT($M$7:M76-$X$7:X76,--($D$7:D76=D76)) -> 97125
A77: يوليو | B77: 2025-07-24 | C77: الخميس | D77: ابو عمار أسيوط | E77: مانجو | F77: مانجو | H77: الحاج حماد | I77: توريق | J77: يومية | K77: 4 | L77: 350 | M77: 1400 | AB77: =SUMPRODUCT($M$7:M77-$X$7:X77,--($D$7:D77=D77)) -> 32575
A78: يوليو | B78: 2025-07-24 | C78: الخميس | D78: ابو عمار أسيوط | E78: دفعه فلوس | F78: دفعه فلوس | G78: دفعه فلوس | I78: دفعه فلوس | J78: وصل | L78: 0 | M78: 0 | X78: 2000 | Y78: فون كاش من م محمود | AB78: =SUMPRODUCT($M$7:M78-$X$7:X78,--($D$7:D78=D78)) -> 30575
A79: يوليو | B79: 2025-07-25 | C79: الجمعة | D79: عبد الجواد | E79: الاستراحة | F79: الاستراحة | G79: الاستراحة مانجو | I79: حشائش | J79: يومية | K79: 11 | L79: 350 | M79: 3850 | AB79: =SUMPRODUCT($M$7:M79-$X$7:X79,--($D$7:D79=D79)) -> 100975
A80: يوليو | B80: 2025-07-25 | C80: الجمعة | D80: عبد الجواد | E80: المحطة | F80: تعبئة | G80: تعبئة | I80: تعبئة | J80: يومية | K80: 2 | L80: 350 | M80: 700 | AB80: =SUMPRODUCT($M$7:M80-$X$7:X80,--($D$7:D80=D80)) -> 101675
A81: يوليو | B81: 2025-07-25 | C81: الجمعة | D81: ابو عمار أسيوط | E81: مانجو | F81: مانجو | H81: الحاج حماد | I81: توريق | J81: يومية | K81: 4 | L81: 350 | M81: 1400 | AB81: =SUMPRODUCT($M$7:M81-$X$7:X81,--($D$7:D81=D81)) -> 31975
A82: يوليو | B82: 2025-07-26 | C82: السبت | D82: عبد الجواد | E82: المحطة | F82: تعبئة | G82: كريمسون تصدير | I82: تعبئة | J82: يومية | K82: 2 | L82: 350 | M82: 700 | AB82: =SUMPRODUCT($M$7:M82-$X$7:X82,--($D$7:D82=D82)) -> 102375
A83: يوليو | B83: 2025-07-26 | C83: السبت | D83: عبد الجواد | E83: عنب | F83: كريمسون | G83: كريمسون ح6 | I83: نظافة ذبابة | J83: يومية | K83: 6 | L83: 350 | M83: 2100 | AB83: =SUMPRODUCT($M$7:M83-$X$7:X83,--($D$7:D83=D83)) -> 104475
A84: يوليو | B84: 2025-07-26 | C84: السبت | D84: عبد الجواد | E84: الإدارة والمخازن | F84: الإدارة والمخازن | G84: الإدارة والمخازن | I84: الإدارة والمخازن | J84: يومية | K84: 1 | L84: 350 | M84: 350 | AB84: =SUMPRODUCT($M$7:M84-$X$7:X84,--($D$7:D84=D84)) -> 104825
A85: يوليو | B85: 2025-07-26 | C85: السبت | D85: عبد الجواد | E85: النخيل | F85: النخيل | G85: برحى | I85: رش | J85: يومية | K85: 3 | L85: 350 | M85: 1050 | AB85: =SUMPRODUCT($M$7:M85-$X$7:X85,--($D$7:D85=D85)) -> 105875
A86: يوليو | B86: 2025-07-26 | C86: السبت | D86: عبد الجواد | E86: النخيل | F86: النخيل | G86: برحى | I86: رش | J86: اضافى | K86: 0.5 | L86: 350 | M86: 175 | AB86: =SUMPRODUCT($M$7:M86-$X$7:X86,--($D$7:D86=D86)) -> 106050
A87: يوليو | B87: 2025-07-26 | C87: السبت | D87: عبد الجواد | E87: الاستراحة | F87: الاستراحة | G87: الاستراحة مانجو | I87: فرد خراطيم | J87: يومية | K87: 1 | L87: 350 | M87: 350 | AB87: =SUMPRODUCT($M$7:M87-$X$7:X87,--($D$7:D87=D87)) -> 106400
A88: يوليو | B88: 2025-07-26 | C88: السبت | D88: ابو عمار أسيوط | E88: مانجو | F88: مانجو | H88: الحاج حماد | I88: توريق | J88: يومية | K88: 4 | L88: 350 | M88: 1400 | AB88: =SUMPRODUCT($M$7:M88-$X$7:X88,--($D$7:D88=D88)) -> 33375
A89: يوليو | B89: 2025-07-27 | C89: الأحد | D89: عبد الجواد | E89: المحطة | F89: تعبئة | G89: تعبئة | I89: تعبئة | J89: مكافئة مالبة | L89: 1 | M89: 500 | AB89: =SUMPRODUCT($M$7:M89-$X$7:X89,--($D$7:D89=D89)) -> 106900
A90: يوليو | B90: 2025-07-27 | C90: الأحد | D90: عمالة خالد | E90: عنب | F90: كريمسون | G90: كريمسون ح6 | I90: جمع | J90: يومية | K90: 23 | L90: 350 | M90: 8050 | AB90: =SUMPRODUCT($M$7:M90-$X$7:X90,--($D$7:D90=D90)) -> 33950
A91: يوليو | B91: 2025-07-27 | C91: الأحد | D91: ام ياسمين | E91: عنب | F91: كريمسون | G91: كريمسون ح6 | I91: جمع | J91: يومية | K91: 39 | L91: 350 | M91: 13650 | AB91: =SUMPRODUCT($M$7:M91-$X$7:X91,--($D$7:D91=D91)) -> 79100
A92: يوليو | B92: 2025-07-27 | C92: الأحد | D92: عبد الجواد | E92: المحطة | F92: تعبئة | G92: كريمسون تصدير | I92: تعبئة | J92: يومية | K92: 2 | L92: 350 | M92: 700 | AB92: =SUMPRODUCT($M$7:M92-$X$7:X92,--($D$7:D92=D92)) -> 107600
A93: يوليو | B93: 2025-07-27 | C93: الأحد | D93: عبد الجواد | E93: عنب | F93: كريمسون | G93: كريمسون ح6 | I93: جمع | J93: يومية | K93: 5 | L93: 350 | M93: 1750 | AB93: =SUMPRODUCT($M$7:M93-$X$7:X93,--($D$7:D93=D93)) -> 109350
A94: يوليو | B94: 2025-07-27 | C94: الأحد | D94: عبد الجواد | E94: النخيل | F94: النخيل | G94: برحى | I94: ترديم حول النخيل | J94: يومية | K94: 4 | L94: 350 | M94: 1400 | AB94: =SUMPRODUCT($M$7:M94-$X$7:X94,--($D$7:D94=D94)) -> 110750
A95: يوليو | B95: 2025-07-27 | C95: الأحد | D95: ابو عمار أسيوط | E95: مانجو | F95: مانجو | H95: الحاج حماد | I95: توريق | J95: يومية | K95: 5 | L95: 350 | M95: 1750 | AB95: =SUMPRODUCT($M$7:M95-$X$7:X95,--($D$7:D95=D95)) -> 35125
A96: يوليو | B96: 2025-07-27 | C96: الأحد | D96: اشرف محطة | E96: المحطة | F96: تعبئة | G96: كريمسون تصدير | I96: تعبئة | J96: يومية | K96: 27.5 | L96: 350 | M96: 9625 | AB96: =SUMPRODUCT($M$7:M96-$X$7:X96,--($D$7:D96=D96)) -> 56840
A97: يوليو | B97: 2025-07-27 | C97: الأحد | D97: اشرف محطة | E97: المحطة | F97: تعبئة | G97: كريمسون تصدير | I97: تعبئة | J97: ساعة | K97: 139.5 | L97: 40 | M97: 5580 | AB97: =SUMPRODUCT($M$7:M97-$X$7:X97,--($D$7:D97=D97)) -> 62420
A98: يوليو | B98: 2025-07-27 | C98: الأحد | D98: السائق عبدالغنى | E98: عنب | F98: كريمسون | G98: نقل | I98: نقل | J98: يومية | K98: 1 | L98: 0 | M98: 0 | AB98: =SUMPRODUCT($M$7:M98-$X$7:X98,--($D$7:D98=D98)) -> 0
A99: يوليو | B99: 2025-07-28 | C99: الإثنين | D99: ام ياسمين | E99: عنب | F99: كريمسون | G99: كريمسون ح4 | I99: جمع | J99: يومية | K99: 36 | L99: 350 | M99: 12600 | AB99: =SUMPRODUCT($M$7:M99-$X$7:X99,--($D$7:D99=D99)) -> 91700
A100: يوليو | B100: 2025-07-28 | C100: الإثنين | D100: عمالة خالد | E100: عنب | F100: كريمسون | G100: كريمسون ح4 | I100: جمع | J100: يومية | K100: 25 | L100: 350 | M100: 8750 | AB100: =SUMPRODUCT($M$7:M100-$X$7:X100,--($D$7:D100=D100)) -> 42700
A101: يوليو | B101: 2025-07-28 | C101: الإثنين | D101: ابو عمار أسيوط | E101: مانجو | F101: مانجو | H101: الحاج حماد | I101: توريق | J101: يومية | K101: 4 | L101: 350 | M101: 1400 | AB101: =SUMPRODUCT($M$7:M101-$X$7:X101,--($D$7:D101=D101)) -> 36525
A102: يوليو | B102: 2025-07-28 | C102: الإثنين | D102: عبد الجواد | E102: المحطة | F102: تعبئة | G102: كريمسون تصدير | I102: تعبئة | J102: يومية | K102: 2 | L102: 350 | M102: 700 | AB102: =SUMPRODUCT($M$7:M102-$X$7:X102,--($D$7:D102=D102)) -> 111450
A103: يوليو | B103: 2025-07-28 | C103: الإثنين | D103: عبد الجواد | E103: عنب | F103: كريمسون | G103: كريمسون ح6 | I103: جمع | J103: يومية | K103: 5 | L103: 350 | M103: 1750 | AB103: =SUMPRODUCT($M$7:M103-$X$7:X103,--($D$7:D103=D103)) -> 113200
A104: يوليو | B104: 2025-07-28 | C104: الإثنين | D104: عبد الجواد | E104: النخيل | F104: النخيل | G104: برحى | I104: ترديم حول النخيل | J104: يومية | K104: 4 | L104: 350 | M104: 1400 | AB104: =SUMPRODUCT($M$7:M104-$X$7:X104,--($D$7:D104=D104)) -> 114600
A105: يوليو | B105: 2025-07-28 | C105: الإثنين | D105: محمود محطة | E105: دفعه فلوس | F105: دفعه فلوس | G105: دفعه فلوس | I105: دفعه فلوس | J105: وصل | L105: 350 | M105: 0 | X105: 2000 | Y105: بيد ا / محمود حماد | AB105: =SUMPRODUCT($M$7:M105-$X$7:X105,--($D$7:D105=D105)) -> 10615
A106: يوليو | B106: 2025-07-28 | C106: الإثنين | D106: اشرف محطة | E106: المحطة | F106: تعبئة | G106: كريمسون تصدير | I106: تعبئة | J106: يومية | K106: 33 | L106: 350 | M106: 11550 | AB106: =SUMPRODUCT($M$7:M106-$X$7:X106,--($D$7:D106=D106)) -> 73970
A107: يوليو | B107: 2025-07-28 | C107: الإثنين | D107: اشرف محطة | E107: المحطة | F107: تعبئة | G107: كريمسون تصدير | I107: تعبئة | J107: ساعة | K107: 99 | L107: 40 | M107: 3960 | AB107: =SUMPRODUCT($M$7:M107-$X$7:X107,--($D$7:D107=D107)) -> 77930
A108: يوليو | B108: 2025-07-28 | C108: الإثنين | D108: السائق عبدالغنى | E108: عنب | F108: كريمسون | G108: نقل | I108: نقل | J108: يومية | K108: 1 | L108: 0 | M108: 0 | AB108: =SUMPRODUCT($M$7:M108-$X$7:X108,--($D$7:D108=D108)) -> 0
A109: يوليو | B109: 2025-07-28 | C109: الإثنين | D109: سيف طه | E109: كريمسون تصدير | F109: تعبئة | I109: تعبئة | J109: يومية | K109: 1 | L109: 350 | M109: 350 | AB109: =SUMPRODUCT($M$7:M109-$X$7:X109,--($D$7:D109=D109)) -> 350
A110: يوليو | B110: 2025-07-29 | C110: الثلاثاء | D110: ام ياسمين | E110: عنب | F110: كريمسون | G110: كريمسون ح5 | I110: جمع | J110: يومية | K110: 37 | L110: 350 | M110: 12950 | AB110: =SUMPRODUCT($M$7:M110-$X$7:X110,--($D$7:D110=D110)) -> 104650
A111: يوليو | B111: 2025-07-29 | C111: الثلاثاء | D111: عمالة خالد | E111: عنب | F111: كريمسون | G111: كريمسون ح5 | I111: جمع | J111: يومية | K111: 21 | L111: 350 | M111: 7350 | AB111: =SUMPRODUCT($M$7:M111-$X$7:X111,--($D$7:D111=D111)) -> 50050
A112: يوليو | B112: 2025-07-29 | C112: الثلاثاء | D112: عمالة خالد | E112: عنب | F112: كريمسون | G112: كريمسون ح6 | I112: جمع | J112: يومية | K112: 5 | L112: 350 | M112: 1750 | AB112: =SUMPRODUCT($M$7:M112-$X$7:X112,--($D$7:D112=D112)) -> 51800
A113: يوليو | B113: 2025-07-29 | C113: الثلاثاء | D113: ابو عمار أسيوط | E113: مانجو | F113: مانجو | H113: الحاج حماد | I113: توريق | J113: يومية | K113: 4 | L113: 350 | M113: 1400 | AB113: =SUMPRODUCT($M$7:M113-$X$7:X113,--($D$7:D113=D113)) -> 37925
A114: يوليو | B114: 2025-07-29 | C114: الثلاثاء | D114: عبد الجواد | E114: عنب | F114: كريمسون | G114: كريمسون ح6 | I114: جمع | J114: يومية | K114: 8 | L114: 350 | M114: 2800 | AB114: =SUMPRODUCT($M$7:M114-$X$7:X114,--($D$7:D114=D114)) -> 117400
A115: يوليو | B115: 2025-07-29 | C115: الثلاثاء | D115: اشرف محطة | E115: المحطة | F115: تعبئة | G115: كريمسون تصدير | I115: تعبئة | J115: يومية | K115: 31 | L115: 350 | M115: 10850 | AB115: =SUMPRODUCT($M$7:M115-$X$7:X115,--($D$7:D115=D115)) -> 88780
A116: يوليو | B116: 2025-07-29 | C116: الثلاثاء | D116: اشرف محطة | E116: المحطة | F116: تعبئة | G116: كريمسون تصدير | I116: تعبئة | J116: ساعة | K116: 135 | L116: 40 | M116: 5400 | AB116: =SUMPRODUCT($M$7:M116-$X$7:X116,--($D$7:D116=D116)) -> 94180
A117: يوليو | B117: 2025-07-29 | C117: الثلاثاء | D117: عبد الجواد | E117: المحطة | F117: تعبئة | G117: كريمسون تصدير | I117: تعبئة | J117: يومية | K117: 2 | L117: 350 | M117: 700 | AB117: =SUMPRODUCT($M$7:M117-$X$7:X117,--($D$7:D117=D117)) -> 118100
A118: يوليو | B118: 2025-07-29 | C118: الثلاثاء | D118: عبد الجواد | E118: المحطة | F118: تعبئة | G118: كريمسون تصدير | I118: تعبئة | J118: مكافئة مالبة | M118: 2000 | Y118: تم تعديها من 1000 الى 2000ج | AB118: =SUMPRODUCT($M$7:M118-$X$7:X118,--($D$7:D118=D118)) -> 120100
A119: يوليو | B119: 2025-07-29 | C119: الثلاثاء | D119: السائق عبدالغنى | E119: عنب | F119: كريمسون | G119: نقل | I119: نقل | J119: يومية | K119: 1 | L119: 0 | M119: 0 | AB119: =SUMPRODUCT($M$7:M119-$X$7:X119,--($D$7:D119=D119)) -> 0
A120: يوليو | B120: 2025-07-29 | C120: الثلاثاء | D120: سيف طه | E120: كريمسون تصدير | F120: تعبئة | I120: تعبئة | J120: يومية | K120: 1 | L120: 350 | M120: 350 | AB120: =SUMPRODUCT($M$7:M120-$X$7:X120,--($D$7:D120=D120)) -> 700
A121: يوليو | B121: 2025-07-30 | C121: الأربعاء | D121: ابو عمار أسيوط | E121: دفعه فلوس | F121: دفعه فلوس | G121: دفعه فلوس | I121: دفعه فلوس | J121: وصل | L121: 0 | M121: 0 | X121: 2000 | Y121: من عهدة المحاسب | AB121: =SUMPRODUCT($M$7:M121-$X$7:X121,--($D$7:D121=D121)) -> 35925
A122: يوليو | B122: 2025-07-30 | C122: الأربعاء | D122: ام ياسمين | E122: دفعه فلوس | F122: دفعه فلوس | G122: دفعه فلوس | I122: دفعه فلوس | J122: وصل | L122: 0 | M122: 0 | X122: 70000 | Y122: بيد ا / محمود حماد | AB122: =SUMPRODUCT($M$7:M122-$X$7:X122,--($D$7:D122=D122)) -> 34650
A123: يوليو | B123: 2025-07-30 | C123: الأربعاء | D123: محمود محطة | E123: دفعه فلوس | F123: دفعه فلوس | G123: دفعه فلوس | I123: دفعه فلوس | J123: وصل | L123: 0 | M123: 0 | X123: 10615 | Y123: بيد ا / محمود حماد | AB123: =SUMPRODUCT($M$7:M123-$X$7:X123,--($D$7:D123=D123)) -> 0
A124: يوليو | B124: 2025-07-30 | C124: الأربعاء | D124: عمالة خالد | E124: دفعه فلوس | F124: دفعه فلوس | G124: دفعه فلوس | I124: دفعه فلوس | J124: وصل | L124: 0 | M124: 0 | X124: 15000 | Y124: بيد ا / محمود حماد | AB124: =SUMPRODUCT($M$7:M124-$X$7:X124,--($D$7:D124=D124)) -> 36800
A125: يوليو | B125: 2025-07-30 | C125: الأربعاء | D125: عمالة خالد | E125: دفعه فلوس | F125: دفعه فلوس | G125: دفعه فلوس | I125: دفعه فلوس | J125: وصل | L125: 0 | M125: 0 | X125: 36800 | Y125: بيد ا / محمود حماد | AB125: =SUMPRODUCT($M$7:M125-$X$7:X125,--($D$7:D125=D125)) -> 0
A126: يوليو | B126: 2025-07-30 | C126: الأربعاء | D126: عبد الجواد | E126: دفعه فلوس | F126: دفعه فلوس | G126: دفعه فلوس | I126: دفعه فلوس | J126: وصل | L126: 0 | M126: 0 | X126: 30000 | Y126: من عهدة المكتب | AB126: =SUMPRODUCT($M$7:M126-$X$7:X126,--($D$7:D126=D126)) -> 90100
A127: يوليو | B127: 2025-07-30 | C127: الأربعاء | D127: ابو عمار أسيوط | E127: دفعه فلوس | F127: دفعه فلوس | G127: دفعه فلوس | I127: دفعه فلوس | J127: وصل | L127: 0 | M127: 0 | X127: 10000 | Y127: من عهدة المكتب | AB127: =SUMPRODUCT($M$7:M127-$X$7:X127,--($D$7:D127=D127)) -> 25925
A128: يوليو | B128: 2025-07-30 | C128: الأربعاء | D128: عبد الجواد | E128: عنب | F128: كريمسون | G128: كريمسون ح6 | I128: جمع | J128: يومية | K128: 4 | L128: 350 | M128: 1400 | Z128: 105 | AA128: 13.33333333 | AB128: =SUMPRODUCT($M$7:M128-$X$7:X128,--($D$7:D128=D128)) -> 91500
A129: يوليو | B129: 2025-07-30 | C129: الأربعاء | D129: عبد الجواد | E129: النخيل | F129: النخيل | G129: برحى | I129: ترديم حول النخيل | J129: يومية | K129: 4 | L129: 350 | M129: 1400 | Z129: 4.5 | AA129: 311.1111111 | AB129: =SUMPRODUCT($M$7:M129-$X$7:X129,--($D$7:D129=D129)) -> 92900
A130: يوليو | B130: 2025-07-30 | C130: الأربعاء | D130: ابو عمار أسيوط | E130: مانجو | F130: مانجو | H130: الحاج حماد | I130: توريق | J130: يومية | K130: 4 | L130: 350 | M130: 1400 | AB130: =SUMPRODUCT($M$7:M130-$X$7:X130,--($D$7:D130=D130)) -> 27325
A131: يوليو | B131: 2025-07-30 | C131: الأربعاء | D131: عبد الجواد | E131: المحطة | F131: تعبئة | G131: كريمسون تصدير | I131: تعبئة | J131: يومية | K131: 2 | L131: 350 | M131: 700 | AB131: =SUMPRODUCT($M$7:M131-$X$7:X131,--($D$7:D131=D131)) -> 93600
A132: يوليو | B132: 2025-07-30 | C132: الأربعاء | D132: السائق عبدالغنى | E132: عنب | F132: كريمسون | G132: نقل | I132: نقل | J132: يومية | K132: 1 | L132: 0 | M132: 0 | AB132: =SUMPRODUCT($M$7:M132-$X$7:X132,--($D$7:D132=D132)) -> 0
A133: يوليو | B133: 2025-07-30 | C133: الأربعاء | D133: سيف طه | E133: كريمسون تصدير | F133: تعبئة | I133: تعبئة | J133: يومية | K133: 1 | L133: 350 | M133: 350 | AB133: =SUMPRODUCT($M$7:M133-$X$7:X133,--($D$7:D133=D133)) -> 1050
A134: يوليو | B134: 2025-07-31 | C134: الخميس | D134: عبد الجواد | E134: رومان | F134: رومان | G134: رومان | I134: حشائش | J134: يومية | K134: 8 | L134: 350 | M134: 2800 | Z134: 15 | AA134: 186.6666667 | AB134: =SUMPRODUCT($M$7:M134-$X$7:X134,--($D$7:D134=D134)) -> 96400
A135: =TEXT(B135,"MMMM") -> يوليو | B135: 2025-07-31 | C135: =IF(B135<>"",TEXT(B135,"dddd"),"") -> الخميس | D135: ابو عمار أسيوط | E135: مانجو | F135: مانجو | H135: الحاج حماد | I135: توريق | J135: يومية | K135: 4 | L135: 350 | M135: 1400 | AB135: =SUMPRODUCT($M$7:M135-$X$7:X135,--($D$7:D135=D135)) -> 28725
A136: يوليو | B136: 2025-07-31 | C136: الخميس | D136: عبد الجواد | E136: المحطة | F136: تعبئة | G136: كريمسون تصدير | I136: تعبئة | J136: يومية | K136: 2 | L136: 350 | M136: 700 | AB136: =SUMPRODUCT($M$7:M136-$X$7:X136,--($D$7:D136=D136)) -> 97100
A137: يوليو | B137: 2025-07-31 | C137: الخميس | D137: سيف طه | E137: كريمسون تصدير | F137: تعبئة | I137: تعبئة | J137: يومية | K137: 1 | L137: 350 | M137: 350 | AB137: =SUMPRODUCT($M$7:M137-$X$7:X137,--($D$7:D137=D137)) -> 1400
A138: أغسطس | B138: 2025-08-01 | C138: الجمعة | D138: عبد الجواد | E138: المحطة | F138: تعبئة | G138: كريمسون تصدير | I138: تعبئة | J138: يومية | K138: 2 | L138: 350 | M138: 700 | AB138: =SUMPRODUCT($M$7:M138-$X$7:X138,--($D$7:D138=D138)) -> 97800
A139: أغسطس | B139: 2025-08-01 | C139: الجمعة | D139: عبد الجواد | E139: رومان | F139: رومان | G139: رومان | I139: حشائش | J139: يومية | K139: 8 | L139: 350 | M139: 2800 | Z139: 18 | AA139: 155.5555556 | AB139: =SUMPRODUCT($M$7:M139-$X$7:X139,--($D$7:D139=D139)) -> 100600 | AC139: 0
A140: أغسطس | B140: 2025-08-01 | C140: الجمعة | D140: ابو عمار أسيوط | E140: مانجو | F140: مانجو | H140: الحاج حماد | I140: توريق | J140: يومية | K140: 4 | L140: 350 | M140: 1400 | AB140: =SUMPRODUCT($M$7:M140-$X$7:X140,--($D$7:D140=D140)) -> 30125
A141: أغسطس | B141: 2025-08-01 | C141: الجمعة | D141: م رمضان عبد الغفار | E141: دفعه فلوس | F141: دفعه فلوس | G141: دفعه فلوس | I141: دفعه فلوس | J141: وصل | L141: 0 | M141: 0 | X141: 15000 | Y141: دفعات | AB141: =SUMPRODUCT($M$7:M141-$X$7:X141,--($D$7:D141=D141)) -> 22530
A142: أغسطس | B142: 2025-08-01 | C142: الجمعة | D142: م رمضان عبد الغفار | E142: دفعه فلوس | F142: دفعه فلوس | G142: دفعه فلوس | I142: دفعه فلوس | J142: وصل | L142: 0 | M142: 0 | X142: 2000 | Y142: دفعات | AB142: =SUMPRODUCT($M$7:M142-$X$7:X142,--($D$7:D142=D142)) -> 20530
A143: أغسطس | B143: 2025-08-01 | C143: الجمعة | D143: م رمضان عبد الغفار | E143: دفعه فلوس | F143: دفعه فلوس | G143: دفعه فلوس | I143: دفعه فلوس | J143: وصل | L143: 0 | M143: 0 | X143: 3000 | Y143: دفعات | AB143: =SUMPRODUCT($M$7:M143-$X$7:X143,--($D$7:D143=D143)) -> 17530
A144: أغسطس | B144: 2025-08-01 | C144: الجمعة | D144: سيف طه | E144: كريمسون تصدير | F144: تعبئة | I144: تعبئة | J144: يومية | K144: 1 | L144: 350 | M144: 350 | AB144: =SUMPRODUCT($M$7:M144-$X$7:X144,--($D$7:D144=D144)) -> 1750
A145: أغسطس | B145: 2025-08-02 | C145: السبت | D145: عبد الجواد | E145: رومان | F145: رومان | G145: رومان | I145: حشائش | J145: يومية | K145: 12 | L145: 350 | M145: 4200 | Z145: 21 | AA145: 200 | AB145: =SUMPRODUCT($M$7:M145-$X$7:X145,--($D$7:D145=D145)) -> 104800
A146: أغسطس | B146: 2025-08-02 | C146: السبت | D146: ابو عمار أسيوط | E146: مانجو | F146: مانجو | H146: الحاج حماد | I146: توريق | J146: يومية | K146: 4 | L146: 350 | M146: 1400 | AB146: =SUMPRODUCT($M$7:M146-$X$7:X146,--($D$7:D146=D146)) -> 31525
A147: أغسطس | B147: 2025-08-02 | C147: السبت | D147: سيف طه | E147: كريمسون تصدير | F147: تعبئة | I147: تعبئة | J147: يومية | K147: 1 | L147: 350 | M147: 350 | AB147: =SUMPRODUCT($M$7:M147-$X$7:X147,--($D$7:D147=D147)) -> 2100
A148: أغسطس | B148: 2025-08-03 | C148: الأحد | D148: ابو عمار أسيوط | E148: مانجو | F148: مانجو | H148: الحاج حماد | I148: توريق | J148: يومية | K148: 4 | L148: 350 | M148: 1400 | AB148: =SUMPRODUCT($M$7:M148-$X$7:X148,--($D$7:D148=D148)) -> 32925
A149: أغسطس | B149: 2025-08-03 | C149: الأحد | D149: عبد الجواد | E149: رومان | F149: رومان | G149: رومان | I149: توريق | J149: يومية | K149: 4 | L149: 350 | M149: 1400 | Z149: 12 | AA149: 116.6666667 | AB149: =SUMPRODUCT($M$7:M149-$X$7:X149,--($D$7:D149=D149)) -> 106200
A150: أغسطس | B150: 2025-08-03 | C150: الأحد | D150: عبد الجواد | E150: رومان | F150: رومان | G150: رومان | I150: حشائش | J150: يومية | K150: 8 | L150: 350 | M150: 2800 | Z150: 14 | AA150: 200 | AB150: =SUMPRODUCT($M$7:M150-$X$7:X150,--($D$7:D150=D150)) -> 109000
A151: أغسطس | B151: 2025-08-03 | C151: الأحد | D151: سيف طه | E151: كريمسون تصدير | F151: تعبئة | I151: تعبئة | J151: يومية | K151: 1 | L151: 350 | M151: 350 | AB151: =SUMPRODUCT($M$7:M151-$X$7:X151,--($D$7:D151=D151)) -> 2450
A152: أغسطس | B152: 2025-08-04 | C152: الإثنين | D152: السائق عبدالغنى | E152: عنب | F152: كريمسون | G152: نقل | I152: نقل | J152: يومية | K152: 1 | L152: 0 | M152: 0 | AB152: =SUMPRODUCT($M$7:M152-$X$7:X152,--($D$7:D152=D152)) -> 0
A153: أغسطس | B153: 2025-08-04 | C153: الإثنين | D153: عبد الجواد | E153: عنب | F153: كريمسون | G153: كريمسون ح4 | I153: جمع | J153: يومية | K153: 3 | L153: 350 | M153: 1050 | AB153: =SUMPRODUCT($M$7:M153-$X$7:X153,--($D$7:D153=D153)) -> 110050
A154: أغسطس | B154: 2025-08-04 | C154: الإثنين | D154: عبد الجواد | E154: عنب | F154: كريمسون | G154: كريمسون ح5 | I154: جمع | J154: يومية | K154: 3.75 | L154: 350 | M154: 1312.5 | AB154: =SUMPRODUCT($M$7:M154-$X$7:X154,--($D$7:D154=D154)) -> 111362.5
A155: أغسطس | B155: 2025-08-04 | C155: الإثنين | D155: ام ياسمين | E155: عنب | F155: كريمسون | G155: كريمسون ح5 | I155: جمع | J155: يومية | K155: 23 | L155: 350 | M155: 8050 | Z155: 762 | AA155: 10.56430446 | AB155: =SUMPRODUCT($M$7:M155-$X$7:X155,--($D$7:D155=D155)) -> 42700
A156: أغسطس | B156: 2025-08-04 | C156: الإثنين | D156: ام ياسمين | E156: عنب | F156: كريمسون | G156: كريمسون ح5 | I156: جمع | J156: اضافى | K156: 2 | L156: 350 | M156: 700 | AB156: =SUMPRODUCT($M$7:M156-$X$7:X156,--($D$7:D156=D156)) -> 43400
A157: أغسطس | B157: 2025-08-04 | C157: الإثنين | D157: عمالة خالد | E157: عنب | F157: كريمسون | G157: كريمسون ح5 | I157: جمع | J157: يومية | K157: 23 | L157: 350 | M157: 8050 | Z157: 629 | AA157: 12.79809221 | AB157: =SUMPRODUCT($M$7:M157-$X$7:X157,--($D$7:D157=D157)) -> 8050
A158: أغسطس | B158: 2025-08-04 | C158: الإثنين | D158: ابو عمار أسيوط | E158: مانجو | F158: مانجو | H158: الحاج حماد | I158: توريق | J158: يومية | K158: 4 | L158: 350 | M158: 1400 | AB158: =SUMPRODUCT($M$7:M158-$X$7:X158,--($D$7:D158=D158)) -> 34325
A159: أغسطس | B159: 2025-08-04 | C159: الإثنين | D159: اشرف محطة | E159: المحطة | F159: تعبئة | G159: كريمسون تصدير | I159: تعبئة | J159: يومية | K159: 24.5 | L159: 350 | M159: 8575 | AB159: =SUMPRODUCT($M$7:M159-$X$7:X159,--($D$7:D159=D159)) -> 102755
A160: أغسطس | B160: 2025-08-04 | C160: الإثنين | D160: اشرف محطة | E160: المحطة | F160: تعبئة | G160: كريمسون تصدير | I160: تعبئة | J160: ساعة | K160: 121 | L160: 40 | M160: 4840 | AB160: =SUMPRODUCT($M$7:M160-$X$7:X160,--($D$7:D160=D160)) -> 107595
A161: أغسطس | B161: 2025-08-04 | C161: الإثنين | D161: عبد الجواد | E161: المحطة | F161: تعبئة | G161: كريمسون تصدير | I161: تعبئة | J161: يومية | K161: 2 | L161: 350 | M161: 700 | AB161: =SUMPRODUCT($M$7:M161-$X$7:X161,--($D$7:D161=D161)) -> 112062.5
A162: أغسطس | B162: 2025-08-04 | C162: الإثنين | D162: عبد الجواد | E162: المحطة | F162: تعبئة | G162: كريمسون تصدير | I162: تعبئة | J162: يومية | K162: 1.16 | L162: 350 | M162: 406 | AB162: =SUMPRODUCT($M$7:M162-$X$7:X162,--($D$7:D162=D162)) -> 112468.5
A163: أغسطس | B163: 2025-08-04 | C163: الإثنين | D163: عبد الجواد | E163: المحطة | F163: تعبئة | G163: كريمسون تصدير | I163: تعبئة | J163: يومية | K163: 5 | L163: 350 | M163: 1750 | AB163: =SUMPRODUCT($M$7:M163-$X$7:X163,--($D$7:D163=D163)) -> 114218.5
A164: أغسطس | B164: 2025-08-04 | C164: الإثنين | D164: سيف طه | E164: كريمسون تصدير | F164: تعبئة | I164: تعبئة | J164: يومية | K164: 1 | L164: 350 | M164: 350 | AB164: =SUMPRODUCT($M$7:M164-$X$7:X164,--($D$7:D164=D164)) -> 2800
A165: أغسطس | B165: 2025-08-05 | C165: الثلاثاء | D165: السائق عبدالغنى | E165: عنب | F165: كريمسون | G165: نقل | I165: نقل | J165: يومية | K165: 1 | L165: 0 | M165: 0 | AB165: =SUMPRODUCT($M$7:M165-$X$7:X165,--($D$7:D165=D165)) -> 0
A166: أغسطس | B166: 2025-08-05 | C166: الثلاثاء | D166: ام ياسمين | E166: عنب | F166: كريمسون | G166: كريمسون ح4 | I166: جمع | J166: يومية | K166: 21 | L166: 350 | M166: 7350 | AB166: =SUMPRODUCT($M$7:M166-$X$7:X166,--($D$7:D166=D166)) -> 50750
A167: أغسطس | B167: 2025-08-05 | C167: الثلاثاء | D167: عمالة خالد | E167: عنب | F167: كريمسون | G167: كريمسون ح4 | I167: جمع | J167: يومية | K167: 22 | L167: 350 | M167: 7700 | AB167: =SUMPRODUCT($M$7:M167-$X$7:X167,--($D$7:D167=D167)) -> 15750
A168: أغسطس | B168: 2025-08-05 | C168: الثلاثاء | D168: ابو عمار أسيوط | E168: مانجو | F168: مانجو | H168: الحاج حماد | I168: توريق | J168: يومية | K168: 4 | L168: 350 | M168: 1400 | AB168: =SUMPRODUCT($M$7:M168-$X$7:X168,--($D$7:D168=D168)) -> 35725
A169: أغسطس | B169: 2025-08-05 | C169: الثلاثاء | D169: عبد الجواد | E169: عنب | F169: كريمسون | G169: كريمسون ح4 | I169: جمع | J169: يومية | K169: 5 | L169: 350 | M169: 1750 | AB169: =SUMPRODUCT($M$7:M169-$X$7:X169,--($D$7:D169=D169)) -> 115968.5
A170: أغسطس | B170: 2025-08-05 | C170: الثلاثاء | D170: اشرف محطة | E170: المحطة | F170: تعبئة | G170: كريمسون تصدير | I170: تعبئة | J170: يومية | K170: 17 | L170: 350 | M170: 5950 | AB170: =SUMPRODUCT($M$7:M170-$X$7:X170,--($D$7:D170=D170)) -> 113545
A171: أغسطس | B171: 2025-08-05 | C171: الثلاثاء | D171: اشرف محطة | E171: المحطة | F171: تعبئة | G171: كريمسون تصدير | I171: تعبئة | J171: ساعة | K171: 74 | L171: 40 | M171: 2960 | AB171: =SUMPRODUCT($M$7:M171-$X$7:X171,--($D$7:D171=D171)) -> 116505
A172: أغسطس | B172: 2025-08-05 | C172: الثلاثاء | D172: عبد الجواد | E172: المحطة | F172: تعبئة | G172: كريمسون تصدير | I172: تعبئة | J172: يومية | K172: 2 | L172: 350 | M172: 700 | AB172: =SUMPRODUCT($M$7:M172-$X$7:X172,--($D$7:D172=D172)) -> 116668.5
A173: أغسطس | B173: 2025-08-05 | C173: الثلاثاء | D173: عبد الجواد | E173: المحطة | F173: تعبئة | G173: كريمسون تصدير | I173: تعبئة | J173: يومية | K173: 10 | L173: 350 | M173: 3500 | AB173: =SUMPRODUCT($M$7:M173-$X$7:X173,--($D$7:D173=D173)) -> 120168.5
A174: أغسطس | B174: 2025-08-05 | C174: الثلاثاء | D174: سيف طه | E174: كريمسون تصدير | F174: تعبئة | I174: تعبئة | J174: يومية | K174: 1 | L174: 350 | M174: 350 | AB174: =SUMPRODUCT($M$7:M174-$X$7:X174,--($D$7:D174=D174)) -> 3150
A175: أغسطس | B175: 2025-08-06 | C175: الأربعاء | D175: السائق عبدالغنى | E175: عنب | F175: كريمسون | G175: نقل | I175: نقل | J175: يومية | K175: 1 | L175: 0 | M175: 0 | AB175: =SUMPRODUCT($M$7:M175-$X$7:X175,--($D$7:D175=D175)) -> 0
A176: أغسطس | B176: 2025-08-06 | C176: الأربعاء | D176: عمالة خالد | E176: رومان | F176: رومان | G176: رومان | I176: توريق | J176: يومية | K176: 22 | L176: 350 | M176: 7700 | Z176: 42 | AA176: 183.3333333 | AB176: =SUMPRODUCT($M$7:M176-$X$7:X176,--($D$7:D176=D176)) -> 23450
A177: أغسطس | B177: 2025-08-06 | C177: الأربعاء | D177: ابو عمار أسيوط | E177: مانجو | F177: مانجو | H177: الحاج حماد | I177: توريق | J177: يومية | K177: 4 | L177: 350 | M177: 1400 | AB177: =SUMPRODUCT($M$7:M177-$X$7:X177,--($D$7:D177=D177)) -> 37125
A178: أغسطس | B178: 2025-08-06 | C178: الأربعاء | D178: عبد الجواد | E178: عنب | F178: كريمسون | G178: كريمسون ح5 | I178: جمع | J178: يومية | K178: 4.5 | L178: 350 | M178: 1575 | Z178: 100 | AA178: 15.75 | AB178: =SUMPRODUCT($M$7:M178-$X$7:X178,--($D$7:D178=D178)) -> 121743.5
A179: أغسطس | B179: 2025-08-06 | C179: الأربعاء | D179: عبد الجواد | E179: النخيل | F179: النخيل | G179: برحى | I179: ترديم حول النخيل | J179: يومية | K179: 3 | L179: 350 | M179: 1050 | Z179: 8 | AA179: 131.25 | AB179: =SUMPRODUCT($M$7:M179-$X$7:X179,--($D$7:D179=D179)) -> 122793.5
A180: أغسطس | B180: 2025-08-06 | C180: الأربعاء | D180: عبد الجواد | E180: المحطة | F180: تعبئة | G180: كريمسون تصدير | I180: تعبئة | J180: يومية | K180: 2 | L180: 350 | M180: 700 | AB180: =SUMPRODUCT($M$7:M180-$X$7:X180,--($D$7:D180=D180)) -> 123493.5
A181: أغسطس | B181: 2025-08-06 | C181: الأربعاء | E181: المحطة | F181: تعبئة | G181: كريمسون تصدير | I181: تعبئة | J181: يومية | K181: 0 | L181: 0 | M181: 0 | AB181: =SUMPRODUCT($M$7:M181-$X$7:X181,--($D$7:D181=D181)) -> 0
A182: أغسطس | B182: 2025-08-06 | C182: الأربعاء | D182: سيف طه | E182: كريمسون تصدير | F182: تعبئة | I182: تعبئة | J182: يومية | K182: 1 | L182: 350 | M182: 350 | AB182: =SUMPRODUCT($M$7:M182-$X$7:X182,--($D$7:D182=D182)) -> 3500
A183: أغسطس | B183: 2025-08-06 | C183: الأربعاء | D183: سيف طه | E183: المحطة | F183: تعبئة | I183: تعبئة | J183: مكافئة مالبة | K183: 1 | L183: 1000 | M183: 1000 | AB183: =SUMPRODUCT($M$7:M183-$X$7:X183,--($D$7:D183=D183)) -> 4500
A184: أغسطس | B184: 2025-08-07 | C184: الخميس | D184: ابو عمار أسيوط | E184: مانجو | F184: مانجو | H184: الحاج حماد | I184: توريق | J184: يومية | K184: 4 | L184: 350 | M184: 1400 | AB184: =SUMPRODUCT($M$7:M184-$X$7:X184,--($D$7:D184=D184)) -> 38525
A185: أغسطس | B185: 2025-08-07 | C185: الخميس | D185: عبد الجواد | E185: النخيل | F185: النخيل | G185: برحى | I185: ترديم حول النخيل | J185: يومية | K185: 2 | L185: 350 | M185: 700 | Z185: 8 | AA185: 87.5 | AB185: =SUMPRODUCT($M$7:M185-$X$7:X185,--($D$7:D185=D185)) -> 124193.5
A186: أغسطس | B186: 2025-08-07 | C186: الخميس | D186: عبد الجواد | E186: رومان | F186: رومان | G186: رومان | I186: توريق | J186: يومية | K186: 7 | L186: 350 | M186: 2450 | Z186: 21 | AA186: 116.6666667 | AB186: =SUMPRODUCT($M$7:M186-$X$7:X186,--($D$7:D186=D186)) -> 126643.5
A187: أغسطس | B187: 2025-08-07 | C187: الخميس | D187: عبد الجواد | E187: المحطة | F187: تعبئة | G187: كريمسون تصدير | I187: تعبئة | J187: يومية | K187: 1 | L187: 350 | M187: 350 | AB187: =SUMPRODUCT($M$7:M187-$X$7:X187,--($D$7:D187=D187)) -> 126993.5
A188: أغسطس | B188: 2025-08-08 | C188: الجمعة | D188: ابو عمار أسيوط | E188: مانجو | F188: مانجو | H188: الحاج حماد | I188: توريق | J188: يومية | K188: 4 | L188: 350 | M188: 1400 | AB188: =SUMPRODUCT($M$7:M188-$X$7:X188,--($D$7:D188=D188)) -> 39925
A189: أغسطس | B189: 2025-08-08 | C189: الجمعة | D189: عبد الجواد | E189: النخيل | F189: النخيل | G189: برحى | I189: ترديم حول النخيل | J189: يومية | K189: 8 | L189: 350 | M189: 2800 | Z189: 21 | AA189: 133.3333333 | AB189: =SUMPRODUCT($M$7:M189-$X$7:X189,--($D$7:D189=D189)) -> 129793.5
A190: أغسطس | B190: 2025-08-08 | C190: الجمعة | D190: عبد الجواد | E190: المحطة | F190: تعبئة | G190: كريمسون تصدير | I190: تعبئة | J190: يومية | K190: 1 | L190: 350 | M190: 350 | AB190: =SUMPRODUCT($M$7:M190-$X$7:X190,--($D$7:D190=D190)) -> 130143.5
A191: أغسطس | B191: 2025-08-09 | C191: السبت | D191: ابو عمار أسيوط | E191: مانجو | F191: مانجو | H191: الحاج حماد | I191: توريق | J191: يومية | K191: 4 | L191: 350 | M191: 1400 | AB191: =SUMPRODUCT($M$7:M191-$X$7:X191,--($D$7:D191=D191)) -> 41325
A192: أغسطس | B192: 2025-08-09 | C192: السبت | D192: عبد الجواد | E192: الإدارة والمخازن | F192: بصل | G192: بصل | I192: بصل | J192: يومية | K192: 2.75 | L192: 350 | M192: 962.5 | AB192: =SUMPRODUCT($M$7:M192-$X$7:X192,--($D$7:D192=D192)) -> 131106
A193: أغسطس | B193: 2025-08-09 | C193: السبت | D193: عبد الجواد | E193: عنب | F193: بلاك | I193: حشائش | J193: يومية | K193: 5 | L193: 350 | M193: 1750 | Y193: تمت التصفة حتى تاريخه | AB193: =SUMPRODUCT($M$7:M193-$X$7:X193,--($D$7:D193=D193)) -> 132856
A194: أغسطس | B194: 2025-08-09 | C194: السبت | D194: عبد الجواد | E194: المحطة | F194: تعبئة | G194: كريمسون تصدير | I194: تعبئة | J194: يومية | K194: 1 | L194: 350 | M194: 350 | AB194: =SUMPRODUCT($M$7:M194-$X$7:X194,--($D$7:D194=D194)) -> 133206
A195: أغسطس | B195: 2025-08-09 | C195: السبت | D195: اشرف محطة | E195: المحطة | F195: تعبئة | G195: كريمسون تصدير | L195: 350 | M195: 0 | X195: 240 | Y195: خصم 2 مقص | AB195: =SUMPRODUCT($M$7:M195-$X$7:X195,--($D$7:D195=D195)) -> 116265
A196: أغسطس | B196: 2025-08-10 | C196: الأحد | D196: عبد الجواد | E196: المحطة | F196: تعبئة | G196: كريمسون تصدير | I196: تعبئة | J196: مكافئة مالبة | M196: 1000 | Y196: مكافات من الحاج | AB196: =SUMPRODUCT($M$7:M196-$X$7:X196,--($D$7:D196=D196)) -> 134206
A197: أغسطس | B197: 2025-08-10 | C197: الأحد | D197: م رمضان عبد الغفار | J197: مكافئة مالبة | L197: 0 | M197: 3000 | AB197: =SUMPRODUCT($M$7:M197-$X$7:X197,--($D$7:D197=D197)) -> 20530
A198: أغسطس | B198: 2025-08-10 | C198: الأحد | D198: ابو عمار أسيوط | E198: مانجو | F198: مانجو | H198: الحاج حماد | I198: توريق | J198: يومية | K198: 4 | L198: 350 | M198: 1400 | AB198: =SUMPRODUCT($M$7:M198-$X$7:X198,--($D$7:D198=D198)) -> 42725
A199: =TEXT(B199,"MMMM") -> أغسطس | B199: 2025-08-10 | C199: =IF(B199<>"",TEXT(B199,"dddd"),"") -> الأحد | D199: عبد الجواد | E199: عنب | F199: كريمسون | G199: كريمسون ح4 | I199: جمع | J199: يومية | K199: 4 | L199: 350 | M199: 1400 | Y199: عدد1 توزيع هديا +كع جمع50برنيكة | Z199: 50 | AA199: 28 | AB199: =SUMPRODUCT($M$7:M199-$X$7:X199,--($D$7:D199=D199)) -> 135606
A200: أغسطس | B200: 2025-08-10 | C200: الأحد | D200: عبد الجواد | E200: برقوق | F200: برقوق | G200: حوشة 1 | I200: حشائش | J200: يومية | K200: 4 | L200: 350 | M200: 1400 | Z200: 60 | AA200: 23.33333333 | AB200: =SUMPRODUCT($M$7:M200-$X$7:X200,--($D$7:D200=D200)) -> 137006
A201: أغسطس | B201: 2025-08-10 | C201: الأحد | D201: ايمن جابر | E201: رومان | F201: رومان | I201: سرطانات | J201: يومية | K201: 10 | L201: 650 | M201: 6500 | Z201: 33 | AA201: 196.969697 | AB201: =SUMPRODUCT($M$7:M201-$X$7:X201,--($D$7:D201=D201)) -> 196187
... 1662 more rows

Sheet تقرير تفصيلى (hidden)
B2: التاريخ | C2: التاريخ | D2: مكان الشغل | E2: اسم المقاول | F2: العدد | G2: القيمة | H2: الواصل | I2: الباقى
B3: =">="&C6 -> >=45823 | C3: ="<="&D6 -> <=45859 | E3: عمالة خالد | F3: =SUBTOTAL(9,$G$10:$G$12000) -> 0 | G3: =SUBTOTAL(9,$I$10:$I$1600) -> 0 | H3: =SUBTOTAL(9,$M$11:$M$150000) -> 0 | I3: =+G3-H3 -> 0
C5: من تاريخ | D5: الى تاريخ | E5: تقرير تفصيلى للمقاولين2025
C6: 2025-06-15 | D6: 2025-07-21
B7: 0 | C7: =+C6 -> 2025-06-15 | D7: =+D6 -> 2025-07-21 | H7: =SUBTOTAL(9,H$10:H$1200) -> 0 | I7: =SUBTOTAL(9,I$10:I$1200) -> 0 | J7: =SUBTOTAL(9,J$10:J$1200) -> 0 | K7: 0 | L7: =SUBTOTAL(9,L$10:L$1200) -> 0
B9: التاريخ | C9: اليوم | D9: اسم المقاول | E9: المحصول | F9: النوع | G9: الحوشة | H9: الشركاء | I9: الاعمال | J9: الوحدة | K9: العدد | L9: الفئة | M9: القيمة | N9: الرش | O9: التسميد | P9: التوريق | Q9: الخف | R9: الخصى | S9: تطويش | T9: 1 | U9: 1 | V9: 1 | W9: 1 | X9: الدفعات الواصلة | Y9: البيان
B10: التاريخ | C10: اليوم | D10: اسم المقاول | E10: المحصول | F10: النوع | G10: الحوشة | H10: الشركاء | I10: الاعمال | J10: الوحدة | K10: العدد | L10: الفئة | M10: القيمة | N10: الرش | O10: التسميد | P10: التوريق | Q10: الخف | R10: الخصى | S10: تطويش | T10: 1 | U10: 1 | V10: 1 | W10: 1 | X10: الدفعات الواصلة | Y10: البيان

Sheet ام ياسمين
K1: اجمالى عدد لعمالة | L1: =SUBTOTAL(9,$K$10:$K$12000) -> 402 | M1: يومية | X1: رصد افتتاحى | Y1: ساعة
K2: اجمالى قيمة الاعمال | L2: =SUBTOTAL(9,$M$10:$M$12000) -> 140700 | M2: =SUMIFS($K$10:$K$15000,$J$10:$J$15000,M$1,$D$10:$D$15000,$B$3) -> 400 | X2: =SUMIFS($K$10:$K$15000,$J$10:$J$15000,X$1) -> 0 | Y2: =SUMIFS($K$10:$K$15000,$J$10:$J$15000,Y$1) -> 0
B3: =+D10 -> ام ياسمين | K3: الدفعات الواصلة | L3: =SUBTOTAL(9,$X$10:$X$12000) -> 140700 | M3: =+M4/M2 -> 350 | X3: =+X4/X2 ->  | Y3: =+Y4/Y2 -> 
K4: المستحق للمقاول | L4: =+L2-L3 -> 0 | M4: =SUMIFS($M$10:$M$15000,$J$10:$J$15000,M$1,$D$10:$D$15000,B3) -> 140000 | X4: =SUMIFS($M$10:$M$15000,$J$10:$J$15000,X$2) -> 0 | Y4: =SUMIFS($M$10:$M$15000,$J$10:$J$15000,Y$2) -> 0
K8: =SUM(K10:K14000) -> 402
A9: م | B9: التاريخ | C9: اليوم | D9: اسم المقاول | E9: المحصول | F9: النوع | G9: الحوشة | H9: الشركاء | I9: الاعمال | J9: الوحدة | K9: العدد | L9: الفئة | M9: القيمة | N9: الرش | O9: التسميد | P9: التوريق | Q9: الخف | R9: الخصى | S9: تطويش | T9: 1 | U9: 1 | V9: 1 | W9: 1 | X9: الدفعات الواصلة | Y9: البيان | Z9: الإنتاج | AA9: تكلفة | AB9: الرصيد
A10: =ROW()-9 -> 1 | B10: 2025-07-19 | C10: السبت | D10: ام ياسمين | E10: عنب | F10: كريمسون | G10: كريمسون ح4 | I10: جمع | J10: يومية | K10: 42 | L10: 350 | M10: 14700 | AB10: 14700
A11: 2 | B11: 2025-07-20 | C11: الأحد | D11: ام ياسمين | E11: عنب | F11: كريمسون | G11: كريمسون ح4 | I11: جمع | J11: يومية | K11: 40 | L11: 350 | M11: 14000 | AB11: 28700
A12: 3 | B12: 2025-07-21 | C12: الإثنين | D12: ام ياسمين | E12: عنب | F12: كريمسون | G12: كريمسون ح5 | I12: جمع | J12: يومية | K12: 39 | L12: 350 | M12: 13650 | AB12: 42350
A13: 4 | B13: 2025-07-22 | C13: الثلاثاء | D13: ام ياسمين | E13: عنب | F13: كريمسون | G13: كريمسون ح5 | I13: جمع | J13: يومية | K13: 38 | L13: 350 | M13: 13300 | AB13: 55650
A14: 5 | B14: 2025-07-23 | C14: الأربعاء | D14: ام ياسمين | E14: عنب | F14: كريمسون | G14: كريمسون ح6 | I14: جمع | J14: يومية | K14: 28 | L14: 350 | M14: 9800 | AB14: 65450
A15: 6 | B15: 2025-07-27 | C15: الأحد | D15: ام ياسمين | E15: عنب | F15: كريمسون | G15: كريمسون ح6 | I15: جمع | J15: يومية | K15: 39 | L15: 350 | M15: 13650 | AB15: 79100
A16: 7 | B16: 2025-07-28 | C16: الإثنين | D16: ام ياسمين | E16: عنب | F16: كريمسون | G16: كريمسون ح4 | I16: جمع | J16: يومية | K16: 36 | L16: 350 | M16: 12600 | AB16: 91700
A17: 8 | B17: 2025-07-29 | C17: الثلاثاء | D17: ام ياسمين | E17: عنب | F17: كريمسون | G17: كريمسون ح5 | I17: جمع | J17: يومية | K17: 37 | L17: 350 | M17: 12950 | AB17: 104650
A18: 9 | B18: 2025-07-30 | C18: الأربعاء | D18: ام ياسمين | E18: دفعه فلوس | F18: دفعه فلوس | G18: دفعه فلوس | I18: دفعه فلوس | J18: وصل | L18: 0 | M18: 0 | X18: 70000 | Y18: بيد ا / محمود حماد | AB18: 34650
A19: 10 | B19: 2025-08-04 | C19: الإثنين | D19: ام ياسمين | E19: عنب | F19: كريمسون | G19: كريمسون ح5 | I19: جمع | J19: يومية | K19: 23 | L19: 350 | M19: 8050 | Z19: 762 | AA19: 10.56430446 | AB19: 42700
A20: 11 | B20: 2025-08-04 | C20: الإثنين | D20: ام ياسمين | E20: عنب | F20: كريمسون | G20: كريمسون ح5 | I20: جمع | J20: اضافى | K20: 2 | L20: 350 | M20: 700 | AB20: 43400
A21: 12 | B21: 2025-08-05 | C21: الثلاثاء | D21: ام ياسمين | E21: عنب | F21: كريمسون | G21: كريمسون ح4 | I21: جمع | J21: يومية | K21: 21 | L21: 350 | M21: 7350 | AB21: 50750
A22: 13 | B22: 2025-08-12 | C22: الثلاثاء | D22: ام ياسمين | E22: عنب | F22: كريمسون | G22: كريمسون ح6 | I22: جمع | J22: يومية | K22: 21 | L22: 350 | M22: 7350 | AB22: 58100
A23: 14 | B23: 2025-08-13 | C23: الأربعاء | D23: ام ياسمين | E23: دفعه فلوس | F23: دفعه فلوس | G23: دفعه فلوس | I23: دفعه فلوس | J23: وصل | L23: 0 | M23: 0 | X23: 20000 | Y23: من المكتب | AB23: 38100
A24: 15 | B24: 2025-08-13 | C24: الأربعاء | D24: ام ياسمين | E24: عنب | F24: كريمسون | G24: كريمسون ح4 | I24: جمع | J24: يومية | K24: 19 | L24: 350 | M24: 6650 | Z24: 375 | AA24: 17.73333333 | AB24: 44750
A25: 16 | B25: 2025-08-14 | C25: الخميس | D25: ام ياسمين | E25: عنب | F25: كريمسون | G25: كريمسون ح6 | I25: جمع | J25: يومية | K25: 17 | L25: 350 | M25: 5950 | Z25: 361 | AA25: 16.48199446 | AB25: 50700
A26: 17 | B26: 2025-08-14 | C26: الخميس | D26: ام ياسمين | E26: دفعه فلوس | F26: دفعه فلوس | G26: دفعه فلوس | I26: دفعه فلوس | J26: وصل | L26: 0 | M26: 0 | X26: 15000 | AB26: 35700
A27: 18 | B27: 2025-08-20 | C27: الأربعاء | D27: ام ياسمين | E27: دفعه فلوس | F27: دفعه فلوس | G27: دفعه فلوس | I27: دفعه فلوس | J27: وصل | L27: 0 | M27: 0 | X27: 35700 | AB27: 0

Sheet عمالة خالد
K1: اجمالى عدد لعمالة | L1: =SUBTOTAL(9,$K$10:$K$12000) -> 288.5 | M1: يومية | X1: رصد افتتاحى | Y1: ساعة
K2: اجمالى قيمة الاعمال | L2: =SUBTOTAL(9,$M$10:$M$12000) -> 101475 | M2: =SUMIFS($K$10:$K$15000,$J$10:$J$15000,M$1,$D$10:$D$15000,$B$3) -> 288.5 | X2: =SUMIFS($K$10:$K$15000,$J$10:$J$15000,X$1) -> 0 | Y2: =SUMIFS($K$10:$K$15000,$J$10:$J$15000,Y$1) -> 0
B3: =+D10 -> عمالة خالد | K3: الدفعات الواصلة | L3: =SUBTOTAL(9,$X$10:$X$12000) -> 101475 | M3: =+M4/M2 -> 350 | X3: =+X4/X2 ->  | Y3: =+Y4/Y2 -> 
K4: المستحق للمقاول | L4: =+L2-L3 -> 0 | M4: =SUMIFS($M$10:$M$15000,$J$10:$J$15000,M$1,$D$10:$D$15000,B3) -> 100975 | X4: =SUMIFS($M$10:$M$15000,$J$10:$J$15000,X$2) -> 0 | Y4: =SUMIFS($M$10:$M$15000,$J$10:$J$15000,Y$2) -> 0
A9: م | B9: التاريخ | C9: اليوم | D9: اسم المقاول | E9: المحصول | F9: النوع | G9: الحوشة | H9: الشركاء | I9: الاعمال | J9: الوحدة | K9: العدد | L9: الفئة | M9: القيمة | N9: الرش | O9: التسميد | P9: التوريق | Q9: الخف | R9: الخصى | S9: تطويش | T9: 1 | U9: 1 | V9: 1 | W9: 1 | X9: الدفعات الواصلة | Y9: البيان | Z9: الإنتاج | AA9: تكلفة | AB9: الرصيد
A10: =ROW()-9 -> 1 | B10: 2025-07-20 | C10: الأحد | D10: عمالة خالد | E10: عنب | F10: كريمسون | G10: كريمسون ح4 | I10: جمع | J10: يومية | K10: 25 | L10: 350 | M10: 8750 | AB10: 8750
A11: 2 | B11: 2025-07-21 | C11: الإثنين | D11: عمالة خالد | E11: عنب | F11: كريمسون | G11: كريمسون ح5 | I11: جمع | J11: يومية | K11: 24 | L11: 350 | M11: 8400 | AB11: 17150
A12: 3 | B12: 2025-07-22 | C12: الثلاثاء | D12: عمالة خالد | E12: عنب | F12: كريمسون | G12: كريمسون ح6 | I12: جمع | J12: يومية | K12: 25 | L12: 350 | M12: 8750 | AB12: 25900
A13: 4 | B13: 2025-07-27 | C13: الأحد | D13: عمالة خالد | E13: عنب | F13: كريمسون | G13: كريمسون ح6 | I13: جمع | J13: يومية | K13: 23 | L13: 350 | M13: 8050 | AB13: 33950
A14: 5 | B14: 2025-07-28 | C14: الإثنين | D14: عمالة خالد | E14: عنب | F14: كريمسون | G14: كريمسون ح4 | I14: جمع | J14: يومية | K14: 25 | L14: 350 | M14: 8750 | AB14: 42700
A15: 6 | B15: 2025-07-29 | C15: الثلاثاء | D15: عمالة خالد | E15: عنب | F15: كريمسون | G15: كريمسون ح5 | I15: جمع | J15: يومية | K15: 21 | L15: 350 | M15: 7350 | AB15: 50050
A16: 7 | B16: 2025-07-29 | C16: الثلاثاء | D16: عمالة خالد | E16: عنب | F16: كريمسون | G16: كريمسون ح6 | I16: جمع | J16: يومية | K16: 5 | L16: 350 | M16: 1750 | AB16: 51800
A17: 8 | B17: 2025-07-30 | C17: الأربعاء | D17: عمالة خالد | E17: دفعه فلوس | F17: دفعه فلوس | G17: دفعه فلوس | I17: دفعه فلوس | J17: وصل | L17: 0 | M17: 0 | X17: 15000 | Y17: بيد ا / محمود حماد | AB17: 36800
A18: 9 | B18: 2025-07-30 | C18: الأربعاء | D18: عمالة خالد | E18: دفعه فلوس | F18: دفعه فلوس | G18: دفعه فلوس | I18: دفعه فلوس | J18: وصل | L18: 0 | M18: 0 | X18: 36800 | Y18: بيد ا / محمود حماد | AB18: 0
A19: 10 | B19: 2025-08-04 | C19: الإثنين | D19: عمالة خالد | E19: عنب | F19: كريمسون | G19: كريمسون ح5 | I19: جمع | J19: يومية | K19: 23 | L19: 350 | M19: 8050 | Z19: 629 | AA19: 12.79809221 | AB19: 8050
A20: 11 | B20: 2025-08-05 | C20: الثلاثاء | D20: عمالة خالد | E20: عنب | F20: كريمسون | G20: كريمسون ح4 | I20: جمع | J20: يومية | K20: 22 | L20: 350 | M20: 7700 | AB20: 15750
A21: 12 | B21: 2025-08-06 | C21: الأربعاء | D21: عمالة خالد | E21: رومان | F21: رومان | G21: رومان | I21: توريق | J21: يومية | K21: 22 | L21: 350 | M21: 7700 | Z21: 42 | AA21: 183.3333333 | AB21: 23450
A22: 13 | B22: 2025-08-12 | C22: الثلاثاء | D22: عمالة خالد | E22: دفعه فلوس | F22: دفعه فلوس | G22: دفعه فلوس | I22: دفعه فلوس | J22: وصل | L22: 0 | M22: 0 | X22: 20000 | Y22: المحاسب | AB22: 3450
A23: 14 | B23: 2025-08-12 | C23: الثلاثاء | D23: عمالة خالد | E23: عنب | F23: كريمسون | G23: كريمسون ح6 | I23: جمع | J23: يومية | K23: 22 | L23: 350 | M23: 7700 | AB23: 11150
A24: 15 | B24: 2025-08-12 | C24: الثلاثاء | D24: عمالة خالد | E24: المحطة | F24: تعبئة | I24: تعبئة | J24: يومية | K24: 8.5 | L24: 350 | M24: 2975 | AB24: 14125
A25: 16 | B25: 2025-08-13 | C25: الأربعاء | D25: عمالة خالد | E25: دفعه فلوس | F25: دفعه فلوس | G25: دفعه فلوس | I25: دفعه فلوس | J25: وصل | L25: 0 | M25: 0 | X25: 15000 | Y25: من المكتب | AB25: -875
A26: 17 | B26: 2025-08-13 | C26: الأربعاء | D26: عمالة خالد | E26: عنب | F26: كريمسون | G26: كريمسون ح5 | I26: جمع | J26: يومية | K26: 23 | L26: 350 | M26: 8050 | Z26: 510 | AA26: 15.78431373 | AB26: 7175
A27: 18 | B27: 2025-08-14 | C27: الخميس | D27: عمالة خالد | E27: عنب | F27: كريمسون | G27: كريمسون ح5 | I27: جمع | J27: يومية | K27: 20 | L27: 350 | M27: 7000 | Z27: 432 | AA27: 16.2037037 | AB27: 14175
A28: 19 | B28: 2025-08-14 | C28: الخميس | D28: عمالة خالد | E28: عنب | F28: كريمسون | L28: 0 | M28: 500 | AB28: 14675
A29: 20 | B29: 2025-08-20 | C29: الأربعاء | D29: عمالة خالد | E29: دفعه فلوس | F29: دفعه فلوس | G29: دفعه فلوس | I29: دفعه فلوس | J29: وصل | L29: 0 | M29: 0 | X29: 14675 | AB29: 0

Sheet عبد الجواد
B3: =+D10 -> عبد الجواد
K4: =SUBTOTAL(9,$K$178:$K$12000) -> 148.5 | M4: =SUBTOTAL(9,$M$10:$M$12000) -> 51975 | X4: =SUBTOTAL(9,$X$10:$X$12000) -> 70000
M8: =SUM(M10:M130000) -> 476756 | N8: 0 | O8: 0 | P8: 0 | Q8: 0 | R8: 0 | S8: 0 | T8: 0 | U8: 0 | V8: 0 | W8: 0 | X8: =SUM(X10:X130000) -> 418250 | AB8: =+M8-X8 -> 58506
A9: م | B9: التاريخ | C9: اليوم | D9: اسم المقاول | E9: المحصول | F9: النوع | G9: الحوشة | H9: الشركاء | I9: الاعمال | J9: الوحدة | K9: العدد | L9: الفئة | M9: القيمة | N9: الرش | O9: التسميد | P9: التوريق | Q9: الخف | R9: الخصى | S9: تطويش | T9: 1 | U9: 1 | V9: 1 | W9: 1 | X9: الدفعات الواصلة | Y9: البيان | Z9: الإنتاج | AA9: تكلفة | AB9: الرصيد
A10: =ROW()-9 -> 1 | B10: 2025-07-23 | C10: الأربعاء | D10: عبد الجواد | E10: رصد افتتاحى | F10: رصد افتتاحى | I10: رصد افتتاحى | J10: رصد افتتاحى | K10: 0 | L10: 0 | M10: 91350 | AB10: 91350
A11: 2 | B11: 2025-07-24 | C11: الخميس | D11: عبد الجواد | E11: عنب | F11: كريمسون | G11: كريمسون ح4 | I11: توريق | J11: يومية | K11: 12 | L11: 350 | M11: 4200 | AB11: 95550
A12: 3 | B12: 2025-07-24 | C12: الخميس | D12: عبد الجواد | E12: المحطة | F12: تعبئة | G12: تعبئة | I12: تعبئة | J12: يومية | K12: 2 | L12: 350 | M12: 700 | AB12: 96250
A13: 4 | B13: 2025-07-24 | C13: الخميس | D13: عبد الجواد | E13: عنب | F13: اسبيريور | G13: محلى | I13: جمع | J13: يومية | K13: 2.5 | L13: 350 | M13: 875 | AB13: 97125
A14: 5 | B14: 2025-07-25 | C14: الجمعة | D14: عبد الجواد | E14: الاستراحة | F14: الاستراحة | G14: الاستراحة مانجو | I14: حشائش | J14: يومية | K14: 11 | L14: 350 | M14: 3850 | AB14: 100975
A15: 6 | B15: 2025-07-25 | C15: الجمعة | D15: عبد الجواد | E15: المحطة | F15: تعبئة | G15: تعبئة | I15: تعبئة | J15: يومية | K15: 2 | L15: 350 | M15: 700 | AB15: 101675
A16: 7 | B16: 2025-07-26 | C16: السبت | D16: عبد الجواد | E16: المحطة | F16: تعبئة | G16: كريمسون تصدير | I16: تعبئة | J16: يومية | K16: 2 | L16: 350 | M16: 700 | AB16: 102375
A17: 8 | B17: 2025-07-26 | C17: السبت | D17: عبد الجواد | E17: عنب | F17: كريمسون | G17: كريمسون ح6 | I17: نظافة ذبابة | J17: يومية | K17: 6 | L17: 350 | M17: 2100 | AB17: 104475
A18: 9 | B18: 2025-07-26 | C18: السبت | D18: عبد الجواد | E18: الإدارة والمخازن | F18: الإدارة والمخازن | G18: الإدارة والمخازن | I18: الإدارة والمخازن | J18: يومية | K18: 1 | L18: 350 | M18: 350 | AB18: 104825
A19: 10 | B19: 2025-07-26 | C19: السبت | D19: عبد الجواد | E19: النخيل | F19: النخيل | G19: برحى | I19: رش | J19: يومية | K19: 3 | L19: 350 | M19: 1050 | AB19: 105875
A20: 11 | B20: 2025-07-26 | C20: السبت | D20: عبد الجواد | E20: النخيل | F20: النخيل | G20: برحى | I20: رش | J20: اضافى | K20: 0.5 | L20: 350 | M20: 175 | AB20: 106050
A21: 12 | B21: 2025-07-26 | C21: السبت | D21: عبد الجواد | E21: الاستراحة | F21: الاستراحة | G21: الاستراحة مانجو | I21: فرد خراطيم | J21: يومية | K21: 1 | L21: 350 | M21: 350 | AB21: 106400
A22: 13 | B22: 2025-07-27 | C22: الأحد | D22: عبد الجواد | E22: المحطة | F22: تعبئة | G22: تعبئة | I22: تعبئة | J22: مكافئة مالبة | L22: 1 | M22: 500 | AB22: 106900
A23: 14 | B23: 2025-07-27 | C23: الأحد | D23: عبد الجواد | E23: المحطة | F23: تعبئة | G23: كريمسون تصدير | I23: تعبئة | J23: يومية | K23: 2 | L23: 350 | M23: 700 | AB23: 107600
A24: 15 | B24: 2025-07-27 | C24: الأحد | D24: عبد الجواد | E24: عنب | F24: كريمسون | G24: كريمسون ح6 | I24: جمع | J24: يومية | K24: 5 | L24: 350 | M24: 1750 | AB24: 109350
A25: 16 | B25: 2025-07-27 | C25: الأحد | D25: عبد الجواد | E25: النخيل | F25: النخيل | G25: برحى | I25: ترديم حول النخيل | J25: يومية | K25: 4 | L25: 350 | M25: 1400 | AB25: 110750
A26: 17 | B26: 2025-07-28 | C26: الإثنين | D26: عبد الجواد | E26: المحطة | F26: تعبئة | G26: كريمسون تصدير | I26: تعبئة | J26: يومية | K26: 2 | L26: 350 | M26: 700 | AB26: 111450
A27: 18 | B27: 2025-07-28 | C27: الإثنين | D27: عبد الجواد | E27: عنب | F27: كريمسون | G27: كريمسون ح6 | I27: جمع | J27: يومية | K27: 5 | L27: 350 | M27: 1750 | AB27: 113200
A28: 19 | B28: 2025-07-28 | C28: الإثنين | D28: عبد الجواد | E28: النخيل | F28: النخيل | G28: برحى | I28: ترديم حول النخيل | J28: يومية | K28: 4 | L28: 350 | M28: 1400 | AB28: 114600
A29: 20 | B29: 2025-07-29 | C29: الثلاثاء | D29: عبد الجواد | E29: عنب | F29: كريمسون | G29: كريمسون ح6 | I29: جمع | J29: يومية | K29: 8 | L29: 350 | M29: 2800 | AB29: 117400
A30: 21 | B30: 2025-07-29 | C30: الثلاثاء | D30: عبد الجواد | E30: المحطة | F30: تعبئة | G30: كريمسون تصدير | I30: تعبئة | J30: يومية | K30: 2 | L30: 350 | M30: 700 | AB30: 118100
A31: 22 | B31: 2025-07-29 | C31: الثلاثاء | D31: عبد الجواد | E31: المحطة | F31: تعبئة | G31: كريمسون تصدير | I31: تعبئة | J31: مكافئة مالبة | M31: 2000 | Y31: تم تعديها من 1000 الى 2000ج | AB31: 120100
A32: 23 | B32: 2025-07-30 | C32: الأربعاء | D32: عبد الجواد | E32: دفعه فلوس | F32: دفعه فلوس | G32: دفعه فلوس | I32: دفعه فلوس | J32: وصل | L32: 0 | M32: 0 | X32: 30000 | Y32: من عهدة المكتب | AB32: 90100
A33: 24 | B33: 2025-07-30 | C33: الأربعاء | D33: عبد الجواد | E33: عنب | F33: كريمسون | G33: كريمسون ح6 | I33: جمع | J33: يومية | K33: 4 | L33: 350 | M33: 1400 | Z33: 105 | AA33: 13.33333333 | AB33: 91500
A34: 25 | B34: 2025-07-30 | C34: الأربعاء | D34: عبد الجواد | E34: النخيل | F34: النخيل | G34: برحى | I34: ترديم حول النخيل | J34: يومية | K34: 4 | L34: 350 | M34: 1400 | Z34: 4.5 | AA34: 311.1111111 | AB34: 92900
A35: 26 | B35: 2025-07-30 | C35: الأربعاء | D35: عبد الجواد | E35: المحطة | F35: تعبئة | G35: كريمسون تصدير | I35: تعبئة | J35: يومية | K35: 2 | L35: 350 | M35: 700 | AB35: 93600
A36: 27 | B36: 2025-07-31 | C36: الخميس | D36: عبد الجواد | E36: رومان | F36: رومان | G36: رومان | I36: حشائش | J36: يومية | K36: 8 | L36: 350 | M36: 2800 | Z36: 15 | AA36: 186.6666667 | AB36: 96400
A37: 28 | B37: 2025-07-31 | C37: الخميس | D37: عبد الجواد | E37: المحطة | F37: تعبئة | G37: كريمسون تصدير | I37: تعبئة | J37: يومية | K37: 2 | L37: 350 | M37: 700 | AB37: 97100
A38: 29 | B38: 2025-08-01 | C38: الجمعة | D38: عبد الجواد | E38: المحطة | F38: تعبئة | G38: كريمسون تصدير | I38: تعبئة | J38: يومية | K38: 2 | L38: 350 | M38: 700 | AB38: 97800
A39: 30 | B39: 2025-08-01 | C39: الجمعة | D39: عبد الجواد | E39: رومان | F39: رومان | G39: رومان | I39: حشائش | J39: يومية | K39: 8 | L39: 350 | M39: 2800 | Z39: 18 | AA39: 155.5555556 | AB39: 100600 | AC39: 0
A40: 31 | B40: 2025-08-02 | C40: السبت | D40: عبد الجواد | E40: رومان | F40: رومان | G40: رومان | I40: حشائش | J40: يومية | K40: 12 | L40: 350 | M40: 4200 | Z40: 21 | AA40: 200 | AB40: 104800
A41: 32 | B41: 2025-08-03 | C41: الأحد | D41: عبد الجواد | E41: رومان | F41: رومان | G41: رومان | I41: توريق | J41: يومية | K41: 4 | L41: 350 | M41: 1400 | Z41: 12 | AA41: 116.6666667 | AB41: 106200
A42: 33 | B42: 2025-08-03 | C42: الأحد | D42: عبد الجواد | E42: رومان | F42: رومان | G42: رومان | I42: حشائش | J42: يومية | K42: 8 | L42: 350 | M42: 2800 | Z42: 14 | AA42: 200 | AB42: 109000
A43: 34 | B43: 2025-08-04 | C43: الإثنين | D43: عبد الجواد | E43: عنب | F43: كريمسون | G43: كريمسون ح4 | I43: جمع | J43: يومية | K43: 3 | L43: 350 | M43: 1050 | AB43: 110050
A44: 35 | B44: 2025-08-04 | C44: الإثنين | D44: عبد الجواد | E44: عنب | F44: كريمسون | G44: كريمسون ح5 | I44: جمع | J44: يومية | K44: 3.75 | L44: 350 | M44: 1312.5 | AB44: 111362.5
A45: 36 | B45: 2025-08-04 | C45: الإثنين | D45: عبد الجواد | E45: المحطة | F45: تعبئة | G45: كريمسون تصدير | I45: تعبئة | J45: يومية | K45: 2 | L45: 350 | M45: 700 | AB45: 112062.5
A46: 37 | B46: 2025-08-04 | C46: الإثنين | D46: عبد الجواد | E46: المحطة | F46: تعبئة | G46: كريمسون تصدير | I46: تعبئة | J46: يومية | K46: 1.16 | L46: 350 | M46: 406 | AB46: 112468.5
A47: 38 | B47: 2025-08-04 | C47: الإثنين | D47: عبد الجواد | E47: المحطة | F47: تعبئة | G47: كريمسون تصدير | I47: تعبئة | J47: يومية | K47: 5 | L47: 350 | M47: 1750 | AB47: 114218.5
A48: 39 | B48: 2025-08-05 | C48: الثلاثاء | D48: عبد الجواد | E48: عنب | F48: كريمسون | G48: كريمسون ح4 | I48: جمع | J48: يومية | K48: 5 | L48: 350 | M48: 1750 | AB48: 115968.5
A49: 40 | B49: 2025-08-05 | C49: الثلاثاء | D49: عبد الجواد | E49: المحطة | F49: تعبئة | G49: كريمسون تصدير | I49: تعبئة | J49: يومية | K49: 2 | L49: 350 | M49: 700 | AB49: 116668.5
A50: 41 | B50: 2025-08-05 | C50: الثلاثاء | D50: عبد الجواد | E50: المحطة | F50: تعبئة | G50: كريمسون تصدير | I50: تعبئة | J50: يومية | K50: 10 | L50: 350 | M50: 3500 | AB50: 120168.5
A51: 42 | B51: 2025-08-06 | C51: الأربعاء | D51: عبد الجواد | E51: عنب | F51: كريمسون | G51: كريمسون ح5 | I51: جمع | J51: يومية | K51: 4.5 | L51: 350 | M51: 1575 | Z51: 100 | AA51: 15.75 | AB51: 121743.5
A52: 43 | B52: 2025-08-06 | C52: الأربعاء | D52: عبد الجواد | E52: النخيل | F52: النخيل | G52: برحى | I52: ترديم حول النخيل | J52: يومية | K52: 3 | L52: 350 | M52: 1050 | Z52: 8 | AA52: 131.25 | AB52: 122793.5
A53: 44 | B53: 2025-08-06 | C53: الأربعاء | D53: عبد الجواد | E53: المحطة | F53: تعبئة | G53: كريمسون تصدير | I53: تعبئة | J53: يومية | K53: 2 | L53: 350 | M53: 700 | AB53: 123493.5
A54: 45 | B54: 2025-08-07 | C54: الخميس | D54: عبد الجواد | E54: النخيل | F54: النخيل | G54: برحى | I54: ترديم حول النخيل | J54: يومية | K54: 2 | L54: 350 | M54: 700 | Z54: 8 | AA54: 87.5 | AB54: 124193.5
A55: 46 | B55: 2025-08-07 | C55: الخميس | D55: عبد الجواد | E55: رومان | F55: رومان | G55: رومان | I55: توريق | J55: يومية | K55: 7 | L55: 350 | M55: 2450 | Z55: 21 | AA55: 116.6666667 | AB55: 126643.5
A56: 47 | B56: 2025-08-07 | C56: الخميس | D56: عبد الجواد | E56: المحطة | F56: تعبئة | G56: كريمسون تصدير | I56: تعبئة | J56: يومية | K56: 1 | L56: 350 | M56: 350 | AB56: 126993.5
A57: 48 | B57: 2025-08-08 | C57: الجمعة | D57: عبد الجواد | E57: النخيل | F57: النخيل | G57: برحى | I57: ترديم حول النخيل | J57: يومية | K57: 8 | L57: 350 | M57: 2800 | Z57: 21 | AA57: 133.3333333 | AB57: 129793.5
A58: 49 | B58: 2025-08-08 | C58: الجمعة | D58: عبد الجواد | E58: المحطة | F58: تعبئة | G58: كريمسون تصدير | I58: تعبئة | J58: يومية | K58: 1 | L58: 350 | M58: 350 | AB58: 130143.5
A59: 50 | B59: 2025-08-09 | C59: السبت | D59: عبد الجواد | E59: الإدارة والمخازن | F59: بصل | G59: بصل | I59: بصل | J59: يومية | K59: 2.75 | L59: 350 | M59: 962.5 | AB59: 131106
A60: 51 | B60: 2025-08-09 | C60: السبت | D60: عبد الجواد | E60: عنب | F60: بلاك | I60: حشائش | J60: يومية | K60: 5 | L60: 350 | M60: 1750 | Y60: تمت التصفة حتى تاريخه | AB60: 132856
A61: 52 | B61: 2025-08-09 | C61: السبت | D61: عبد الجواد | E61: المحطة | F61: تعبئة | G61: كريمسون تصدير | I61: تعبئة | J61: يومية | K61: 1 | L61: 350 | M61: 350 | AB61: 133206
A62: 53 | B62: 2025-08-10 | C62: الأحد | D62: عبد الجواد | E62: المحطة | F62: تعبئة | G62: كريمسون تصدير | I62: تعبئة | J62: مكافئة مالبة | M62: 1000 | Y62: مكافات من الحاج | AB62: 134206
A63: 54 | B63: 2025-08-10 | C63: الأحد | D63: عبد الجواد | E63: عنب | F63: كريمسون | G63: كريمسون ح4 | I63: جمع | J63: يومية | K63: 4 | L63: 350 | M63: 1400 | Y63: عدد1 توزيع هديا +كع جمع50برنيكة | Z63: 50 | AA63: 28 | AB63: 135606
A64: 55 | B64: 2025-08-10 | C64: الأحد | D64: عبد الجواد | E64: برقوق | F64: برقوق | G64: حوشة 1 | I64: حشائش | J64: يومية | K64: 4 | L64: 350 | M64: 1400 | Z64: 60 | AA64: 23.33333333 | AB64: 137006
A65: 56 | B65: 2025-08-10 | C65: الأحد | D65: عبد الجواد | E65: المحطة | F65: تعبئة | G65: كريمسون تصدير | I65: تعبئة | J65: يومية | K65: 1 | L65: 350 | M65: 350 | AB65: 137356
A66: 57 | B66: 2025-08-11 | C66: الإثنين | D66: عبد الجواد | E66: دفعه فلوس | F66: دفعه فلوس | G66: دفعه فلوس | I66: دفعه فلوس | J66: وصل | L66: 0 | M66: 0 | X66: 5000 | Y66: تحويل ليلا من ا/ محمود | AB66: 132356
A67: 58 | B67: 2025-08-11 | C67: الإثنين | D67: عبد الجواد | E67: رومان | F67: رومان | G67: رومان | I67: جمع | J67: يومية | K67: 8 | L67: 350 | M67: 2800 | AB67: 135156
A68: 59 | B68: 2025-08-11 | C68: الإثنين | D68: عبد الجواد | E68: المحطة | F68: تعبئة | G68: كريمسون تصدير | I68: تعبئة | J68: يومية | K68: 1 | L68: 350 | M68: 350 | AB68: 135506
A69: 60 | B69: 2025-08-12 | C69: الثلاثاء | D69: عبد الجواد | E69: عنب | F69: كريمسون | G69: كريمسون ح6 | I69: جمع | J69: يومية | K69: 1 | L69: 350 | M69: 350 | AB69: 135856
A70: 61 | B70: 2025-08-12 | C70: الثلاثاء | D70: عبد الجواد | E70: المحطة | F70: تعبئة | G70: كريمسون تصدير | I70: تعبئة | J70: يومية | K70: 8 | L70: 350 | M70: 2800 | AB70: 138656
A71: 62 | B71: 2025-08-12 | C71: الثلاثاء | D71: عبد الجواد | E71: المحطة | F71: تعبئة | G71: كريمسون تصدير | I71: تعبئة | J71: يومية | K71: 1 | L71: 350 | M71: 350 | AB71: 139006
A72: 63 | B72: 2025-08-12 | C72: الثلاثاء | D72: عبد الجواد | E72: المحطة | F72: تعبئة | G72: كريمسون تصدير | I72: تعبئة | J72: يومية | K72: 7 | L72: 350 | M72: 2450 | AB72: 141456
A73: 64 | B73: 2025-08-13 | C73: الأربعاء | D73: عبد الجواد | E73: دفعه فلوس | F73: دفعه فلوس | G73: دفعه فلوس | I73: دفعه فلوس | J73: وصل | L73: 0 | M73: 0 | X73: 100000 | AB73: 41456
A74: =ROW()-9 -> 65 | B74: 2025-08-13 | C74: الأربعاء | D74: عبد الجواد | E74: عنب | F74: كريمسون | G74: كريمسون ح5 | I74: جمع | J74: يومية | K74: 1.5 | L74: 350 | M74: 525 | AB74: 41981
A75: 66 | B75: 2025-08-13 | C75: الأربعاء | D75: عبد الجواد | E75: المحطة | F75: تعبئة | G75: كريمسون تصدير | I75: تعبئة | J75: يومية | K75: 1 | L75: 350 | M75: 350 | AB75: 42331
A76: 67 | B76: 2025-08-13 | C76: الأربعاء | D76: عبد الجواد | E76: المحطة | F76: تعبئة | G76: كريمسون تصدير | I76: تعبئة | J76: يومية | K76: 8 | L76: 350 | M76: 2800 | AB76: 45131
A77: 68 | B77: 2025-08-13 | C77: الأربعاء | D77: عبد الجواد | E77: المحطة | F77: تعبئة | I77: تعبئة | J77: يومية | K77: 5.75 | L77: 350 | M77: 2012.5 | AB77: 47143.5
A78: 69 | B78: 2025-08-14 | C78: الخميس | D78: عبد الجواد | E78: رومان | F78: رومان | G78: رومان | I78: جمع | J78: يومية | K78: 7 | L78: 350 | M78: 2450 | Z78: 97 | AA78: 25.25773196 | AB78: 49593.5
A79: 70 | B79: 2025-08-14 | C79: الخميس | D79: عبد الجواد | E79: المحطة | F79: تعبئة | G79: كريمسون تصدير | I79: تعبئة | J79: يومية | K79: 1 | L79: 350 | M79: 350 | AB79: 49943.5
A80: 71 | B80: 2025-08-15 | C80: الجمعة | D80: عبد الجواد | E80: رومان | F80: رومان | G80: رومان | I80: جمع | J80: يومية | K80: 8 | L80: 350 | M80: 2800 | Z80: 121 | AA80: 23.14049587 | AB80: 52743.5
A81: 72 | B81: 2025-08-15 | C81: الجمعة | D81: عبد الجواد | E81: رومان | F81: رومان | G81: رومان | I81: جمع | J81: اضافى | K81: 1 | L81: 350 | M81: 350 | Z81: 15 | AA81: 23.33333333 | AB81: 53093.5
A82: 73 | B82: 2025-08-15 | C82: الجمعة | D82: عبد الجواد | E82: المحطة | F82: تعبئة | G82: كريمسون تصدير | I82: تعبئة | J82: يومية | K82: 1 | L82: 350 | M82: 350 | AB82: 53443.5
A83: 74 | B83: 2025-08-16 | C83: السبت | D83: عبد الجواد | E83: المحطة | F83: تعبئة | G83: كريمسون تصدير | I83: تعبئة | J83: يومية | K83: 1 | L83: 350 | M83: 350 | AB83: 53793.5
A84: 75 | B84: 2025-08-16 | C84: السبت | D84: عبد الجواد | E84: عنب | F84: كريمسون | I84: جمع | J84: يومية | K84: 8.5 | L84: 350 | M84: 2975 | Z84: 200 | AA84: 14.875 | AB84: 56768.5
A85: 76 | B85: 2025-08-17 | C85: الأحد | D85: عبد الجواد | E85: عنب | F85: كريمسون | G85: كريمسون ح6 | I85: جمع | J85: يومية | K85: 4 | L85: 350 | M85: 1400 | Z85: 100 | AA85: 14 | AB85: 58168.5
A86: 77 | B86: 2025-08-17 | C86: الأحد | D86: عبد الجواد | E86: ارض القشطة خالية | I86: حرق حشائش | J86: يومية | K86: 3.5 | L86: 350 | M86: 1225 | AB86: 59393.5
A87: 78 | B87: 2025-08-18 | C87: الإثنين | D87: عبد الجواد | E87: عنب | F87: كريمسون | G87: كريمسون ح6 | I87: جمع | J87: يومية | K87: 4 | L87: 350 | M87: 1400 | Z87: 100 | AA87: 14 | AB87: 60793.5
A88: 79 | B88: 2025-08-18 | C88: الإثنين | D88: عبد الجواد | E88: ارض العالمين | F88: ارض العالمين | I88: برسيم | J88: يومية | K88: 4 | L88: 350 | M88: 1400 | AB88: 62193.5
A89: 80 | B89: 2025-08-18 | C89: الإثنين | D89: عبد الجواد | E89: المحطة | I89: نظافة محطة | J89: يومية | K89: 1 | L89: 350 | M89: 350 | AB89: 62543.5
A90: 81 | B90: 2025-08-19 | C90: الثلاثاء | D90: عبد الجواد | E90: عنب | F90: كريمسون | G90: كريمسون ح6 | I90: جمع | J90: يومية | K90: 5 | L90: 350 | M90: 1750 | AB90: 64293.5
A91: 82 | B91: 2025-08-19 | C91: الثلاثاء | D91: عبد الجواد | E91: مانجو | I91: حشائش | J91: يومية | K91: 3.5 | L91: 350 | M91: 1225 | AB91: 65518.5
A92: 83 | B92: 2025-08-20 | C92: الأربعاء | D92: عبد الجواد | E92: عنب | F92: كريمسون | G92: كريمسون ح6 | I92: جمع | J92: يومية | K92: 15 | L92: 350 | M92: 5250 | AB92: 70768.5
A93: 84 | B93: 2025-08-20 | C93: الأربعاء | D93: عبد الجواد | E93: عنب | F93: كريمسون | G93: كريمسون ح6 | I93: جمع | J93: يومية | K93: 2 | L93: 350 | M93: 700 | AB93: 71468.5
A94: 85 | B94: 2025-08-21 | C94: الخميس | D94: عبد الجواد | E94: عنب | F94: كريمسون | G94: كريمسون ح6 | I94: جمع | J94: يومية | K94: 13 | L94: 350 | M94: 4550 | AB94: 76018.5
A95: 86 | B95: 2025-08-22 | C95: الجمعة | D95: عبد الجواد | E95: عنب | F95: كريمسون | G95: كريمسون ح6 | I95: جمع | J95: يومية | K95: 11 | L95: 350 | M95: 3850 | Z95: 205 | AA95: 18.7804878 | AB95: 79868.5
A96: 87 | B96: 2025-08-23 | C96: السبت | D96: عبد الجواد | E96: عنب | F96: كريمسون | G96: كريمسون ح4 | I96: جمع | J96: يومية | K96: 10 | L96: 350 | M96: 3500 | Z96: 200 | AA96: 17.5 | AB96: 83368.5
A97: 88 | B97: 2025-08-24 | C97: الأحد | D97: عبد الجواد | E97: دفعه فلوس | F97: دفعه فلوس | G97: دفعه فلوس | I97: دفعه فلوس | J97: وصل | L97: 0 | M97: 0 | X97: 20000 | AB97: 63368.5
A98: 89 | B98: 2025-08-24 | C98: الأحد | D98: عبد الجواد | E98: عنب | F98: كريمسون | G98: كريمسون ح4 | I98: جمع | J98: يومية | K98: 3.25 | L98: 350 | M98: 1137.5 | AB98: 64506
A99: 90 | B99: 2025-08-24 | C99: الأحد | D99: عبد الجواد | E99: دراجون | F99: دراجون | G99: دراجون | I99: جمع | J99: يومية | K99: 2 | L99: 350 | M99: 700 | AB99: 65206
A100: 91 | B100: 2025-08-24 | C100: الأحد | D100: عبد الجواد | E100: بونيكام | F100: بونيكام | G100: بونيكام | I100: زراعة | J100: يومية | K100: 6 | L100: 350 | M100: 2100 | AB100: 67306
A101: 92 | B101: 2025-08-25 | C101: الإثنين | D101: عبد الجواد | E101: بونيكام | F101: بونيكام | G101: بونيكام | I101: زراعة | J101: يومية | K101: 10 | L101: 350 | M101: 3500 | AB101: 70806
A102: 93 | B102: 2025-08-26 | C102: الثلاثاء | D102: عبد الجواد | E102: عنب | F102: كريمسون | G102: كريمسون ح4 | I102: جمع | J102: يومية | K102: 7 | L102: 350 | M102: 2450 | AB102: 73256
A103: 94 | B103: 2025-08-26 | C103: الثلاثاء | D103: عبد الجواد | E103: بونيكام | F103: بونيكام | G103: بونيكام | I103: زراعة | J103: يومية | K103: 3 | L103: 350 | M103: 1050 | AB103: 74306
A104: 95 | B104: 2025-08-27 | C104: الأربعاء | D104: عبد الجواد | E104: عنب | F104: كريمسون | G104: كريمسون ح4 | I104: جمع | J104: يومية | K104: 7 | L104: 350 | M104: 2450 | AB104: 76756
A105: 96 | B105: 2025-08-27 | C105: الأربعاء | D105: عبد الجواد | E105: بونيكام | F105: بونيكام | G105: بونيكام | I105: زراعة | J105: يومية | K105: 4 | L105: 350 | M105: 1400 | AB105: 78156
A106: 97 | B106: 2025-08-28 | C106: الخميس | D106: عبد الجواد | E106: عنب | F106: كريمسون | G106: كريمسون ح4 | I106: جمع | J106: يومية | K106: 7 | L106: 350 | M106: 2450 | AB106: 80606
A107: 98 | B107: 2025-08-28 | C107: الخميس | D107: عبد الجواد | E107: بونيكام | F107: بونيكام | G107: بونيكام | I107: زراعة | J107: يومية | K107: 4 | L107: 350 | M107: 1400 | AB107: 82006
A108: 99 | B108: 2025-08-29 | C108: الجمعة | D108: عبد الجواد | E108: عنب | F108: كريمسون | G108: كريمسون ح4 | I108: جمع | J108: يومية | K108: 8 | L108: 350 | M108: 2800 | Z108: 198 | AA108: 14.14141414 | AB108: 84806
A109: 100 | B109: 2025-08-29 | C109: الجمعة | D109: عبد الجواد | E109: بونيكام | F109: بونيكام | G109: بونيكام | I109: زراعة | J109: يومية | K109: 7 | L109: 350 | M109: 2450 | AB109: 87256
A110: 101 | B110: 2025-08-30 | C110: السبت | D110: عبد الجواد | E110: بونيكام | F110: بونيكام | G110: بونيكام | I110: زراعة | J110: يومية | K110: 8 | L110: 350 | M110: 2800 | AB110: 90056
A111: 102 | B111: 2025-08-31 | C111: الأحد | D111: عبد الجواد | E111: دفعه فلوس | F111: دفعه فلوس | G111: دفعه فلوس | I111: دفعه فلوس | J111: وصل | L111: 0 | M111: 0 | X111: 10000 | AB111: 80056
A112: 103 | B112: 2025-08-31 | C112: الأحد | D112: عبد الجواد | E112: تجهيزات | F112: تجهيزات | I112: تنزيل سباخ | J112: يومية | K112: 2.5 | L112: 350 | M112: 875 | AB112: 80931
A113: 104 | B113: 2025-08-31 | C113: الأحد | D113: عبد الجواد | E113: الإدارة والمخازن | J113: يومية | K113: 2 | L113: 350 | M113: 700 | AB113: 81631
A114: 105 | B114: 2025-09-01 | C114: الإثنين | D114: عبد الجواد | E114: الإدارة والمخازن | F114: الإدارة والمخازن | J114: يومية | K114: 2 | L114: 350 | M114: 700 | AB114: 82331
A115: 106 | B115: 2025-09-01 | C115: الإثنين | D115: عبد الجواد | E115: انتاج حيوانى | F115: اغنام | J115: يومية | K115: 0.5 | L115: 350 | M115: 175 | AB115: 82506
A116: 107 | B116: 2025-09-01 | C116: الإثنين | D116: عبد الجواد | E116: تجهيزات | F116: تجهيزات | J116: يومية | K116: 4.5 | L116: 350 | M116: 1575 | AB116: 84081
A117: 108 | B117: 2025-09-02 | C117: الثلاثاء | D117: عبد الجواد | E117: الإدارة والمخازن | F117: الإدارة والمخازن | J117: يومية | K117: 2 | L117: 350 | M117: 700 | AB117: 84781
A118: 109 | B118: 2025-09-02 | C118: الثلاثاء | D118: عبد الجواد | E118: تجهيزات | F118: تجهيزات | J118: يومية | K118: 3 | L118: 350 | M118: 1050 | AB118: 85831
A119: 110 | B119: 2025-09-03 | C119: الأربعاء | D119: عبد الجواد | E119: عنب | F119: اسبيريور | I119: حشائش | J119: يومية | K119: 1 | L119: 350 | M119: 350 | AB119: 86181
A120: 111 | B120: 2025-09-03 | C120: الأربعاء | D120: عبد الجواد | E120: عنب | F120: بلاك | I120: حشائش | J120: يومية | K120: 1 | L120: 350 | M120: 350 | AB120: 86531
A121: 112 | B121: 2025-09-03 | C121: الأربعاء | D121: عبد الجواد | E121: الإدارة والمخازن | F121: الإدارة والمخازن | J121: يومية | K121: 2 | L121: 350 | M121: 700 | AB121: 87231
A122: 113 | B122: 2025-09-03 | C122: الأربعاء | D122: عبد الجواد | E122: تجهيزات | F122: تجهيزات | J122: يومية | K122: 2 | L122: 350 | M122: 700 | AB122: 87931
A123: 114 | B123: 2025-09-04 | C123: الخميس | D123: عبد الجواد | E123: عنب | F123: كريمسون | I123: حشائش | J123: يومية | K123: 2 | L123: 350 | M123: 700 | AB123: 88631
A124: 115 | B124: 2025-09-04 | C124: الخميس | D124: عبد الجواد | E124: دفعه فلوس | F124: دفعه فلوس | G124: دفعه فلوس | I124: دفعه فلوس | J124: وصل | L124: 0 | M124: 0 | X124: 30000 | AB124: 58631
A125: 116 | B125: 2025-09-05 | C125: الجمعة | D125: عبد الجواد | E125: مانجو | F125: مانجو | I125: حشائش | J125: يومية | K125: 1 | L125: 350 | M125: 350 | AB125: 58981
A126: 117 | B126: 2025-09-06 | C126: السبت | D126: عبد الجواد | E126: مانجو | F126: مانجو | I126: حرق حشائش | J126: يومية | K126: 0.5 | L126: 350 | M126: 175 | AB126: 59156
A127: 118 | B127: 2025-09-06 | C127: السبت | D127: عبد الجواد | E127: مانجو | F127: مانجو | I127: شتلة | J127: يومية | K127: 5 | L127: 350 | M127: 1750 | AB127: 60906
A128: 119 | B128: 2025-09-07 | C128: الأحد | D128: عبد الجواد | E128: مانجو | F128: مانجو | I128: زراعة | J128: يومية | K128: 4 | L128: 350 | M128: 1400 | AB128: 62306
A129: 120 | B129: 2025-09-07 | C129: الأحد | D129: عبد الجواد | E129: مانجو | F129: مانجو | I129: مخلفات | J129: يومية | K129: 1 | L129: 350 | M129: 350 | AB129: 62656
A130: 121 | B130: 2025-09-08 | C130: الإثنين | D130: عبد الجواد | E130: الإدارة والمخازن | F130: الإدارة والمخازن | J130: يومية | K130: 2 | L130: 350 | M130: 700 | AB130: 63356
A131: 122 | B131: 2025-09-08 | C131: الإثنين | D131: عبد الجواد | E131: مانجو | F131: مانجو | I131: زراعة | J131: يومية | K131: 2 | L131: 350 | M131: 700 | AB131: 64056
A132: 123 | B132: 2025-09-08 | C132: الإثنين | D132: عبد الجواد | E132: مانجو | F132: مانجو | I132: مخلفات | J132: يومية | K132: 2 | L132: 350 | M132: 700 | AB132: 64756
A133: 124 | B133: 2025-09-09 | C133: الثلاثاء | D133: عبد الجواد | E133: مانجو | F133: مانجو | I133: زراعة | J133: يومية | K133: 8 | L133: 350 | M133: 2800 | AB133: 67556
A134: 125 | B134: 2025-09-10 | C134: الأربعاء | D134: عبد الجواد | E134: مانجو | F134: مانجو | I134: زراعة | J134: يومية | K134: 10 | L134: 350 | M134: 3500 | AB134: 71056
A135: 126 | B135: 2025-09-11 | C135: الخميس | D135: عبد الجواد | E135: مانجو | F135: مانجو | I135: زراعة | J135: يومية | K135: 8 | L135: 350 | M135: 2800 | AB135: 73856
A136: 127 | B136: 2025-09-12 | C136: الجمعة | D136: عبد الجواد | E136: مانجو | F136: مانجو | I136: زراعة | J136: يومية | K136: 7 | L136: 350 | M136: 2450 | AB136: 76306
A137: 128 | B137: 2025-09-12 | C137: الجمعة | D137: عبد الجواد | E137: دفعه فلوس | F137: دفعه فلوس | G137: دفعه فلوس | I137: دفعه فلوس | J137: وصل | L137: 0 | M137: 0 | X137: 10000 | AB137: 66306
A138: =ROW()-9 -> 129 | B138: 2025-09-12 | C138: الجمعة | D138: عبد الجواد | E138: دفعه فلوس | F138: دفعه فلوس | G138: دفعه فلوس | I138: دفعه فلوس | J138: وصل | L138: 0 | M138: 0 | X138: 250 | Y138: انوبة غاز | AB138: 66056
A139: 130 | B139: 2025-09-13 | C139: السبت | D139: عبد الجواد | E139: مانجو | F139: مانجو | I139: زراعة | J139: يومية | K139: 7 | L139: 350 | M139: 2450 | AB139: 68506
A140: 131 | B140: 2025-09-14 | C140: الأحد | D140: عبد الجواد | E140: الإدارة والمخازن | F140: الإدارة والمخازن | J140: يومية | K140: 2 | L140: 350 | M140: 700 | AB140: 69206
A141: 132 | B141: 2025-09-14 | C141: الأحد | D141: عبد الجواد | E141: مانجو | F141: مانجو | I141: زراعة | J141: يومية | K141: 2.5 | L141: 350 | M141: 875 | AB141: 70081
A142: 133 | B142: 2025-09-14 | C142: الأحد | D142: عبد الجواد | E142: مانجو | F142: مانجو | I142: الرى | J142: يومية | K142: 1 | L142: 350 | M142: 350 | AB142: 70431
A143: 134 | B143: 2025-09-15 | C143: الإثنين | D143: عبد الجواد | E143: مانجو | F143: مانجو | I143: الرى | J143: يومية | K143: 2 | L143: 350 | M143: 700 | AB143: 71131
A144: 135 | B144: 2025-09-15 | C144: الإثنين | D144: عبد الجواد | E144: مانجو | F144: مانجو | I144: حشائش | J144: يومية | K144: 124 | L144: 350 | M144: 43400 | AB144: 114531
A145: 136 | B145: 2025-09-16 | C145: الثلاثاء | D145: عبد الجواد | E145: دفعه فلوس | F145: دفعه فلوس | G145: دفعه فلوس | I145: دفعه فلوس | J145: وصل | L145: 0 | M145: 0 | X145: 50000 | AB145: 64531
A146: 137 | B146: 2025-09-16 | C146: الثلاثاء | D146: عبد الجواد | E146: مانجو | F146: مانجو | I146: زراعة | J146: يومية | K146: 6 | L146: 350 | M146: 2100 | AB146: 66631
A147: 138 | B147: 2025-09-16 | C147: الثلاثاء | D147: عبد الجواد | E147: مانجو | F147: مانجو | I147: الرى | J147: يومية | K147: 1 | L147: 350 | M147: 350 | AB147: 66981
A148: 139 | B148: 2025-09-17 | C148: الأربعاء | D148: عبد الجواد | E148: المانجو الجديدة | F148: تجهيزات | I148: زراعة | J148: يومية | K148: 2 | L148: 350 | M148: 700 | AB148: 67681
A149: 140 | B149: 2025-09-17 | C149: الأربعاء | D149: عبد الجواد | E149: مانجو | F149: مانجو | I149: الرى | J149: يومية | K149: 5 | L149: 350 | M149: 1750 | AB149: 69431
A150: 141 | B150: 2025-09-18 | C150: الخميس | D150: عبد الجواد | E150: مانجو | F150: مانجو | I150: زراعة | J150: يومية | K150: 7 | L150: 350 | M150: 2450 | AB150: 71881
A151: 142 | B151: 2025-09-19 | C151: الجمعة | D151: عبد الجواد | E151: مانجو | F151: مانجو | I151: زراعة | J151: يومية | K151: 2 | L151: 350 | M151: 700 | AB151: 72581
A152: 143 | B152: 2025-09-19 | C152: الجمعة | D152: عبد الجواد | E152: عنب | F152: بلاك | I152: تنزيل سباخ | J152: يومية | K152: 5 | L152: 350 | M152: 1750 | AB152: 74331
A153: 144 | B153: 2025-09-20 | C153: السبت | D153: عبد الجواد | E153: مانجو | F153: مانجو | I153: زراعة | J153: يومية | K153: 1 | L153: 350 | M153: 350 | AB153: 74681
A154: 145 | B154: 2025-09-20 | C154: السبت | D154: عبد الجواد | E154: النخيل | F154: النخيل | I154: تنزيل سباخ | J154: يومية | K154: 5 | L154: 350 | M154: 1750 | AB154: 76431
A155: 146 | B155: 2025-09-21 | C155: الأحد | D155: عبد الجواد | E155: مانجو | F155: مانجو | I155: زراعة | J155: يومية | K155: 1 | L155: 350 | M155: 350 | AB155: 76781
A156: 147 | B156: 2025-09-21 | C156: الأحد | D156: عبد الجواد | E156: النخيل | F156: النخيل | I156: تنزيل سباخ | J156: يومية | K156: 5 | L156: 350 | M156: 1750 | AB156: 78531
A157: 148 | B157: 2025-09-22 | C157: الإثنين | D157: عبد الجواد | E157: النخيل | F157: النخيل | I157: تنزيل سباخ | J157: يومية | K157: 6.5 | L157: 350 | M157: 2275 | AB157: 80806
A158: 149 | B158: 2025-09-23 | C158: الثلاثاء | D158: عبد الجواد | E158: النخيل | F158: النخيل | I158: تنزيل سباخ | J158: يومية | K158: 4.5 | L158: 350 | M158: 1575 | AB158: 82381
A159: 150 | B159: 2025-09-23 | C159: الثلاثاء | D159: عبد الجواد | E159: الغنم | F159: الغنم | I159: حقن الغنم | J159: يومية | K159: 0.5 | L159: 350 | M159: 175 | AB159: 82556
A160: 151 | B160: 2025-09-24 | C160: الأربعاء | D160: عبد الجواد | E160: النخيل | F160: النخيل | I160: تنزيل سباخ | J160: يومية | K160: 6 | L160: 350 | M160: 2100 | AB160: 84656
A161: 152 | B161: 2025-09-24 | C161: الأربعاء | D161: عبد الجواد | E161: ارض العالمين | F161: ارض العالمين | J161: يومية | K161: 1.5 | L161: 350 | M161: 525 | AB161: 85181
A162: 153 | B162: 2025-09-25 | C162: الخميس | D162: عبد الجواد | E162: النخيل | F162: النخيل | I162: تنزيل سباخ | J162: يومية | K162: 5 | L162: 350 | M162: 1750 | AB162: 86931
A163: 154 | B163: 2025-09-26 | C163: الجمعة | D163: عبد الجواد | E163: النخيل | F163: النخيل | I163: تنزيل سباخ | J163: يومية | K163: 5 | L163: 350 | M163: 1750 | AB163: 88681
A164: 155 | B164: 2025-09-27 | C164: السبت | D164: عبد الجواد | E164: النخيل | F164: النخيل | I164: تنزيل سباخ | J164: يومية | K164: 5 | L164: 350 | M164: 1750 | AB164: 90431
A165: 156 | B165: 2025-09-28 | C165: الأحد | D165: عبد الجواد | E165: الإدارة والمخازن | F165: الإدارة والمخازن | J165: يومية | K165: 2 | L165: 350 | M165: 700 | AB165: 91131
A166: 157 | B166: 2025-09-28 | C166: الأحد | D166: عبد الجواد | E166: النخيل | F166: النخيل | I166: رش | J166: يومية | K166: 1 | L166: 350 | M166: 350 | AB166: 91481
